Workbook

Sheet ورقة1
Q2: =SUM(Q4:Q352) -> 597441.5971 | R2: =SUM(R4:R328) -> 0 | S2: 743072.65 | T2: 82563.7 | U2: 1083.033424 | V2: 0 | W2: 0 | X2: 314.43 | Y2: 80012.69012 | Z2: 97200 | AA2: 103.8 | AB2: 100 | AC2: 0 | AD2: 0 | AE2: 0 | AF2: 177630.98 | AG2: 10197.35076 | AH2: 11375.35178 | AI2: 14816.19371 | AJ2: 47886.12 | AK2: 51060 | AL2: 10373.89732 | AM2: 16733.88634 | AN2: 21304.9255 | AO2: 30339.0104 | AP2: 32555.08865 | AQ2: 36421.35999 | AR2: 0 | AS2: 25599.47226 | AT2: 188400 | AU2: 2942 | AV2: 500004.69 | AW2: 3250 | AX2: 91737.45 | AY2: 4079.12 | AZ2: 0 | BA2: 4260 | BB2: 2149766.76 | BC2: 369515.84 | BD2: 2527721.72 | BE2: 0 | BF2: 0 | BG2: 3 | BH2: 0 | BI2: =SUM(BI4:BI347) -> 255483.99 | BJ2: 0 | BK2: 470.2556667 | BL2: 0 | BM2: 359.292 | BN2: 3770.09 | BO2: 0 | BP2: 681.02 | BQ2: 246.24 | BR2: 750 | BS2: 1032 | BT2: 16134.04 | BU2: 0 | BV2: 0 | BW2: 0 | BX2: 0 | BY2: 0 | BZ2: 1571.68 | CA2: 0 | CB2: 0 | CC2: 0 | CD2: 0 | CE2: 0 | CF2: 0 | CG2: 1268.34 | CH2: 0 | CI2: 0 | CJ2: 0 | CK2: 0 | CL2: 998.34 | CM2: 3463.76 | CN2: 0 | CO2: 97695.76 | CP2: 0 | CQ2: 0 | CR2: 34917.91 | CS2: 0 | CT2: 16859.35 | CU2: =SUM(CU4:CU347) -> 7061.11 | CV2: 442763.18 | CW2: 2237834.95
B3: كود الشركة | C3: كود البيرول | D3: التعامل المالي | E3: اسم الموظف | F3: الموظف المختص | G3: حالة العمل | H3: التصنيف الادارى | I3: الدرجة | J3: ترقية 7/2025 | K3: الوظيفة | L3: الفرع | M3: الرقم القومي | N3: مرجع بحث | O3: استعلام ترقية | P3: الأجر الأساسي | Q3: أساسي 7/2025 | R3: أجر مقطوع | S3: الحافز | T3: حافز أداء 15% | U3: حافز موانى | V3: عمولة انتاج | W3: أومر الشغل للملاكي | X3: بدل مخاطر مواني 30% | Y3: بدل مخاطر | Z3: بدل انتقال | AA3: بدل اقامة | AB3: بدل تمثيل | AC3: بدل ضيافة | AD3: بدل تفرغ | AE3: بدل تباع | AF3: إجمالي بدلات | AG3: علاوة 2014 | AH3: علاوة 2015 | AI3: علاوة 2016 | AJ3: ع م من 14 حتى 18 | AK3: علاوة استثنائية2018 | AL3: علاوة 2019 | AM3: علاوة 2020 | AN3: علاوة 2021 | AO3: علاوة 2022 | AP3: علاوة 2023 | AQ3: علاوة 2024 | AR3: إ.ع من14:24 أعمال | AS3: علاوة 2025 | AT3: علاوة غلاء معيشة | AU3: علاوة اجتماعية | AV3: إجمالي علاوات | AW3: م. عيد العمال | AX3: متوسط المنحة | AY3: رد مستحقات | AZ3: بدل سهر | BA3: الإضافي | BB3: الإجمالي | BC3: مكمل الأجر | BD3: إجمالي المستحق | BE3: عدد أيام الأجازات | BF3: أيام أجازات بعد السنوية | BG3: أيام الغياب | BH3: أيام جزاء | BI3: تامينات 2026 | BJ3: ضريبة 2026 | BK3: خصم غياب عام | BL3: جزاءات | BM3: خصم غياب من الحافز | BN3: خصم حافز | BO3: خصم حافز بعد السنوية | BP3: اشتراكات اجازات خاصة | BQ3: مدة سابقة | BR3: إيجار سكن | BS3: نقابة | BT3: خصم نفقات | BU3: أجر بالزيادة | BV3: سولار | BW3: عهد | BX3: تلفيات | BY3: عجز | BZ3: تعويضات | CA3: سلفة | CB3: نقليات | CC3: مخالفات مرور | CD3: تنفيذ أحكام | CE3: إجمالي المديونية | CF3: الشهداء | CG3: دعم ذوى الاعاقة | CH3: تسويات مدينة | CI3: حج وعمرة | CJ3: قسط تأمينات | CK3: صندوق تكافل | CL3: تأمين صحي بورسعيد | CM3: أخرى | CN3: نصف وقت | CO3: متوسط منح | CP3: خصم 5% تأمين من العمولة | CQ3: إيقاف | CR3: مرضي | CS3: أجازة | CT3: إعارة | CU3: معاش | CV3: إجمالي المستقطع | CW3: صافي الأجر
B4: 201009 | C4: 21137 | D4: بنك مصر 1 | E4: امين حفنى مصطفى احمد | F4: مروة | G4: دوام كامل | H4: فنى | I4: الاولى | M4: 26605080103015 | N4: 20100921137امين حفنى مصطفى احمداشرفالاولى | P4: 2882.64 | Q4: 3170.904 | R4: 0 | S4: =ROUND(Q4*135%,2) -> 4280.72 | T4: =ROUND(Q4*15%,2) -> 475.64 | U4: 0 | V4: 0 | W4: 0 | Y4: 475.64 | Z4: 300 | AB4: 0 | AC4: 0 | AD4: 0 | AE4: 0 | AF4: =ROUND(SUM(X4:AA4,AC4:AE4),2) -> 775.64 | AG4: 95.02 | AH4: 106.48 | AI4: 120 | AJ4: 0 | AK4: 190 | AL4: 57.62 | AM4: 102.76 | AN4: 131.95 | AO4: 188.25 | AP4: 201.43 | AQ4: 215.52 | AR4: 0 | AS4: 144.132 | AT4: 600 | AU4: 10 | AV4: =ROUND(SUM(AG4:AU4),2) -> 2163.16 | AW4: 10 | AX4: =ROUND((data.f2026[[#This Row],[أساسي 7/2025]]*2)/12,2) -> 528.48 | AY4: 0 | BA4: 0 | BB4: =ROUND(SUM(Q4:W4,AF4,AV4,AW4:AX4),2) -> 11404.54 | BC4: =IF(BB4<7000,7000-BB4,0) -> 0 | BD4: =ROUND(SUM(AB4,AY4:BC4),2) -> 11404.54 | BE4: 0 | BF4: 0 | BG4: 0 | BH4: 0 | BI4: 1164.38 | BK4: =(BD4-SUM($S4,AX4:BA4))/30*BG4 -> 0 | BL4: =(BD4-SUM($S4,AX4:BA4))/30*BH4 -> 0 | BM4: =IF(data.f2026[[#This Row],[أيام الغياب]]=1,data.f2026[[#This Row],[الحافز]]*20%,IF(data.f2026[[#This Row],[أيام الغياب]]=2,data.f2026[[#This Row],[الحافز]]*100%,IF(data.f2026[[#This Row],[أيام الغياب]]>2,data.f2026[[#This Row],[الحافز]]*100%,""))) ->  | BN4: =IF(data.f2026[[#This Row],[عدد أيام الأجازات]]<=4,data.f2026[[#This Row],[الحافز]]*0,IF(data.f2026[[#This Row],[عدد أيام الأجازات]]=5,data.f2026[[#This Row],[الحافز]]*20%,IF(data.f2026[[#This Row],[عدد أيام الأجازات]]=6,data.f2026[[#This Row],[الحافز]]*40%,IF(data.f2026[[#This Row],[عدد أيام الأجازات]]=7,data.f2026[[#This Row],[الحافز]]*50%,IF(data.f2026[[#This Row],[عدد أيام الأجازات]]>7,data.f2026[[#This Row],[الحافز]]*100%,""))))) -> 0 | BO4: =IF(data.f2026[[#This Row],[أيام أجازات بعد السنوية]]<=2,data.f2026[[#This Row],[الحافز]]*0,IF(data.f2026[[#This Row],[أيام أجازات بعد السنوية]]=3,data.f2026[[#This Row],[الحافز]]*30%,IF(data.f2026[[#This Row],[أيام أجازات بعد السنوية]]=4,data.f2026[[#This Row],[الحافز]]*40%,IF(data.f2026[[#This Row],[أيام أجازات بعد السنوية]]=5,data.f2026[[#This Row],[الحافز]]*50%,IF(data.f2026[[#This Row],[أيام أجازات بعد السنوية]]>5,data.f2026[[#This Row],[الحافز]]*100%,""))))) -> 0 | BP4: 0 | BQ4: 0 | BR4: 0 | BS4: 3 | BT4: 0 | BV4: 0 | BW4: 0 | BY4: 0 | BZ4: 0 | CA4: 0 | CB4: 0 | CC4: 0 | CD4: 0 | CG4: 5 | CJ4: 0 | CK4: 0 | CN4: =ROUND(IF(G4=$CN$3,(BD4-AX4)*40%,0),2) -> 0 | CO4: =AX4 -> 528.48 | CP4: 0 | CQ4: =ROUND(IF($D4=data.f2026[[#Headers],[إيقاف]],$BD4-SUM(data.f2026[[#This Row],[تامينات 2026]:[خصم 5% تأمين من العمولة]],0),0),2) -> 0 | CR4: =ROUND(IF($D4=data.f2026[[#Headers],[مرضي]],$BD4-SUM(data.f2026[[#This Row],[تامينات 2026]:[خصم 5% تأمين من العمولة]],0),0),2) -> 0 | CS4: =ROUND(IF($D4=CS$3,$BD4-SUM(BI4:CP4,0),0),2) -> 0 | CT4: =ROUND(IF($G4=data.f2026[[#Headers],[إعارة]],$BD4-SUM(data.f2026[[#This Row],[تامينات 2026]:[خصم 5% تأمين من العمولة]],0),0),2) -> 0 | CU4: =ROUND(IF($G4=data.f2026[[#Headers],[معاش]],$BD4-SUM(data.f2026[[#This Row],[تامينات 2026]:[خصم 5% تأمين من العمولة]],0),0),2) -> 0 | CV4: =ROUND(SUM(BI4:CU4),2) -> 1700.86 | CW4: =BD4-CV4 -> 9703.68
B5: 201010 | C5: 21282 | D5: بنك مصر 1 | E5: محمود على مجاهد على | F5: مروة | G5: دوام كامل | H5: فنى | I5: الاولى | M5: 26608120105198 | N5: 20101021282محمود على مجاهد علىالاولى | P5: 2517.84 | Q5: 2769.624 | R5: 0 | S5: 3738.99 | T5: 415.44 | U5: 0 | V5: 0 | W5: 0 | Y5: 0 | Z5: 300 | AB5: 0 | AC5: 0 | AD5: 0 | AE5: 0 | AF5: 300 | AG5: 83.07 | AH5: 93.05 | AI5: 119.3 | AJ5: 0 | AK5: 190 | AL5: 50.33 | AM5: 89.75 | AN5: 115.25 | AO5: 164.42 | AP5: 175.93 | AQ5: 188.25 | AR5: 0 | AS5: 125.892 | AT5: 600 | AU5: 10 | AV5: 2005.24 | AW5: 10 | AX5: =ROUND((data.f2026[[#This Row],[أساسي 7/2025]]*2)/12,2) -> 461.6 | AY5: 0 | BA5: 0 | BB5: 9700.89 | BC5: 0 | BD5: 9700.89 | BE5: 0 | BF5: 0 | BG5: 0 | BH5: 0 | BI5: 1014.54 | BK5: 0 | BL5: 0 | BM5: =IF(data.f2026[[#This Row],[أيام الغياب]]=1,data.f2026[[#This Row],[الحافز]]*20%,IF(data.f2026[[#This Row],[أيام الغياب]]=2,data.f2026[[#This Row],[الحافز]]*100%,IF(data.f2026[[#This Row],[أيام الغياب]]>2,data.f2026[[#This Row],[الحافز]]*100%,""))) ->  | BN5: =IF(data.f2026[[#This Row],[عدد أيام الأجازات]]<=4,data.f2026[[#This Row],[الحافز]]*0,IF(data.f2026[[#This Row],[عدد أيام الأجازات]]=5,data.f2026[[#This Row],[الحافز]]*20%,IF(data.f2026[[#This Row],[عدد أيام الأجازات]]=6,data.f2026[[#This Row],[الحافز]]*40%,IF(data.f2026[[#This Row],[عدد أيام الأجازات]]=7,data.f2026[[#This Row],[الحافز]]*50%,IF(data.f2026[[#This Row],[عدد أيام الأجازات]]>7,data.f2026[[#This Row],[الحافز]]*100%,""))))) -> 0 | BO5: =IF(data.f2026[[#This Row],[أيام أجازات بعد السنوية]]<=2,data.f2026[[#This Row],[الحافز]]*0,IF(data.f2026[[#This Row],[أيام أجازات بعد السنوية]]=3,data.f2026[[#This Row],[الحافز]]*30%,IF(data.f2026[[#This Row],[أيام أجازات بعد السنوية]]=4,data.f2026[[#This Row],[الحافز]]*40%,IF(data.f2026[[#This Row],[أيام أجازات بعد السنوية]]=5,data.f2026[[#This Row],[الحافز]]*50%,IF(data.f2026[[#This Row],[أيام أجازات بعد السنوية]]>5,data.f2026[[#This Row],[الحافز]]*100%,""))))) -> 0 | BP5: 0 | BQ5: 0 | BR5: 0 | BS5: 3 | BT5: 0 | BV5: 0 | BW5: 0 | BY5: 0 | BZ5: 0 | CA5: 0 | CB5: 0 | CC5: 0 | CD5: 0 | CG5: 5 | CJ5: 0 | CK5: 0 | CM5: 0 | CN5: 0 | CO5: 461.6 | CP5: 0 | CQ5: =ROUND(IF($D5=data.f2026[[#Headers],[إيقاف]],$BD5-SUM(data.f2026[[#This Row],[تامينات 2026]:[خصم 5% تأمين من العمولة]],0),0),2) -> 0 | CR5: =ROUND(IF($D5=data.f2026[[#Headers],[مرضي]],$BD5-SUM(data.f2026[[#This Row],[تامينات 2026]:[خصم 5% تأمين من العمولة]],0),0),2) -> 0 | CS5: 0 | CT5: =ROUND(IF($G5=data.f2026[[#Headers],[إعارة]],$BD5-SUM(data.f2026[[#This Row],[تامينات 2026]:[خصم 5% تأمين من العمولة]],0),0),2) -> 0 | CU5: =ROUND(IF($G5=data.f2026[[#Headers],[معاش]],$BD5-SUM(data.f2026[[#This Row],[تامينات 2026]:[خصم 5% تأمين من العمولة]],0),0),2) -> 0 | CV5: 1484.14 | CW5: 8216.75
B6: 201012 | C6: 42333 | D6: بنك مصر 1 | E6: محمود سعيد عبد المنعم عابدين | F6: مروة | G6: إعارة | H6: ترددي | I6: الثالثة | J6: الثالثة | K6: كهربائي مركبات | L6: فرع الاسكندرية | M6: 29303061701836 | N6: 20101242333محمود سعيد عبد المنعم عابدينمروهالثالثةالثالثةكهربائي مركباتفرع الاسكندرية | O6: نعم | P6: 642.67 | Q6: 751.9239 | R6: 0 | S6: 1015.1 | T6: 112.79 | U6: 0 | V6: 0 | W6: 0 | Y6: 112.79 | Z6: 300 | AB6: 0 | AC6: 0 | AD6: 0 | AE6: 0 | AF6: 412.79 | AG6: 30.03 | AH6: 31.61 | AI6: 65 | AJ6: 0 | AK6: 200 | AL6: 45.02 | AM6: 42.92 | AN6: 40.68 | AO6: 63.28 | AP6: 85.71 | AQ6: 107.96 | AR6: 0 | AS6: 85.733 | AT6: 600 | AU6: 4 | AV6: 1401.94 | AW6: 10 | AX6: =ROUND((data.f2026[[#This Row],[أساسي 7/2025]]*2)/12,2) -> 125.32 | AY6: 0 | BA6: 0 | BB6: 3829.86 | BC6: 3170.14 | BD6: 7000 | BE6: 0 | BF6: 0 | BG6: 0 | BH6: 0 | BI6: 631.22 | BK6: 0 | BL6: 0 | BM6: =IF(data.f2026[[#This Row],[أيام الغياب]]=1,data.f2026[[#This Row],[الحافز]]*20%,IF(data.f2026[[#This Row],[أيام الغياب]]=2,data.f2026[[#This Row],[الحافز]]*100%,IF(data.f2026[[#This Row],[أيام الغياب]]>2,data.f2026[[#This Row],[الحافز]]*100%,""))) ->  | BN6: =IF(data.f2026[[#This Row],[عدد أيام الأجازات]]<=4,data.f2026[[#This Row],[الحافز]]*0,IF(data.f2026[[#This Row],[عدد أيام الأجازات]]=5,data.f2026[[#This Row],[الحافز]]*20%,IF(data.f2026[[#This Row],[عدد أيام الأجازات]]=6,data.f2026[[#This Row],[الحافز]]*40%,IF(data.f2026[[#This Row],[عدد أيام الأجازات]]=7,data.f2026[[#This Row],[الحافز]]*50%,IF(data.f2026[[#This Row],[عدد أيام الأجازات]]>7,data.f2026[[#This Row],[الحافز]]*100%,""))))) -> 0 | BO6: =IF(data.f2026[[#This Row],[أيام أجازات بعد السنوية]]<=2,data.f2026[[#This Row],[الحافز]]*0,IF(data.f2026[[#This Row],[أيام أجازات بعد السنوية]]=3,data.f2026[[#This Row],[الحافز]]*30%,IF(data.f2026[[#This Row],[أيام أجازات بعد السنوية]]=4,data.f2026[[#This Row],[الحافز]]*40%,IF(data.f2026[[#This Row],[أيام أجازات بعد السنوية]]=5,data.f2026[[#This Row],[الحافز]]*50%,IF(data.f2026[[#This Row],[أيام أجازات بعد السنوية]]>5,data.f2026[[#This Row],[الحافز]]*100%,""))))) -> 0 | BP6: 0 | BQ6: 0 | BR6: 0 | BS6: 3 | BT6: 0 | BV6: 0 | BW6: 0 | BY6: 0 | BZ6: 0 | CA6: 0 | CB6: 0 | CC6: 0 | CD6: 0 | CG6: 3 | CJ6: 0 | CK6: 0 | CM6: 0 | CN6: 0 | CO6: 125.32 | CP6: 0 | CQ6: =ROUND(IF($D6=data.f2026[[#Headers],[إيقاف]],$BD6-SUM(data.f2026[[#This Row],[تامينات 2026]:[خصم 5% تأمين من العمولة]],0),0),2) -> 0 | CR6: =ROUND(IF($D6=data.f2026[[#Headers],[مرضي]],$BD6-SUM(data.f2026[[#This Row],[تامينات 2026]:[خصم 5% تأمين من العمولة]],0),0),2) -> 0 | CS6: 0 | CT6: =ROUND(IF($G6=data.f2026[[#Headers],[إعارة]],$BD6-SUM(data.f2026[[#This Row],[تامينات 2026]:[خصم 5% تأمين من العمولة]],0),0),2) -> 6237.46 | CU6: =ROUND(IF($G6=data.f2026[[#Headers],[معاش]],$BD6-SUM(data.f2026[[#This Row],[تامينات 2026]:[خصم 5% تأمين من العمولة]],0),0),2) -> 0 | CV6: 7000 | CW6: 0
B7: 201013 | C7: 22174 | D7: بنك مصر 1 | E7: عمر صفوت كمال عبد العظيم | F7: مروة | G7: دوام كامل | H7: فنى | I7: الخامسة | J7: الخامسة | K7: حرفى ميكانيكى | L7: الاميرية | M7: 29907290103538 | N7: 20101322174عمر صفوت كمال عبد العظيمالخامسةالخامسةحرفى ميكانيكىالاميرية | O7: نعم | P7: 693.67 | Q7: 811.5939 | R7: 0 | S7: 1095.65 | T7: 121.74 | U7: 0 | V7: 0 | W7: 0 | Y7: 121.74 | Z7: 300 | AB7: 0 | AC7: 0 | AD7: 0 | AE7: 0 | AF7: 421.74 | AG7: 28.18 | AH7: 29.62 | AI7: 65 | AJ7: 0 | AK7: 200 | AL7: 42.65 | AM7: 40.38 | AN7: 37.96 | AO7: 60.36 | AP7: 82.59 | AQ7: 104.62 | AR7: 0 | AS7: 80.633 | AT7: 600 | AU7: 4 | AV7: 1375.99 | AW7: 10 | AX7: =ROUND((data.f2026[[#This Row],[أساسي 7/2025]]*2)/12,2) -> 135.27 | AY7: 30 | BA7: 0 | BB7: 3971.98 | BC7: 3028.02 | BD7: 7030 | BE7: 0 | BF7: 0 | BG7: 0 | BH7: 0 | BI7: 631.03 | BK7: 0 | BL7: 0 | BM7: =IF(data.f2026[[#This Row],[أيام الغياب]]=1,data.f2026[[#This Row],[الحافز]]*20%,IF(data.f2026[[#This Row],[أيام الغياب]]=2,data.f2026[[#This Row],[الحافز]]*100%,IF(data.f2026[[#This Row],[أيام الغياب]]>2,data.f2026[[#This Row],[الحافز]]*100%,""))) ->  | BN7: =IF(data.f2026[[#This Row],[عدد أيام الأجازات]]<=4,data.f2026[[#This Row],[الحافز]]*0,IF(data.f2026[[#This Row],[عدد أيام الأجازات]]=5,data.f2026[[#This Row],[الحافز]]*20%,IF(data.f2026[[#This Row],[عدد أيام الأجازات]]=6,data.f2026[[#This Row],[الحافز]]*40%,IF(data.f2026[[#This Row],[عدد أيام الأجازات]]=7,data.f2026[[#This Row],[الحافز]]*50%,IF(data.f2026[[#This Row],[عدد أيام الأجازات]]>7,data.f2026[[#This Row],[الحافز]]*100%,""))))) -> 0 | BO7: =IF(data.f2026[[#This Row],[أيام أجازات بعد السنوية]]<=2,data.f2026[[#This Row],[الحافز]]*0,IF(data.f2026[[#This Row],[أيام أجازات بعد السنوية]]=3,data.f2026[[#This Row],[الحافز]]*30%,IF(data.f2026[[#This Row],[أيام أجازات بعد السنوية]]=4,data.f2026[[#This Row],[الحافز]]*40%,IF(data.f2026[[#This Row],[أيام أجازات بعد السنوية]]=5,data.f2026[[#This Row],[الحافز]]*50%,IF(data.f2026[[#This Row],[أيام أجازات بعد السنوية]]>5,data.f2026[[#This Row],[الحافز]]*100%,""))))) -> 0 | BP7: 0 | BQ7: 0 | BR7: 0 | BS7: 3 | BT7: 0 | BV7: 0 | BW7: 0 | BY7: 0 | BZ7: 0 | CA7: 0 | CB7: 0 | CC7: 0 | CD7: 0 | CG7: 3 | CJ7: 0 | CK7: 0 | CM7: 0 | CN7: 0 | CO7: 135.27 | CP7: 0 | CQ7: =ROUND(IF($D7=data.f2026[[#Headers],[إيقاف]],$BD7-SUM(data.f2026[[#This Row],[تامينات 2026]:[خصم 5% تأمين من العمولة]],0),0),2) -> 0 | CR7: =ROUND(IF($D7=data.f2026[[#Headers],[مرضي]],$BD7-SUM(data.f2026[[#This Row],[تامينات 2026]:[خصم 5% تأمين من العمولة]],0),0),2) -> 0 | CS7: 0 | CT7: =ROUND(IF($G7=data.f2026[[#Headers],[إعارة]],$BD7-SUM(data.f2026[[#This Row],[تامينات 2026]:[خصم 5% تأمين من العمولة]],0),0),2) -> 0 | CU7: =ROUND(IF($G7=data.f2026[[#Headers],[معاش]],$BD7-SUM(data.f2026[[#This Row],[تامينات 2026]:[خصم 5% تأمين من العمولة]],0),0),2) -> 0 | CV7: 772.3 | CW7: 6257.7
B8: 201014 | C8: 14085 | D8: البنك الاهلى | E8: احمد سعد محمد على | F8: مروة | G8: دوام كامل | H8: فنى | I8: الاولى | J8: الأولى | K8: فنى براد | L8: الاميرية | M8: 27303270103558 | N8: 201014احمد سعد محمد علىالاولىالأولىفنى برادقطاع شئون الفنية | O8: نعم | P8: 2090.04 | Q8: 2445.3468 | R8: 0 | S8: 3301.22 | T8: 366.8 | U8: 0 | V8: 0 | W8: 0 | Y8: 366.80202 | Z8: 300 | AB8: 0 | AD8: 0 | AE8: 0 | AF8: 666.8 | AG8: 0 | AH8: 0 | AI8: 0 | AJ8: 427.7 | AK8: 0 | AL8: 41.78 | AM8: 74.51 | AN8: 95.67 | AO8: 136.55 | AP8: 146.04 | AQ8: 156.26 | AS8: 104.502 | AT8: 600 | AU8: 10 | AV8: 1793.01 | AW8: 10 | AX8: =ROUND((data.f2026[[#This Row],[أساسي 7/2025]]*2)/12,2) -> 407.56 | AY8: 0 | BA8: 0 | BB8: 8990.74 | BC8: 0 | BD8: 8990.74 | BE8: 0 | BF8: 0 | BI8: 894.37 | BK8: 0 | BL8: 0 | BM8: =IF(data.f2026[[#This Row],[أيام الغياب]]=1,data.f2026[[#This Row],[الحافز]]*20%,IF(data.f2026[[#This Row],[أيام الغياب]]=2,data.f2026[[#This Row],[الحافز]]*100%,IF(data.f2026[[#This Row],[أيام الغياب]]>2,data.f2026[[#This Row],[الحافز]]*100%,""))) ->  | BN8: =IF(data.f2026[[#This Row],[عدد أيام الأجازات]]<=4,data.f2026[[#This Row],[الحافز]]*0,IF(data.f2026[[#This Row],[عدد أيام الأجازات]]=5,data.f2026[[#This Row],[الحافز]]*20%,IF(data.f2026[[#This Row],[عدد أيام الأجازات]]=6,data.f2026[[#This Row],[الحافز]]*40%,IF(data.f2026[[#This Row],[عدد أيام الأجازات]]=7,data.f2026[[#This Row],[الحافز]]*50%,IF(data.f2026[[#This Row],[عدد أيام الأجازات]]>7,data.f2026[[#This Row],[الحافز]]*100%,""))))) -> 0 | BO8: =IF(data.f2026[[#This Row],[أيام أجازات بعد السنوية]]<=2,data.f2026[[#This Row],[الحافز]]*0,IF(data.f2026[[#This Row],[أيام أجازات بعد السنوية]]=3,data.f2026[[#This Row],[الحافز]]*30%,IF(data.f2026[[#This Row],[أيام أجازات بعد السنوية]]=4,data.f2026[[#This Row],[الحافز]]*40%,IF(data.f2026[[#This Row],[أيام أجازات بعد السنوية]]=5,data.f2026[[#This Row],[الحافز]]*50%,IF(data.f2026[[#This Row],[أيام أجازات بعد السنوية]]>5,data.f2026[[#This Row],[الحافز]]*100%,""))))) -> 0 | BP8: 0 | BQ8: 0 | BS8: 3 | BT8: 0 | BV8: 0 | BZ8: 0 | CA8: 0 | CC8: 0 | CG8: 5 | CK8: 0 | CM8: 0 | CN8: 0 | CO8: 407.56 | CP8: 0 | CQ8: =ROUND(IF($D8=data.f2026[[#Headers],[إيقاف]],$BD8-SUM(data.f2026[[#This Row],[تامينات 2026]:[خصم 5% تأمين من العمولة]],0),0),2) -> 0 | CR8: =ROUND(IF($D8=data.f2026[[#Headers],[مرضي]],$BD8-SUM(data.f2026[[#This Row],[تامينات 2026]:[خصم 5% تأمين من العمولة]],0),0),2) -> 0 | CS8: 0 | CT8: =ROUND(IF($G8=data.f2026[[#Headers],[إعارة]],$BD8-SUM(data.f2026[[#This Row],[تامينات 2026]:[خصم 5% تأمين من العمولة]],0),0),2) -> 0 | CU8: =ROUND(IF($G8=data.f2026[[#Headers],[معاش]],$BD8-SUM(data.f2026[[#This Row],[تامينات 2026]:[خصم 5% تأمين من العمولة]],0),0),2) -> 0 | CV8: 1309.93 | CW8: 7680.81
B9: 201015 | C9: 11034 | D9: البنك الاهلى | E9: احمد محمد عبد الله حسن | F9: مروة | G9: دوام كامل | H9: فنى | I9: الثانية | J9: الثانية | K9: ميكانيكى | L9: الاميرية | M9: 26605180103896 | N9: 201015احمد محمد عبد الله حسنالثانيةالثانيةميكانيكى الادارة العامة بالورش المركزية | O9: نعم | P9: 2164.44 | Q9: 2532.3948 | R9: 0 | S9: 3418.73 | T9: 379.86 | U9: 0 | V9: 0 | W9: 0 | Y9: 379.85922 | Z9: 300 | AB9: 0 | AD9: 0 | AE9: 0 | AF9: 679.86 | AG9: 0 | AH9: 0 | AI9: 0 | AJ9: 1736.59 | AK9: 0 | AL9: 0 | AM9: 0 | AN9: 0 | AO9: 0 | AP9: 0 | AQ9: 0 | AS9: 108.222 | AT9: 0 | AU9: 0 | AV9: 1844.81 | AW9: 10 | AX9: =ROUND((data.f2026[[#This Row],[أساسي 7/2025]]*2)/12,2) -> 422.07 | AY9: 0 | BA9: 0 | BB9: 9287.72 | BC9: 0 | BD9: 9287.72 | BE9: 0 | BF9: 0 | BI9: 924.88 | BK9: 0 | BL9: 0 | BM9: =IF(data.f2026[[#This Row],[أيام الغياب]]=1,data.f2026[[#This Row],[الحافز]]*20%,IF(data.f2026[[#This Row],[أيام الغياب]]=2,data.f2026[[#This Row],[الحافز]]*100%,IF(data.f2026[[#This Row],[أيام الغياب]]>2,data.f2026[[#This Row],[الحافز]]*100%,""))) ->  | BN9: =IF(data.f2026[[#This Row],[عدد أيام الأجازات]]<=4,data.f2026[[#This Row],[الحافز]]*0,IF(data.f2026[[#This Row],[عدد أيام الأجازات]]=5,data.f2026[[#This Row],[الحافز]]*20%,IF(data.f2026[[#This Row],[عدد أيام الأجازات]]=6,data.f2026[[#This Row],[الحافز]]*40%,IF(data.f2026[[#This Row],[عدد أيام الأجازات]]=7,data.f2026[[#This Row],[الحافز]]*50%,IF(data.f2026[[#This Row],[عدد أيام الأجازات]]>7,data.f2026[[#This Row],[الحافز]]*100%,""))))) -> 0 | BO9: =IF(data.f2026[[#This Row],[أيام أجازات بعد السنوية]]<=2,data.f2026[[#This Row],[الحافز]]*0,IF(data.f2026[[#This Row],[أيام أجازات بعد السنوية]]=3,data.f2026[[#This Row],[الحافز]]*30%,IF(data.f2026[[#This Row],[أيام أجازات بعد السنوية]]=4,data.f2026[[#This Row],[الحافز]]*40%,IF(data.f2026[[#This Row],[أيام أجازات بعد السنوية]]=5,data.f2026[[#This Row],[الحافز]]*50%,IF(data.f2026[[#This Row],[أيام أجازات بعد السنوية]]>5,data.f2026[[#This Row],[الحافز]]*100%,""))))) -> 0 | BP9: 0 | BQ9: 0 | BS9: 3 | BT9: 0 | BV9: 0 | BZ9: 0 | CA9: 0 | CC9: 0 | CG9: 3 | CK9: 0 | CM9: 0 | CN9: 0 | CO9: 422.07 | CP9: 0 | CQ9: =ROUND(IF($D9=data.f2026[[#Headers],[إيقاف]],$BD9-SUM(data.f2026[[#This Row],[تامينات 2026]:[خصم 5% تأمين من العمولة]],0),0),2) -> 0 | CR9: =ROUND(IF($D9=data.f2026[[#Headers],[مرضي]],$BD9-SUM(data.f2026[[#This Row],[تامينات 2026]:[خصم 5% تأمين من العمولة]],0),0),2) -> 0 | CS9: 0 | CT9: =ROUND(IF($G9=data.f2026[[#Headers],[إعارة]],$BD9-SUM(data.f2026[[#This Row],[تامينات 2026]:[خصم 5% تأمين من العمولة]],0),0),2) -> 0 | CU9: =ROUND(IF($G9=data.f2026[[#Headers],[معاش]],$BD9-SUM(data.f2026[[#This Row],[تامينات 2026]:[خصم 5% تأمين من العمولة]],0),0),2) -> 0 | CV9: 1352.95 | CW9: 7934.77
B10: 201016 | C10: 29999 | D10: مرضي | E10: حسام صادق عبدالعزيز | F10: مروه | G10: مرضي | H10: فنى | I10: الثالثة | J10: الثالثة | K10: فنى لحام | L10: الاميرية | M10: 28111180101596 | N10: 201016حسام صادق عبدالعزيزمروهالثالثةالثالثةفنى لحام الاميرية | O10: نعم | P10: 642.66 | Q10: 751.9122 | R10: 0 | S10: 1015.08 | T10: 112.79 | U10: 0 | V10: 0 | W10: 0 | Y10: 112.78683 | Z10: 300 | AB10: 0 | AD10: 0 | AE10: 0 | AF10: 412.79 | AG10: 0 | AH10: 0 | AI10: 0 | AJ10: 1323.85 | AK10: 0 | AL10: 0 | AM10: 0 | AN10: 0 | AO10: 0 | AP10: 0 | AQ10: 0 | AS10: 85.734 | AT10: 0 | AU10: 6 | AV10: 1415.58 | AW10: 10 | AX10: =ROUND((data.f2026[[#This Row],[أساسي 7/2025]]*2)/12,2) -> 125.32 | AY10: 0 | BA10: 0 | BB10: 3843.47 | BC10: 3156.53 | BD10: 7000 | BE10: 0 | BF10: 0 | BI10: 592.44 | BK10: 0 | BL10: 0 | BM10: =IF(data.f2026[[#This Row],[أيام الغياب]]=1,data.f2026[[#This Row],[الحافز]]*20%,IF(data.f2026[[#This Row],[أيام الغياب]]=2,data.f2026[[#This Row],[الحافز]]*100%,IF(data.f2026[[#This Row],[أيام الغياب]]>2,data.f2026[[#This Row],[الحافز]]*100%,""))) ->  | BN10: =IF(data.f2026[[#This Row],[عدد أيام الأجازات]]<=4,data.f2026[[#This Row],[الحافز]]*0,IF(data.f2026[[#This Row],[عدد أيام الأجازات]]=5,data.f2026[[#This Row],[الحافز]]*20%,IF(data.f2026[[#This Row],[عدد أيام الأجازات]]=6,data.f2026[[#This Row],[الحافز]]*40%,IF(data.f2026[[#This Row],[عدد أيام الأجازات]]=7,data.f2026[[#This Row],[الحافز]]*50%,IF(data.f2026[[#This Row],[عدد أيام الأجازات]]>7,data.f2026[[#This Row],[الحافز]]*100%,""))))) -> 0 | BO10: =IF(data.f2026[[#This Row],[أيام أجازات بعد السنوية]]<=2,data.f2026[[#This Row],[الحافز]]*0,IF(data.f2026[[#This Row],[أيام أجازات بعد السنوية]]=3,data.f2026[[#This Row],[الحافز]]*30%,IF(data.f2026[[#This Row],[أيام أجازات بعد السنوية]]=4,data.f2026[[#This Row],[الحافز]]*40%,IF(data.f2026[[#This Row],[أيام أجازات بعد السنوية]]=5,data.f2026[[#This Row],[الحافز]]*50%,IF(data.f2026[[#This Row],[أيام أجازات بعد السنوية]]>5,data.f2026[[#This Row],[الحافز]]*100%,""))))) -> 0 | BP10: 0 | BQ10: 0 | BS10: 3 | BT10: 0 | BV10: 0 | BZ10: 0 | CA10: 0 | CC10: 0 | CG10: 3 | CK10: 0 | CM10: 0 | CN10: 0 | CO10: 125.32 | CP10: 0 | CQ10: =ROUND(IF($D10=data.f2026[[#Headers],[إيقاف]],$BD10-SUM(data.f2026[[#This Row],[تامينات 2026]:[خصم 5% تأمين من العمولة]],0),0),2) -> 0 | CR10: =ROUND(IF($D10=data.f2026[[#Headers],[مرضي]],$BD10-SUM(data.f2026[[#This Row],[تامينات 2026]:[خصم 5% تأمين من العمولة]],0),0),2) -> 6276.24 | CS10: 0 | CT10: =ROUND(IF($G10=data.f2026[[#Headers],[إعارة]],$BD10-SUM(data.f2026[[#This Row],[تامينات 2026]:[خصم 5% تأمين من العمولة]],0),0),2) -> 0 | CU10: =ROUND(IF($G10=data.f2026[[#Headers],[معاش]],$BD10-SUM(data.f2026[[#This Row],[تامينات 2026]:[خصم 5% تأمين من العمولة]],0),0),2) -> 0 | CV10: 7000 | CW10: 0
B11: 201017 | C11: 11070 | D11: البنك الاهلى | E11: رضا حنفى ابو سريع | F11: مروه | G11: دوام كامل | H11: فنى | I11: الخامسة | J11: الخامسة | K11: حرفى سمكرى | L11: الاميرية | M11: 28706070101276 | N11: 201017رضا حنفى ابو سريع الخامسةالخامسةحرفى سمكرىالورش المركزية | O11: نعم | P11: 919.47 | Q11: 1075.7799 | R11: 0 | S11: 1452.3 | T11: 161.37 | U11: 0 | V11: 0 | W11: 0 | Y11: 161.366985 | Z11: 300 | AB11: 0 | AD11: 0 | AE11: 0 | AF11: 461.37 | AG11: 0 | AH11: 0 | AI11: 0 | AJ11: 362.62 | AK11: 0 | AL11: 32.11 | AM11: 32.78 | AN11: 42.09 | AO11: 60.04 | AP11: 68.78 | AQ11: 89.85 | AS11: 58.053 | AT11: 600 | AU11: 10 | AV11: 1356.32 | AW11: 10 | AX11: =ROUND((data.f2026[[#This Row],[أساسي 7/2025]]*2)/12,2) -> 179.3 | AY11: 0 | BA11: 0 | BB11: 4696.44 | BC11: 2303.56 | BD11: 7000 | BE11: 0 | BF11: 0 | BI11: 624.94 | BK11: 0 | BL11: 0 | BM11: =IF(data.f2026[[#This Row],[أيام الغياب]]=1,data.f2026[[#This Row],[الحافز]]*20%,IF(data.f2026[[#This Row],[أيام الغياب]]=2,data.f2026[[#This Row],[الحافز]]*100%,IF(data.f2026[[#This Row],[أيام الغياب]]>2,data.f2026[[#This Row],[الحافز]]*100%,""))) ->  | BN11: =IF(data.f2026[[#This Row],[عدد أيام الأجازات]]<=4,data.f2026[[#This Row],[الحافز]]*0,IF(data.f2026[[#This Row],[عدد أيام الأجازات]]=5,data.f2026[[#This Row],[الحافز]]*20%,IF(data.f2026[[#This Row],[عدد أيام الأجازات]]=6,data.f2026[[#This Row],[الحافز]]*40%,IF(data.f2026[[#This Row],[عدد أيام الأجازات]]=7,data.f2026[[#This Row],[الحافز]]*50%,IF(data.f2026[[#This Row],[عدد أيام الأجازات]]>7,data.f2026[[#This Row],[الحافز]]*100%,""))))) -> 0 | BO11: =IF(data.f2026[[#This Row],[أيام أجازات بعد السنوية]]<=2,data.f2026[[#This Row],[الحافز]]*0,IF(data.f2026[[#This Row],[أيام أجازات بعد السنوية]]=3,data.f2026[[#This Row],[الحافز]]*30%,IF(data.f2026[[#This Row],[أيام أجازات بعد السنوية]]=4,data.f2026[[#This Row],[الحافز]]*40%,IF(data.f2026[[#This Row],[أيام أجازات بعد السنوية]]=5,data.f2026[[#This Row],[الحافز]]*50%,IF(data.f2026[[#This Row],[أيام أجازات بعد السنوية]]>5,data.f2026[[#This Row],[الحافز]]*100%,""))))) -> 0 | BP11: 0 | BQ11: 0 | BS11: 3 | BT11: 0 | BV11: 0 | BZ11: 0 | CA11: 0 | CC11: 0 | CG11: 3 | CK11: 0 | CM11: 0 | CN11: 0 | CO11: 179.3 | CP11: 0 | CQ11: =ROUND(IF($D11=data.f2026[[#Headers],[إيقاف]],$BD11-SUM(data.f2026[[#This Row],[تامينات 2026]:[خصم 5% تأمين من العمولة]],0),0),2) -> 0 | CR11: =ROUND(IF($D11=data.f2026[[#Headers],[مرضي]],$BD11-SUM(data.f2026[[#This Row],[تامينات 2026]:[خصم 5% تأمين من العمولة]],0),0),2) -> 0 | CS11: 0 | CT11: =ROUND(IF($G11=data.f2026[[#Headers],[إعارة]],$BD11-SUM(data.f2026[[#This Row],[تامينات 2026]:[خصم 5% تأمين من العمولة]],0),0),2) -> 0 | CU11: =ROUND(IF($G11=data.f2026[[#Headers],[معاش]],$BD11-SUM(data.f2026[[#This Row],[تامينات 2026]:[خصم 5% تأمين من العمولة]],0),0),2) -> 0 | CV11: 810.24 | CW11: 6189.76
B12: 201018 | C12: 4416 | D12: بنك مصر 1 | E12: هانى على على على حجازى | F12: مروه | G12: دوام كامل | H12: فنى | I12: الخامسة | J12: الخامسة | K12: حرفى سمكرى | L12: الاميرية | M12: 27803170100775 | N12: 201018هانى على على على حجازىالخامسةالخامسةحرفى سمكرىالورش المركزية | O12: نعم | P12: 735.53 | Q12: 860.5701 | R12: 0 | S12: 1161.77 | T12: 129.09 | U12: 0 | V12: 0 | W12: 0 | Y12: 129.085515 | Z12: 300 | AB12: 0 | AD12: 0 | AE12: 0 | AF12: 429.09 | AG12: 0 | AH12: 0 | AI12: 0 | AJ12: 1287.4 | AK12: 0 | AL12: 0 | AM12: 0 | AN12: 0 | AO12: 0 | AP12: 0 | AQ12: 0 | AS12: 76.447 | AT12: 0 | AU12: 10 | AV12: 1373.85 | AW12: 10 | AX12: =ROUND((data.f2026[[#This Row],[أساسي 7/2025]]*2)/12,2) -> 143.43 | AY12: 0 | BA12: 0 | BB12: 4107.8 | BC12: 2892.2 | BD12: 7000 | BE12: 0 | BF12: 0 | BI12: 616.17 | BK12: 0 | BL12: 0 | BM12: =IF(data.f2026[[#This Row],[أيام الغياب]]=1,data.f2026[[#This Row],[الحافز]]*20%,IF(data.f2026[[#This Row],[أيام الغياب]]=2,data.f2026[[#This Row],[الحافز]]*100%,IF(data.f2026[[#This Row],[أيام الغياب]]>2,data.f2026[[#This Row],[الحافز]]*100%,""))) ->  | BN12: =IF(data.f2026[[#This Row],[عدد أيام الأجازات]]<=4,data.f2026[[#This Row],[الحافز]]*0,IF(data.f2026[[#This Row],[عدد أيام الأجازات]]=5,data.f2026[[#This Row],[الحافز]]*20%,IF(data.f2026[[#This Row],[عدد أيام الأجازات]]=6,data.f2026[[#This Row],[الحافز]]*40%,IF(data.f2026[[#This Row],[عدد أيام الأجازات]]=7,data.f2026[[#This Row],[الحافز]]*50%,IF(data.f2026[[#This Row],[عدد أيام الأجازات]]>7,data.f2026[[#This Row],[الحافز]]*100%,""))))) -> 0 | BO12: =IF(data.f2026[[#This Row],[أيام أجازات بعد السنوية]]<=2,data.f2026[[#This Row],[الحافز]]*0,IF(data.f2026[[#This Row],[أيام أجازات بعد السنوية]]=3,data.f2026[[#This Row],[الحافز]]*30%,IF(data.f2026[[#This Row],[أيام أجازات بعد السنوية]]=4,data.f2026[[#This Row],[الحافز]]*40%,IF(data.f2026[[#This Row],[أيام أجازات بعد السنوية]]=5,data.f2026[[#This Row],[الحافز]]*50%,IF(data.f2026[[#This Row],[أيام أجازات بعد السنوية]]>5,data.f2026[[#This Row],[الحافز]]*100%,""))))) -> 0 | BP12: 0 | BQ12: 0 | BS12: 3 | BT12: 0 | BV12: 0 | BZ12: 0 | CA12: 0 | CC12: 0 | CG12: 3 | CK12: 0 | CM12: 0 | CN12: 0 | CO12: 143.43 | CP12: 0 | CQ12: =ROUND(IF($D12=data.f2026[[#Headers],[إيقاف]],$BD12-SUM(data.f2026[[#This Row],[تامينات 2026]:[خصم 5% تأمين من العمولة]],0),0),2) -> 0 | CR12: =ROUND(IF($D12=data.f2026[[#Headers],[مرضي]],$BD12-SUM(data.f2026[[#This Row],[تامينات 2026]:[خصم 5% تأمين من العمولة]],0),0),2) -> 0 | CS12: 0 | CT12: =ROUND(IF($G12=data.f2026[[#Headers],[إعارة]],$BD12-SUM(data.f2026[[#This Row],[تامينات 2026]:[خصم 5% تأمين من العمولة]],0),0),2) -> 0 | CU12: =ROUND(IF($G12=data.f2026[[#Headers],[معاش]],$BD12-SUM(data.f2026[[#This Row],[تامينات 2026]:[خصم 5% تأمين من العمولة]],0),0),2) -> 0 | CV12: 765.6 | CW12: 6234.4
B13: 201019 | C13: 3556 | D13: بنك مصر 1 | E13: عاطف سيد عباس عبده | F13: مروه | G13: دوام كامل | H13: فنى | I13: الرابعة | L13: الاميرية | M13: 27401250100694 | N13: 201019عاطف سيد عباس عبدهالرابعة | P13: 1312.46 | Q13: 1535.58 | R13: 0 | S13: 2073.03 | T13: 230.34 | U13: 0 | V13: 0 | W13: 0 | Y13: 230.337 | Z13: 300 | AB13: 0 | AD13: 0 | AE13: 0 | AF13: 530.34 | AG13: 0 | AH13: 0 | AI13: 0 | AJ13: 360.28 | AK13: 0 | AL13: 26.24 | AM13: 46.79 | AN13: 60.08 | AO13: 85.71 | AP13: 91.71 | AQ13: 98.13 | AS13: 65.623 | AT13: 600 | AU13: 10 | AV13: 1444.56 | AW13: 10 | AX13: =ROUND((data.f2026[[#This Row],[أساسي 7/2025]]*2)/12,2) -> 255.93 | AY13: 0 | BA13: 0 | BB13: 6079.78 | BC13: 920.22 | BD13: 7000 | BE13: 0 | BF13: 0 | BI13: 645.05 | BK13: 0 | BL13: 0 | BM13: =IF(data.f2026[[#This Row],[أيام الغياب]]=1,data.f2026[[#This Row],[الحافز]]*20%,IF(data.f2026[[#This Row],[أيام الغياب]]=2,data.f2026[[#This Row],[الحافز]]*100%,IF(data.f2026[[#This Row],[أيام الغياب]]>2,data.f2026[[#This Row],[الحافز]]*100%,""))) ->  | BN13: =IF(data.f2026[[#This Row],[عدد أيام الأجازات]]<=4,data.f2026[[#This Row],[الحافز]]*0,IF(data.f2026[[#This Row],[عدد أيام الأجازات]]=5,data.f2026[[#This Row],[الحافز]]*20%,IF(data.f2026[[#This Row],[عدد أيام الأجازات]]=6,data.f2026[[#This Row],[الحافز]]*40%,IF(data.f2026[[#This Row],[عدد أيام الأجازات]]=7,data.f2026[[#This Row],[الحافز]]*50%,IF(data.f2026[[#This Row],[عدد أيام الأجازات]]>7,data.f2026[[#This Row],[الحافز]]*100%,""))))) -> 0 | BO13: =IF(data.f2026[[#This Row],[أيام أجازات بعد السنوية]]<=2,data.f2026[[#This Row],[الحافز]]*0,IF(data.f2026[[#This Row],[أيام أجازات بعد السنوية]]=3,data.f2026[[#This Row],[الحافز]]*30%,IF(data.f2026[[#This Row],[أيام أجازات بعد السنوية]]=4,data.f2026[[#This Row],[الحافز]]*40%,IF(data.f2026[[#This Row],[أيام أجازات بعد السنوية]]=5,data.f2026[[#This Row],[الحافز]]*50%,IF(data.f2026[[#This Row],[أيام أجازات بعد السنوية]]>5,data.f2026[[#This Row],[الحافز]]*100%,""))))) -> 0 | BP13: 0 | BQ13: 0 | BS13: 3 | BT13: 0 | BV13: 0 | BZ13: 0 | CA13: 0 | CC13: 0 | CG13: 3 | CK13: 0 | CM13: 0 | CN13: 0 | CO13: 255.93 | CP13: 0 | CQ13: =ROUND(IF($D13=data.f2026[[#Headers],[إيقاف]],$BD13-SUM(data.f2026[[#This Row],[تامينات 2026]:[خصم 5% تأمين من العمولة]],0),0),2) -> 0 | CR13: =ROUND(IF($D13=data.f2026[[#Headers],[مرضي]],$BD13-SUM(data.f2026[[#This Row],[تامينات 2026]:[خصم 5% تأمين من العمولة]],0),0),2) -> 0 | CS13: 0 | CT13: =ROUND(IF($G13=data.f2026[[#Headers],[إعارة]],$BD13-SUM(data.f2026[[#This Row],[تامينات 2026]:[خصم 5% تأمين من العمولة]],0),0),2) -> 0 | CU13: =ROUND(IF($G13=data.f2026[[#Headers],[معاش]],$BD13-SUM(data.f2026[[#This Row],[تامينات 2026]:[خصم 5% تأمين من العمولة]],0),0),2) -> 0 | CV13: 906.98 | CW13: 6093.02
B14: 201020 | C14: 29132 | D14: البنك الاهلى | E14: صابر حسان على حسان | F14: مروه | G14: دوام كامل | H14: فنى | I14: الخامسة | J14: الخامسة | K14: حرفى براد | L14: الاميرية | M14: 27903041401071 | N14: 201020صابر حسان على حسانالخامسةالخامسةحرفى برادالورش المركزية | O14: نعم | P14: 919.47 | Q14: 1075.7799 | R14: 0 | S14: 1452.3 | T14: 161.37 | U14: 0 | V14: 0 | W14: 0 | Y14: 161.366985 | Z14: 300 | AB14: 0 | AD14: 0 | AE14: 0 | AF14: 461.37 | AG14: 0 | AH14: 0 | AI14: 0 | AJ14: 332.32 | AK14: 0 | AL14: 32.11 | AM14: 32.78 | AN14: 42.09 | AO14: 60.04 | AP14: 68.78 | AQ14: 107.91 | AS14: 58.053 | AT14: 600 | AU14: 10 | AV14: 1344.08 | AW14: 10 | AX14: =ROUND((data.f2026[[#This Row],[أساسي 7/2025]]*2)/12,2) -> 179.3 | AY14: 0 | BA14: 0 | BB14: 4684.2 | BC14: 2315.8 | BD14: 7000 | BE14: 0 | BF14: 0 | BI14: 623.7 | BK14: 0 | BL14: 0 | BM14: =IF(data.f2026[[#This Row],[أيام الغياب]]=1,data.f2026[[#This Row],[الحافز]]*20%,IF(data.f2026[[#This Row],[أيام الغياب]]=2,data.f2026[[#This Row],[الحافز]]*100%,IF(data.f2026[[#This Row],[أيام الغياب]]>2,data.f2026[[#This Row],[الحافز]]*100%,""))) ->  | BN14: =IF(data.f2026[[#This Row],[عدد أيام الأجازات]]<=4,data.f2026[[#This Row],[الحافز]]*0,IF(data.f2026[[#This Row],[عدد أيام الأجازات]]=5,data.f2026[[#This Row],[الحافز]]*20%,IF(data.f2026[[#This Row],[عدد أيام الأجازات]]=6,data.f2026[[#This Row],[الحافز]]*40%,IF(data.f2026[[#This Row],[عدد أيام الأجازات]]=7,data.f2026[[#This Row],[الحافز]]*50%,IF(data.f2026[[#This Row],[عدد أيام الأجازات]]>7,data.f2026[[#This Row],[الحافز]]*100%,""))))) -> 0 | BO14: =IF(data.f2026[[#This Row],[أيام أجازات بعد السنوية]]<=2,data.f2026[[#This Row],[الحافز]]*0,IF(data.f2026[[#This Row],[أيام أجازات بعد السنوية]]=3,data.f2026[[#This Row],[الحافز]]*30%,IF(data.f2026[[#This Row],[أيام أجازات بعد السنوية]]=4,data.f2026[[#This Row],[الحافز]]*40%,IF(data.f2026[[#This Row],[أيام أجازات بعد السنوية]]=5,data.f2026[[#This Row],[الحافز]]*50%,IF(data.f2026[[#This Row],[أيام أجازات بعد السنوية]]>5,data.f2026[[#This Row],[الحافز]]*100%,""))))) -> 0 | BP14: 0 | BQ14: 0 | BS14: 3 | BT14: 0 | BV14: 0 | BZ14: 0 | CA14: 0 | CC14: 0 | CG14: 3 | CK14: 0 | CM14: 0 | CN14: 0 | CO14: 179.3 | CP14: 0 | CQ14: =ROUND(IF($D14=data.f2026[[#Headers],[إيقاف]],$BD14-SUM(data.f2026[[#This Row],[تامينات 2026]:[خصم 5% تأمين من العمولة]],0),0),2) -> 0 | CR14: =ROUND(IF($D14=data.f2026[[#Headers],[مرضي]],$BD14-SUM(data.f2026[[#This Row],[تامينات 2026]:[خصم 5% تأمين من العمولة]],0),0),2) -> 0 | CS14: 0 | CT14: =ROUND(IF($G14=data.f2026[[#Headers],[إعارة]],$BD14-SUM(data.f2026[[#This Row],[تامينات 2026]:[خصم 5% تأمين من العمولة]],0),0),2) -> 0 | CU14: =ROUND(IF($G14=data.f2026[[#Headers],[معاش]],$BD14-SUM(data.f2026[[#This Row],[تامينات 2026]:[خصم 5% تأمين من العمولة]],0),0),2) -> 0 | CV14: 809 | CW14: 6191
B15: 201021 | C15: 1161 | D15: بنك مصر 2 | E15: مجدي السيد حميدة عبد المجيد | F15: مروه | G15: دوام كامل | H15: ادارى | I15: الثالثة | J15: الثالثة | K15: حرفى ميكانيكى | L15: فرع الزقازيق | M15: 27006050104079 | N15: 201021مجدي السيد حميدة عبد المجيدالثالثةالثالثةحرفى ميكانيكى فرع الزقازيق | O15: نعم | P15: 1053.89 | Q15: 1233.0513 | R15: 0 | S15: 1664.62 | T15: 184.96 | U15: 0 | V15: 0 | W15: 0 | Y15: 0 | Z15: 300 | AB15: 0 | AD15: 0 | AE15: 0 | AF15: 300 | AG15: 37.42 | AH15: 41.54 | AI15: 65 | AJ15: 0 | AK15: 200 | AL15: 25.84 | AM15: 37.57 | AN15: 48.24 | AO15: 68.82 | AP15: 73.64 | AQ15: 81.05 | AS15: 52.6945 | AT15: 600 | AU15: 8 | AV15: 1339.81 | AW15: 10 | AX15: =ROUND((data.f2026[[#This Row],[أساسي 7/2025]]*2)/12,2) -> 205.51 | AY15: 0 | BA15: 0 | BB15: 4937.95 | BC15: 2062.05 | BD15: 7000 | BE15: 0 | BF15: 0 | BI15: 637.35 | BK15: 0 | BL15: 0 | BM15: =IF(data.f2026[[#This Row],[أيام الغياب]]=1,data.f2026[[#This Row],[الحافز]]*20%,IF(data.f2026[[#This Row],[أيام الغياب]]=2,data.f2026[[#This Row],[الحافز]]*100%,IF(data.f2026[[#This Row],[أيام الغياب]]>2,data.f2026[[#This Row],[الحافز]]*100%,""))) ->  | BN15: =IF(data.f2026[[#This Row],[عدد أيام الأجازات]]<=4,data.f2026[[#This Row],[الحافز]]*0,IF(data.f2026[[#This Row],[عدد أيام الأجازات]]=5,data.f2026[[#This Row],[الحافز]]*20%,IF(data.f2026[[#This Row],[عدد أيام الأجازات]]=6,data.f2026[[#This Row],[الحافز]]*40%,IF(data.f2026[[#This Row],[عدد أيام الأجازات]]=7,data.f2026[[#This Row],[الحافز]]*50%,IF(data.f2026[[#This Row],[عدد أيام الأجازات]]>7,data.f2026[[#This Row],[الحافز]]*100%,""))))) -> 0 | BO15: =IF(data.f2026[[#This Row],[أيام أجازات بعد السنوية]]<=2,data.f2026[[#This Row],[الحافز]]*0,IF(data.f2026[[#This Row],[أيام أجازات بعد السنوية]]=3,data.f2026[[#This Row],[الحافز]]*30%,IF(data.f2026[[#This Row],[أيام أجازات بعد السنوية]]=4,data.f2026[[#This Row],[الحافز]]*40%,IF(data.f2026[[#This Row],[أيام أجازات بعد السنوية]]=5,data.f2026[[#This Row],[الحافز]]*50%,IF(data.f2026[[#This Row],[أيام أجازات بعد السنوية]]>5,data.f2026[[#This Row],[الحافز]]*100%,""))))) -> 0 | BP15: 0 | BQ15: 0 | BS15: 3 | BT15: 0 | BV15: 0 | BZ15: 0 | CA15: 0 | CC15: 0 | CG15: 3 | CK15: 0 | CM15: 0 | CN15: 0 | CO15: 205.51 | CP15: 0 | CQ15: =ROUND(IF($D15=data.f2026[[#Headers],[إيقاف]],$BD15-SUM(data.f2026[[#This Row],[تامينات 2026]:[خصم 5% تأمين من العمولة]],0),0),2) -> 0 | CR15: =ROUND(IF($D15=data.f2026[[#Headers],[مرضي]],$BD15-SUM(data.f2026[[#This Row],[تامينات 2026]:[خصم 5% تأمين من العمولة]],0),0),2) -> 0 | CS15: 0 | CT15: =ROUND(IF($G15=data.f2026[[#Headers],[إعارة]],$BD15-SUM(data.f2026[[#This Row],[تامينات 2026]:[خصم 5% تأمين من العمولة]],0),0),2) -> 0 | CU15: =ROUND(IF($G15=data.f2026[[#Headers],[معاش]],$BD15-SUM(data.f2026[[#This Row],[تامينات 2026]:[خصم 5% تأمين من العمولة]],0),0),2) -> 0 | CV15: 848.86 | CW15: 6151.14
B16: 201023 | C16: 21698 | D16: بنك مصر 1 | E16: محمد ابراهيم عبده احمد | F16: مروة | G16: دوام كامل | H16: فنى | I16: الثالثة | J16: الثالثة | K16: حرفى ميكانيكى | L16: السويس | M16: 27308181300279 | N16: 20102321698محمد ابراهيم عبده احمدالثالثةالثالثةحرفى ميكانيكى السويس | O16: نعم | P16: 2032.75 | Q16: 2378.3175 | R16: 0 | S16: 3210.73 | T16: 356.75 | U16: 0 | V16: 0 | W16: 0 | Y16: 356.75 | Z16: 300 | AB16: 0 | AC16: 0 | AD16: 0 | AE16: 0 | AF16: 656.75 | AG16: 71.98 | AH16: 80.35 | AI16: 95.92 | AJ16: 0 | AK16: 200 | AL16: 40.63 | AM16: 72.46 | AN16: 93.05 | AO16: 132.75 | AP16: 142.04 | AQ16: 151.98 | AR16: 0 | AS16: 101.6375 | AT16: 600 | AU16: 10 | AV16: 1792.8 | AW16: 10 | AX16: =ROUND((data.f2026[[#This Row],[أساسي 7/2025]]*2)/12,2) -> 396.39 | AY16: 0 | BA16: 0 | BB16: 8801.74 | BC16: 0 | BD16: 8801.74 | BE16: 0 | BF16: 0 | BG16: 0 | BH16: 0 | BI16: 869.19 | BK16: 0 | BL16: 0 | BM16: =IF(data.f2026[[#This Row],[أيام الغياب]]=1,data.f2026[[#This Row],[الحافز]]*20%,IF(data.f2026[[#This Row],[أيام الغياب]]=2,data.f2026[[#This Row],[الحافز]]*100%,IF(data.f2026[[#This Row],[أيام الغياب]]>2,data.f2026[[#This Row],[الحافز]]*100%,""))) ->  | BN16: =IF(data.f2026[[#This Row],[عدد أيام الأجازات]]<=4,data.f2026[[#This Row],[الحافز]]*0,IF(data.f2026[[#This Row],[عدد أيام الأجازات]]=5,data.f2026[[#This Row],[الحافز]]*20%,IF(data.f2026[[#This Row],[عدد أيام الأجازات]]=6,data.f2026[[#This Row],[الحافز]]*40%,IF(data.f2026[[#This Row],[عدد أيام الأجازات]]=7,data.f2026[[#This Row],[الحافز]]*50%,IF(data.f2026[[#This Row],[عدد أيام الأجازات]]>7,data.f2026[[#This Row],[الحافز]]*100%,""))))) -> 0 | BO16: =IF(data.f2026[[#This Row],[أيام أجازات بعد السنوية]]<=2,data.f2026[[#This Row],[الحافز]]*0,IF(data.f2026[[#This Row],[أيام أجازات بعد السنوية]]=3,data.f2026[[#This Row],[الحافز]]*30%,IF(data.f2026[[#This Row],[أيام أجازات بعد السنوية]]=4,data.f2026[[#This Row],[الحافز]]*40%,IF(data.f2026[[#This Row],[أيام أجازات بعد السنوية]]=5,data.f2026[[#This Row],[الحافز]]*50%,IF(data.f2026[[#This Row],[أيام أجازات بعد السنوية]]>5,data.f2026[[#This Row],[الحافز]]*100%,""))))) -> 0 | BP16: 0 | BQ16: 0 | BR16: 0 | BS16: 3 | BT16: 0 | BV16: 0 | BW16: 0 | BY16: 0 | BZ16: 0 | CA16: 0 | CB16: 0 | CC16: 0 | CD16: 0 | CG16: 3 | CJ16: 0 | CK16: 0 | CM16: 0 | CN16: 0 | CO16: 396.39 | CP16: 0 | CQ16: =ROUND(IF($D16=data.f2026[[#Headers],[إيقاف]],$BD16-SUM(data.f2026[[#This Row],[تامينات 2026]:[خصم 5% تأمين من العمولة]],0),0),2) -> 0 | CR16: =ROUND(IF($D16=data.f2026[[#Headers],[مرضي]],$BD16-SUM(data.f2026[[#This Row],[تامينات 2026]:[خصم 5% تأمين من العمولة]],0),0),2) -> 0 | CS16: 0 | CT16: =ROUND(IF($G16=data.f2026[[#Headers],[إعارة]],$BD16-SUM(data.f2026[[#This Row],[تامينات 2026]:[خصم 5% تأمين من العمولة]],0),0),2) -> 0 | CU16: =ROUND(IF($G16=data.f2026[[#Headers],[معاش]],$BD16-SUM(data.f2026[[#This Row],[تامينات 2026]:[خصم 5% تأمين من العمولة]],0),0),2) -> 0 | CV16: 1271.58 | CW16: 7530.16
B17: 201024 | C17: 22004 | D17: بنك مصر 1 | E17: محمود محمد محمود سالم | F17: مروة | G17: دوام كامل | H17: فنى | I17: الرابعة | M17: 27606022102416 | N17: 20102422004محمود محمد محمود سالممروةالرابعة | P17: 1800.66 | Q17: 1980.726 | R17: 0 | S17: 2673.98 | T17: 297.11 | U17: 0 | V17: 0 | W17: 0 | Y17: 297.11 | Z17: 300 | AB17: 0 | AC17: 0 | AD17: 0 | AE17: 0 | AF17: 597.11 | AG17: 64.21 | AH17: 71.65 | AI17: 85.47 | AJ17: 0 | AK17: 200 | AL17: 36 | AM17: 64.19 | AN17: 82.42 | AO17: 117.59 | AP17: 125.82 | AQ17: 134.63 | AR17: 0 | AS17: 90.033 | AT17: 600 | AU17: 6 | AV17: 1678.01 | AW17: 10 | AX17: =ROUND((data.f2026[[#This Row],[أساسي 7/2025]]*2)/12,2) -> 330.12 | AY17: 0 | BA17: 0 | BB17: 7567.06 | BC17: 0 | BD17: 7567.06 | BE17: 0 | BF17: 0 | BG17: 2 | BH17: 0 | BI17: 768.73 | BK17: 304.1973333 | BL17: 0 | BM17: 0 | BN17: 802.19 | BO17: =IF(data.f2026[[#This Row],[أيام أجازات بعد السنوية]]<=2,data.f2026[[#This Row],[الحافز]]*0,IF(data.f2026[[#This Row],[أيام أجازات بعد السنوية]]=3,data.f2026[[#This Row],[الحافز]]*30%,IF(data.f2026[[#This Row],[أيام أجازات بعد السنوية]]=4,data.f2026[[#This Row],[الحافز]]*40%,IF(data.f2026[[#This Row],[أيام أجازات بعد السنوية]]=5,data.f2026[[#This Row],[الحافز]]*50%,IF(data.f2026[[#This Row],[أيام أجازات بعد السنوية]]>5,data.f2026[[#This Row],[الحافز]]*100%,""))))) -> 0 | BP17: 0 | BQ17: 0 | BR17: 0 | BS17: 3 | BT17: 0 | BV17: 0 | BW17: 0 | BY17: 0 | BZ17: 0 | CA17: 0 | CB17: 0 | CC17: 0 | CD17: 0 | CG17: 3 | CJ17: 0 | CK17: 0 | CM17: 2963.76 | CN17: 0 | CO17: 330.12 | CP17: 0 | CQ17: =ROUND(IF($D17=data.f2026[[#Headers],[إيقاف]],$BD17-SUM(data.f2026[[#This Row],[تامينات 2026]:[خصم 5% تأمين من العمولة]],0),0),2) -> 0 | CR17: =ROUND(IF($D17=data.f2026[[#Headers],[مرضي]],$BD17-SUM(data.f2026[[#This Row],[تامينات 2026]:[خصم 5% تأمين من العمولة]],0),0),2) -> 0 | CS17: 0 | CT17: =ROUND(IF($G17=data.f2026[[#Headers],[إعارة]],$BD17-SUM(data.f2026[[#This Row],[تامينات 2026]:[خصم 5% تأمين من العمولة]],0),0),2) -> 0 | CU17: =ROUND(IF($G17=data.f2026[[#Headers],[معاش]],$BD17-SUM(data.f2026[[#This Row],[تامينات 2026]:[خصم 5% تأمين من العمولة]],0),0),2) -> 0 | CV17: 5175 | CW17: 2392.06
B18: 201026 | C18: 21641 | D18: بنك مصر 1 | E18: محمد رجب سالم رزق | F18: مروة | G18: دوام كامل | H18: فنى | I18: الثالثة | J18: الثالثة | K18: حرفى ميكانيكى | L18: الاميرية | M18: 26608230102097 | N18: 20102621641محمد رجب سالم رزقالثالثةالثالثةحرفى ميكانيكى الاميرية | O18: نعم | P18: 2118.94 | Q18: 2479.1598 | R18: 0 | S18: 3346.87 | T18: 371.87 | U18: 0 | V18: 0 | W18: 0 | Y18: 371.87 | Z18: 300 | AB18: 0 | AC18: 0 | AD18: 0 | AE18: 0 | AF18: 671.87 | AG18: 75.13 | AH18: 83.84 | AI18: 100.03 | AJ18: 0 | AK18: 200 | AL18: 42.36 | AM18: 75.54 | AN18: 96.99 | AO18: 138.38 | AP18: 148.06 | AQ18: 158.43 | AR18: 0 | AS18: 105.947 | AT18: 600 | AU18: 10 | AV18: 1834.71 | AW18: 10 | AX18: =ROUND((data.f2026[[#This Row],[أساسي 7/2025]]*2)/12,2) -> 413.19 | AY18: 0 | BA18: 0 | BB18: 9127.67 | BC18: 0 | BD18: 9127.67 | BE18: 0 | BF18: 0 | BG18: 0 | BH18: 0 | BI18: 901.98 | BK18: 0 | BL18: 0 | BM18: =IF(data.f2026[[#This Row],[أيام الغياب]]=1,data.f2026[[#This Row],[الحافز]]*20%,IF(data.f2026[[#This Row],[أيام الغياب]]=2,data.f2026[[#This Row],[الحافز]]*100%,IF(data.f2026[[#This Row],[أيام الغياب]]>2,data.f2026[[#This Row],[الحافز]]*100%,""))) ->  | BN18: =IF(data.f2026[[#This Row],[عدد أيام الأجازات]]<=4,data.f2026[[#This Row],[الحافز]]*0,IF(data.f2026[[#This Row],[عدد أيام الأجازات]]=5,data.f2026[[#This Row],[الحافز]]*20%,IF(data.f2026[[#This Row],[عدد أيام الأجازات]]=6,data.f2026[[#This Row],[الحافز]]*40%,IF(data.f2026[[#This Row],[عدد أيام الأجازات]]=7,data.f2026[[#This Row],[الحافز]]*50%,IF(data.f2026[[#This Row],[عدد أيام الأجازات]]>7,data.f2026[[#This Row],[الحافز]]*100%,""))))) -> 0 | BO18: =IF(data.f2026[[#This Row],[أيام أجازات بعد السنوية]]<=2,data.f2026[[#This Row],[الحافز]]*0,IF(data.f2026[[#This Row],[أيام أجازات بعد السنوية]]=3,data.f2026[[#This Row],[الحافز]]*30%,IF(data.f2026[[#This Row],[أيام أجازات بعد السنوية]]=4,data.f2026[[#This Row],[الحافز]]*40%,IF(data.f2026[[#This Row],[أيام أجازات بعد السنوية]]=5,data.f2026[[#This Row],[الحافز]]*50%,IF(data.f2026[[#This Row],[أيام أجازات بعد السنوية]]>5,data.f2026[[#This Row],[الحافز]]*100%,""))))) -> 0 | BP18: 0 | BQ18: 0 | BR18: 0 | BS18: 3 | BT18: 0 | BV18: 0 | BW18: 0 | BY18: 0 | BZ18: 0 | CA18: 0 | CB18: 0 | CC18: 0 | CD18: 0 | CG18: 3 | CJ18: 0 | CK18: 0 | CM18: 0 | CN18: 0 | CO18: 413.19 | CP18: 0 | CQ18: =ROUND(IF($D18=data.f2026[[#Headers],[إيقاف]],$BD18-SUM(data.f2026[[#This Row],[تامينات 2026]:[خصم 5% تأمين من العمولة]],0),0),2) -> 0 | CR18: =ROUND(IF($D18=data.f2026[[#Headers],[مرضي]],$BD18-SUM(data.f2026[[#This Row],[تامينات 2026]:[خصم 5% تأمين من العمولة]],0),0),2) -> 0 | CS18: 0 | CT18: =ROUND(IF($G18=data.f2026[[#Headers],[إعارة]],$BD18-SUM(data.f2026[[#This Row],[تامينات 2026]:[خصم 5% تأمين من العمولة]],0),0),2) -> 0 | CU18: =ROUND(IF($G18=data.f2026[[#Headers],[معاش]],$BD18-SUM(data.f2026[[#This Row],[تامينات 2026]:[خصم 5% تأمين من العمولة]],0),0),2) -> 0 | CV18: 1321.17 | CW18: 7806.5
B19: 201027 | C19: 2827 | D19: بنك مصر 1 | E19: محمد الباشا زكى الغمرى | F19: مروة | G19: دوام كامل | H19: فنى | I19: الاولى | J19: الأولى | K19: حرفى ميكانيكى سيارات | L19: حلوان | M19: 26701031701631 | N19: 2010272827محمد الباشا زكى الغمرىالاولىالأولىحرفى ميكانيكى سياراتحلوان | O19: نعم | P19: 2582.35 | Q19: 3021.3495 | R19: 0 | S19: 4078.82 | T19: 453.2 | U19: 0 | V19: 0 | W19: 0 | Y19: 453.2 | Z19: 300 | AB19: 0 | AC19: 0 | AD19: 0 | AE19: 0 | AF19: 753.2 | AG19: 84.5 | AH19: 94.66 | AI19: 113.95 | AJ19: 0 | AK19: 190 | AL19: 51.62 | AM19: 92.06 | AN19: 118.2 | AO19: 168.94 | AP19: 180.44 | AQ19: 193.07 | AR19: 0 | AS19: 129.1175 | AT19: 600 | AU19: 10 | AV19: 2026.56 | AW19: 10 | AX19: =ROUND((data.f2026[[#This Row],[أساسي 7/2025]]*2)/12,2) -> 503.56 | AY19: 0 | BA19: 0 | BB19: 10846.69 | BC19: 0 | BD19: 10846.69 | BE19: 0 | BF19: 0 | BG19: 0 | BH19: 0 | BI19: 1084.54 | BK19: 0 | BL19: 0 | BM19: =IF(data.f2026[[#This Row],[أيام الغياب]]=1,data.f2026[[#This Row],[الحافز]]*20%,IF(data.f2026[[#This Row],[أيام الغياب]]=2,data.f2026[[#This Row],[الحافز]]*100%,IF(data.f2026[[#This Row],[أيام الغياب]]>2,data.f2026[[#This Row],[الحافز]]*100%,""))) ->  | BN19: =IF(data.f2026[[#This Row],[عدد أيام الأجازات]]<=4,data.f2026[[#This Row],[الحافز]]*0,IF(data.f2026[[#This Row],[عدد أيام الأجازات]]=5,data.f2026[[#This Row],[الحافز]]*20%,IF(data.f2026[[#This Row],[عدد أيام الأجازات]]=6,data.f2026[[#This Row],[الحافز]]*40%,IF(data.f2026[[#This Row],[عدد أيام الأجازات]]=7,data.f2026[[#This Row],[الحافز]]*50%,IF(data.f2026[[#This Row],[عدد أيام الأجازات]]>7,data.f2026[[#This Row],[الحافز]]*100%,""))))) -> 0 | BO19: =IF(data.f2026[[#This Row],[أيام أجازات بعد السنوية]]<=2,data.f2026[[#This Row],[الحافز]]*0,IF(data.f2026[[#This Row],[أيام أجازات بعد السنوية]]=3,data.f2026[[#This Row],[الحافز]]*30%,IF(data.f2026[[#This Row],[أيام أجازات بعد السنوية]]=4,data.f2026[[#This Row],[الحافز]]*40%,IF(data.f2026[[#This Row],[أيام أجازات بعد السنوية]]=5,data.f2026[[#This Row],[الحافز]]*50%,IF(data.f2026[[#This Row],[أيام أجازات بعد السنوية]]>5,data.f2026[[#This Row],[الحافز]]*100%,""))))) -> 0 | BP19: 0 | BQ19: 0 | BR19: 0 | BS19: 3 | BT19: 0 | BV19: 0 | BW19: 0 | BY19: 0 | BZ19: 0 | CA19: 0 | CB19: 0 | CC19: 0 | CD19: 0 | CG19: 5 | CJ19: 0 | CK19: 0 | CM19: 0 | CN19: 0 | CO19: 503.56 | CP19: 0 | CQ19: =ROUND(IF($D19=data.f2026[[#Headers],[إيقاف]],$BD19-SUM(data.f2026[[#This Row],[تامينات 2026]:[خصم 5% تأمين من العمولة]],0),0),2) -> 0 | CR19: =ROUND(IF($D19=data.f2026[[#Headers],[مرضي]],$BD19-SUM(data.f2026[[#This Row],[تامينات 2026]:[خصم 5% تأمين من العمولة]],0),0),2) -> 0 | CS19: 0 | CT19: =ROUND(IF($G19=data.f2026[[#Headers],[إعارة]],$BD19-SUM(data.f2026[[#This Row],[تامينات 2026]:[خصم 5% تأمين من العمولة]],0),0),2) -> 0 | CU19: =ROUND(IF($G19=data.f2026[[#Headers],[معاش]],$BD19-SUM(data.f2026[[#This Row],[تامينات 2026]:[خصم 5% تأمين من العمولة]],0),0),2) -> 0 | CV19: 1596.1 | CW19: 9250.59
B20: 201028 | C20: 21913 | D20: بنك مصر 1 | E20: ناصر شمردن عبد ربه شمردن | F20: مروة | G20: دوام كامل | H20: فنى | I20: الثانية | J20: الثانية | K20: سباك | L20: الزهراء | M20: 26706142011732 | N20: 20102821913ناصر شمردن عبد ربه شمردنالثانيةالثانيةسباكالزهراء | O20: نعم | P20: 2018.72 | Q20: 2361.9024 | R20: 0 | S20: 3188.57 | T20: 354.29 | U20: 0 | V20: 0 | W20: 0 | Y20: 354.29 | Z20: 300 | AB20: 0 | AC20: 0 | AD20: 0 | AE20: 0 | AF20: 654.29 | AG20: 71.56 | AH20: 79.86 | AI20: 95.24 | AJ20: 0 | AK20: 190 | AL20: 40.35 | AM20: 71.97 | AN20: 92.4 | AO20: 131.83 | AP20: 141.06 | AQ20: 150.93 | AR20: 0 | AS20: 100.936 | AT20: 600 | AU20: 10 | AV20: 1776.14 | AW20: 10 | AX20: =ROUND((data.f2026[[#This Row],[أساسي 7/2025]]*2)/12,2) -> 393.65 | AY20: 0 | BA20: 0 | BB20: 8738.84 | BC20: 0 | BD20: 8738.84 | BE20: 0 | BF20: 0 | BG20: 0 | BH20: 0 | BI20: 868.72 | BK20: 0 | BL20: 0 | BM20: =IF(data.f2026[[#This Row],[أيام الغياب]]=1,data.f2026[[#This Row],[الحافز]]*20%,IF(data.f2026[[#This Row],[أيام الغياب]]=2,data.f2026[[#This Row],[الحافز]]*100%,IF(data.f2026[[#This Row],[أيام الغياب]]>2,data.f2026[[#This Row],[الحافز]]*100%,""))) ->  | BN20: =IF(data.f2026[[#This Row],[عدد أيام الأجازات]]<=4,data.f2026[[#This Row],[الحافز]]*0,IF(data.f2026[[#This Row],[عدد أيام الأجازات]]=5,data.f2026[[#This Row],[الحافز]]*20%,IF(data.f2026[[#This Row],[عدد أيام الأجازات]]=6,data.f2026[[#This Row],[الحافز]]*40%,IF(data.f2026[[#This Row],[عدد أيام الأجازات]]=7,data.f2026[[#This Row],[الحافز]]*50%,IF(data.f2026[[#This Row],[عدد أيام الأجازات]]>7,data.f2026[[#This Row],[الحافز]]*100%,""))))) -> 0 | BO20: =IF(data.f2026[[#This Row],[أيام أجازات بعد السنوية]]<=2,data.f2026[[#This Row],[الحافز]]*0,IF(data.f2026[[#This Row],[أيام أجازات بعد السنوية]]=3,data.f2026[[#This Row],[الحافز]]*30%,IF(data.f2026[[#This Row],[أيام أجازات بعد السنوية]]=4,data.f2026[[#This Row],[الحافز]]*40%,IF(data.f2026[[#This Row],[أيام أجازات بعد السنوية]]=5,data.f2026[[#This Row],[الحافز]]*50%,IF(data.f2026[[#This Row],[أيام أجازات بعد السنوية]]>5,data.f2026[[#This Row],[الحافز]]*100%,""))))) -> 0 | BP20: 0 | BQ20: 0 | BR20: 0 | BS20: 3 | BT20: 0 | BV20: 0 | BW20: 0 | BY20: 0 | BZ20: 0 | CA20: 0 | CB20: 0 | CC20: 0 | CD20: 0 | CG20: 3 | CJ20: 0 | CK20: 0 | CM20: 0 | CN20: 0 | CO20: 393.65 | CP20: 0 | CQ20: =ROUND(IF($D20=data.f2026[[#Headers],[إيقاف]],$BD20-SUM(data.f2026[[#This Row],[تامينات 2026]:[خصم 5% تأمين من العمولة]],0),0),2) -> 0 | CR20: =ROUND(IF($D20=data.f2026[[#Headers],[مرضي]],$BD20-SUM(data.f2026[[#This Row],[تامينات 2026]:[خصم 5% تأمين من العمولة]],0),0),2) -> 0 | CS20: 0 | CT20: =ROUND(IF($G20=data.f2026[[#Headers],[إعارة]],$BD20-SUM(data.f2026[[#This Row],[تامينات 2026]:[خصم 5% تأمين من العمولة]],0),0),2) -> 0 | CU20: =ROUND(IF($G20=data.f2026[[#Headers],[معاش]],$BD20-SUM(data.f2026[[#This Row],[تامينات 2026]:[خصم 5% تأمين من العمولة]],0),0),2) -> 0 | CV20: 1268.37 | CW20: 7470.47
B21: 201031 | C21: 22251 | D21: بنك مصر 1 | E21: احمد جابر اسماعيل حسن | F21: مروة | G21: دوام كامل | H21: فنى | I21: الرابعة | J21: الرابعة | K21: حرفى نجار | L21: الاميرية | M21: 27301220104879 | N21: 201031احمد جابر اسماعيل حسنالرابعةالرابعةحرفى نجارالإدارة العامة | O21: نعم | P21: 1301.289 | Q21: 1522.50813 | R21: 0 | S21: 2055.39 | T21: 228.38 | U21: 0 | V21: 0 | W21: 0 | Y21: 228.3762195 | Z21: 300 | AB21: 0 | AD21: 0 | AE21: 0 | AF21: 528.38 | AG21: 45.56962 | AH21: 50.86204 | AI21: 65 | AJ21: 0 | AK21: 200 | AL21: 26.01311 | AM21: 46.39005 | AN21: 59.56483 | AO21: 84.97916 | AP21: 90.9277 | AQ21: 97.29265 | AS21: 65.06446 | AT21: 600 | AU21: 8 | AV21: 1439.66 | AW21: 10 | AX21: =ROUND((data.f2026[[#This Row],[أساسي 7/2025]]*2)/12,2) -> 253.75 | AY21: 0 | BA21: 0 | BB21: 6038.07 | BC21: 961.93 | BD21: 7000 | BE21: 0 | BF21: 0 | BI21: 648.78 | BK21: 0 | BL21: 0 | BM21: =IF(data.f2026[[#This Row],[أيام الغياب]]=1,data.f2026[[#This Row],[الحافز]]*20%,IF(data.f2026[[#This Row],[أيام الغياب]]=2,data.f2026[[#This Row],[الحافز]]*100%,IF(data.f2026[[#This Row],[أيام الغياب]]>2,data.f2026[[#This Row],[الحافز]]*100%,""))) ->  | BN21: =IF(data.f2026[[#This Row],[عدد أيام الأجازات]]<=4,data.f2026[[#This Row],[الحافز]]*0,IF(data.f2026[[#This Row],[عدد أيام الأجازات]]=5,data.f2026[[#This Row],[الحافز]]*20%,IF(data.f2026[[#This Row],[عدد أيام الأجازات]]=6,data.f2026[[#This Row],[الحافز]]*40%,IF(data.f2026[[#This Row],[عدد أيام الأجازات]]=7,data.f2026[[#This Row],[الحافز]]*50%,IF(data.f2026[[#This Row],[عدد أيام الأجازات]]>7,data.f2026[[#This Row],[الحافز]]*100%,""))))) -> 0 | BO21: =IF(data.f2026[[#This Row],[أيام أجازات بعد السنوية]]<=2,data.f2026[[#This Row],[الحافز]]*0,IF(data.f2026[[#This Row],[أيام أجازات بعد السنوية]]=3,data.f2026[[#This Row],[الحافز]]*30%,IF(data.f2026[[#This Row],[أيام أجازات بعد السنوية]]=4,data.f2026[[#This Row],[الحافز]]*40%,IF(data.f2026[[#This Row],[أيام أجازات بعد السنوية]]=5,data.f2026[[#This Row],[الحافز]]*50%,IF(data.f2026[[#This Row],[أيام أجازات بعد السنوية]]>5,data.f2026[[#This Row],[الحافز]]*100%,""))))) -> 0 | BP21: 0 | BQ21: 7.5 | BS21: 3 | BT21: 0 | BV21: 0 | BZ21: 0 | CA21: 0 | CC21: 0 | CG21: 5 | CK21: 0 | CM21: 0 | CN21: 0 | CO21: 253.75 | CP21: 0 | CQ21: =ROUND(IF($D21=data.f2026[[#Headers],[إيقاف]],$BD21-SUM(data.f2026[[#This Row],[تامينات 2026]:[خصم 5% تأمين من العمولة]],0),0),2) -> 0 | CR21: =ROUND(IF($D21=data.f2026[[#Headers],[مرضي]],$BD21-SUM(data.f2026[[#This Row],[تامينات 2026]:[خصم 5% تأمين من العمولة]],0),0),2) -> 0 | CS21: 0 | CT21: =ROUND(IF($G21=data.f2026[[#Headers],[إعارة]],$BD21-SUM(data.f2026[[#This Row],[تامينات 2026]:[خصم 5% تأمين من العمولة]],0),0),2) -> 0 | CU21: =ROUND(IF($G21=data.f2026[[#Headers],[معاش]],$BD21-SUM(data.f2026[[#This Row],[تامينات 2026]:[خصم 5% تأمين من العمولة]],0),0),2) -> 0 | CV21: 918.03 | CW21: 6081.97
B22: 201040 | C22: 44063 | D22: بنك مصر 1 | E22: حمدى صبحى عبد القادر | F22: مروة | G22: دوام كامل | H22: فنى | I22: عقد مؤقت | L22: الاميرية | M22: 28409170104839 | N22: 201040حمدى صبحى عبد القادرعقد مؤقت | P22: 410.26 | Q22: 410.26 | R22: 0 | S22: 553.85 | T22: 61.54 | U22: 0 | V22: 0 | W22: 0 | Y22: 61.539 | Z22: 300 | AB22: 0 | AD22: 0 | AE22: 0 | AF22: 361.54 | AG22: 0 | AH22: 0 | AI22: 0 | AJ22: 934.08 | AK22: 0 | AL22: 0 | AM22: 0 | AN22: 0 | AO22: 0 | AP22: 0 | AQ22: 0 | AS22: 108.974 | AT22: 0 | AU22: 0 | AV22: 1043.05 | AW22: 10 | AX22: =ROUND((data.f2026[[#This Row],[أساسي 7/2025]]*2)/12,2) -> 68.38 | AY22: 0 | BA22: 0 | BB22: 2508.62 | BC22: 4491.38 | BD22: 7000 | BE22: 0 | BF22: 0 | BI22: 600.64 | BK22: 0 | BL22: 0 | BM22: =IF(data.f2026[[#This Row],[أيام الغياب]]=1,data.f2026[[#This Row],[الحافز]]*20%,IF(data.f2026[[#This Row],[أيام الغياب]]=2,data.f2026[[#This Row],[الحافز]]*100%,IF(data.f2026[[#This Row],[أيام الغياب]]>2,data.f2026[[#This Row],[الحافز]]*100%,""))) ->  | BN22: =IF(data.f2026[[#This Row],[عدد أيام الأجازات]]<=4,data.f2026[[#This Row],[الحافز]]*0,IF(data.f2026[[#This Row],[عدد أيام الأجازات]]=5,data.f2026[[#This Row],[الحافز]]*20%,IF(data.f2026[[#This Row],[عدد أيام الأجازات]]=6,data.f2026[[#This Row],[الحافز]]*40%,IF(data.f2026[[#This Row],[عدد أيام الأجازات]]=7,data.f2026[[#This Row],[الحافز]]*50%,IF(data.f2026[[#This Row],[عدد أيام الأجازات]]>7,data.f2026[[#This Row],[الحافز]]*100%,""))))) -> 0 | BO22: =IF(data.f2026[[#This Row],[أيام أجازات بعد السنوية]]<=2,data.f2026[[#This Row],[الحافز]]*0,IF(data.f2026[[#This Row],[أيام أجازات بعد السنوية]]=3,data.f2026[[#This Row],[الحافز]]*30%,IF(data.f2026[[#This Row],[أيام أجازات بعد السنوية]]=4,data.f2026[[#This Row],[الحافز]]*40%,IF(data.f2026[[#This Row],[أيام أجازات بعد السنوية]]=5,data.f2026[[#This Row],[الحافز]]*50%,IF(data.f2026[[#This Row],[أيام أجازات بعد السنوية]]>5,data.f2026[[#This Row],[الحافز]]*100%,""))))) -> 0 | BP22: 0 | BQ22: 0 | BS22: 3 | BT22: 1700 | BV22: 0 | BZ22: 0 | CA22: 0 | CC22: 0 | CG22: 3 | CK22: 0 | CM22: 0 | CN22: 0 | CO22: 68.38 | CP22: 0 | CQ22: =ROUND(IF($D22=data.f2026[[#Headers],[إيقاف]],$BD22-SUM(data.f2026[[#This Row],[تامينات 2026]:[خصم 5% تأمين من العمولة]],0),0),2) -> 0 | CR22: =ROUND(IF($D22=data.f2026[[#Headers],[مرضي]],$BD22-SUM(data.f2026[[#This Row],[تامينات 2026]:[خصم 5% تأمين من العمولة]],0),0),2) -> 0 | CS22: 0 | CT22: =ROUND(IF($G22=data.f2026[[#Headers],[إعارة]],$BD22-SUM(data.f2026[[#This Row],[تامينات 2026]:[خصم 5% تأمين من العمولة]],0),0),2) -> 0 | CU22: =ROUND(IF($G22=data.f2026[[#Headers],[معاش]],$BD22-SUM(data.f2026[[#This Row],[تامينات 2026]:[خصم 5% تأمين من العمولة]],0),0),2) -> 0 | CV22: 2375.02 | CW22: 4624.98
B23: 201041 | C23: 3939 | D23: بنك مصر 1 | E23: هاشم محمود عبدالله منصور | F23: مروة | G23: دوام كامل | H23: فنى | I23: الخامسة | L23: الاميرية | M23: 27203140103896 | N23: 201041هاشم محمود عبدالله منصورالخامسة | P23: 735.53 | Q23: 860.57 | R23: 0 | S23: 1161.77 | T23: 129.09 | U23: 0 | V23: 0 | W23: 0 | Y23: 129.0855 | Z23: 300 | AB23: 0 | AD23: 0 | AE23: 0 | AF23: 429.09 | AG23: 0 | AH23: 0 | AI23: 0 | AJ23: 1281.41 | AK23: 0 | AL23: 0 | AM23: 0 | AN23: 0 | AO23: 0 | AP23: 0 | AQ23: 0 | AS23: 76.447 | AT23: 0 | AU23: 0 | AV23: 1357.86 | AW23: 10 | AX23: =ROUND((data.f2026[[#This Row],[أساسي 7/2025]]*2)/12,2) -> 143.43 | AY23: 0 | BA23: 0 | BB23: 4091.81 | BC23: 2908.19 | BD23: 7000 | BE23: 0 | BF23: 0 | BI23: 616.54 | BK23: 0 | BL23: 0 | BM23: =IF(data.f2026[[#This Row],[أيام الغياب]]=1,data.f2026[[#This Row],[الحافز]]*20%,IF(data.f2026[[#This Row],[أيام الغياب]]=2,data.f2026[[#This Row],[الحافز]]*100%,IF(data.f2026[[#This Row],[أيام الغياب]]>2,data.f2026[[#This Row],[الحافز]]*100%,""))) ->  | BN23: =IF(data.f2026[[#This Row],[عدد أيام الأجازات]]<=4,data.f2026[[#This Row],[الحافز]]*0,IF(data.f2026[[#This Row],[عدد أيام الأجازات]]=5,data.f2026[[#This Row],[الحافز]]*20%,IF(data.f2026[[#This Row],[عدد أيام الأجازات]]=6,data.f2026[[#This Row],[الحافز]]*40%,IF(data.f2026[[#This Row],[عدد أيام الأجازات]]=7,data.f2026[[#This Row],[الحافز]]*50%,IF(data.f2026[[#This Row],[عدد أيام الأجازات]]>7,data.f2026[[#This Row],[الحافز]]*100%,""))))) -> 0 | BO23: =IF(data.f2026[[#This Row],[أيام أجازات بعد السنوية]]<=2,data.f2026[[#This Row],[الحافز]]*0,IF(data.f2026[[#This Row],[أيام أجازات بعد السنوية]]=3,data.f2026[[#This Row],[الحافز]]*30%,IF(data.f2026[[#This Row],[أيام أجازات بعد السنوية]]=4,data.f2026[[#This Row],[الحافز]]*40%,IF(data.f2026[[#This Row],[أيام أجازات بعد السنوية]]=5,data.f2026[[#This Row],[الحافز]]*50%,IF(data.f2026[[#This Row],[أيام أجازات بعد السنوية]]>5,data.f2026[[#This Row],[الحافز]]*100%,""))))) -> 0 | BP23: 0 | BQ23: 0 | BS23: 3 | BT23: 0 | BV23: 0 | BW23: 0 | BZ23: 0 | CA23: 0 | CC23: 0 | CG23: 3 | CK23: 0 | CM23: 0 | CN23: 0 | CO23: 143.43 | CP23: 0 | CQ23: =ROUND(IF($D23=data.f2026[[#Headers],[إيقاف]],$BD23-SUM(data.f2026[[#This Row],[تامينات 2026]:[خصم 5% تأمين من العمولة]],0),0),2) -> 0 | CR23: =ROUND(IF($D23=data.f2026[[#Headers],[مرضي]],$BD23-SUM(data.f2026[[#This Row],[تامينات 2026]:[خصم 5% تأمين من العمولة]],0),0),2) -> 0 | CS23: 0 | CT23: =ROUND(IF($G23=data.f2026[[#Headers],[إعارة]],$BD23-SUM(data.f2026[[#This Row],[تامينات 2026]:[خصم 5% تأمين من العمولة]],0),0),2) -> 0 | CU23: =ROUND(IF($G23=data.f2026[[#Headers],[معاش]],$BD23-SUM(data.f2026[[#This Row],[تامينات 2026]:[خصم 5% تأمين من العمولة]],0),0),2) -> 0 | CV23: 765.97 | CW23: 6234.03
B24: 201042 | C24: 1109 | D24: مرضي | E24: هشام إبراهيم عبد الفتاح | F24: مروه | G24: مرضي | H24: فنى | I24: الثانية | J24: الثانية | K24: نقاش دوكو | L24: الاميرية | M24: 27205070100552 | N24: 201042هشام إبراهيم عبد الفتاحمروهالثانيةالثانيةنقاش دوكوالامن | O24: نعم | P24: 1879.01 | Q24: 2198.4417 | R24: 0 | S24: 2967.9 | T24: 329.77 | U24: 0 | V24: 0 | W24: 0 | Y24: 329.766255 | Z24: 300 | AB24: 0 | AD24: 0 | AE24: 0 | AF24: 629.77 | AG24: 62.21 | AH24: 69.28 | AI24: 83.14 | AJ24: 0 | AK24: 190 | AL24: 37.56 | AM24: 66.99 | AN24: 86.01 | AO24: 122.71 | AP24: 131.3 | AQ24: 140.49 | AS24: 93.9505 | AT24: 600 | AU24: 10 | AV24: 1693.64 | AW24: 10 | AX24: =ROUND((data.f2026[[#This Row],[أساسي 7/2025]]*2)/12,2) -> 366.41 | AY24: 0 | BA24: 0 | BB24: 8195.93 | BC24: 0 | BD24: 8195.93 | BE24: 0 | BF24: 0 | BI24: 813.05 | BK24: 0 | BL24: 0 | BM24: =IF(data.f2026[[#This Row],[أيام الغياب]]=1,data.f2026[[#This Row],[الحافز]]*20%,IF(data.f2026[[#This Row],[أيام الغياب]]=2,data.f2026[[#This Row],[الحافز]]*100%,IF(data.f2026[[#This Row],[أيام الغياب]]>2,data.f2026[[#This Row],[الحافز]]*100%,""))) ->  | BN24: =IF(data.f2026[[#This Row],[عدد أيام الأجازات]]<=4,data.f2026[[#This Row],[الحافز]]*0,IF(data.f2026[[#This Row],[عدد أيام الأجازات]]=5,data.f2026[[#This Row],[الحافز]]*20%,IF(data.f2026[[#This Row],[عدد أيام الأجازات]]=6,data.f2026[[#This Row],[الحافز]]*40%,IF(data.f2026[[#This Row],[عدد أيام الأجازات]]=7,data.f2026[[#This Row],[الحافز]]*50%,IF(data.f2026[[#This Row],[عدد أيام الأجازات]]>7,data.f2026[[#This Row],[الحافز]]*100%,""))))) -> 0 | BO24: =IF(data.f2026[[#This Row],[أيام أجازات بعد السنوية]]<=2,data.f2026[[#This Row],[الحافز]]*0,IF(data.f2026[[#This Row],[أيام أجازات بعد السنوية]]=3,data.f2026[[#This Row],[الحافز]]*30%,IF(data.f2026[[#This Row],[أيام أجازات بعد السنوية]]=4,data.f2026[[#This Row],[الحافز]]*40%,IF(data.f2026[[#This Row],[أيام أجازات بعد السنوية]]=5,data.f2026[[#This Row],[الحافز]]*50%,IF(data.f2026[[#This Row],[أيام أجازات بعد السنوية]]>5,data.f2026[[#This Row],[الحافز]]*100%,""))))) -> 0 | BP24: 0 | BQ24: 0 | BS24: 3 | BT24: 0 | BV24: 0 | BZ24: 0 | CA24: 0 | CC24: 0 | CG24: 3 | CK24: 0 | CM24: 0 | CN24: 0 | CO24: 366.41 | CP24: 0 | CQ24: =ROUND(IF($D24=data.f2026[[#Headers],[إيقاف]],$BD24-SUM(data.f2026[[#This Row],[تامينات 2026]:[خصم 5% تأمين من العمولة]],0),0),2) -> 0 | CR24: =ROUND(IF($D24=data.f2026[[#Headers],[مرضي]],$BD24-SUM(data.f2026[[#This Row],[تامينات 2026]:[خصم 5% تأمين من العمولة]],0),0),2) -> 7010.47 | CS24: 0 | CT24: =ROUND(IF($G24=data.f2026[[#Headers],[إعارة]],$BD24-SUM(data.f2026[[#This Row],[تامينات 2026]:[خصم 5% تأمين من العمولة]],0),0),2) -> 0 | CU24: =ROUND(IF($G24=data.f2026[[#Headers],[معاش]],$BD24-SUM(data.f2026[[#This Row],[تامينات 2026]:[خصم 5% تأمين من العمولة]],0),0),2) -> 0 | CV24: 8195.93 | CW24: 0
B25: 202001 | C25: 25178 | D25: نقدى | E25: مرسي محرم محمد عثمان | F25: مروه | G25: دوام كامل | H25: فنى | I25: الاولى | J25: الأولى | K25: حرفى لحام | L25: فرع الاميرية | M25: 26605282400054 | N25: 202001مرسي محرم محمد عثمانالاولىالأولىحرفى لحام فرع الاميرية | O25: نعم | P25: 2380.719 | Q25: 2785.44123 | R25: 0 | S25: 3760.35 | T25: 417.82 | U25: 0 | V25: 0 | W25: 0 | Y25: 417.8161845 | Z25: 300 | AB25: 0 | AD25: 0 | AE25: 0 | AF25: 717.82 | AG25: 83.04 | AH25: 92.73 | AI25: 110.85 | AJ25: 0 | AK25: 190 | AL25: 47.59121 | AM25: 84.87099 | AN25: 108.9744 | AO25: 155.4701 | AP25: 166.353 | AQ25: 177.9977 | AS25: 119.036 | AT25: 600 | AU25: 10 | AV25: 1946.91 | AW25: 10 | AX25: =ROUND((data.f2026[[#This Row],[أساسي 7/2025]]*2)/12,2) -> 464.24 | AY25: 0 | BA25: 0 | BB25: 10102.58 | BC25: 0 | BD25: 10102.58 | BE25: 0 | BF25: 0 | BI25: 1035.5 | BK25: 0 | BL25: 0 | BM25: =IF(data.f2026[[#This Row],[أيام الغياب]]=1,data.f2026[[#This Row],[الحافز]]*20%,IF(data.f2026[[#This Row],[أيام الغياب]]=2,data.f2026[[#This Row],[الحافز]]*100%,IF(data.f2026[[#This Row],[أيام الغياب]]>2,data.f2026[[#This Row],[الحافز]]*100%,""))) ->  | BN25: =IF(data.f2026[[#This Row],[عدد أيام الأجازات]]<=4,data.f2026[[#This Row],[الحافز]]*0,IF(data.f2026[[#This Row],[عدد أيام الأجازات]]=5,data.f2026[[#This Row],[الحافز]]*20%,IF(data.f2026[[#This Row],[عدد أيام الأجازات]]=6,data.f2026[[#This Row],[الحافز]]*40%,IF(data.f2026[[#This Row],[عدد أيام الأجازات]]=7,data.f2026[[#This Row],[الحافز]]*50%,IF(data.f2026[[#This Row],[عدد أيام الأجازات]]>7,data.f2026[[#This Row],[الحافز]]*100%,""))))) -> 0 | BO25: =IF(data.f2026[[#This Row],[أيام أجازات بعد السنوية]]<=2,data.f2026[[#This Row],[الحافز]]*0,IF(data.f2026[[#This Row],[أيام أجازات بعد السنوية]]=3,data.f2026[[#This Row],[الحافز]]*30%,IF(data.f2026[[#This Row],[أيام أجازات بعد السنوية]]=4,data.f2026[[#This Row],[الحافز]]*40%,IF(data.f2026[[#This Row],[أيام أجازات بعد السنوية]]=5,data.f2026[[#This Row],[الحافز]]*50%,IF(data.f2026[[#This Row],[أيام أجازات بعد السنوية]]>5,data.f2026[[#This Row],[الحافز]]*100%,""))))) -> 0 | BP25: 0 | BQ25: 0 | BS25: 3 | BT25: 0 | BV25: 0 | BZ25: 0 | CA25: 0 | CC25: 0 | CG25: 5 | CK25: 0 | CM25: 0 | CN25: 0 | CO25: 464.24 | CP25: 0 | CQ25: =ROUND(IF($D25=data.f2026[[#Headers],[إيقاف]],$BD25-SUM(data.f2026[[#This Row],[تامينات 2026]:[خصم 5% تأمين من العمولة]],0),0),2) -> 0 | CR25: =ROUND(IF($D25=data.f2026[[#Headers],[مرضي]],$BD25-SUM(data.f2026[[#This Row],[تامينات 2026]:[خصم 5% تأمين من العمولة]],0),0),2) -> 0 | CS25: 0 | CT25: =ROUND(IF($G25=data.f2026[[#Headers],[إعارة]],$BD25-SUM(data.f2026[[#This Row],[تامينات 2026]:[خصم 5% تأمين من العمولة]],0),0),2) -> 0 | CU25: =ROUND(IF($G25=data.f2026[[#Headers],[معاش]],$BD25-SUM(data.f2026[[#This Row],[تامينات 2026]:[خصم 5% تأمين من العمولة]],0),0),2) -> 0 | CV25: 1507.74 | CW25: 8594.84
B26: 202002 | C26: 22259 | D26: بنك مصر 1 | E26: عادل عبدالبر امين عبدالفتاح | F26: مروه | G26: دوام كامل | H26: فنى | I26: الثانية | J26: الثانية | K26: سروجى | L26: الاميرية | M26: 27010061700711 | N26: 202002عادل عبدالبر امين عبدالفتاحالثانيةالثانيةسروجى الاميرية | O26: نعم | P26: 1397.438 | Q26: 1635.00246 | R26: 0 | S26: 2207.25 | T26: 245.25 | U26: 0 | V26: 0 | W26: 0 | Y26: 245.250369 | Z26: 300 | AB26: 0 | AD26: 0 | AE26: 0 | AF26: 545.25 | AG26: 48.99363 | AH26: 54.58533 | AI26: 65 | AJ26: 0 | AK26: 190 | AL26: 27.93515 | AM26: 49.81769 | AN26: 63.96592 | AO26: 91.25805 | AP26: 97.64611 | AQ26: 104.4813 | AS26: 69.87189 | AT26: 600 | AU26: 10 | AV26: 1473.56 | AW26: 10 | AX26: =ROUND((data.f2026[[#This Row],[أساسي 7/2025]]*2)/12,2) -> 272.5 | AY26: 0 | BA26: 0 | BB26: 6388.81 | BC26: 611.19 | BD26: 7000 | BE26: 0 | BF26: 0 | BI26: 658.59 | BK26: 0 | BL26: 0 | BM26: =IF(data.f2026[[#This Row],[أيام الغياب]]=1,data.f2026[[#This Row],[الحافز]]*20%,IF(data.f2026[[#This Row],[أيام الغياب]]=2,data.f2026[[#This Row],[الحافز]]*100%,IF(data.f2026[[#This Row],[أيام الغياب]]>2,data.f2026[[#This Row],[الحافز]]*100%,""))) ->  | BN26: =IF(data.f2026[[#This Row],[عدد أيام الأجازات]]<=4,data.f2026[[#This Row],[الحافز]]*0,IF(data.f2026[[#This Row],[عدد أيام الأجازات]]=5,data.f2026[[#This Row],[الحافز]]*20%,IF(data.f2026[[#This Row],[عدد أيام الأجازات]]=6,data.f2026[[#This Row],[الحافز]]*40%,IF(data.f2026[[#This Row],[عدد أيام الأجازات]]=7,data.f2026[[#This Row],[الحافز]]*50%,IF(data.f2026[[#This Row],[عدد أيام الأجازات]]>7,data.f2026[[#This Row],[الحافز]]*100%,""))))) -> 0 | BO26: =IF(data.f2026[[#This Row],[أيام أجازات بعد السنوية]]<=2,data.f2026[[#This Row],[الحافز]]*0,IF(data.f2026[[#This Row],[أيام أجازات بعد السنوية]]=3,data.f2026[[#This Row],[الحافز]]*30%,IF(data.f2026[[#This Row],[أيام أجازات بعد السنوية]]=4,data.f2026[[#This Row],[الحافز]]*40%,IF(data.f2026[[#This Row],[أيام أجازات بعد السنوية]]=5,data.f2026[[#This Row],[الحافز]]*50%,IF(data.f2026[[#This Row],[أيام أجازات بعد السنوية]]>5,data.f2026[[#This Row],[الحافز]]*100%,""))))) -> 0 | BP26: 0 | BQ26: 0 | BS26: 3 | BT26: 0 | BV26: 0 | BZ26: 0 | CA26: 0 | CC26: 0 | CG26: 5 | CK26: 0 | CM26: 0 | CN26: 0 | CO26: 272.5 | CP26: 0 | CQ26: =ROUND(IF($D26=data.f2026[[#Headers],[إيقاف]],$BD26-SUM(data.f2026[[#This Row],[تامينات 2026]:[خصم 5% تأمين من العمولة]],0),0),2) -> 0 | CR26: =ROUND(IF($D26=data.f2026[[#Headers],[مرضي]],$BD26-SUM(data.f2026[[#This Row],[تامينات 2026]:[خصم 5% تأمين من العمولة]],0),0),2) -> 0 | CS26: 0 | CT26: =ROUND(IF($G26=data.f2026[[#Headers],[إعارة]],$BD26-SUM(data.f2026[[#This Row],[تامينات 2026]:[خصم 5% تأمين من العمولة]],0),0),2) -> 0 | CU26: =ROUND(IF($G26=data.f2026[[#Headers],[معاش]],$BD26-SUM(data.f2026[[#This Row],[تامينات 2026]:[خصم 5% تأمين من العمولة]],0),0),2) -> 0 | CV26: 939.09 | CW26: 6060.91
B27: 202003 | C27: 22280 | D27: بنك مصر 1 | E27: محمد عبد الفتاح على البربرى | F27: مروه | G27: دوام كامل | H27: فنى | I27: الثالثة | J27: الثالثة | K27: حرفي كهربائي | L27: فرع الزقازيق | M27: 27710110100379 | N27: 202003محمد عبد الفتاح على البربرىالثالثةالثالثةحرفي كهربائي فرع الزقازيق | O27: نعم | P27: 1365.973 | Q27: 1598.18841 | R27: 0 | S27: 2157.55 | T27: 239.73 | U27: 0 | V27: 0 | W27: 0 | Y27: 239.7282615 | Z27: 300 | AB27: 0 | AD27: 0 | AE27: 0 | AF27: 539.73 | AG27: 47.60303 | AH27: 53.03779 | AI27: 65 | AJ27: 0 | AK27: 200 | AL27: 27.30617 | AM27: 48.696 | AN27: 62.52566 | AO27: 89.20328 | AP27: 95.44751 | AQ27: 102.1288 | AS27: 68.29866 | AT27: 600 | AU27: 10 | AV27: 1469.25 | AW27: 10 | AX27: =ROUND((data.f2026[[#This Row],[أساسي 7/2025]]*2)/12,2) -> 266.36 | AY27: 0 | BA27: 0 | BB27: 6280.81 | BC27: 719.19 | BD27: 7000 | BE27: 0 | BF27: 0 | BI27: 654.05 | BK27: 0 | BL27: 0 | BM27: =IF(data.f2026[[#This Row],[أيام الغياب]]=1,data.f2026[[#This Row],[الحافز]]*20%,IF(data.f2026[[#This Row],[أيام الغياب]]=2,data.f2026[[#This Row],[الحافز]]*100%,IF(data.f2026[[#This Row],[أيام الغياب]]>2,data.f2026[[#This Row],[الحافز]]*100%,""))) ->  | BN27: =IF(data.f2026[[#This Row],[عدد أيام الأجازات]]<=4,data.f2026[[#This Row],[الحافز]]*0,IF(data.f2026[[#This Row],[عدد أيام الأجازات]]=5,data.f2026[[#This Row],[الحافز]]*20%,IF(data.f2026[[#This Row],[عدد أيام الأجازات]]=6,data.f2026[[#This Row],[الحافز]]*40%,IF(data.f2026[[#This Row],[عدد أيام الأجازات]]=7,data.f2026[[#This Row],[الحافز]]*50%,IF(data.f2026[[#This Row],[عدد أيام الأجازات]]>7,data.f2026[[#This Row],[الحافز]]*100%,""))))) -> 0 | BO27: =IF(data.f2026[[#This Row],[أيام أجازات بعد السنوية]]<=2,data.f2026[[#This Row],[الحافز]]*0,IF(data.f2026[[#This Row],[أيام أجازات بعد السنوية]]=3,data.f2026[[#This Row],[الحافز]]*30%,IF(data.f2026[[#This Row],[أيام أجازات بعد السنوية]]=4,data.f2026[[#This Row],[الحافز]]*40%,IF(data.f2026[[#This Row],[أيام أجازات بعد السنوية]]=5,data.f2026[[#This Row],[الحافز]]*50%,IF(data.f2026[[#This Row],[أيام أجازات بعد السنوية]]>5,data.f2026[[#This Row],[الحافز]]*100%,""))))) -> 0 | BP27: 0 | BQ27: 0 | BS27: 3 | BT27: 0 | BV27: 0 | BZ27: 0 | CA27: 0 | CC27: 0 | CG27: 5 | CK27: 0 | CM27: 0 | CN27: 0 | CO27: 266.36 | CP27: 0 | CQ27: =ROUND(IF($D27=data.f2026[[#Headers],[إيقاف]],$BD27-SUM(data.f2026[[#This Row],[تامينات 2026]:[خصم 5% تأمين من العمولة]],0),0),2) -> 0 | CR27: =ROUND(IF($D27=data.f2026[[#Headers],[مرضي]],$BD27-SUM(data.f2026[[#This Row],[تامينات 2026]:[خصم 5% تأمين من العمولة]],0),0),2) -> 0 | CS27: 0 | CT27: =ROUND(IF($G27=data.f2026[[#Headers],[إعارة]],$BD27-SUM(data.f2026[[#This Row],[تامينات 2026]:[خصم 5% تأمين من العمولة]],0),0),2) -> 0 | CU27: =ROUND(IF($G27=data.f2026[[#Headers],[معاش]],$BD27-SUM(data.f2026[[#This Row],[تامينات 2026]:[خصم 5% تأمين من العمولة]],0),0),2) -> 0 | CV27: 928.41 | CW27: 6071.59
B28: 202004 | C28: 23294 | D28: بنك مصر 1 | E28: سيد صابر محمد امام | F28: مروه | G28: دوام كامل | H28: فنى | I28: الثانية | J28: الثانية | K28: فنى كهرباء | L28: الاميرية | M28: 28410150103214 | N28: 202004سيد صابر محمد امامالثانيةالثانيةفنى كهرباء الاميرية | O28: نعم | P28: 985.1828 | Q28: 1152.663876 | R28: 0 | S28: 1556.1 | T28: 172.9 | U28: 0 | V28: 0 | W28: 0 | Y28: 172.8995814 | Z28: 300 | AB28: 0 | AD28: 0 | AE28: 0 | AF28: 472.9 | AG28: 34.04168 | AH28: 38.11584 | AI28: 65 | AJ28: 0 | AK28: 190 | AL28: 29.04718 | AM28: 35.12109 | AN28: 45.09547 | AO28: 64.3362 | AP28: 68.83974 | AQ28: 85.55 | AS28: 51.48172 | AT28: 600 | AU28: 10 | AV28: 1316.63 | AW28: 10 | AX28: =ROUND((data.f2026[[#This Row],[أساسي 7/2025]]*2)/12,2) -> 192.11 | AY28: 0 | BA28: 0 | BB28: 4873.3 | BC28: 2126.7 | BD28: 7000 | BE28: 0 | BF28: 0 | BI28: 636.96 | BK28: 0 | BL28: 0 | BM28: =IF(data.f2026[[#This Row],[أيام الغياب]]=1,data.f2026[[#This Row],[الحافز]]*20%,IF(data.f2026[[#This Row],[أيام الغياب]]=2,data.f2026[[#This Row],[الحافز]]*100%,IF(data.f2026[[#This Row],[أيام الغياب]]>2,data.f2026[[#This Row],[الحافز]]*100%,""))) ->  | BN28: =IF(data.f2026[[#This Row],[عدد أيام الأجازات]]<=4,data.f2026[[#This Row],[الحافز]]*0,IF(data.f2026[[#This Row],[عدد أيام الأجازات]]=5,data.f2026[[#This Row],[الحافز]]*20%,IF(data.f2026[[#This Row],[عدد أيام الأجازات]]=6,data.f2026[[#This Row],[الحافز]]*40%,IF(data.f2026[[#This Row],[عدد أيام الأجازات]]=7,data.f2026[[#This Row],[الحافز]]*50%,IF(data.f2026[[#This Row],[عدد أيام الأجازات]]>7,data.f2026[[#This Row],[الحافز]]*100%,""))))) -> 0 | BO28: =IF(data.f2026[[#This Row],[أيام أجازات بعد السنوية]]<=2,data.f2026[[#This Row],[الحافز]]*0,IF(data.f2026[[#This Row],[أيام أجازات بعد السنوية]]=3,data.f2026[[#This Row],[الحافز]]*30%,IF(data.f2026[[#This Row],[أيام أجازات بعد السنوية]]=4,data.f2026[[#This Row],[الحافز]]*40%,IF(data.f2026[[#This Row],[أيام أجازات بعد السنوية]]=5,data.f2026[[#This Row],[الحافز]]*50%,IF(data.f2026[[#This Row],[أيام أجازات بعد السنوية]]>5,data.f2026[[#This Row],[الحافز]]*100%,""))))) -> 0 | BP28: 0 | BQ28: 0 | BS28: 3 | BT28: 0 | BV28: 0 | BZ28: 0 | CA28: 0 | CC28: 0 | CG28: 5 | CK28: 0 | CM28: 0 | CN28: 0 | CO28: 192.11 | CP28: 0 | CQ28: =ROUND(IF($D28=data.f2026[[#Headers],[إيقاف]],$BD28-SUM(data.f2026[[#This Row],[تامينات 2026]:[خصم 5% تأمين من العمولة]],0),0),2) -> 0 | CR28: =ROUND(IF($D28=data.f2026[[#Headers],[مرضي]],$BD28-SUM(data.f2026[[#This Row],[تامينات 2026]:[خصم 5% تأمين من العمولة]],0),0),2) -> 0 | CS28: 0 | CT28: =ROUND(IF($G28=data.f2026[[#Headers],[إعارة]],$BD28-SUM(data.f2026[[#This Row],[تامينات 2026]:[خصم 5% تأمين من العمولة]],0),0),2) -> 0 | CU28: =ROUND(IF($G28=data.f2026[[#Headers],[معاش]],$BD28-SUM(data.f2026[[#This Row],[تامينات 2026]:[خصم 5% تأمين من العمولة]],0),0),2) -> 0 | CV28: 837.07 | CW28: 6162.93
B29: 202005 | C29: 23295 | D29: بنك مصر 1 | E29: عطية عبده عطية محمدين | F29: مروه | G29: دوام كامل | H29: فنى | I29: الخامسة | J29: الخامسة | K29: حرفى ميكانيكى | L29: الاميرية | M29: 26804250102151 | N29: 202005عطية عبده عطية محمدينمروهالخامسةالخامسة حرفى ميكانيكىالاميرية | O29: نعم | P29: 1040.884 | Q29: 1217.83428 | R29: 0 | S29: 1644.08 | T29: 182.68 | U29: 0 | V29: 0 | W29: 0 | Y29: 182.675142 | Z29: 300 | AB29: 0 | AD29: 0 | AE29: 0 | AF29: 482.68 | AG29: 36.75438 | AH29: 40.88482 | AI29: 65 | AJ29: 0 | AK29: 200 | AL29: 26.44905 | AM29: 37.1068 | AN29: 47.64513 | AO29: 67.97372 | AP29: 72.73188 | AQ29: 81.9 | AS29: 52.04421 | AT29: 600 | AU29: 10 | AV29: 1338.49 | AW29: 10 | AX29: =ROUND((data.f2026[[#This Row],[أساسي 7/2025]]*2)/12,2) -> 202.97 | AY29: 0 | BA29: 0 | BB29: 5078.73 | BC29: 1921.27 | BD29: 7000 | BE29: 0 | BF29: 0 | BI29: 638.13 | BK29: 0 | BL29: 0 | BM29: =IF(data.f2026[[#This Row],[أيام الغياب]]=1,data.f2026[[#This Row],[الحافز]]*20%,IF(data.f2026[[#This Row],[أيام الغياب]]=2,data.f2026[[#This Row],[الحافز]]*100%,IF(data.f2026[[#This Row],[أيام الغياب]]>2,data.f2026[[#This Row],[الحافز]]*100%,""))) ->  | BN29: =IF(data.f2026[[#This Row],[عدد أيام الأجازات]]<=4,data.f2026[[#This Row],[الحافز]]*0,IF(data.f2026[[#This Row],[عدد أيام الأجازات]]=5,data.f2026[[#This Row],[الحافز]]*20%,IF(data.f2026[[#This Row],[عدد أيام الأجازات]]=6,data.f2026[[#This Row],[الحافز]]*40%,IF(data.f2026[[#This Row],[عدد أيام الأجازات]]=7,data.f2026[[#This Row],[الحافز]]*50%,IF(data.f2026[[#This Row],[عدد أيام الأجازات]]>7,data.f2026[[#This Row],[الحافز]]*100%,""))))) -> 0 | BO29: =IF(data.f2026[[#This Row],[أيام أجازات بعد السنوية]]<=2,data.f2026[[#This Row],[الحافز]]*0,IF(data.f2026[[#This Row],[أيام أجازات بعد السنوية]]=3,data.f2026[[#This Row],[الحافز]]*30%,IF(data.f2026[[#This Row],[أيام أجازات بعد السنوية]]=4,data.f2026[[#This Row],[الحافز]]*40%,IF(data.f2026[[#This Row],[أيام أجازات بعد السنوية]]=5,data.f2026[[#This Row],[الحافز]]*50%,IF(data.f2026[[#This Row],[أيام أجازات بعد السنوية]]>5,data.f2026[[#This Row],[الحافز]]*100%,""))))) -> 0 | BP29: 0 | BQ29: 0 | BS29: 3 | BT29: 0 | BV29: 0 | BZ29: 0 | CA29: 0 | CC29: 0 | CG29: 5 | CK29: 0 | CM29: 0 | CN29: 0 | CO29: 202.97 | CP29: 0 | CQ29: =ROUND(IF($D29=data.f2026[[#Headers],[إيقاف]],$BD29-SUM(data.f2026[[#This Row],[تامينات 2026]:[خصم 5% تأمين من العمولة]],0),0),2) -> 0 | CR29: =ROUND(IF($D29=data.f2026[[#Headers],[مرضي]],$BD29-SUM(data.f2026[[#This Row],[تامينات 2026]:[خصم 5% تأمين من العمولة]],0),0),2) -> 0 | CS29: 0 | CT29: =ROUND(IF($G29=data.f2026[[#Headers],[إعارة]],$BD29-SUM(data.f2026[[#This Row],[تامينات 2026]:[خصم 5% تأمين من العمولة]],0),0),2) -> 0 | CU29: =ROUND(IF($G29=data.f2026[[#Headers],[معاش]],$BD29-SUM(data.f2026[[#This Row],[تامينات 2026]:[خصم 5% تأمين من العمولة]],0),0),2) -> 0 | CV29: 849.1 | CW29: 6150.9
B30: 202007 | C30: 23321 | D30: بنك مصر 1 | E30: على عباس عبد الخالق احمد | F30: مروه | G30: دوام كامل | H30: فنى | I30: الثانية | J30: الثانية | K30: ميكانيكى | L30: الاميرية | M30: 26609292101671 | N30: 202007على عباس عبد الخالق احمدالثانيةالثانيةميكانيكى الاميرية | O30: نعم | P30: 2464.195 | Q30: 2883.10815 | R30: 0 | S30: 3892.2 | T30: 432.47 | U30: 0 | V30: 0 | W30: 0 | Y30: 432.4662225 | Z30: 300 | AB30: 0 | AD30: 0 | AE30: 0 | AF30: 732.47 | AG30: 85.38567 | AH30: 95.37196 | AI30: 114.8779 | AJ30: 0 | AK30: 190 | AL30: 49.25991 | AM30: 87.84685 | AN30: 112.7953 | AO30: 160.9214 | AP30: 172.1859 | AQ30: 184.2389 | AS30: 123.2097 | AT30: 600 | AU30: 8 | AV30: 1984.09 | AW30: 10 | AX30: =ROUND((data.f2026[[#This Row],[أساسي 7/2025]]*2)/12,2) -> 480.52 | AY30: 0 | BA30: 0 | BB30: 10414.86 | BC30: 0 | BD30: 10414.86 | BE30: 0 | BF30: 0 | BI30: 1040.19 | BK30: 0 | BL30: 0 | BM30: =IF(data.f2026[[#This Row],[أيام الغياب]]=1,data.f2026[[#This Row],[الحافز]]*20%,IF(data.f2026[[#This Row],[أيام الغياب]]=2,data.f2026[[#This Row],[الحافز]]*100%,IF(data.f2026[[#This Row],[أيام الغياب]]>2,data.f2026[[#This Row],[الحافز]]*100%,""))) ->  | BN30: =IF(data.f2026[[#This Row],[عدد أيام الأجازات]]<=4,data.f2026[[#This Row],[الحافز]]*0,IF(data.f2026[[#This Row],[عدد أيام الأجازات]]=5,data.f2026[[#This Row],[الحافز]]*20%,IF(data.f2026[[#This Row],[عدد أيام الأجازات]]=6,data.f2026[[#This Row],[الحافز]]*40%,IF(data.f2026[[#This Row],[عدد أيام الأجازات]]=7,data.f2026[[#This Row],[الحافز]]*50%,IF(data.f2026[[#This Row],[عدد أيام الأجازات]]>7,data.f2026[[#This Row],[الحافز]]*100%,""))))) -> 0 | BO30: =IF(data.f2026[[#This Row],[أيام أجازات بعد السنوية]]<=2,data.f2026[[#This Row],[الحافز]]*0,IF(data.f2026[[#This Row],[أيام أجازات بعد السنوية]]=3,data.f2026[[#This Row],[الحافز]]*30%,IF(data.f2026[[#This Row],[أيام أجازات بعد السنوية]]=4,data.f2026[[#This Row],[الحافز]]*40%,IF(data.f2026[[#This Row],[أيام أجازات بعد السنوية]]=5,data.f2026[[#This Row],[الحافز]]*50%,IF(data.f2026[[#This Row],[أيام أجازات بعد السنوية]]>5,data.f2026[[#This Row],[الحافز]]*100%,""))))) -> 0 | BP30: 0 | BQ30: 0 | BS30: 3 | BT30: 0 | BV30: 0 | BZ30: 0 | CA30: 0 | CC30: 0 | CG30: 5 | CK30: 0 | CM30: 0 | CN30: 0 | CO30: 480.52 | CP30: 0 | CQ30: =ROUND(IF($D30=data.f2026[[#Headers],[إيقاف]],$BD30-SUM(data.f2026[[#This Row],[تامينات 2026]:[خصم 5% تأمين من العمولة]],0),0),2) -> 0 | CR30: =ROUND(IF($D30=data.f2026[[#Headers],[مرضي]],$BD30-SUM(data.f2026[[#This Row],[تامينات 2026]:[خصم 5% تأمين من العمولة]],0),0),2) -> 0 | CS30: 0 | CT30: =ROUND(IF($G30=data.f2026[[#Headers],[إعارة]],$BD30-SUM(data.f2026[[#This Row],[تامينات 2026]:[خصم 5% تأمين من العمولة]],0),0),2) -> 0 | CU30: =ROUND(IF($G30=data.f2026[[#Headers],[معاش]],$BD30-SUM(data.f2026[[#This Row],[تامينات 2026]:[خصم 5% تأمين من العمولة]],0),0),2) -> 0 | CV30: 1528.71 | CW30: 8886.15
B31: 202008 | C31: 23327 | D31: بنك مصر 1 | E31: صبحى محمد سيد احمد | F31: مروه | G31: دوام كامل | H31: فنى | I31: الاولى | J31: الأولى | K31: حرفى ميكانيكى سيارات | L31: فرع الاميرية | M31: 26603230103318 | N31: 202008صبحى محمد سيد احمدالاولىالأولىحرفى ميكانيكى سياراتفرع الاميرية | O31: نعم | P31: 2390.469 | Q31: 2796.84873 | R31: 0 | S31: 3775.75 | T31: 419.53 | U31: 0 | V31: 0 | W31: 0 | Y31: 419.5273095 | Z31: 300 | AB31: 0 | AD31: 0 | AE31: 0 | AF31: 719.53 | AG31: 83.3969 | AH31: 93.12494 | AI31: 111.3261 | AJ31: 0 | AK31: 190 | AL31: 47.78612 | AM31: 85.21858 | AN31: 109.4207 | AO31: 156.1068 | AP31: 167.0343 | AQ31: 178.7267 | AS31: 119.5235 | AT31: 600 | AU31: 6 | AV31: 1947.66 | AW31: 10 | AX31: =ROUND((data.f2026[[#This Row],[أساسي 7/2025]]*2)/12,2) -> 466.14 | AY31: 0 | BA31: 0 | BB31: 10135.46 | BC31: 0 | BD31: 10135.46 | BE31: 0 | BF31: 0 | BI31: 1011.59 | BK31: 0 | BL31: 0 | BM31: =IF(data.f2026[[#This Row],[أيام الغياب]]=1,data.f2026[[#This Row],[الحافز]]*20%,IF(data.f2026[[#This Row],[أيام الغياب]]=2,data.f2026[[#This Row],[الحافز]]*100%,IF(data.f2026[[#This Row],[أيام الغياب]]>2,data.f2026[[#This Row],[الحافز]]*100%,""))) ->  | BN31: =IF(data.f2026[[#This Row],[عدد أيام الأجازات]]<=4,data.f2026[[#This Row],[الحافز]]*0,IF(data.f2026[[#This Row],[عدد أيام الأجازات]]=5,data.f2026[[#This Row],[الحافز]]*20%,IF(data.f2026[[#This Row],[عدد أيام الأجازات]]=6,data.f2026[[#This Row],[الحافز]]*40%,IF(data.f2026[[#This Row],[عدد أيام الأجازات]]=7,data.f2026[[#This Row],[الحافز]]*50%,IF(data.f2026[[#This Row],[عدد أيام الأجازات]]>7,data.f2026[[#This Row],[الحافز]]*100%,""))))) -> 0 | BO31: =IF(data.f2026[[#This Row],[أيام أجازات بعد السنوية]]<=2,data.f2026[[#This Row],[الحافز]]*0,IF(data.f2026[[#This Row],[أيام أجازات بعد السنوية]]=3,data.f2026[[#This Row],[الحافز]]*30%,IF(data.f2026[[#This Row],[أيام أجازات بعد السنوية]]=4,data.f2026[[#This Row],[الحافز]]*40%,IF(data.f2026[[#This Row],[أيام أجازات بعد السنوية]]=5,data.f2026[[#This Row],[الحافز]]*50%,IF(data.f2026[[#This Row],[أيام أجازات بعد السنوية]]>5,data.f2026[[#This Row],[الحافز]]*100%,""))))) -> 0 | BP31: 0 | BQ31: 0 | BS31: 3 | BT31: 0 | BV31: 0 | BZ31: 0 | CA31: 0 | CC31: 0 | CG31: 5 | CK31: 0 | CM31: 0 | CN31: 0 | CO31: 466.14 | CP31: 0 | CQ31: =ROUND(IF($D31=data.f2026[[#Headers],[إيقاف]],$BD31-SUM(data.f2026[[#This Row],[تامينات 2026]:[خصم 5% تأمين من العمولة]],0),0),2) -> 0 | CR31: =ROUND(IF($D31=data.f2026[[#Headers],[مرضي]],$BD31-SUM(data.f2026[[#This Row],[تامينات 2026]:[خصم 5% تأمين من العمولة]],0),0),2) -> 0 | CS31: 0 | CT31: =ROUND(IF($G31=data.f2026[[#Headers],[إعارة]],$BD31-SUM(data.f2026[[#This Row],[تامينات 2026]:[خصم 5% تأمين من العمولة]],0),0),2) -> 0 | CU31: =ROUND(IF($G31=data.f2026[[#Headers],[معاش]],$BD31-SUM(data.f2026[[#This Row],[تامينات 2026]:[خصم 5% تأمين من العمولة]],0),0),2) -> 0 | CV31: 1485.73 | CW31: 8649.73
B32: 202010 | C32: 23354 | D32: بنك مصر 1 | E32: اشرف احمد عبد الحميد موافى | F32: مروه | G32: دوام كامل | H32: فنى | I32: الاولى | J32: الأولى | K32: حرفى ميكانيكى سيارات | L32: فرع الاميرية | M32: 26805310101091 | N32: 202010اشرف احمد عبد الحميد موافىالاولىالأولىحرفى ميكانيكى سياراتفرع الاميرية | O32: نعم | P32: 2235.182 | Q32: 2615.16294 | R32: 0 | S32: 3530.47 | T32: 392.27 | U32: 0 | V32: 0 | W32: 0 | Y32: 392.274441 | Z32: 300 | AB32: 0 | AD32: 0 | AE32: 0 | AF32: 692.27 | AG32: 78.01244 | AH32: 87.0984 | AI32: 104.0814 | AJ32: 0 | AK32: 190 | AL32: 44.68188 | AM32: 79.68269 | AN32: 102.3126 | AO32: 145.9659 | AP32: 156.1835 | AQ32: 167.1164 | AS32: 111.7591 | AT32: 600 | AU32: 4 | AV32: 1870.89 | AW32: 10 | AX32: =ROUND((data.f2026[[#This Row],[أساسي 7/2025]]*2)/12,2) -> 435.86 | AY32: 0 | BA32: 0 | BB32: 9546.92 | BC32: 0 | BD32: 9546.92 | BE32: 0 | BF32: 0 | BI32: 951.35 | BK32: 0 | BL32: 0 | BM32: =IF(data.f2026[[#This Row],[أيام الغياب]]=1,data.f2026[[#This Row],[الحافز]]*20%,IF(data.f2026[[#This Row],[أيام الغياب]]=2,data.f2026[[#This Row],[الحافز]]*100%,IF(data.f2026[[#This Row],[أيام الغياب]]>2,data.f2026[[#This Row],[الحافز]]*100%,""))) ->  | BN32: =IF(data.f2026[[#This Row],[عدد أيام الأجازات]]<=4,data.f2026[[#This Row],[الحافز]]*0,IF(data.f2026[[#This Row],[عدد أيام الأجازات]]=5,data.f2026[[#This Row],[الحافز]]*20%,IF(data.f2026[[#This Row],[عدد أيام الأجازات]]=6,data.f2026[[#This Row],[الحافز]]*40%,IF(data.f2026[[#This Row],[عدد أيام الأجازات]]=7,data.f2026[[#This Row],[الحافز]]*50%,IF(data.f2026[[#This Row],[عدد أيام الأجازات]]>7,data.f2026[[#This Row],[الحافز]]*100%,""))))) -> 0 | BO32: =IF(data.f2026[[#This Row],[أيام أجازات بعد السنوية]]<=2,data.f2026[[#This Row],[الحافز]]*0,IF(data.f2026[[#This Row],[أيام أجازات بعد السنوية]]=3,data.f2026[[#This Row],[الحافز]]*30%,IF(data.f2026[[#This Row],[أيام أجازات بعد السنوية]]=4,data.f2026[[#This Row],[الحافز]]*40%,IF(data.f2026[[#This Row],[أيام أجازات بعد السنوية]]=5,data.f2026[[#This Row],[الحافز]]*50%,IF(data.f2026[[#This Row],[أيام أجازات بعد السنوية]]>5,data.f2026[[#This Row],[الحافز]]*100%,""))))) -> 0 | BP32: 0 | BQ32: 0 | BS32: 3 | BT32: 0 | BV32: 0 | BZ32: 0 | CA32: 0 | CC32: 0 | CG32: 5 | CK32: 0 | CM32: 0 | CN32: 0 | CO32: 435.86 | CP32: 0 | CQ32: =ROUND(IF($D32=data.f2026[[#Headers],[إيقاف]],$BD32-SUM(data.f2026[[#This Row],[تامينات 2026]:[خصم 5% تأمين من العمولة]],0),0),2) -> 0 | CR32: =ROUND(IF($D32=data.f2026[[#Headers],[مرضي]],$BD32-SUM(data.f2026[[#This Row],[تامينات 2026]:[خصم 5% تأمين من العمولة]],0),0),2) -> 0 | CS32: 0 | CT32: =ROUND(IF($G32=data.f2026[[#Headers],[إعارة]],$BD32-SUM(data.f2026[[#This Row],[تامينات 2026]:[خصم 5% تأمين من العمولة]],0),0),2) -> 0 | CU32: =ROUND(IF($G32=data.f2026[[#Headers],[معاش]],$BD32-SUM(data.f2026[[#This Row],[تامينات 2026]:[خصم 5% تأمين من العمولة]],0),0),2) -> 0 | CV32: 1395.21 | CW32: 8151.71
B33: 202011 | C33: 23364 | D33: مرضي | E33: محمد احمد عبد الرحيم حسن | F33: مروه | G33: مرضي | H33: فنى | I33: الاولى | J33: الأولى | K33: حرفى كهربائى | L33: فرع الاميرية | M33: 26709060101571 | N33: 202011محمد احمد عبد الرحيم حسنمروهالاولىالأولىحرفى كهربائى فرع الاميرية | O33: نعم | P33: 2171.555 | Q33: 2540.71935 | R33: 0 | S33: 3429.97 | T33: 381.11 | U33: 0 | V33: 0 | W33: 0 | Y33: 381.1079025 | Z33: 300 | AB33: 0 | AD33: 0 | AE33: 0 | AF33: 681.11 | AG33: 75.30946 | AH33: 84.09178 | AI33: 101.2115 | AJ33: 0 | AK33: 190 | AL33: 43.40996 | AM33: 77.41443 | AN33: 99.40013 | AO33: 141.8109 | AP33: 151.7376 | AQ33: 162.3592 | AS33: 108.5777 | AT33: 600 | AU33: 10 | AV33: 1845.32 | AW33: 10 | AX33: =ROUND((data.f2026[[#This Row],[أساسي 7/2025]]*2)/12,2) -> 423.45 | AY33: 0 | BA33: 0 | BB33: 9311.68 | BC33: 0 | BD33: 9311.68 | BE33: 0 | BF33: 0 | BI33: 927.31 | BK33: 0 | BL33: 0 | BM33: =IF(data.f2026[[#This Row],[أيام الغياب]]=1,data.f2026[[#This Row],[الحافز]]*20%,IF(data.f2026[[#This Row],[أيام الغياب]]=2,data.f2026[[#This Row],[الحافز]]*100%,IF(data.f2026[[#This Row],[أيام الغياب]]>2,data.f2026[[#This Row],[الحافز]]*100%,""))) ->  | BN33: =IF(data.f2026[[#This Row],[عدد أيام الأجازات]]<=4,data.f2026[[#This Row],[الحافز]]*0,IF(data.f2026[[#This Row],[عدد أيام الأجازات]]=5,data.f2026[[#This Row],[الحافز]]*20%,IF(data.f2026[[#This Row],[عدد أيام الأجازات]]=6,data.f2026[[#This Row],[الحافز]]*40%,IF(data.f2026[[#This Row],[عدد أيام الأجازات]]=7,data.f2026[[#This Row],[الحافز]]*50%,IF(data.f2026[[#This Row],[عدد أيام الأجازات]]>7,data.f2026[[#This Row],[الحافز]]*100%,""))))) -> 0 | BO33: =IF(data.f2026[[#This Row],[أيام أجازات بعد السنوية]]<=2,data.f2026[[#This Row],[الحافز]]*0,IF(data.f2026[[#This Row],[أيام أجازات بعد السنوية]]=3,data.f2026[[#This Row],[الحافز]]*30%,IF(data.f2026[[#This Row],[أيام أجازات بعد السنوية]]=4,data.f2026[[#This Row],[الحافز]]*40%,IF(data.f2026[[#This Row],[أيام أجازات بعد السنوية]]=5,data.f2026[[#This Row],[الحافز]]*50%,IF(data.f2026[[#This Row],[أيام أجازات بعد السنوية]]>5,data.f2026[[#This Row],[الحافز]]*100%,""))))) -> 0 | BP33: 0 | BQ33: 5.1 | BS33: 3 | BT33: 0 | BV33: 0 | BZ33: 0 | CA33: 0 | CC33: 0 | CG33: 5 | CK33: 0 | CM33: 0 | CN33: 0 | CO33: 423.45 | CP33: 0 | CQ33: =ROUND(IF($D33=data.f2026[[#Headers],[إيقاف]],$BD33-SUM(data.f2026[[#This Row],[تامينات 2026]:[خصم 5% تأمين من العمولة]],0),0),2) -> 0 | CR33: =ROUND(IF($D33=data.f2026[[#Headers],[مرضي]],$BD33-SUM(data.f2026[[#This Row],[تامينات 2026]:[خصم 5% تأمين من العمولة]],0),0),2) -> 7947.82 | CS33: 0 | CT33: =ROUND(IF($G33=data.f2026[[#Headers],[إعارة]],$BD33-SUM(data.f2026[[#This Row],[تامينات 2026]:[خصم 5% تأمين من العمولة]],0),0),2) -> 0 | CU33: =ROUND(IF($G33=data.f2026[[#Headers],[معاش]],$BD33-SUM(data.f2026[[#This Row],[تامينات 2026]:[خصم 5% تأمين من العمولة]],0),0),2) -> 0 | CV33: 9311.68 | CW33: 0
B34: 202012 | C34: 23388 | D34: بنك مصر 1 | E34: جمال محمد عامر مسعود | F34: مروه | G34: دوام كامل | H34: فنى | I34: الاولى | J34: الأولى | K34: حرفى عامل كاوتش | L34: فرع الاميرية | M34: 26610171700613 | N34: 202012جمال محمد عامر مسعودالاولىالأولىحرفى عامل كاوتشفرع الاميرية | O34: نعم | P34: 2219.658 | Q34: 2596.99986 | R34: 0 | S34: 3505.95 | T34: 389.55 | U34: 0 | V34: 0 | W34: 0 | Y34: 389.549979 | Z34: 300 | AB34: 0 | AD34: 0 | AE34: 0 | AF34: 689.55 | AG34: 76.96461 | AH34: 85.94413 | AI34: 103.4571 | AJ34: 0 | AK34: 190 | AL34: 44.37156 | AM34: 79.12929 | AN34: 101.602 | AO34: 144.9522 | AP34: 155.0988 | AQ34: 165.9558 | AS34: 110.9829 | AT34: 600 | AU34: 10 | AV34: 1868.46 | AW34: 10 | AX34: =ROUND((data.f2026[[#This Row],[أساسي 7/2025]]*2)/12,2) -> 432.83 | AY34: 0 | BA34: 0 | BB34: 9493.34 | BC34: 0 | BD34: 9493.34 | BE34: 0 | BF34: 0 | BI34: 946.45 | BK34: 0 | BL34: 0 | BM34: =IF(data.f2026[[#This Row],[أيام الغياب]]=1,data.f2026[[#This Row],[الحافز]]*20%,IF(data.f2026[[#This Row],[أيام الغياب]]=2,data.f2026[[#This Row],[الحافز]]*100%,IF(data.f2026[[#This Row],[أيام الغياب]]>2,data.f2026[[#This Row],[الحافز]]*100%,""))) ->  | BN34: =IF(data.f2026[[#This Row],[عدد أيام الأجازات]]<=4,data.f2026[[#This Row],[الحافز]]*0,IF(data.f2026[[#This Row],[عدد أيام الأجازات]]=5,data.f2026[[#This Row],[الحافز]]*20%,IF(data.f2026[[#This Row],[عدد أيام الأجازات]]=6,data.f2026[[#This Row],[الحافز]]*40%,IF(data.f2026[[#This Row],[عدد أيام الأجازات]]=7,data.f2026[[#This Row],[الحافز]]*50%,IF(data.f2026[[#This Row],[عدد أيام الأجازات]]>7,data.f2026[[#This Row],[الحافز]]*100%,""))))) -> 0 | BO34: =IF(data.f2026[[#This Row],[أيام أجازات بعد السنوية]]<=2,data.f2026[[#This Row],[الحافز]]*0,IF(data.f2026[[#This Row],[أيام أجازات بعد السنوية]]=3,data.f2026[[#This Row],[الحافز]]*30%,IF(data.f2026[[#This Row],[أيام أجازات بعد السنوية]]=4,data.f2026[[#This Row],[الحافز]]*40%,IF(data.f2026[[#This Row],[أيام أجازات بعد السنوية]]=5,data.f2026[[#This Row],[الحافز]]*50%,IF(data.f2026[[#This Row],[أيام أجازات بعد السنوية]]>5,data.f2026[[#This Row],[الحافز]]*100%,""))))) -> 0 | BP34: 0 | BQ34: 0 | BS34: 3 | BT34: 0 | BV34: 0 | BZ34: 0 | CA34: 0 | CC34: 0 | CG34: 5 | CK34: 0 | CM34: 0 | CN34: 0 | CO34: 432.83 | CP34: 0 | CQ34: =ROUND(IF($D34=data.f2026[[#Headers],[إيقاف]],$BD34-SUM(data.f2026[[#This Row],[تامينات 2026]:[خصم 5% تأمين من العمولة]],0),0),2) -> 0 | CR34: =ROUND(IF($D34=data.f2026[[#Headers],[مرضي]],$BD34-SUM(data.f2026[[#This Row],[تامينات 2026]:[خصم 5% تأمين من العمولة]],0),0),2) -> 0 | CS34: 0 | CT34: =ROUND(IF($G34=data.f2026[[#Headers],[إعارة]],$BD34-SUM(data.f2026[[#This Row],[تامينات 2026]:[خصم 5% تأمين من العمولة]],0),0),2) -> 0 | CU34: =ROUND(IF($G34=data.f2026[[#Headers],[معاش]],$BD34-SUM(data.f2026[[#This Row],[تامينات 2026]:[خصم 5% تأمين من العمولة]],0),0),2) -> 0 | CV34: 1387.28 | CW34: 8106.06
B35: 202013 | C35: 23404 | D35: بنك مصر 1 | E35: عادل شوقي عبده محمد | F35: مروه | G35: دوام كامل | H35: فنى | I35: الثالثة | J35: الثالثة | K35: حرفى عامل كاوتش | L35: فرع الاميرية | M35: 27012241400654 | N35: 202013عادل شوقي عبده محمدالثالثةالثالثةحرفى عامل كاوتش فرع المنيا | O35: نعم | P35: 1999.766 | Q35: 2339.72622 | R35: 0 | S35: 3158.63 | T35: 350.96 | U35: 0 | V35: 0 | W35: 0 | Y35: 350.958933 | Z35: 300 | AB35: 0 | AD35: 0 | AE35: 0 | AF35: 650.96 | AG35: 69.93859 | AH35: 78.02959 | AI35: 93.11887 | AJ35: 0 | AK35: 200 | AL35: 39.97585 | AM35: 71.29026 | AN35: 91.5367 | AO35: 130.5923 | AP35: 139.7338 | AQ35: 149.5152 | AS35: 99.98828 | AT35: 600 | AU35: 10 | AV35: 1773.72 | AW35: 10 | AX35: =ROUND((data.f2026[[#This Row],[أساسي 7/2025]]*2)/12,2) -> 389.95 | AY35: 0 | BA35: 0 | BB35: 8673.95 | BC35: 0 | BD35: 8673.95 | BE35: 0 | BF35: 0 | BI35: 865.89 | BK35: 0 | BL35: 0 | BM35: =IF(data.f2026[[#This Row],[أيام الغياب]]=1,data.f2026[[#This Row],[الحافز]]*20%,IF(data.f2026[[#This Row],[أيام الغياب]]=2,data.f2026[[#This Row],[الحافز]]*100%,IF(data.f2026[[#This Row],[أيام الغياب]]>2,data.f2026[[#This Row],[الحافز]]*100%,""))) ->  | BN35: =IF(data.f2026[[#This Row],[عدد أيام الأجازات]]<=4,data.f2026[[#This Row],[الحافز]]*0,IF(data.f2026[[#This Row],[عدد أيام الأجازات]]=5,data.f2026[[#This Row],[الحافز]]*20%,IF(data.f2026[[#This Row],[عدد أيام الأجازات]]=6,data.f2026[[#This Row],[الحافز]]*40%,IF(data.f2026[[#This Row],[عدد أيام الأجازات]]=7,data.f2026[[#This Row],[الحافز]]*50%,IF(data.f2026[[#This Row],[عدد أيام الأجازات]]>7,data.f2026[[#This Row],[الحافز]]*100%,""))))) -> 0 | BO35: =IF(data.f2026[[#This Row],[أيام أجازات بعد السنوية]]<=2,data.f2026[[#This Row],[الحافز]]*0,IF(data.f2026[[#This Row],[أيام أجازات بعد السنوية]]=3,data.f2026[[#This Row],[الحافز]]*30%,IF(data.f2026[[#This Row],[أيام أجازات بعد السنوية]]=4,data.f2026[[#This Row],[الحافز]]*40%,IF(data.f2026[[#This Row],[أيام أجازات بعد السنوية]]=5,data.f2026[[#This Row],[الحافز]]*50%,IF(data.f2026[[#This Row],[أيام أجازات بعد السنوية]]>5,data.f2026[[#This Row],[الحافز]]*100%,""))))) -> 0 | BP35: 0 | BQ35: 0 | BS35: 3 | BT35: 0 | BV35: 0 | BZ35: 0 | CA35: 0 | CC35: 0 | CG35: 5 | CK35: 0 | CM35: 0 | CN35: 0 | CO35: 389.95 | CP35: 0 | CQ35: =ROUND(IF($D35=data.f2026[[#Headers],[إيقاف]],$BD35-SUM(data.f2026[[#This Row],[تامينات 2026]:[خصم 5% تأمين من العمولة]],0),0),2) -> 0 | CR35: =ROUND(IF($D35=data.f2026[[#Headers],[مرضي]],$BD35-SUM(data.f2026[[#This Row],[تامينات 2026]:[خصم 5% تأمين من العمولة]],0),0),2) -> 0 | CS35: 0 | CT35: =ROUND(IF($G35=data.f2026[[#Headers],[إعارة]],$BD35-SUM(data.f2026[[#This Row],[تامينات 2026]:[خصم 5% تأمين من العمولة]],0),0),2) -> 0 | CU35: =ROUND(IF($G35=data.f2026[[#Headers],[معاش]],$BD35-SUM(data.f2026[[#This Row],[تامينات 2026]:[خصم 5% تأمين من العمولة]],0),0),2) -> 0 | CV35: 1263.84 | CW35: 7410.11
B36: 202014 | C36: 23429 | D36: بنك مصر 1 | E36: صالح السيد احمد محمد | F36: مروه | G36: دوام كامل | H36: فنى | I36: الاولى | J36: الأولى | K36: حرفى نقاش | L36: فرع الاميرية | M36: 27108051301355 | N36: 202014صالح السيد احمد محمدالاولىالأولىحرفى نقاشفرع الاميرية | O36: نعم | P36: 2106.559 | Q36: 2464.67403 | R36: 0 | S36: 3327.31 | T36: 369.7 | U36: 0 | V36: 0 | W36: 0 | Y36: 369.7011045 | Z36: 300 | AB36: 0 | AD36: 0 | AE36: 0 | AF36: 669.7 | AG36: 73.56142 | AH36: 82.11095 | AI36: 98.08092 | AJ36: 0 | AK36: 190 | AL36: 42.11068 | AM36: 75.09739 | AN36: 96.42505 | AO36: 137.5664 | AP36: 147.196 | AQ36: 157.4998 | AS36: 105.328 | AT36: 600 | AU36: 10 | AV36: 1814.98 | AW36: 10 | AX36: =ROUND((data.f2026[[#This Row],[أساسي 7/2025]]*2)/12,2) -> 410.78 | AY36: 0 | BA36: 0 | BB36: 9067.14 | BC36: 0 | BD36: 9067.14 | BE36: 0 | BF36: 0 | BI36: 902.29 | BK36: 0 | BL36: 0 | BM36: =IF(data.f2026[[#This Row],[أيام الغياب]]=1,data.f2026[[#This Row],[الحافز]]*20%,IF(data.f2026[[#This Row],[أيام الغياب]]=2,data.f2026[[#This Row],[الحافز]]*100%,IF(data.f2026[[#This Row],[أيام الغياب]]>2,data.f2026[[#This Row],[الحافز]]*100%,""))) ->  | BN36: =IF(data.f2026[[#This Row],[عدد أيام الأجازات]]<=4,data.f2026[[#This Row],[الحافز]]*0,IF(data.f2026[[#This Row],[عدد أيام الأجازات]]=5,data.f2026[[#This Row],[الحافز]]*20%,IF(data.f2026[[#This Row],[عدد أيام الأجازات]]=6,data.f2026[[#This Row],[الحافز]]*40%,IF(data.f2026[[#This Row],[عدد أيام الأجازات]]=7,data.f2026[[#This Row],[الحافز]]*50%,IF(data.f2026[[#This Row],[عدد أيام الأجازات]]>7,data.f2026[[#This Row],[الحافز]]*100%,""))))) -> 0 | BO36: =IF(data.f2026[[#This Row],[أيام أجازات بعد السنوية]]<=2,data.f2026[[#This Row],[الحافز]]*0,IF(data.f2026[[#This Row],[أيام أجازات بعد السنوية]]=3,data.f2026[[#This Row],[الحافز]]*30%,IF(data.f2026[[#This Row],[أيام أجازات بعد السنوية]]=4,data.f2026[[#This Row],[الحافز]]*40%,IF(data.f2026[[#This Row],[أيام أجازات بعد السنوية]]=5,data.f2026[[#This Row],[الحافز]]*50%,IF(data.f2026[[#This Row],[أيام أجازات بعد السنوية]]>5,data.f2026[[#This Row],[الحافز]]*100%,""))))) -> 0 | BP36: 0 | BQ36: 0 | BS36: 3 | BT36: 0 | BV36: 0 | BZ36: 0 | CA36: 0 | CC36: 0 | CG36: 5 | CK36: 0 | CM36: 0 | CN36: 0 | CO36: 410.78 | CP36: 0 | CQ36: =ROUND(IF($D36=data.f2026[[#Headers],[إيقاف]],$BD36-SUM(data.f2026[[#This Row],[تامينات 2026]:[خصم 5% تأمين من العمولة]],0),0),2) -> 0 | CR36: =ROUND(IF($D36=data.f2026[[#Headers],[مرضي]],$BD36-SUM(data.f2026[[#This Row],[تامينات 2026]:[خصم 5% تأمين من العمولة]],0),0),2) -> 0 | CS36: 0 | CT36: =ROUND(IF($G36=data.f2026[[#Headers],[إعارة]],$BD36-SUM(data.f2026[[#This Row],[تامينات 2026]:[خصم 5% تأمين من العمولة]],0),0),2) -> 0 | CU36: =ROUND(IF($G36=data.f2026[[#Headers],[معاش]],$BD36-SUM(data.f2026[[#This Row],[تامينات 2026]:[خصم 5% تأمين من العمولة]],0),0),2) -> 0 | CV36: 1321.07 | CW36: 7746.07
B37: 202015 | C37: 23756 | D37: بنك مصر 1 | E37: محمد عبد العزيز حسن غنيم | F37: مروه | G37: دوام كامل | H37: فنى | I37: الرابعة | J37: الرابعة | K37: حرفى حداد | L37: الاميرية | M37: 27612090101916 | N37: 202015محمد عبد العزيز حسن غنيمالرابعةالرابعةحرفى حدادالاميرية | O37: نعم | P37: 1011.144 | Q37: 1183.03848 | R37: 0 | S37: 1597.1 | T37: 177.46 | U37: 0 | V37: 0 | W37: 0 | Y37: 177.455772 | Z37: 300 | AB37: 0 | AD37: 0 | AE37: 0 | AF37: 477.46 | AG37: 35.32604 | AH37: 39.35678 | AI37: 65 | AJ37: 0 | AK37: 200 | AL37: 27.83623 | AM37: 36.04659 | AN37: 46.28382 | AO37: 66.03159 | AP37: 70.6538 | AQ37: 83.85 | AS37: 50.55721 | AT37: 600 | AU37: 8 | AV37: 1328.94 | AW37: 10 | AX37: =ROUND((data.f2026[[#This Row],[أساسي 7/2025]]*2)/12,2) -> 197.17 | AY37: 0 | BA37: 0 | BB37: 4971.17 | BC37: 2028.83 | BD37: 7000 | BE37: 0 | BF37: 0 | BI37: 637.51 | BK37: 0 | BL37: 0 | BM37: =IF(data.f2026[[#This Row],[أيام الغياب]]=1,data.f2026[[#This Row],[الحافز]]*20%,IF(data.f2026[[#This Row],[أيام الغياب]]=2,data.f2026[[#This Row],[الحافز]]*100%,IF(data.f2026[[#This Row],[أيام الغياب]]>2,data.f2026[[#This Row],[الحافز]]*100%,""))) ->  | BN37: =IF(data.f2026[[#This Row],[عدد أيام الأجازات]]<=4,data.f2026[[#This Row],[الحافز]]*0,IF(data.f2026[[#This Row],[عدد أيام الأجازات]]=5,data.f2026[[#This Row],[الحافز]]*20%,IF(data.f2026[[#This Row],[عدد أيام الأجازات]]=6,data.f2026[[#This Row],[الحافز]]*40%,IF(data.f2026[[#This Row],[عدد أيام الأجازات]]=7,data.f2026[[#This Row],[الحافز]]*50%,IF(data.f2026[[#This Row],[عدد أيام الأجازات]]>7,data.f2026[[#This Row],[الحافز]]*100%,""))))) -> 0 | BO37: =IF(data.f2026[[#This Row],[أيام أجازات بعد السنوية]]<=2,data.f2026[[#This Row],[الحافز]]*0,IF(data.f2026[[#This Row],[أيام أجازات بعد السنوية]]=3,data.f2026[[#This Row],[الحافز]]*30%,IF(data.f2026[[#This Row],[أيام أجازات بعد السنوية]]=4,data.f2026[[#This Row],[الحافز]]*40%,IF(data.f2026[[#This Row],[أيام أجازات بعد السنوية]]=5,data.f2026[[#This Row],[الحافز]]*50%,IF(data.f2026[[#This Row],[أيام أجازات بعد السنوية]]>5,data.f2026[[#This Row],[الحافز]]*100%,""))))) -> 0 | BP37: 0 | BQ37: 0 | BS37: 3 | BT37: 0 | BV37: 0 | BZ37: 0 | CA37: 0 | CC37: 0 | CG37: 5 | CK37: 0 | CM37: 0 | CN37: 0 | CO37: 197.17 | CP37: 0 | CQ37: =ROUND(IF($D37=data.f2026[[#Headers],[إيقاف]],$BD37-SUM(data.f2026[[#This Row],[تامينات 2026]:[خصم 5% تأمين من العمولة]],0),0),2) -> 0 | CR37: =ROUND(IF($D37=data.f2026[[#Headers],[مرضي]],$BD37-SUM(data.f2026[[#This Row],[تامينات 2026]:[خصم 5% تأمين من العمولة]],0),0),2) -> 0 | CS37: 0 | CT37: =ROUND(IF($G37=data.f2026[[#Headers],[إعارة]],$BD37-SUM(data.f2026[[#This Row],[تامينات 2026]:[خصم 5% تأمين من العمولة]],0),0),2) -> 0 | CU37: =ROUND(IF($G37=data.f2026[[#Headers],[معاش]],$BD37-SUM(data.f2026[[#This Row],[تامينات 2026]:[خصم 5% تأمين من العمولة]],0),0),2) -> 0 | CV37: 842.68 | CW37: 6157.32
B38: 202016 | C38: 23759 | D38: بنك مصر 1 | E38: عبد الواحد على عبد الواحد طلبه | F38: مروه | G38: دوام كامل | H38: فنى | I38: الثالثة | J38: الثالثة | K38: فنى ميكانيكى | L38: فرع الاسكندرية | M38: 27005240101835 | N38: 202016عبد الواحد على عبد الواحد طلبهالثالثةالثالثةفنى ميكانيكى فرع الاسكندرية | O38: نعم | P38: 1019.221 | Q38: 1192.48857 | R38: 0 | S38: 1609.86 | T38: 178.87 | U38: 0 | V38: 0 | W38: 0 | Y38: 178.8732855 | Z38: 300 | AB38: 0 | AD38: 0 | AE38: 0 | AF38: 478.87 | AG38: 33.73 | AH38: 40.28387 | AI38: 65 | AJ38: 0 | AK38: 200 | AL38: 27.45951 | AM38: 36.33451 | AN38: 46.65352 | AO38: 66.55902 | AP38: 71.21815 | AQ38: 83.32 | AS38: 50.96104 | AT38: 600 | AU38: 10 | AV38: 1331.52 | AW38: 10 | AX38: =ROUND((data.f2026[[#This Row],[أساسي 7/2025]]*2)/12,2) -> 198.75 | AY38: 0 | BA38: 30 | BB38: 5000.36 | BC38: 1999.64 | BD38: 7030 | BE38: 0 | BF38: 0 | BI38: 638.46 | BK38: 0 | BL38: 0 | BM38: =IF(data.f2026[[#This Row],[أيام الغياب]]=1,data.f2026[[#This Row],[الحافز]]*20%,IF(data.f2026[[#This Row],[أيام الغياب]]=2,data.f2026[[#This Row],[الحافز]]*100%,IF(data.f2026[[#This Row],[أيام الغياب]]>2,data.f2026[[#This Row],[الحافز]]*100%,""))) ->  | BN38: =IF(data.f2026[[#This Row],[عدد أيام الأجازات]]<=4,data.f2026[[#This Row],[الحافز]]*0,IF(data.f2026[[#This Row],[عدد أيام الأجازات]]=5,data.f2026[[#This Row],[الحافز]]*20%,IF(data.f2026[[#This Row],[عدد أيام الأجازات]]=6,data.f2026[[#This Row],[الحافز]]*40%,IF(data.f2026[[#This Row],[عدد أيام الأجازات]]=7,data.f2026[[#This Row],[الحافز]]*50%,IF(data.f2026[[#This Row],[عدد أيام الأجازات]]>7,data.f2026[[#This Row],[الحافز]]*100%,""))))) -> 0 | BO38: =IF(data.f2026[[#This Row],[أيام أجازات بعد السنوية]]<=2,data.f2026[[#This Row],[الحافز]]*0,IF(data.f2026[[#This Row],[أيام أجازات بعد السنوية]]=3,data.f2026[[#This Row],[الحافز]]*30%,IF(data.f2026[[#This Row],[أيام أجازات بعد السنوية]]=4,data.f2026[[#This Row],[الحافز]]*40%,IF(data.f2026[[#This Row],[أيام أجازات بعد السنوية]]=5,data.f2026[[#This Row],[الحافز]]*50%,IF(data.f2026[[#This Row],[أيام أجازات بعد السنوية]]>5,data.f2026[[#This Row],[الحافز]]*100%,""))))) -> 0 | BP38: 0 | BQ38: 13.41 | BS38: 3 | BT38: 0 | BV38: 0 | BZ38: 0 | CA38: 0 | CC38: 0 | CG38: 5 | CK38: 0 | CM38: 0 | CN38: 0 | CO38: 198.75 | CP38: 0 | CQ38: =ROUND(IF($D38=data.f2026[[#Headers],[إيقاف]],$BD38-SUM(data.f2026[[#This Row],[تامينات 2026]:[خصم 5% تأمين من العمولة]],0),0),2) -> 0 | CR38: =ROUND(IF($D38=data.f2026[[#Headers],[مرضي]],$BD38-SUM(data.f2026[[#This Row],[تامينات 2026]:[خصم 5% تأمين من العمولة]],0),0),2) -> 0 | CS38: 0 | CT38: =ROUND(IF($G38=data.f2026[[#Headers],[إعارة]],$BD38-SUM(data.f2026[[#This Row],[تامينات 2026]:[خصم 5% تأمين من العمولة]],0),0),2) -> 0 | CU38: =ROUND(IF($G38=data.f2026[[#Headers],[معاش]],$BD38-SUM(data.f2026[[#This Row],[تامينات 2026]:[خصم 5% تأمين من العمولة]],0),0),2) -> 0 | CV38: 858.62 | CW38: 6171.38
B39: 202017 | C39: 29330 | D39: البنك الاهلى | E39: اسماعيل احمد محمد مصطفي | F39: مروه | G39: دوام كامل | H39: فنى | I39: الثالثة | J39: الثالثة | K39: ميكانيكي | L39: الادارة العامة | M39: 27510300103456 | N39: 202017اسماعيل احمد محمد مصطفيالثالثةالثالثةميكانيكيالادارة العامة | O39: نعم | P39: 740.21 | Q39: 866.0457 | R39: 0 | S39: 1169.16 | T39: 129.91 | U39: 0 | V39: 0 | W39: 0 | Y39: 129.906855 | Z39: 300 | AB39: 0 | AD39: 0 | AE39: 0 | AF39: 429.91 | AG39: 0 | AH39: 0 | AI39: 0 | AJ39: 1289.66 | AK39: 0 | AL39: 0 | AM39: 0 | AN39: 0 | AO39: 0 | AP39: 0 | AQ39: 0 | AS39: 75.979 | AT39: 0 | AU39: 10 | AV39: 1375.64 | AW39: 10 | AX39: =ROUND((data.f2026[[#This Row],[أساسي 7/2025]]*2)/12,2) -> 144.34 | AY39: 0 | BA39: 180 | BB39: 4125.01 | BC39: 2874.99 | BD39: 7180 | BE39: 0 | BF39: 0 | BI39: 627.44 | BK39: 0 | BL39: 0 | BM39: =IF(data.f2026[[#This Row],[أيام الغياب]]=1,data.f2026[[#This Row],[الحافز]]*20%,IF(data.f2026[[#This Row],[أيام الغياب]]=2,data.f2026[[#This Row],[الحافز]]*100%,IF(data.f2026[[#This Row],[أيام الغياب]]>2,data.f2026[[#This Row],[الحافز]]*100%,""))) ->  | BN39: =IF(data.f2026[[#This Row],[عدد أيام الأجازات]]<=4,data.f2026[[#This Row],[الحافز]]*0,IF(data.f2026[[#This Row],[عدد أيام الأجازات]]=5,data.f2026[[#This Row],[الحافز]]*20%,IF(data.f2026[[#This Row],[عدد أيام الأجازات]]=6,data.f2026[[#This Row],[الحافز]]*40%,IF(data.f2026[[#This Row],[عدد أيام الأجازات]]=7,data.f2026[[#This Row],[الحافز]]*50%,IF(data.f2026[[#This Row],[عدد أيام الأجازات]]>7,data.f2026[[#This Row],[الحافز]]*100%,""))))) -> 0 | BO39: =IF(data.f2026[[#This Row],[أيام أجازات بعد السنوية]]<=2,data.f2026[[#This Row],[الحافز]]*0,IF(data.f2026[[#This Row],[أيام أجازات بعد السنوية]]=3,data.f2026[[#This Row],[الحافز]]*30%,IF(data.f2026[[#This Row],[أيام أجازات بعد السنوية]]=4,data.f2026[[#This Row],[الحافز]]*40%,IF(data.f2026[[#This Row],[أيام أجازات بعد السنوية]]=5,data.f2026[[#This Row],[الحافز]]*50%,IF(data.f2026[[#This Row],[أيام أجازات بعد السنوية]]>5,data.f2026[[#This Row],[الحافز]]*100%,""))))) -> 0 | BP39: 0 | BQ39: 0 | BS39: 3 | BT39: 0 | BV39: 0 | BZ39: 0 | CA39: 0 | CC39: 0 | CG39: 3 | CK39: 0 | CM39: 0 | CN39: 0 | CO39: 144.34 | CP39: 0 | CQ39: =ROUND(IF($D39=data.f2026[[#Headers],[إيقاف]],$BD39-SUM(data.f2026[[#This Row],[تامينات 2026]:[خصم 5% تأمين من العمولة]],0),0),2) -> 0 | CR39: =ROUND(IF($D39=data.f2026[[#Headers],[مرضي]],$BD39-SUM(data.f2026[[#This Row],[تامينات 2026]:[خصم 5% تأمين من العمولة]],0),0),2) -> 0 | CS39: 0 | CT39: =ROUND(IF($G39=data.f2026[[#Headers],[إعارة]],$BD39-SUM(data.f2026[[#This Row],[تامينات 2026]:[خصم 5% تأمين من العمولة]],0),0),2) -> 0 | CU39: =ROUND(IF($G39=data.f2026[[#Headers],[معاش]],$BD39-SUM(data.f2026[[#This Row],[تامينات 2026]:[خصم 5% تأمين من العمولة]],0),0),2) -> 0 | CV39: 777.78 | CW39: 6402.22
B40: 202018 | C40: 4367 | D40: بنك مصر 1 | E40: عبدالعزيز محمد عبدالعزيز فرج | F40: مروه | G40: دوام كامل | H40: فنى | I40: الثالثة | J40: الثالثة | K40: حرفى عامل دوكو | L40: فرع بنى سويف | M40: 27012251300976 | N40: 202018عبدالعزيز محمد عبدالعزيز فرجالثالثةالثالثةحرفى عامل دوكوفرع بنى سويف | O40: نعم | P40: 1395.3 | Q40: 1632.501 | R40: 0 | S40: 2203.88 | T40: 244.88 | U40: 0 | V40: 0 | W40: 0 | Y40: 244.87515 | Z40: 300 | AB40: 0 | AD40: 0 | AE40: 0 | AF40: 544.88 | AG40: 0 | AH40: 0 | AI40: 0 | AJ40: 362.5 | AK40: 0 | AL40: 27.89 | AM40: 49.74 | AN40: 63.87 | AO40: 91.12 | AP40: 97.5 | AQ40: 104.32 | AS40: 69.765 | AT40: 600 | AU40: 10 | AV40: 1476.71 | AW40: 10 | AX40: =ROUND((data.f2026[[#This Row],[أساسي 7/2025]]*2)/12,2) -> 272.08 | AY40: 0 | BA40: 300 | BB40: 6384.93 | BC40: 615.07 | BD40: 7300 | BE40: 0 | BF40: 0 | BI40: 671.42 | BK40: 0 | BL40: 0 | BM40: =IF(data.f2026[[#This Row],[أيام الغياب]]=1,data.f2026[[#This Row],[الحافز]]*20%,IF(data.f2026[[#This Row],[أيام الغياب]]=2,data.f2026[[#This Row],[الحافز]]*100%,IF(data.f2026[[#This Row],[أيام الغياب]]>2,data.f2026[[#This Row],[الحافز]]*100%,""))) ->  | BN40: =IF(data.f2026[[#This Row],[عدد أيام الأجازات]]<=4,data.f2026[[#This Row],[الحافز]]*0,IF(data.f2026[[#This Row],[عدد أيام الأجازات]]=5,data.f2026[[#This Row],[الحافز]]*20%,IF(data.f2026[[#This Row],[عدد أيام الأجازات]]=6,data.f2026[[#This Row],[الحافز]]*40%,IF(data.f2026[[#This Row],[عدد أيام الأجازات]]=7,data.f2026[[#This Row],[الحافز]]*50%,IF(data.f2026[[#This Row],[عدد أيام الأجازات]]>7,data.f2026[[#This Row],[الحافز]]*100%,""))))) -> 0 | BO40: =IF(data.f2026[[#This Row],[أيام أجازات بعد السنوية]]<=2,data.f2026[[#This Row],[الحافز]]*0,IF(data.f2026[[#This Row],[أيام أجازات بعد السنوية]]=3,data.f2026[[#This Row],[الحافز]]*30%,IF(data.f2026[[#This Row],[أيام أجازات بعد السنوية]]=4,data.f2026[[#This Row],[الحافز]]*40%,IF(data.f2026[[#This Row],[أيام أجازات بعد السنوية]]=5,data.f2026[[#This Row],[الحافز]]*50%,IF(data.f2026[[#This Row],[أيام أجازات بعد السنوية]]>5,data.f2026[[#This Row],[الحافز]]*100%,""))))) -> 0 | BP40: 0 | BQ40: 0 | BS40: 3 | BT40: 0 | BV40: 0 | BZ40: 0 | CA40: 0 | CC40: 0 | CG40: 3 | CK40: 0 | CM40: 0 | CN40: 0 | CO40: 272.08 | CP40: 0 | CQ40: =ROUND(IF($D40=data.f2026[[#Headers],[إيقاف]],$BD40-SUM(data.f2026[[#This Row],[تامينات 2026]:[خصم 5% تأمين من العمولة]],0),0),2) -> 0 | CR40: =ROUND(IF($D40=data.f2026[[#Headers],[مرضي]],$BD40-SUM(data.f2026[[#This Row],[تامينات 2026]:[خصم 5% تأمين من العمولة]],0),0),2) -> 0 | CS40: 0 | CT40: =ROUND(IF($G40=data.f2026[[#Headers],[إعارة]],$BD40-SUM(data.f2026[[#This Row],[تامينات 2026]:[خصم 5% تأمين من العمولة]],0),0),2) -> 0 | CU40: =ROUND(IF($G40=data.f2026[[#Headers],[معاش]],$BD40-SUM(data.f2026[[#This Row],[تامينات 2026]:[خصم 5% تأمين من العمولة]],0),0),2) -> 0 | CV40: 949.5 | CW40: 6350.5
B41: 202019 | C41: 29119 | D41: البنك الاهلى | E41: محمد فتحي عيد | F41: محمد عبد الفتاح | G41: دوام كامل | H41: فنى | I41: الثالثة | J41: الثالثة | K41: كهربائي | L41: فرع الاسكندرية | M41: 28505211400935 | N41: 202019محمد فتحي عيد الثالثةالثالثةكهربائيفرع الاسكندرية | O41: نعم | P41: 974.25 | Q41: 1139.8725 | R41: 0 | S41: 1538.83 | T41: 170.98 | U41: 0 | V41: 0 | W41: 0 | Y41: 170.980875 | Z41: 300 | AB41: 0 | AD41: 0 | AE41: 0 | AF41: 470.98 | AG41: 0 | AH41: 0 | AI41: 0 | AJ41: 336.73 | AK41: 0 | AL41: 29.56 | AM41: 34.73 | AN41: 44.6 | AO41: 63.62 | AP41: 68.08 | AQ41: 86.26 | AS41: 52.575 | AT41: 600 | AU41: 4 | AV41: 1320.16 | AW41: 10 | AX41: =ROUND((data.f2026[[#This Row],[أساسي 7/2025]]*2)/12,2) -> 189.98 | AY41: 0 | BA41: 90 | BB41: 4840.8 | BC41: 2159.2 | BD41: 7090 | BE41: 0 | BF41: 0 | BI41: 626.95 | BK41: 0 | BL41: 0 | BM41: =IF(data.f2026[[#This Row],[أيام الغياب]]=1,data.f2026[[#This Row],[الحافز]]*20%,IF(data.f2026[[#This Row],[أيام الغياب]]=2,data.f2026[[#This Row],[الحافز]]*100%,IF(data.f2026[[#This Row],[أيام الغياب]]>2,data.f2026[[#This Row],[الحافز]]*100%,""))) ->  | BN41: =IF(data.f2026[[#This Row],[عدد أيام الأجازات]]<=4,data.f2026[[#This Row],[الحافز]]*0,IF(data.f2026[[#This Row],[عدد أيام الأجازات]]=5,data.f2026[[#This Row],[الحافز]]*20%,IF(data.f2026[[#This Row],[عدد أيام الأجازات]]=6,data.f2026[[#This Row],[الحافز]]*40%,IF(data.f2026[[#This Row],[عدد أيام الأجازات]]=7,data.f2026[[#This Row],[الحافز]]*50%,IF(data.f2026[[#This Row],[عدد أيام الأجازات]]>7,data.f2026[[#This Row],[الحافز]]*100%,""))))) -> 0 | BO41: =IF(data.f2026[[#This Row],[أيام أجازات بعد السنوية]]<=2,data.f2026[[#This Row],[الحافز]]*0,IF(data.f2026[[#This Row],[أيام أجازات بعد السنوية]]=3,data.f2026[[#This Row],[الحافز]]*30%,IF(data.f2026[[#This Row],[أيام أجازات بعد السنوية]]=4,data.f2026[[#This Row],[الحافز]]*40%,IF(data.f2026[[#This Row],[أيام أجازات بعد السنوية]]=5,data.f2026[[#This Row],[الحافز]]*50%,IF(data.f2026[[#This Row],[أيام أجازات بعد السنوية]]>5,data.f2026[[#This Row],[الحافز]]*100%,""))))) -> 0 | BP41: 0 | BQ41: 0 | BS41: 3 | BT41: 0 | BV41: 0 | BZ41: 0 | CA41: 0 | CC41: 0 | CG41: 3 | CK41: 0 | CM41: 0 | CN41: 0 | CO41: 189.98 | CP41: 0 | CQ41: =ROUND(IF($D41=data.f2026[[#Headers],[إيقاف]],$BD41-SUM(data.f2026[[#This Row],[تامينات 2026]:[خصم 5% تأمين من العمولة]],0),0),2) -> 0 | CR41: =ROUND(IF($D41=data.f2026[[#Headers],[مرضي]],$BD41-SUM(data.f2026[[#This Row],[تامينات 2026]:[خصم 5% تأمين من العمولة]],0),0),2) -> 0 | CS41: 0 | CT41: =ROUND(IF($G41=data.f2026[[#Headers],[إعارة]],$BD41-SUM(data.f2026[[#This Row],[تامينات 2026]:[خصم 5% تأمين من العمولة]],0),0),2) -> 0 | CU41: =ROUND(IF($G41=data.f2026[[#Headers],[معاش]],$BD41-SUM(data.f2026[[#This Row],[تامينات 2026]:[خصم 5% تأمين من العمولة]],0),0),2) -> 0 | CV41: 822.93 | CW41: 6267.07
B42: 202020 | C42: 30015 | D42: البنك الاهلى | E42: احمد محمد عبدالجواد حسن | F42: مروه | G42: دوام كامل | H42: فنى | I42: الرابعة | L42: الاميرية | M42: 26604200101732 | N42: 202020احمد محمد عبدالجواد حسن الرابعة | P42: 974.25 | Q42: 1139.87 | R42: 0 | S42: 1538.82 | T42: 170.98 | U42: 0 | V42: 0 | W42: 0 | Y42: 170.9805 | Z42: 300 | AB42: 0 | AD42: 0 | AE42: 0 | AF42: 470.98 | AG42: 0 | AH42: 0 | AI42: 0 | AJ42: 332.32 | AK42: 0 | AL42: 29.57 | AM42: 34.72 | AN42: 44.58 | AO42: 63.6 | AP42: 68.05 | AQ42: 86.26 | AS42: 52.575 | AT42: 600 | AU42: 10 | AV42: 1321.68 | AW42: 10 | AX42: =ROUND((data.f2026[[#This Row],[أساسي 7/2025]]*2)/12,2) -> 189.98 | AY42: 0 | BA42: 0 | BB42: 4842.31 | BC42: 2157.69 | BD42: 7000 | BE42: 0 | BF42: 0 | BI42: 624.42 | BK42: 0 | BL42: 0 | BM42: =IF(data.f2026[[#This Row],[أيام الغياب]]=1,data.f2026[[#This Row],[الحافز]]*20%,IF(data.f2026[[#This Row],[أيام الغياب]]=2,data.f2026[[#This Row],[الحافز]]*100%,IF(data.f2026[[#This Row],[أيام الغياب]]>2,data.f2026[[#This Row],[الحافز]]*100%,""))) ->  | BN42: =IF(data.f2026[[#This Row],[عدد أيام الأجازات]]<=4,data.f2026[[#This Row],[الحافز]]*0,IF(data.f2026[[#This Row],[عدد أيام الأجازات]]=5,data.f2026[[#This Row],[الحافز]]*20%,IF(data.f2026[[#This Row],[عدد أيام الأجازات]]=6,data.f2026[[#This Row],[الحافز]]*40%,IF(data.f2026[[#This Row],[عدد أيام الأجازات]]=7,data.f2026[[#This Row],[الحافز]]*50%,IF(data.f2026[[#This Row],[عدد أيام الأجازات]]>7,data.f2026[[#This Row],[الحافز]]*100%,""))))) -> 0 | BO42: =IF(data.f2026[[#This Row],[أيام أجازات بعد السنوية]]<=2,data.f2026[[#This Row],[الحافز]]*0,IF(data.f2026[[#This Row],[أيام أجازات بعد السنوية]]=3,data.f2026[[#This Row],[الحافز]]*30%,IF(data.f2026[[#This Row],[أيام أجازات بعد السنوية]]=4,data.f2026[[#This Row],[الحافز]]*40%,IF(data.f2026[[#This Row],[أيام أجازات بعد السنوية]]=5,data.f2026[[#This Row],[الحافز]]*50%,IF(data.f2026[[#This Row],[أيام أجازات بعد السنوية]]>5,data.f2026[[#This Row],[الحافز]]*100%,""))))) -> 0 | BP42: 0 | BQ42: 0 | BS42: 3 | BT42: 0 | BV42: 0 | BZ42: 0 | CA42: 0 | CC42: 0 | CG42: 3 | CK42: 0 | CM42: 0 | CN42: 0 | CO42: 189.98 | CP42: 0 | CQ42: =ROUND(IF($D42=data.f2026[[#Headers],[إيقاف]],$BD42-SUM(data.f2026[[#This Row],[تامينات 2026]:[خصم 5% تأمين من العمولة]],0),0),2) -> 0 | CR42: =ROUND(IF($D42=data.f2026[[#Headers],[مرضي]],$BD42-SUM(data.f2026[[#This Row],[تامينات 2026]:[خصم 5% تأمين من العمولة]],0),0),2) -> 0 | CS42: 0 | CT42: =ROUND(IF($G42=data.f2026[[#Headers],[إعارة]],$BD42-SUM(data.f2026[[#This Row],[تامينات 2026]:[خصم 5% تأمين من العمولة]],0),0),2) -> 0 | CU42: =ROUND(IF($G42=data.f2026[[#Headers],[معاش]],$BD42-SUM(data.f2026[[#This Row],[تامينات 2026]:[خصم 5% تأمين من العمولة]],0),0),2) -> 0 | CV42: 820.4 | CW42: 6179.6
B43: 202021 | C43: 29050 | D43: البنك الاهلى | E43: محمد محمد عبيد عبدالله | F43: مروه | G43: دوام كامل | H43: فنى | I43: الرابعة | J43: الرابعة | K43: حرفى عامل كاوتش | L43: الاميرية | M43: 26803160104094 | N43: 202021محمد محمد عبيد عبدالله الرابعةالرابعةحرفى عامل كاوتشالاميرية | O43: نعم | P43: 1209.77 | Q43: 1415.4309 | R43: 0 | S43: 1910.83 | T43: 212.31 | U43: 0 | V43: 0 | W43: 0 | Y43: 212.314635 | Z43: 300 | AB43: 0 | AD43: 0 | AE43: 0 | AF43: 512.31 | AG43: 0 | AH43: 0 | AI43: 0 | AJ43: 355.84 | AK43: 0 | AL43: 24.18 | AM43: 43.13 | AN43: 55.38 | AO43: 79 | AP43: 84.53 | AQ43: 90.45 | AS43: 60.4885 | AT43: 600 | AU43: 10 | AV43: 1403 | AW43: 10 | AX43: =ROUND((data.f2026[[#This Row],[أساسي 7/2025]]*2)/12,2) -> 235.91 | AY43: 0 | BA43: 270 | BB43: 5699.79 | BC43: 1300.21 | BD43: 7270 | BE43: 0 | BF43: 0 | BI43: 647.02 | BK43: 0 | BL43: 0 | BM43: =IF(data.f2026[[#This Row],[أيام الغياب]]=1,data.f2026[[#This Row],[الحافز]]*20%,IF(data.f2026[[#This Row],[أيام الغياب]]=2,data.f2026[[#This Row],[الحافز]]*100%,IF(data.f2026[[#This Row],[أيام الغياب]]>2,data.f2026[[#This Row],[الحافز]]*100%,""))) ->  | BN43: =IF(data.f2026[[#This Row],[عدد أيام الأجازات]]<=4,data.f2026[[#This Row],[الحافز]]*0,IF(data.f2026[[#This Row],[عدد أيام الأجازات]]=5,data.f2026[[#This Row],[الحافز]]*20%,IF(data.f2026[[#This Row],[عدد أيام الأجازات]]=6,data.f2026[[#This Row],[الحافز]]*40%,IF(data.f2026[[#This Row],[عدد أيام الأجازات]]=7,data.f2026[[#This Row],[الحافز]]*50%,IF(data.f2026[[#This Row],[عدد أيام الأجازات]]>7,data.f2026[[#This Row],[الحافز]]*100%,""))))) -> 0 | BO43: =IF(data.f2026[[#This Row],[أيام أجازات بعد السنوية]]<=2,data.f2026[[#This Row],[الحافز]]*0,IF(data.f2026[[#This Row],[أيام أجازات بعد السنوية]]=3,data.f2026[[#This Row],[الحافز]]*30%,IF(data.f2026[[#This Row],[أيام أجازات بعد السنوية]]=4,data.f2026[[#This Row],[الحافز]]*40%,IF(data.f2026[[#This Row],[أيام أجازات بعد السنوية]]=5,data.f2026[[#This Row],[الحافز]]*50%,IF(data.f2026[[#This Row],[أيام أجازات بعد السنوية]]>5,data.f2026[[#This Row],[الحافز]]*100%,""))))) -> 0 | BP43: 0 | BQ43: 0 | BS43: 3 | BT43: 0 | BV43: 0 | BZ43: 0 | CA43: 0 | CC43: 0 | CG43: 3 | CK43: 0 | CM43: 0 | CN43: 0 | CO43: 235.91 | CP43: 0 | CQ43: =ROUND(IF($D43=data.f2026[[#Headers],[إيقاف]],$BD43-SUM(data.f2026[[#This Row],[تامينات 2026]:[خصم 5% تأمين من العمولة]],0),0),2) -> 0 | CR43: =ROUND(IF($D43=data.f2026[[#Headers],[مرضي]],$BD43-SUM(data.f2026[[#This Row],[تامينات 2026]:[خصم 5% تأمين من العمولة]],0),0),2) -> 0 | CS43: 0 | CT43: =ROUND(IF($G43=data.f2026[[#Headers],[إعارة]],$BD43-SUM(data.f2026[[#This Row],[تامينات 2026]:[خصم 5% تأمين من العمولة]],0),0),2) -> 0 | CU43: =ROUND(IF($G43=data.f2026[[#Headers],[معاش]],$BD43-SUM(data.f2026[[#This Row],[تامينات 2026]:[خصم 5% تأمين من العمولة]],0),0),2) -> 0 | CV43: 888.93 | CW43: 6381.07
B44: 202023 | C44: 44005 | D44: بنك مصر 1 | E44: احمد فتحى لاشين محمد | F44: مروه | G44: دوام كامل | H44: فنى | I44: عقد مؤقت | L44: الاميرية | M44: 29211051701917 | N44: 202023احمد فتحى لاشين محمدعقد مؤقت | P44: 518.44 | Q44: 518.44 | R44: 0 | S44: 699.89 | T44: 77.77 | U44: 0 | V44: 0 | W44: 0 | Y44: 77.766 | Z44: 300 | AB44: 0 | AD44: 0 | AE44: 0 | AF44: 377.77 | AG44: 0 | AH44: 0 | AI44: 0 | AJ44: 333.58 | AK44: 0 | AL44: 0 | AM44: 0 | AN44: 0 | AO44: 0 | AP44: 0 | AQ44: 0 | AS44: 98.156 | AT44: 600 | AU44: 4 | AV44: 1035.74 | AW44: 10 | AX44: =ROUND((data.f2026[[#This Row],[أساسي 7/2025]]*2)/12,2) -> 86.41 | AY44: 0 | BA44: 0 | BB44: 2806.02 | BC44: 4193.98 | BD44: 7000 | BE44: 0 | BF44: 0 | BI44: 605.65 | BK44: 0 | BL44: 0 | BM44: =IF(data.f2026[[#This Row],[أيام الغياب]]=1,data.f2026[[#This Row],[الحافز]]*20%,IF(data.f2026[[#This Row],[أيام الغياب]]=2,data.f2026[[#This Row],[الحافز]]*100%,IF(data.f2026[[#This Row],[أيام الغياب]]>2,data.f2026[[#This Row],[الحافز]]*100%,""))) ->  | BN44: =IF(data.f2026[[#This Row],[عدد أيام الأجازات]]<=4,data.f2026[[#This Row],[الحافز]]*0,IF(data.f2026[[#This Row],[عدد أيام الأجازات]]=5,data.f2026[[#This Row],[الحافز]]*20%,IF(data.f2026[[#This Row],[عدد أيام الأجازات]]=6,data.f2026[[#This Row],[الحافز]]*40%,IF(data.f2026[[#This Row],[عدد أيام الأجازات]]=7,data.f2026[[#This Row],[الحافز]]*50%,IF(data.f2026[[#This Row],[عدد أيام الأجازات]]>7,data.f2026[[#This Row],[الحافز]]*100%,""))))) -> 0 | BO44: =IF(data.f2026[[#This Row],[أيام أجازات بعد السنوية]]<=2,data.f2026[[#This Row],[الحافز]]*0,IF(data.f2026[[#This Row],[أيام أجازات بعد السنوية]]=3,data.f2026[[#This Row],[الحافز]]*30%,IF(data.f2026[[#This Row],[أيام أجازات بعد السنوية]]=4,data.f2026[[#This Row],[الحافز]]*40%,IF(data.f2026[[#This Row],[أيام أجازات بعد السنوية]]=5,data.f2026[[#This Row],[الحافز]]*50%,IF(data.f2026[[#This Row],[أيام أجازات بعد السنوية]]>5,data.f2026[[#This Row],[الحافز]]*100%,""))))) -> 0 | BP44: 0 | BQ44: 0 | BS44: 3 | BT44: 0 | BV44: 0 | BZ44: 0 | CA44: 0 | CC44: 0 | CG44: 3 | CK44: 0 | CM44: 0 | CN44: 0 | CO44: 86.41 | CP44: 0 | CQ44: =ROUND(IF($D44=data.f2026[[#Headers],[إيقاف]],$BD44-SUM(data.f2026[[#This Row],[تامينات 2026]:[خصم 5% تأمين من العمولة]],0),0),2) -> 0 | CR44: =ROUND(IF($D44=data.f2026[[#Headers],[مرضي]],$BD44-SUM(data.f2026[[#This Row],[تامينات 2026]:[خصم 5% تأمين من العمولة]],0),0),2) -> 0 | CS44: 0 | CT44: =ROUND(IF($G44=data.f2026[[#Headers],[إعارة]],$BD44-SUM(data.f2026[[#This Row],[تامينات 2026]:[خصم 5% تأمين من العمولة]],0),0),2) -> 0 | CU44: =ROUND(IF($G44=data.f2026[[#Headers],[معاش]],$BD44-SUM(data.f2026[[#This Row],[تامينات 2026]:[خصم 5% تأمين من العمولة]],0),0),2) -> 0 | CV44: 698.06 | CW44: 6301.94
B45: 202024 | C45: 35375 | D45: البنك الاهلى | E45: اشرف صلاح محمود سعد | F45: مروه | G45: دوام كامل | H45: فنى | I45: الثانية | J45: الثانية | K45: كهربائي سيارات | L45: الاميرية | M45: 27805050101631 | N45: 202024اشرف صلاح محمود سعدالثانيةالثانيةكهربائي سيارات الاميرية | O45: نعم | P45: 1402.84 | Q45: 1641.3228 | R45: 0 | S45: 2215.79 | T45: 246.2 | U45: 0 | V45: 0 | W45: 0 | Y45: 246.19842 | Z45: 300 | AB45: 0 | AD45: 0 | AE45: 0 | AF45: 546.2 | AG45: 0 | AH45: 0 | AI45: 0 | AJ45: 360.36 | AK45: 0 | AL45: 28.04 | AM45: 50.01 | AN45: 64.21 | AO45: 91.61 | AP45: 98.02 | AQ45: 104.89 | AS45: 70.142 | AT45: 600 | AU45: 10 | AV45: 1477.28 | AW45: 10 | AX45: =ROUND((data.f2026[[#This Row],[أساسي 7/2025]]*2)/12,2) -> 273.55 | AY45: 0 | BA45: 60 | BB45: 6410.34 | BC45: 589.66 | BD45: 7060 | BE45: 0 | BF45: 0 | BI45: 659.84 | BK45: 0 | BL45: 0 | BM45: =IF(data.f2026[[#This Row],[أيام الغياب]]=1,data.f2026[[#This Row],[الحافز]]*20%,IF(data.f2026[[#This Row],[أيام الغياب]]=2,data.f2026[[#This Row],[الحافز]]*100%,IF(data.f2026[[#This Row],[أيام الغياب]]>2,data.f2026[[#This Row],[الحافز]]*100%,""))) ->  | BN45: =IF(data.f2026[[#This Row],[عدد أيام الأجازات]]<=4,data.f2026[[#This Row],[الحافز]]*0,IF(data.f2026[[#This Row],[عدد أيام الأجازات]]=5,data.f2026[[#This Row],[الحافز]]*20%,IF(data.f2026[[#This Row],[عدد أيام الأجازات]]=6,data.f2026[[#This Row],[الحافز]]*40%,IF(data.f2026[[#This Row],[عدد أيام الأجازات]]=7,data.f2026[[#This Row],[الحافز]]*50%,IF(data.f2026[[#This Row],[عدد أيام الأجازات]]>7,data.f2026[[#This Row],[الحافز]]*100%,""))))) -> 0 | BO45: =IF(data.f2026[[#This Row],[أيام أجازات بعد السنوية]]<=2,data.f2026[[#This Row],[الحافز]]*0,IF(data.f2026[[#This Row],[أيام أجازات بعد السنوية]]=3,data.f2026[[#This Row],[الحافز]]*30%,IF(data.f2026[[#This Row],[أيام أجازات بعد السنوية]]=4,data.f2026[[#This Row],[الحافز]]*40%,IF(data.f2026[[#This Row],[أيام أجازات بعد السنوية]]=5,data.f2026[[#This Row],[الحافز]]*50%,IF(data.f2026[[#This Row],[أيام أجازات بعد السنوية]]>5,data.f2026[[#This Row],[الحافز]]*100%,""))))) -> 0 | BP45: 0 | BQ45: 0 | BS45: 3 | BT45: 0 | BV45: 0 | BZ45: 0 | CA45: 0 | CC45: 0 | CG45: 3 | CK45: 0 | CM45: 0 | CN45: 0 | CO45: 273.55 | CP45: 0 | CQ45: =ROUND(IF($D45=data.f2026[[#Headers],[إيقاف]],$BD45-SUM(data.f2026[[#This Row],[تامينات 2026]:[خصم 5% تأمين من العمولة]],0),0),2) -> 0 | CR45: =ROUND(IF($D45=data.f2026[[#Headers],[مرضي]],$BD45-SUM(data.f2026[[#This Row],[تامينات 2026]:[خصم 5% تأمين من العمولة]],0),0),2) -> 0 | CS45: 0 | CT45: =ROUND(IF($G45=data.f2026[[#Headers],[إعارة]],$BD45-SUM(data.f2026[[#This Row],[تامينات 2026]:[خصم 5% تأمين من العمولة]],0),0),2) -> 0 | CU45: =ROUND(IF($G45=data.f2026[[#Headers],[معاش]],$BD45-SUM(data.f2026[[#This Row],[تامينات 2026]:[خصم 5% تأمين من العمولة]],0),0),2) -> 0 | CV45: 939.39 | CW45: 6120.61
B46: 202025 | C46: 29083 | D46: البنك الاهلى | E46: جمال فتحي ابراهيم عبدالله | F46: مروه | G46: دوام كامل | H46: فنى | I46: الثانية | J46: الثانية | K46: فني ميكانيكي | L46: الاميرية | M46: 27012030102576 | N46: 202025جمال فتحي ابراهيم عبدالله الثانيةالثانيةفني ميكانيكيالاميرية | O46: نعم | P46: 1186.23 | Q46: 1387.8891 | R46: 0 | S46: 1873.65 | T46: 208.18 | U46: 0 | V46: 0 | W46: 0 | Y46: 208.183365 | Z46: 300 | AB46: 0 | AD46: 0 | AE46: 0 | AF46: 508.18 | AG46: 0 | AH46: 0 | AI46: 0 | AJ46: 1334.27 | AK46: 0 | AL46: 0 | AM46: 0 | AN46: 0 | AO46: 0 | AP46: 0 | AQ46: 0 | AS46: 59.3115 | AT46: 0 | AU46: 0 | AV46: 1393.58 | AW46: 10 | AX46: =ROUND((data.f2026[[#This Row],[أساسي 7/2025]]*2)/12,2) -> 231.31 | AY46: 0 | BA46: 120 | BB46: 5612.79 | BC46: 1387.21 | BD46: 7120 | BE46: 0 | BF46: 0 | BI46: 637.38 | BK46: 0 | BL46: 0 | BM46: =IF(data.f2026[[#This Row],[أيام الغياب]]=1,data.f2026[[#This Row],[الحافز]]*20%,IF(data.f2026[[#This Row],[أيام الغياب]]=2,data.f2026[[#This Row],[الحافز]]*100%,IF(data.f2026[[#This Row],[أيام الغياب]]>2,data.f2026[[#This Row],[الحافز]]*100%,""))) ->  | BN46: =IF(data.f2026[[#This Row],[عدد أيام الأجازات]]<=4,data.f2026[[#This Row],[الحافز]]*0,IF(data.f2026[[#This Row],[عدد أيام الأجازات]]=5,data.f2026[[#This Row],[الحافز]]*20%,IF(data.f2026[[#This Row],[عدد أيام الأجازات]]=6,data.f2026[[#This Row],[الحافز]]*40%,IF(data.f2026[[#This Row],[عدد أيام الأجازات]]=7,data.f2026[[#This Row],[الحافز]]*50%,IF(data.f2026[[#This Row],[عدد أيام الأجازات]]>7,data.f2026[[#This Row],[الحافز]]*100%,""))))) -> 0 | BO46: =IF(data.f2026[[#This Row],[أيام أجازات بعد السنوية]]<=2,data.f2026[[#This Row],[الحافز]]*0,IF(data.f2026[[#This Row],[أيام أجازات بعد السنوية]]=3,data.f2026[[#This Row],[الحافز]]*30%,IF(data.f2026[[#This Row],[أيام أجازات بعد السنوية]]=4,data.f2026[[#This Row],[الحافز]]*40%,IF(data.f2026[[#This Row],[أيام أجازات بعد السنوية]]=5,data.f2026[[#This Row],[الحافز]]*50%,IF(data.f2026[[#This Row],[أيام أجازات بعد السنوية]]>5,data.f2026[[#This Row],[الحافز]]*100%,""))))) -> 0 | BP46: 0 | BQ46: 0 | BS46: 3 | BT46: 0 | BV46: 0 | BZ46: 0 | CA46: 0 | CC46: 0 | CG46: 3 | CK46: 0 | CM46: 0 | CN46: 0 | CO46: 231.31 | CP46: 0 | CQ46: =ROUND(IF($D46=data.f2026[[#Headers],[إيقاف]],$BD46-SUM(data.f2026[[#This Row],[تامينات 2026]:[خصم 5% تأمين من العمولة]],0),0),2) -> 0 | CR46: =ROUND(IF($D46=data.f2026[[#Headers],[مرضي]],$BD46-SUM(data.f2026[[#This Row],[تامينات 2026]:[خصم 5% تأمين من العمولة]],0),0),2) -> 0 | CS46: 0 | CT46: =ROUND(IF($G46=data.f2026[[#Headers],[إعارة]],$BD46-SUM(data.f2026[[#This Row],[تامينات 2026]:[خصم 5% تأمين من العمولة]],0),0),2) -> 0 | CU46: =ROUND(IF($G46=data.f2026[[#Headers],[معاش]],$BD46-SUM(data.f2026[[#This Row],[تامينات 2026]:[خصم 5% تأمين من العمولة]],0),0),2) -> 0 | CV46: 874.69 | CW46: 6245.31
B47: 202026 | C47: 2646 | D47: البنك الاهلى | E47: حمدي مصطفي محمد ابو الوفا | F47: مروه | G47: دوام كامل | H47: فنى | I47: الثانية | L47: الاميرية | M47: 26606101200659 | N47: 202026حمدي مصطفي محمد ابو الوفاالثانية | P47: 2115.53 | Q47: 2263.62 | R47: 0 | S47: 3055.89 | T47: 339.54 | U47: 0 | V47: 0 | W47: 0 | Y47: 339.543 | Z47: 300 | AB47: 0 | AD47: 0 | AE47: 0 | AF47: 639.54 | AG47: 0 | AH47: 0 | AI47: 0 | AJ47: 440.57 | AK47: 0 | AL47: 42.29 | AM47: 75.42 | AN47: 96.84 | AO47: 138.15 | AP47: 147.82 | AQ47: 58.17 | AS47: 105.7765 | AT47: 600 | AU47: 10 | AV47: 1715.04 | AW47: 10 | AX47: =ROUND((data.f2026[[#This Row],[أساسي 7/2025]]*2)/12,2) -> 377.27 | AY47: 392.44 | BA47: 600 | BB47: 8400.9 | BC47: 0 | BD47: 9393.34 | BE47: 0 | BF47: 0 | BI47: 903.61 | BK47: 0 | BL47: 0 | BM47: =IF(data.f2026[[#This Row],[أيام الغياب]]=1,data.f2026[[#This Row],[الحافز]]*20%,IF(data.f2026[[#This Row],[أيام الغياب]]=2,data.f2026[[#This Row],[الحافز]]*100%,IF(data.f2026[[#This Row],[أيام الغياب]]>2,data.f2026[[#This Row],[الحافز]]*100%,""))) ->  | BN47: =IF(data.f2026[[#This Row],[عدد أيام الأجازات]]<=4,data.f2026[[#This Row],[الحافز]]*0,IF(data.f2026[[#This Row],[عدد أيام الأجازات]]=5,data.f2026[[#This Row],[الحافز]]*20%,IF(data.f2026[[#This Row],[عدد أيام الأجازات]]=6,data.f2026[[#This Row],[الحافز]]*40%,IF(data.f2026[[#This Row],[عدد أيام الأجازات]]=7,data.f2026[[#This Row],[الحافز]]*50%,IF(data.f2026[[#This Row],[عدد أيام الأجازات]]>7,data.f2026[[#This Row],[الحافز]]*100%,""))))) -> 0 | BO47: =IF(data.f2026[[#This Row],[أيام أجازات بعد السنوية]]<=2,data.f2026[[#This Row],[الحافز]]*0,IF(data.f2026[[#This Row],[أيام أجازات بعد السنوية]]=3,data.f2026[[#This Row],[الحافز]]*30%,IF(data.f2026[[#This Row],[أيام أجازات بعد السنوية]]=4,data.f2026[[#This Row],[الحافز]]*40%,IF(data.f2026[[#This Row],[أيام أجازات بعد السنوية]]=5,data.f2026[[#This Row],[الحافز]]*50%,IF(data.f2026[[#This Row],[أيام أجازات بعد السنوية]]>5,data.f2026[[#This Row],[الحافز]]*100%,""))))) -> 0 | BP47: 0 | BQ47: 0 | BS47: 3 | BT47: 0 | BV47: 0 | BZ47: 0 | CA47: 0 | CC47: 0 | CG47: 3 | CK47: 0 | CM47: 0 | CN47: 0 | CO47: 377.27 | CP47: 0 | CQ47: =ROUND(IF($D47=data.f2026[[#Headers],[إيقاف]],$BD47-SUM(data.f2026[[#This Row],[تامينات 2026]:[خصم 5% تأمين من العمولة]],0),0),2) -> 0 | CR47: =ROUND(IF($D47=data.f2026[[#Headers],[مرضي]],$BD47-SUM(data.f2026[[#This Row],[تامينات 2026]:[خصم 5% تأمين من العمولة]],0),0),2) -> 0 | CS47: 0 | CT47: =ROUND(IF($G47=data.f2026[[#Headers],[إعارة]],$BD47-SUM(data.f2026[[#This Row],[تامينات 2026]:[خصم 5% تأمين من العمولة]],0),0),2) -> 0 | CU47: =ROUND(IF($G47=data.f2026[[#Headers],[معاش]],$BD47-SUM(data.f2026[[#This Row],[تامينات 2026]:[خصم 5% تأمين من العمولة]],0),0),2) -> 0 | CV47: 1286.88 | CW47: 8106.46
B48: 202027 | C48: 11041 | D48: البنك الاهلى | E48: سيد علي محمد علي | F48: مروه | G48: دوام كامل | H48: فنى | I48: الثالثة | J48: الثالثة | K48: حرفى حداد | L48: الاميرية | M48: 26608080100775 | N48: 202027سيد علي محمد علي الثالثةالثالثةحرفى حدادالادارة العامة | O48: نعم | P48: 1676.1 | Q48: 1961.037 | R48: 0 | S48: 2647.4 | T48: 294.16 | U48: 0 | V48: 0 | W48: 0 | Y48: 294.15555 | Z48: 300 | AB48: 0 | AD48: 0 | AE48: 0 | AF48: 594.16 | AG48: 0 | AH48: 0 | AI48: 0 | AJ48: 395.65 | AK48: 0 | AL48: 33.51 | AM48: 59.75 | AN48: 76.72 | AO48: 109.46 | AP48: 117.12 | AQ48: 125.32 | AS48: 83.805 | AT48: 600 | AU48: 8 | AV48: 1609.34 | AW48: 10 | AX48: =ROUND((data.f2026[[#This Row],[أساسي 7/2025]]*2)/12,2) -> 326.84 | AY48: 0 | BA48: 30 | BB48: 7442.94 | BC48: 0 | BD48: 7472.94 | BE48: 0 | BF48: 0 | BI48: 737.44 | BK48: 0 | BL48: 0 | BM48: =IF(data.f2026[[#This Row],[أيام الغياب]]=1,data.f2026[[#This Row],[الحافز]]*20%,IF(data.f2026[[#This Row],[أيام الغياب]]=2,data.f2026[[#This Row],[الحافز]]*100%,IF(data.f2026[[#This Row],[أيام الغياب]]>2,data.f2026[[#This Row],[الحافز]]*100%,""))) ->  | BN48: =IF(data.f2026[[#This Row],[عدد أيام الأجازات]]<=4,data.f2026[[#This Row],[الحافز]]*0,IF(data.f2026[[#This Row],[عدد أيام الأجازات]]=5,data.f2026[[#This Row],[الحافز]]*20%,IF(data.f2026[[#This Row],[عدد أيام الأجازات]]=6,data.f2026[[#This Row],[الحافز]]*40%,IF(data.f2026[[#This Row],[عدد أيام الأجازات]]=7,data.f2026[[#This Row],[الحافز]]*50%,IF(data.f2026[[#This Row],[عدد أيام الأجازات]]>7,data.f2026[[#This Row],[الحافز]]*100%,""))))) -> 0 | BO48: =IF(data.f2026[[#This Row],[أيام أجازات بعد السنوية]]<=2,data.f2026[[#This Row],[الحافز]]*0,IF(data.f2026[[#This Row],[أيام أجازات بعد السنوية]]=3,data.f2026[[#This Row],[الحافز]]*30%,IF(data.f2026[[#This Row],[أيام أجازات بعد السنوية]]=4,data.f2026[[#This Row],[الحافز]]*40%,IF(data.f2026[[#This Row],[أيام أجازات بعد السنوية]]=5,data.f2026[[#This Row],[الحافز]]*50%,IF(data.f2026[[#This Row],[أيام أجازات بعد السنوية]]>5,data.f2026[[#This Row],[الحافز]]*100%,""))))) -> 0 | BP48: 0 | BQ48: 0 | BS48: 3 | BT48: 0 | BV48: 0 | BZ48: 0 | CA48: 0 | CC48: 0 | CG48: 3 | CK48: 0 | CM48: 0 | CN48: 0 | CO48: 326.84 | CP48: 0 | CQ48: =ROUND(IF($D48=data.f2026[[#Headers],[إيقاف]],$BD48-SUM(data.f2026[[#This Row],[تامينات 2026]:[خصم 5% تأمين من العمولة]],0),0),2) -> 0 | CR48: =ROUND(IF($D48=data.f2026[[#Headers],[مرضي]],$BD48-SUM(data.f2026[[#This Row],[تامينات 2026]:[خصم 5% تأمين من العمولة]],0),0),2) -> 0 | CS48: 0 | CT48: =ROUND(IF($G48=data.f2026[[#Headers],[إعارة]],$BD48-SUM(data.f2026[[#This Row],[تامينات 2026]:[خصم 5% تأمين من العمولة]],0),0),2) -> 0 | CU48: =ROUND(IF($G48=data.f2026[[#Headers],[معاش]],$BD48-SUM(data.f2026[[#This Row],[تامينات 2026]:[خصم 5% تأمين من العمولة]],0),0),2) -> 0 | CV48: 1070.28 | CW48: 6402.66
B49: 202028 | C49: 29089 | D49: البنك الاهلى | E49: محمد صلاح كمال محمد | F49: مروه | G49: دوام كامل | H49: فنى | I49: الثانية | L49: الاميرية | M49: 28105151402196 | N49: 202028محمد صلاح كمال محمد الثانية | P49: 1142.25 | Q49: 1256.475 | R49: 0 | S49: 1696.24 | T49: 188.47 | U49: 0 | V49: 0 | W49: 0 | Y49: 188.47125 | Z49: 300 | AB49: 0 | AD49: 0 | AE49: 0 | AF49: 488.47 | AG49: 0 | AH49: 0 | AI49: 0 | AJ49: 339.04 | AK49: 0 | AL49: 22.83 | AM49: 40.72 | AN49: 52.29 | AO49: 74.59 | AP49: 79.82 | AQ49: 85.4 | AS49: 57.1125 | AT49: 600 | AU49: 8 | AV49: 1359.8 | AW49: 10 | AX49: =ROUND((data.f2026[[#This Row],[أساسي 7/2025]]*2)/12,2) -> 209.41 | AY49: 0 | BA49: 0 | BB49: 5208.87 | BC49: 1791.13 | BD49: 7000 | BE49: 0 | BF49: 0 | BI49: 634.25 | BK49: 0 | BL49: 0 | BM49: =IF(data.f2026[[#This Row],[أيام الغياب]]=1,data.f2026[[#This Row],[الحافز]]*20%,IF(data.f2026[[#This Row],[أيام الغياب]]=2,data.f2026[[#This Row],[الحافز]]*100%,IF(data.f2026[[#This Row],[أيام الغياب]]>2,data.f2026[[#This Row],[الحافز]]*100%,""))) ->  | BN49: =IF(data.f2026[[#This Row],[عدد أيام الأجازات]]<=4,data.f2026[[#This Row],[الحافز]]*0,IF(data.f2026[[#This Row],[عدد أيام الأجازات]]=5,data.f2026[[#This Row],[الحافز]]*20%,IF(data.f2026[[#This Row],[عدد أيام الأجازات]]=6,data.f2026[[#This Row],[الحافز]]*40%,IF(data.f2026[[#This Row],[عدد أيام الأجازات]]=7,data.f2026[[#This Row],[الحافز]]*50%,IF(data.f2026[[#This Row],[عدد أيام الأجازات]]>7,data.f2026[[#This Row],[الحافز]]*100%,""))))) -> 0 | BO49: =IF(data.f2026[[#This Row],[أيام أجازات بعد السنوية]]<=2,data.f2026[[#This Row],[الحافز]]*0,IF(data.f2026[[#This Row],[أيام أجازات بعد السنوية]]=3,data.f2026[[#This Row],[الحافز]]*30%,IF(data.f2026[[#This Row],[أيام أجازات بعد السنوية]]=4,data.f2026[[#This Row],[الحافز]]*40%,IF(data.f2026[[#This Row],[أيام أجازات بعد السنوية]]=5,data.f2026[[#This Row],[الحافز]]*50%,IF(data.f2026[[#This Row],[أيام أجازات بعد السنوية]]>5,data.f2026[[#This Row],[الحافز]]*100%,""))))) -> 0 | BP49: 0 | BQ49: 0 | BS49: 3 | BT49: 0 | BV49: 0 | BZ49: 0 | CA49: 0 | CC49: 0 | CG49: 3 | CK49: 0 | CM49: 0 | CN49: 0 | CO49: 209.41 | CP49: 0 | CQ49: =ROUND(IF($D49=data.f2026[[#Headers],[إيقاف]],$BD49-SUM(data.f2026[[#This Row],[تامينات 2026]:[خصم 5% تأمين من العمولة]],0),0),2) -> 0 | CR49: =ROUND(IF($D49=data.f2026[[#Headers],[مرضي]],$BD49-SUM(data.f2026[[#This Row],[تامينات 2026]:[خصم 5% تأمين من العمولة]],0),0),2) -> 0 | CS49: 0 | CT49: =ROUND(IF($G49=data.f2026[[#Headers],[إعارة]],$BD49-SUM(data.f2026[[#This Row],[تامينات 2026]:[خصم 5% تأمين من العمولة]],0),0),2) -> 0 | CU49: =ROUND(IF($G49=data.f2026[[#Headers],[معاش]],$BD49-SUM(data.f2026[[#This Row],[تامينات 2026]:[خصم 5% تأمين من العمولة]],0),0),2) -> 0 | CV49: 849.66 | CW49: 6150.34
B50: 202029 | C50: 29105 | D50: البنك الاهلى | E50: ابراهيم بدوي ابراهيم | F50: مروه | G50: دوام كامل | H50: فنى | I50: الثالثة | J50: الثالثة | K50: ميكانيكي | L50: الاميرية | M50: 27102240100559 | N50: 202029ابراهيم بدوي ابراهيم الثالثةالثالثةميكانيكيالاميرية | O50: نعم | P50: 974.25 | Q50: 1139.8725 | R50: 0 | S50: 1538.83 | T50: 170.98 | U50: 0 | V50: 0 | W50: 0 | Y50: 170.980875 | Z50: 300 | AB50: 0 | AD50: 0 | AE50: 0 | AF50: 470.98 | AG50: 0 | AH50: 0 | AI50: 0 | AJ50: 336.32 | AK50: 0 | AL50: 29.56 | AM50: 34.73 | AN50: 44.6 | AO50: 63.62 | AP50: 68.08 | AQ50: 86.26 | AS50: 52.575 | AT50: 600 | AU50: 10 | AV50: 1325.75 | AW50: 10 | AX50: =ROUND((data.f2026[[#This Row],[أساسي 7/2025]]*2)/12,2) -> 189.98 | AY50: 0 | BA50: 0 | BB50: 4846.39 | BC50: 2153.61 | BD50: 7000 | BE50: 0 | BF50: 0 | BI50: 633.33 | BK50: 0 | BL50: 0 | BM50: =IF(data.f2026[[#This Row],[أيام الغياب]]=1,data.f2026[[#This Row],[الحافز]]*20%,IF(data.f2026[[#This Row],[أيام الغياب]]=2,data.f2026[[#This Row],[الحافز]]*100%,IF(data.f2026[[#This Row],[أيام الغياب]]>2,data.f2026[[#This Row],[الحافز]]*100%,""))) ->  | BN50: =IF(data.f2026[[#This Row],[عدد أيام الأجازات]]<=4,data.f2026[[#This Row],[الحافز]]*0,IF(data.f2026[[#This Row],[عدد أيام الأجازات]]=5,data.f2026[[#This Row],[الحافز]]*20%,IF(data.f2026[[#This Row],[عدد أيام الأجازات]]=6,data.f2026[[#This Row],[الحافز]]*40%,IF(data.f2026[[#This Row],[عدد أيام الأجازات]]=7,data.f2026[[#This Row],[الحافز]]*50%,IF(data.f2026[[#This Row],[عدد أيام الأجازات]]>7,data.f2026[[#This Row],[الحافز]]*100%,""))))) -> 0 | BO50: =IF(data.f2026[[#This Row],[أيام أجازات بعد السنوية]]<=2,data.f2026[[#This Row],[الحافز]]*0,IF(data.f2026[[#This Row],[أيام أجازات بعد السنوية]]=3,data.f2026[[#This Row],[الحافز]]*30%,IF(data.f2026[[#This Row],[أيام أجازات بعد السنوية]]=4,data.f2026[[#This Row],[الحافز]]*40%,IF(data.f2026[[#This Row],[أيام أجازات بعد السنوية]]=5,data.f2026[[#This Row],[الحافز]]*50%,IF(data.f2026[[#This Row],[أيام أجازات بعد السنوية]]>5,data.f2026[[#This Row],[الحافز]]*100%,""))))) -> 0 | BP50: 0 | BQ50: 0 | BS50: 3 | BT50: 0 | BV50: 0 | BZ50: 0 | CA50: 0 | CC50: 0 | CG50: 3 | CK50: 0 | CM50: 0 | CN50: 0 | CO50: 189.98 | CP50: 0 | CQ50: =ROUND(IF($D50=data.f2026[[#Headers],[إيقاف]],$BD50-SUM(data.f2026[[#This Row],[تامينات 2026]:[خصم 5% تأمين من العمولة]],0),0),2) -> 0 | CR50: =ROUND(IF($D50=data.f2026[[#Headers],[مرضي]],$BD50-SUM(data.f2026[[#This Row],[تامينات 2026]:[خصم 5% تأمين من العمولة]],0),0),2) -> 0 | CS50: 0 | CT50: =ROUND(IF($G50=data.f2026[[#Headers],[إعارة]],$BD50-SUM(data.f2026[[#This Row],[تامينات 2026]:[خصم 5% تأمين من العمولة]],0),0),2) -> 0 | CU50: =ROUND(IF($G50=data.f2026[[#Headers],[معاش]],$BD50-SUM(data.f2026[[#This Row],[تامينات 2026]:[خصم 5% تأمين من العمولة]],0),0),2) -> 0 | CV50: 829.31 | CW50: 6170.69
B51: 202030 | C51: 4238 | D51: بنك مصر 1 | E51: احمد هاني السيد سالم | F51: مروه | G51: دوام كامل | H51: فنى | I51: الثالثة | J51: الثالثة | K51: حداد | L51: فرع بنى سويف | M51: 29108060104896 | N51: 202030احمد هاني السيد سالمالثالثةالثالثةحدادفرع بنى سويف | O51: نعم | P51: 937.14 | Q51: 1096.4538 | R51: 0 | S51: 1480.21 | T51: 164.47 | U51: 0 | V51: 0 | W51: 0 | Y51: 164.46807 | Z51: 300 | AB51: 0 | AD51: 0 | AE51: 0 | AF51: 464.47 | AG51: 0 | AH51: 0 | AI51: 0 | AJ51: 333.09 | AK51: 0 | AL51: 31.29 | AM51: 33.41 | AN51: 42.9 | AO51: 61.2 | AP51: 67.7 | AQ51: 88.69 | AS51: 56.286 | AT51: 600 | AU51: 8 | AV51: 1322.57 | AW51: 10 | AX51: =ROUND((data.f2026[[#This Row],[أساسي 7/2025]]*2)/12,2) -> 182.74 | AY51: 0 | BA51: 0 | BB51: 4720.91 | BC51: 2279.09 | BD51: 7000 | BE51: 0 | BF51: 0 | BI51: 623.61 | BK51: 0 | BL51: 0 | BM51: =IF(data.f2026[[#This Row],[أيام الغياب]]=1,data.f2026[[#This Row],[الحافز]]*20%,IF(data.f2026[[#This Row],[أيام الغياب]]=2,data.f2026[[#This Row],[الحافز]]*100%,IF(data.f2026[[#This Row],[أيام الغياب]]>2,data.f2026[[#This Row],[الحافز]]*100%,""))) ->  | BN51: =IF(data.f2026[[#This Row],[عدد أيام الأجازات]]<=4,data.f2026[[#This Row],[الحافز]]*0,IF(data.f2026[[#This Row],[عدد أيام الأجازات]]=5,data.f2026[[#This Row],[الحافز]]*20%,IF(data.f2026[[#This Row],[عدد أيام الأجازات]]=6,data.f2026[[#This Row],[الحافز]]*40%,IF(data.f2026[[#This Row],[عدد أيام الأجازات]]=7,data.f2026[[#This Row],[الحافز]]*50%,IF(data.f2026[[#This Row],[عدد أيام الأجازات]]>7,data.f2026[[#This Row],[الحافز]]*100%,""))))) -> 0 | BO51: =IF(data.f2026[[#This Row],[أيام أجازات بعد السنوية]]<=2,data.f2026[[#This Row],[الحافز]]*0,IF(data.f2026[[#This Row],[أيام أجازات بعد السنوية]]=3,data.f2026[[#This Row],[الحافز]]*30%,IF(data.f2026[[#This Row],[أيام أجازات بعد السنوية]]=4,data.f2026[[#This Row],[الحافز]]*40%,IF(data.f2026[[#This Row],[أيام أجازات بعد السنوية]]=5,data.f2026[[#This Row],[الحافز]]*50%,IF(data.f2026[[#This Row],[أيام أجازات بعد السنوية]]>5,data.f2026[[#This Row],[الحافز]]*100%,""))))) -> 0 | BP51: 0 | BQ51: 0 | BS51: 3 | BT51: 0 | BV51: 0 | BZ51: 0 | CA51: 0 | CC51: 0 | CG51: 3 | CK51: 0 | CM51: 0 | CN51: 0 | CO51: 182.74 | CP51: 0 | CQ51: =ROUND(IF($D51=data.f2026[[#Headers],[إيقاف]],$BD51-SUM(data.f2026[[#This Row],[تامينات 2026]:[خصم 5% تأمين من العمولة]],0),0),2) -> 0 | CR51: =ROUND(IF($D51=data.f2026[[#Headers],[مرضي]],$BD51-SUM(data.f2026[[#This Row],[تامينات 2026]:[خصم 5% تأمين من العمولة]],0),0),2) -> 0 | CS51: 0 | CT51: =ROUND(IF($G51=data.f2026[[#Headers],[إعارة]],$BD51-SUM(data.f2026[[#This Row],[تامينات 2026]:[خصم 5% تأمين من العمولة]],0),0),2) -> 0 | CU51: =ROUND(IF($G51=data.f2026[[#Headers],[معاش]],$BD51-SUM(data.f2026[[#This Row],[تامينات 2026]:[خصم 5% تأمين من العمولة]],0),0),2) -> 0 | CV51: 812.35 | CW51: 6187.65
B52: 202031 | C52: 14087 | D52: البنك الاهلى | E52: ايمن صلاح عبدالرازق | F52: مروه | G52: دوام كامل | H52: فنى | I52: الثالثة | J52: الثالثة | K52: فني تشحيم | L52: فرع بنى سويف | M52: 29201011409258 | N52: 202031ايمن صلاح عبدالرازق الثالثةالثالثةفني تشحيم فرع بنى سويف | O52: نعم | P52: 974.25 | Q52: 1139.8725 | R52: 0 | S52: 1538.83 | T52: 170.98 | U52: 0 | V52: 0 | W52: 0 | Y52: 170.980875 | Z52: 300 | AB52: 0 | AD52: 0 | AE52: 0 | AF52: 470.98 | AG52: 0 | AH52: 0 | AI52: 0 | AJ52: 336.73 | AK52: 0 | AL52: 29.56 | AM52: 34.73 | AN52: 44.6 | AO52: 63.62 | AP52: 68.08 | AQ52: 86.26 | AS52: 52.575 | AT52: 600 | AU52: 8 | AV52: 1324.16 | AW52: 10 | AX52: =ROUND((data.f2026[[#This Row],[أساسي 7/2025]]*2)/12,2) -> 189.98 | AY52: 0 | BA52: 0 | BB52: 4844.8 | BC52: 2155.2 | BD52: 7000 | BE52: 0 | BF52: 0 | BI52: 625.12 | BK52: 0 | BL52: 0 | BM52: =IF(data.f2026[[#This Row],[أيام الغياب]]=1,data.f2026[[#This Row],[الحافز]]*20%,IF(data.f2026[[#This Row],[أيام الغياب]]=2,data.f2026[[#This Row],[الحافز]]*100%,IF(data.f2026[[#This Row],[أيام الغياب]]>2,data.f2026[[#This Row],[الحافز]]*100%,""))) ->  | BN52: =IF(data.f2026[[#This Row],[عدد أيام الأجازات]]<=4,data.f2026[[#This Row],[الحافز]]*0,IF(data.f2026[[#This Row],[عدد أيام الأجازات]]=5,data.f2026[[#This Row],[الحافز]]*20%,IF(data.f2026[[#This Row],[عدد أيام الأجازات]]=6,data.f2026[[#This Row],[الحافز]]*40%,IF(data.f2026[[#This Row],[عدد أيام الأجازات]]=7,data.f2026[[#This Row],[الحافز]]*50%,IF(data.f2026[[#This Row],[عدد أيام الأجازات]]>7,data.f2026[[#This Row],[الحافز]]*100%,""))))) -> 0 | BO52: =IF(data.f2026[[#This Row],[أيام أجازات بعد السنوية]]<=2,data.f2026[[#This Row],[الحافز]]*0,IF(data.f2026[[#This Row],[أيام أجازات بعد السنوية]]=3,data.f2026[[#This Row],[الحافز]]*30%,IF(data.f2026[[#This Row],[أيام أجازات بعد السنوية]]=4,data.f2026[[#This Row],[الحافز]]*40%,IF(data.f2026[[#This Row],[أيام أجازات بعد السنوية]]=5,data.f2026[[#This Row],[الحافز]]*50%,IF(data.f2026[[#This Row],[أيام أجازات بعد السنوية]]>5,data.f2026[[#This Row],[الحافز]]*100%,""))))) -> 0 | BP52: 0 | BQ52: 0 | BS52: 3 | BT52: 0 | BV52: 0 | BZ52: 0 | CA52: 0 | CC52: 0 | CG52: 3 | CK52: 0 | CM52: 0 | CN52: 0 | CO52: 189.98 | CP52: 0 | CQ52: =ROUND(IF($D52=data.f2026[[#Headers],[إيقاف]],$BD52-SUM(data.f2026[[#This Row],[تامينات 2026]:[خصم 5% تأمين من العمولة]],0),0),2) -> 0 | CR52: =ROUND(IF($D52=data.f2026[[#Headers],[مرضي]],$BD52-SUM(data.f2026[[#This Row],[تامينات 2026]:[خصم 5% تأمين من العمولة]],0),0),2) -> 0 | CS52: 0 | CT52: =ROUND(IF($G52=data.f2026[[#Headers],[إعارة]],$BD52-SUM(data.f2026[[#This Row],[تامينات 2026]:[خصم 5% تأمين من العمولة]],0),0),2) -> 0 | CU52: =ROUND(IF($G52=data.f2026[[#Headers],[معاش]],$BD52-SUM(data.f2026[[#This Row],[تامينات 2026]:[خصم 5% تأمين من العمولة]],0),0),2) -> 0 | CV52: 821.1 | CW52: 6178.9
B53: 202032 | C53: 29186 | D53: البنك الاهلى | E53: خالد وجدي محمدي | F53: ترددي | G53: إعارة | H53: فنى | I53: الثالثة | M53: 28606050101755 | N53: 202032خالد وجدي محمدي مروهالثالثة | P53: 937.14 | Q53: 1096.44 | R53: 0 | S53: 1480.19 | T53: 164.47 | U53: 0 | V53: 0 | W53: 0 | Y53: 164.466 | Z53: 300 | AB53: 0 | AD53: 0 | AE53: 0 | AF53: 464.47 | AG53: 0 | AH53: 0 | AI53: 0 | AJ53: 333.09 | AK53: 0 | AL53: 31.29 | AM53: 33.41 | AN53: 42.9 | AO53: 61.2 | AP53: 67.7 | AQ53: 88.69 | AS53: 56.286 | AT53: 600 | AU53: 10 | AV53: 1324.57 | AW53: 10 | AX53: =ROUND((data.f2026[[#This Row],[أساسي 7/2025]]*2)/12,2) -> 182.74 | AY53: 0 | BA53: 0 | BB53: 4722.88 | BC53: 2277.12 | BD53: 7000 | BE53: 0 | BF53: 0 | BI53: 625.27 | BK53: 0 | BL53: 0 | BM53: =IF(data.f2026[[#This Row],[أيام الغياب]]=1,data.f2026[[#This Row],[الحافز]]*20%,IF(data.f2026[[#This Row],[أيام الغياب]]=2,data.f2026[[#This Row],[الحافز]]*100%,IF(data.f2026[[#This Row],[أيام الغياب]]>2,data.f2026[[#This Row],[الحافز]]*100%,""))) ->  | BN53: =IF(data.f2026[[#This Row],[عدد أيام الأجازات]]<=4,data.f2026[[#This Row],[الحافز]]*0,IF(data.f2026[[#This Row],[عدد أيام الأجازات]]=5,data.f2026[[#This Row],[الحافز]]*20%,IF(data.f2026[[#This Row],[عدد أيام الأجازات]]=6,data.f2026[[#This Row],[الحافز]]*40%,IF(data.f2026[[#This Row],[عدد أيام الأجازات]]=7,data.f2026[[#This Row],[الحافز]]*50%,IF(data.f2026[[#This Row],[عدد أيام الأجازات]]>7,data.f2026[[#This Row],[الحافز]]*100%,""))))) -> 0 | BO53: =IF(data.f2026[[#This Row],[أيام أجازات بعد السنوية]]<=2,data.f2026[[#This Row],[الحافز]]*0,IF(data.f2026[[#This Row],[أيام أجازات بعد السنوية]]=3,data.f2026[[#This Row],[الحافز]]*30%,IF(data.f2026[[#This Row],[أيام أجازات بعد السنوية]]=4,data.f2026[[#This Row],[الحافز]]*40%,IF(data.f2026[[#This Row],[أيام أجازات بعد السنوية]]=5,data.f2026[[#This Row],[الحافز]]*50%,IF(data.f2026[[#This Row],[أيام أجازات بعد السنوية]]>5,data.f2026[[#This Row],[الحافز]]*100%,""))))) -> 0 | BP53: 0 | BQ53: 0 | BS53: 3 | BT53: 0 | BV53: 0 | BZ53: 0 | CA53: 0 | CC53: 0 | CG53: 3 | CK53: 0 | CM53: 0 | CN53: 0 | CO53: 182.74 | CP53: 0 | CQ53: =ROUND(IF($D53=data.f2026[[#Headers],[إيقاف]],$BD53-SUM(data.f2026[[#This Row],[تامينات 2026]:[خصم 5% تأمين من العمولة]],0),0),2) -> 0 | CR53: =ROUND(IF($D53=data.f2026[[#Headers],[مرضي]],$BD53-SUM(data.f2026[[#This Row],[تامينات 2026]:[خصم 5% تأمين من العمولة]],0),0),2) -> 0 | CS53: 0 | CT53: =ROUND(IF($G53=data.f2026[[#Headers],[إعارة]],$BD53-SUM(data.f2026[[#This Row],[تامينات 2026]:[خصم 5% تأمين من العمولة]],0),0),2) -> 6185.99 | CU53: =ROUND(IF($G53=data.f2026[[#Headers],[معاش]],$BD53-SUM(data.f2026[[#This Row],[تامينات 2026]:[خصم 5% تأمين من العمولة]],0),0),2) -> 0 | CV53: 7000 | CW53: 0
B54: 202033 | C54: 2648 | D54: البنك الاهلى | E54: سيد محمد زينهم رفاعي | F54: مروه | G54: دوام كامل | H54: فنى | I54: الثالثة | J54: الثالثة | K54: حرفى سمكري | L54: الاميرية | M54: 27203142300036 | N54: 202033سيد محمد زينهم رفاعي الثالثةالثالثةحرفى سمكريالاميرية | O54: نعم | P54: 1947.76 | Q54: 2278.8792 | R54: 0 | S54: 3076.49 | T54: 341.83 | U54: 0 | V54: 0 | W54: 0 | Y54: 341.83188 | Z54: 300 | AB54: 0 | AD54: 0 | AE54: 0 | AF54: 641.83 | AG54: 0 | AH54: 0 | AI54: 0 | AJ54: 436.55 | AK54: 0 | AL54: 38.94 | AM54: 69.44 | AN54: 89.16 | AO54: 127.2 | AP54: 136.1 | AQ54: 145.63 | AS54: 97.388 | AT54: 600 | AU54: 8 | AV54: 1748.41 | AW54: 10 | AX54: =ROUND((data.f2026[[#This Row],[أساسي 7/2025]]*2)/12,2) -> 379.81 | AY54: 0 | BA54: 0 | BB54: 8477.25 | BC54: 0 | BD54: 8477.25 | BE54: 0 | BF54: 0 | BI54: 844.53 | BK54: 0 | BL54: 0 | BM54: =IF(data.f2026[[#This Row],[أيام الغياب]]=1,data.f2026[[#This Row],[الحافز]]*20%,IF(data.f2026[[#This Row],[أيام الغياب]]=2,data.f2026[[#This Row],[الحافز]]*100%,IF(data.f2026[[#This Row],[أيام الغياب]]>2,data.f2026[[#This Row],[الحافز]]*100%,""))) ->  | BN54: =IF(data.f2026[[#This Row],[عدد أيام الأجازات]]<=4,data.f2026[[#This Row],[الحافز]]*0,IF(data.f2026[[#This Row],[عدد أيام الأجازات]]=5,data.f2026[[#This Row],[الحافز]]*20%,IF(data.f2026[[#This Row],[عدد أيام الأجازات]]=6,data.f2026[[#This Row],[الحافز]]*40%,IF(data.f2026[[#This Row],[عدد أيام الأجازات]]=7,data.f2026[[#This Row],[الحافز]]*50%,IF(data.f2026[[#This Row],[عدد أيام الأجازات]]>7,data.f2026[[#This Row],[الحافز]]*100%,""))))) -> 0 | BO54: =IF(data.f2026[[#This Row],[أيام أجازات بعد السنوية]]<=2,data.f2026[[#This Row],[الحافز]]*0,IF(data.f2026[[#This Row],[أيام أجازات بعد السنوية]]=3,data.f2026[[#This Row],[الحافز]]*30%,IF(data.f2026[[#This Row],[أيام أجازات بعد السنوية]]=4,data.f2026[[#This Row],[الحافز]]*40%,IF(data.f2026[[#This Row],[أيام أجازات بعد السنوية]]=5,data.f2026[[#This Row],[الحافز]]*50%,IF(data.f2026[[#This Row],[أيام أجازات بعد السنوية]]>5,data.f2026[[#This Row],[الحافز]]*100%,""))))) -> 0 | BP54: 0 | BQ54: 0 | BS54: 3 | BT54: 0 | BV54: 0 | BZ54: 0 | CA54: 0 | CC54: 0 | CG54: 3 | CK54: 0 | CM54: 0 | CN54: 0 | CO54: 379.81 | CP54: 0 | CQ54: =ROUND(IF($D54=data.f2026[[#Headers],[إيقاف]],$BD54-SUM(data.f2026[[#This Row],[تامينات 2026]:[خصم 5% تأمين من العمولة]],0),0),2) -> 0 | CR54: =ROUND(IF($D54=data.f2026[[#Headers],[مرضي]],$BD54-SUM(data.f2026[[#This Row],[تامينات 2026]:[خصم 5% تأمين من العمولة]],0),0),2) -> 0 | CS54: 0 | CT54: =ROUND(IF($G54=data.f2026[[#Headers],[إعارة]],$BD54-SUM(data.f2026[[#This Row],[تامينات 2026]:[خصم 5% تأمين من العمولة]],0),0),2) -> 0 | CU54: =ROUND(IF($G54=data.f2026[[#Headers],[معاش]],$BD54-SUM(data.f2026[[#This Row],[تامينات 2026]:[خصم 5% تأمين من العمولة]],0),0),2) -> 0 | CV54: 1230.34 | CW54: 7246.91
B55: 202034 | C55: 4115 | D55: بنك مصر 1 | E55: احمد ابراهيم احمد محمد ابراهيم | F55: مروه | G55: دوام كامل | H55: فنى | I55: الرابعة | L55: الاميرية | M55: 28606060105295 | N55: 202034احمد ابراهيم احمد محمد ابراهيمالرابعة | P55: 735.53 | Q55: 860.57 | R55: 0 | S55: 1161.77 | T55: 129.09 | U55: 0 | V55: 0 | W55: 0 | Y55: 129.0855 | Z55: 300 | AB55: 0 | AD55: 0 | AE55: 0 | AF55: 429.09 | AG55: 0 | AH55: 0 | AI55: 0 | AJ55: 322.83 | AK55: 0 | AL55: 40.69 | AM55: 38.29 | AN55: 35.72 | AO55: 57.97 | AP55: 80.03 | AQ55: 101.88 | AS55: 76.447 | AT55: 600 | AU55: 4 | AV55: 1357.86 | AW55: 10 | AX55: =ROUND((data.f2026[[#This Row],[أساسي 7/2025]]*2)/12,2) -> 143.43 | AY55: 0 | BA55: 0 | BB55: 4091.81 | BC55: 2908.19 | BD55: 7000 | BE55: 0 | BF55: 0 | BI55: 615.58 | BK55: 0 | BL55: 0 | BM55: =IF(data.f2026[[#This Row],[أيام الغياب]]=1,data.f2026[[#This Row],[الحافز]]*20%,IF(data.f2026[[#This Row],[أيام الغياب]]=2,data.f2026[[#This Row],[الحافز]]*100%,IF(data.f2026[[#This Row],[أيام الغياب]]>2,data.f2026[[#This Row],[الحافز]]*100%,""))) ->  | BN55: =IF(data.f2026[[#This Row],[عدد أيام الأجازات]]<=4,data.f2026[[#This Row],[الحافز]]*0,IF(data.f2026[[#This Row],[عدد أيام الأجازات]]=5,data.f2026[[#This Row],[الحافز]]*20%,IF(data.f2026[[#This Row],[عدد أيام الأجازات]]=6,data.f2026[[#This Row],[الحافز]]*40%,IF(data.f2026[[#This Row],[عدد أيام الأجازات]]=7,data.f2026[[#This Row],[الحافز]]*50%,IF(data.f2026[[#This Row],[عدد أيام الأجازات]]>7,data.f2026[[#This Row],[الحافز]]*100%,""))))) -> 0 | BO55: =IF(data.f2026[[#This Row],[أيام أجازات بعد السنوية]]<=2,data.f2026[[#This Row],[الحافز]]*0,IF(data.f2026[[#This Row],[أيام أجازات بعد السنوية]]=3,data.f2026[[#This Row],[الحافز]]*30%,IF(data.f2026[[#This Row],[أيام أجازات بعد السنوية]]=4,data.f2026[[#This Row],[الحافز]]*40%,IF(data.f2026[[#This Row],[أيام أجازات بعد السنوية]]=5,data.f2026[[#This Row],[الحافز]]*50%,IF(data.f2026[[#This Row],[أيام أجازات بعد السنوية]]>5,data.f2026[[#This Row],[الحافز]]*100%,""))))) -> 0 | BP55: 0 | BQ55: 0 | BS55: 3 | BT55: 0 | BV55: 0 | BZ55: 0 | CA55: 0 | CC55: 0 | CG55: 3 | CK55: 0 | CM55: 0 | CN55: 0 | CO55: 143.43 | CP55: 0 | CQ55: =ROUND(IF($D55=data.f2026[[#Headers],[إيقاف]],$BD55-SUM(data.f2026[[#This Row],[تامينات 2026]:[خصم 5% تأمين من العمولة]],0),0),2) -> 0 | CR55: =ROUND(IF($D55=data.f2026[[#Headers],[مرضي]],$BD55-SUM(data.f2026[[#This Row],[تامينات 2026]:[خصم 5% تأمين من العمولة]],0),0),2) -> 0 | CS55: 0 | CT55: =ROUND(IF($G55=data.f2026[[#Headers],[إعارة]],$BD55-SUM(data.f2026[[#This Row],[تامينات 2026]:[خصم 5% تأمين من العمولة]],0),0),2) -> 0 | CU55: =ROUND(IF($G55=data.f2026[[#Headers],[معاش]],$BD55-SUM(data.f2026[[#This Row],[تامينات 2026]:[خصم 5% تأمين من العمولة]],0),0),2) -> 0 | CV55: 765.01 | CW55: 6234.99
B56: 202035 | C56: 30055 | D56: البنك الاهلى | E56: عادل فتحي عيد مجاهد | F56: مروه | G56: دوام كامل | H56: فنى | I56: الخامسة | J56: الخامسة | K56: حرفى ميكانيكى | L56: الاميرية | M56: 294403031400119 | N56: 202035عادل فتحي عيد مجاهدالخامسةالخامسةحرفى ميكانيكىالاميرية | O56: نعم | P56: 735.53 | Q56: 860.5701 | R56: 0 | S56: 1161.77 | T56: 129.09 | U56: 0 | V56: 0 | W56: 0 | Y56: 129.085515 | Z56: 300 | AB56: 0 | AD56: 0 | AE56: 0 | AF56: 429.09 | AG56: 0 | AH56: 0 | AI56: 0 | AJ56: 1285.41 | AK56: 0 | AL56: 0 | AM56: 0 | AN56: 0 | AO56: 0 | AP56: 0 | AQ56: 0 | AS56: 76.447 | AT56: 0 | AU56: 0 | AV56: 1361.86 | AW56: 10 | AX56: =ROUND((data.f2026[[#This Row],[أساسي 7/2025]]*2)/12,2) -> 143.43 | AY56: 0 | BA56: 30 | BB56: 4095.81 | BC56: 2904.19 | BD56: 7030 | BE56: 0 | BF56: 0 | BI56: 595.07 | BK56: 0 | BL56: 0 | BM56: =IF(data.f2026[[#This Row],[أيام الغياب]]=1,data.f2026[[#This Row],[الحافز]]*20%,IF(data.f2026[[#This Row],[أيام الغياب]]=2,data.f2026[[#This Row],[الحافز]]*100%,IF(data.f2026[[#This Row],[أيام الغياب]]>2,data.f2026[[#This Row],[الحافز]]*100%,""))) ->  | BN56: =IF(data.f2026[[#This Row],[عدد أيام الأجازات]]<=4,data.f2026[[#This Row],[الحافز]]*0,IF(data.f2026[[#This Row],[عدد أيام الأجازات]]=5,data.f2026[[#This Row],[الحافز]]*20%,IF(data.f2026[[#This Row],[عدد أيام الأجازات]]=6,data.f2026[[#This Row],[الحافز]]*40%,IF(data.f2026[[#This Row],[عدد أيام الأجازات]]=7,data.f2026[[#This Row],[الحافز]]*50%,IF(data.f2026[[#This Row],[عدد أيام الأجازات]]>7,data.f2026[[#This Row],[الحافز]]*100%,""))))) -> 0 | BO56: =IF(data.f2026[[#This Row],[أيام أجازات بعد السنوية]]<=2,data.f2026[[#This Row],[الحافز]]*0,IF(data.f2026[[#This Row],[أيام أجازات بعد السنوية]]=3,data.f2026[[#This Row],[الحافز]]*30%,IF(data.f2026[[#This Row],[أيام أجازات بعد السنوية]]=4,data.f2026[[#This Row],[الحافز]]*40%,IF(data.f2026[[#This Row],[أيام أجازات بعد السنوية]]=5,data.f2026[[#This Row],[الحافز]]*50%,IF(data.f2026[[#This Row],[أيام أجازات بعد السنوية]]>5,data.f2026[[#This Row],[الحافز]]*100%,""))))) -> 0 | BP56: 0 | BQ56: 0 | BS56: 3 | BT56: 0 | BV56: 0 | BZ56: 0 | CA56: 0 | CC56: 0 | CG56: 3 | CK56: 0 | CM56: 0 | CN56: 0 | CO56: 143.43 | CP56: 0 | CQ56: =ROUND(IF($D56=data.f2026[[#Headers],[إيقاف]],$BD56-SUM(data.f2026[[#This Row],[تامينات 2026]:[خصم 5% تأمين من العمولة]],0),0),2) -> 0 | CR56: =ROUND(IF($D56=data.f2026[[#Headers],[مرضي]],$BD56-SUM(data.f2026[[#This Row],[تامينات 2026]:[خصم 5% تأمين من العمولة]],0),0),2) -> 0 | CS56: 0 | CT56: =ROUND(IF($G56=data.f2026[[#Headers],[إعارة]],$BD56-SUM(data.f2026[[#This Row],[تامينات 2026]:[خصم 5% تأمين من العمولة]],0),0),2) -> 0 | CU56: =ROUND(IF($G56=data.f2026[[#Headers],[معاش]],$BD56-SUM(data.f2026[[#This Row],[تامينات 2026]:[خصم 5% تأمين من العمولة]],0),0),2) -> 0 | CV56: 744.5 | CW56: 6285.5
B57: 202038 | C57: 29033 | D57: البنك الاهلى | E57: احمد محمد احمد حسن | F57: مروه | G57: دوام كامل | H57: فنى | I57: الرابعة | J57: الرابعة | K57: حرفى سمكرى | L57: الاميرية | M57: 276120201101858 | N57: 202038احمد محمد احمد حسن الرابعةالرابعةحرفى سمكرىالاميرية | O57: نعم | P57: 1209.77 | Q57: 1415.4309 | R57: 0 | S57: 1910.83 | T57: 212.31 | U57: 0 | V57: 0 | W57: 0 | Y57: 212.314635 | Z57: 300 | AB57: 0 | AD57: 0 | AE57: 0 | AF57: 512.31 | AG57: 0 | AH57: 0 | AI57: 0 | AJ57: 355.82 | AK57: 0 | AL57: 24.18 | AM57: 43.13 | AN57: 55.38 | AO57: 79 | AP57: 84.53 | AQ57: 90.45 | AS57: 60.4885 | AT57: 600 | AU57: 10 | AV57: 1402.98 | AW57: 10 | AX57: =ROUND((data.f2026[[#This Row],[أساسي 7/2025]]*2)/12,2) -> 235.91 | AY57: 0 | BA57: 30 | BB57: 5699.77 | BC57: 1300.23 | BD57: 7030 | BE57: 0 | BF57: 0 | BI57: 632.72 | BK57: 0 | BL57: 0 | BM57: =IF(data.f2026[[#This Row],[أيام الغياب]]=1,data.f2026[[#This Row],[الحافز]]*20%,IF(data.f2026[[#This Row],[أيام الغياب]]=2,data.f2026[[#This Row],[الحافز]]*100%,IF(data.f2026[[#This Row],[أيام الغياب]]>2,data.f2026[[#This Row],[الحافز]]*100%,""))) ->  | BN57: =IF(data.f2026[[#This Row],[عدد أيام الأجازات]]<=4,data.f2026[[#This Row],[الحافز]]*0,IF(data.f2026[[#This Row],[عدد أيام الأجازات]]=5,data.f2026[[#This Row],[الحافز]]*20%,IF(data.f2026[[#This Row],[عدد أيام الأجازات]]=6,data.f2026[[#This Row],[الحافز]]*40%,IF(data.f2026[[#This Row],[عدد أيام الأجازات]]=7,data.f2026[[#This Row],[الحافز]]*50%,IF(data.f2026[[#This Row],[عدد أيام الأجازات]]>7,data.f2026[[#This Row],[الحافز]]*100%,""))))) -> 0 | BO57: =IF(data.f2026[[#This Row],[أيام أجازات بعد السنوية]]<=2,data.f2026[[#This Row],[الحافز]]*0,IF(data.f2026[[#This Row],[أيام أجازات بعد السنوية]]=3,data.f2026[[#This Row],[الحافز]]*30%,IF(data.f2026[[#This Row],[أيام أجازات بعد السنوية]]=4,data.f2026[[#This Row],[الحافز]]*40%,IF(data.f2026[[#This Row],[أيام أجازات بعد السنوية]]=5,data.f2026[[#This Row],[الحافز]]*50%,IF(data.f2026[[#This Row],[أيام أجازات بعد السنوية]]>5,data.f2026[[#This Row],[الحافز]]*100%,""))))) -> 0 | BP57: 0 | BQ57: 0 | BS57: 3 | BT57: 0 | BV57: 0 | BZ57: 0 | CA57: 0 | CC57: 0 | CG57: 3 | CK57: 0 | CM57: 0 | CN57: 0 | CO57: 235.91 | CP57: 0 | CQ57: =ROUND(IF($D57=data.f2026[[#Headers],[إيقاف]],$BD57-SUM(data.f2026[[#This Row],[تامينات 2026]:[خصم 5% تأمين من العمولة]],0),0),2) -> 0 | CR57: =ROUND(IF($D57=data.f2026[[#Headers],[مرضي]],$BD57-SUM(data.f2026[[#This Row],[تامينات 2026]:[خصم 5% تأمين من العمولة]],0),0),2) -> 0 | CS57: 0 | CT57: =ROUND(IF($G57=data.f2026[[#Headers],[إعارة]],$BD57-SUM(data.f2026[[#This Row],[تامينات 2026]:[خصم 5% تأمين من العمولة]],0),0),2) -> 0 | CU57: =ROUND(IF($G57=data.f2026[[#Headers],[معاش]],$BD57-SUM(data.f2026[[#This Row],[تامينات 2026]:[خصم 5% تأمين من العمولة]],0),0),2) -> 0 | CV57: 874.63 | CW57: 6155.37
B58: 202039 | C58: 44003 | D58: بنك مصر 1 | E58: احمد اشرف عبد المحسن حسن | F58: مروه | G58: دوام كامل | H58: فنى | I58: عقد مؤقت | L58: الاميرية | M58: 29809010104311 | N58: 202039احمد اشرف عبد المحسن حسنعقد مؤقت | P58: 401.32 | Q58: 401.32 | R58: 0 | S58: 541.78 | T58: 60.2 | U58: 0 | V58: 0 | W58: 0 | Y58: 60.198 | Z58: 300 | AB58: 0 | AD58: 0 | AE58: 0 | AF58: 360.2 | AG58: 0 | AH58: 0 | AI58: 0 | AJ58: 926.82 | AK58: 0 | AL58: 0 | AM58: 0 | AN58: 0 | AO58: 0 | AP58: 0 | AQ58: 0 | AS58: 109.868 | AT58: 600 | AU58: 0 | AV58: 1636.69 | AW58: 10 | AX58: =ROUND((data.f2026[[#This Row],[أساسي 7/2025]]*2)/12,2) -> 66.89 | AY58: 0 | BA58: 0 | BB58: 3077.08 | BC58: 3922.92 | BD58: 7000 | BE58: 0 | BF58: 0 | BI58: 588.6 | BK58: 0 | BL58: 0 | BM58: =IF(data.f2026[[#This Row],[أيام الغياب]]=1,data.f2026[[#This Row],[الحافز]]*20%,IF(data.f2026[[#This Row],[أيام الغياب]]=2,data.f2026[[#This Row],[الحافز]]*100%,IF(data.f2026[[#This Row],[أيام الغياب]]>2,data.f2026[[#This Row],[الحافز]]*100%,""))) ->  | BN58: =IF(data.f2026[[#This Row],[عدد أيام الأجازات]]<=4,data.f2026[[#This Row],[الحافز]]*0,IF(data.f2026[[#This Row],[عدد أيام الأجازات]]=5,data.f2026[[#This Row],[الحافز]]*20%,IF(data.f2026[[#This Row],[عدد أيام الأجازات]]=6,data.f2026[[#This Row],[الحافز]]*40%,IF(data.f2026[[#This Row],[عدد أيام الأجازات]]=7,data.f2026[[#This Row],[الحافز]]*50%,IF(data.f2026[[#This Row],[عدد أيام الأجازات]]>7,data.f2026[[#This Row],[الحافز]]*100%,""))))) -> 0 | BO58: =IF(data.f2026[[#This Row],[أيام أجازات بعد السنوية]]<=2,data.f2026[[#This Row],[الحافز]]*0,IF(data.f2026[[#This Row],[أيام أجازات بعد السنوية]]=3,data.f2026[[#This Row],[الحافز]]*30%,IF(data.f2026[[#This Row],[أيام أجازات بعد السنوية]]=4,data.f2026[[#This Row],[الحافز]]*40%,IF(data.f2026[[#This Row],[أيام أجازات بعد السنوية]]=5,data.f2026[[#This Row],[الحافز]]*50%,IF(data.f2026[[#This Row],[أيام أجازات بعد السنوية]]>5,data.f2026[[#This Row],[الحافز]]*100%,""))))) -> 0 | BP58: 0 | BQ58: 0 | BS58: 3 | BT58: 0 | BV58: 0 | BZ58: 0 | CA58: 0 | CC58: 0 | CG58: 3 | CK58: 0 | CM58: 0 | CN58: 0 | CO58: 66.89 | CP58: 0 | CQ58: =ROUND(IF($D58=data.f2026[[#Headers],[إيقاف]],$BD58-SUM(data.f2026[[#This Row],[تامينات 2026]:[خصم 5% تأمين من العمولة]],0),0),2) -> 0 | CR58: =ROUND(IF($D58=data.f2026[[#Headers],[مرضي]],$BD58-SUM(data.f2026[[#This Row],[تامينات 2026]:[خصم 5% تأمين من العمولة]],0),0),2) -> 0 | CS58: 0 | CT58: =ROUND(IF($G58=data.f2026[[#Headers],[إعارة]],$BD58-SUM(data.f2026[[#This Row],[تامينات 2026]:[خصم 5% تأمين من العمولة]],0),0),2) -> 0 | CU58: =ROUND(IF($G58=data.f2026[[#Headers],[معاش]],$BD58-SUM(data.f2026[[#This Row],[تامينات 2026]:[خصم 5% تأمين من العمولة]],0),0),2) -> 0 | CV58: 661.49 | CW58: 6338.51
B59: 202040 | C59: 22152 | D59: بنك مصر 1 | E59: رمضان امين محمد عبد الله | F59: مروه | G59: دوام كامل | H59: فنى | I59: الرابعة | J59: الرابعة | K59: حرفى نقاش | L59: الاميرية | M59: 27417150102733 | N59: 202040رمضان امين محمد عبد اللهالرابعةالرابعةحرفى نقاشالاميرية | O59: نعم | P59: 1090.62 | Q59: 1276.0254 | R59: 0 | S59: 1722.63 | T59: 191.4 | U59: 0 | V59: 0 | W59: 0 | Y59: 191.40381 | Z59: 300 | AB59: 0 | AC59: 0 | AD59: 0 | AE59: 0 | AF59: 491.4 | AG59: 36.27 | AH59: 40.47 | AI59: 65 | AJ59: 0 | AK59: 200 | AL59: 24.13 | AM59: 38.88 | AN59: 49.92 | AO59: 71.22 | AP59: 76.21 | AQ59: 81.54 | AS59: 54.531 | AT59: 600 | AU59: 10 | AV59: 1348.17 | AW59: 10 | AX59: =ROUND((data.f2026[[#This Row],[أساسي 7/2025]]*2)/12,2) -> 212.67 | AY59: 0 | BA59: 0 | BB59: 5252.3 | BC59: 1747.7 | BD59: 7000 | BE59: 0 | BF59: 0 | BI59: 638.99 | BK59: 0 | BL59: 0 | BM59: =IF(data.f2026[[#This Row],[أيام الغياب]]=1,data.f2026[[#This Row],[الحافز]]*20%,IF(data.f2026[[#This Row],[أيام الغياب]]=2,data.f2026[[#This Row],[الحافز]]*100%,IF(data.f2026[[#This Row],[أيام الغياب]]>2,data.f2026[[#This Row],[الحافز]]*100%,""))) ->  | BN59: =IF(data.f2026[[#This Row],[عدد أيام الأجازات]]<=4,data.f2026[[#This Row],[الحافز]]*0,IF(data.f2026[[#This Row],[عدد أيام الأجازات]]=5,data.f2026[[#This Row],[الحافز]]*20%,IF(data.f2026[[#This Row],[عدد أيام الأجازات]]=6,data.f2026[[#This Row],[الحافز]]*40%,IF(data.f2026[[#This Row],[عدد أيام الأجازات]]=7,data.f2026[[#This Row],[الحافز]]*50%,IF(data.f2026[[#This Row],[عدد أيام الأجازات]]>7,data.f2026[[#This Row],[الحافز]]*100%,""))))) -> 0 | BO59: =IF(data.f2026[[#This Row],[أيام أجازات بعد السنوية]]<=2,data.f2026[[#This Row],[الحافز]]*0,IF(data.f2026[[#This Row],[أيام أجازات بعد السنوية]]=3,data.f2026[[#This Row],[الحافز]]*30%,IF(data.f2026[[#This Row],[أيام أجازات بعد السنوية]]=4,data.f2026[[#This Row],[الحافز]]*40%,IF(data.f2026[[#This Row],[أيام أجازات بعد السنوية]]=5,data.f2026[[#This Row],[الحافز]]*50%,IF(data.f2026[[#This Row],[أيام أجازات بعد السنوية]]>5,data.f2026[[#This Row],[الحافز]]*100%,""))))) -> 0 | BP59: 0 | BQ59: 0 | BR59: 0 | BS59: 3 | BT59: 0 | BU59: 0 | BV59: 0 | BW59: 0 | BY59: 0 | BZ59: 0 | CA59: 0 | CB59: 0 | CC59: 0 | CD59: 0 | CG59: 3 | CJ59: 0 | CK59: 0 | CM59: 0 | CN59: 0 | CO59: 212.67 | CP59: 0 | CQ59: =ROUND(IF($D59=data.f2026[[#Headers],[إيقاف]],$BD59-SUM(data.f2026[[#This Row],[تامينات 2026]:[خصم 5% تأمين من العمولة]],0),0),2) -> 0 | CR59: =ROUND(IF($D59=data.f2026[[#Headers],[مرضي]],$BD59-SUM(data.f2026[[#This Row],[تامينات 2026]:[خصم 5% تأمين من العمولة]],0),0),2) -> 0 | CS59: 0 | CT59: =ROUND(IF($G59=data.f2026[[#Headers],[إعارة]],$BD59-SUM(data.f2026[[#This Row],[تامينات 2026]:[خصم 5% تأمين من العمولة]],0),0),2) -> 0 | CU59: =ROUND(IF($G59=data.f2026[[#Headers],[معاش]],$BD59-SUM(data.f2026[[#This Row],[تامينات 2026]:[خصم 5% تأمين من العمولة]],0),0),2) -> 0 | CV59: 857.66 | CW59: 6142.34
B60: 202041 | C60: 21890 | D60: بنك مصر 1 | E60: وليد احمد عبده ابراهيم | F60: مروة | G60: دوام كامل | H60: فنى | I60: الاولى | J60: الأولى | K60: فنى كهربائى سيارات | L60: الاميرية | M60: 27211020101311 | N60: 202041وليد احمد عبده ابراهيمالاولىالأولىفنى كهربائى سياراتقطاع شئون الفنية | O60: نعم | P60: 2267.84 | Q60: 2653.3728 | R60: 0 | S60: 3582.05 | T60: 398.01 | U60: 0 | V60: 0 | W60: 0 | Y60: 398.00592 | Z60: 300 | AB60: 0 | AC60: 0 | AD60: 0 | AE60: 0 | AF60: 698.01 | AG60: 74.27 | AH60: 83.17 | AI60: 100.05 | AJ60: 0 | AK60: 190 | AL60: 45.33 | AM60: 80.84 | AN60: 103.81 | AO60: 148.1 | AP60: 158.47 | AQ60: 169.56 | AS60: 113.392 | AT60: 600 | AU60: 10 | AV60: 1876.99 | AW60: 10 | AX60: =ROUND((data.f2026[[#This Row],[أساسي 7/2025]]*2)/12,2) -> 442.23 | AY60: 0 | BA60: 0 | BB60: 9660.66 | BC60: 0 | BD60: 9660.66 | BE60: 0 | BF60: 0 | BI60: 962.91 | BK60: 0 | BL60: 0 | BM60: =IF(data.f2026[[#This Row],[أيام الغياب]]=1,data.f2026[[#This Row],[الحافز]]*20%,IF(data.f2026[[#This Row],[أيام الغياب]]=2,data.f2026[[#This Row],[الحافز]]*100%,IF(data.f2026[[#This Row],[أيام الغياب]]>2,data.f2026[[#This Row],[الحافز]]*100%,""))) ->  | BN60: =IF(data.f2026[[#This Row],[عدد أيام الأجازات]]<=4,data.f2026[[#This Row],[الحافز]]*0,IF(data.f2026[[#This Row],[عدد أيام الأجازات]]=5,data.f2026[[#This Row],[الحافز]]*20%,IF(data.f2026[[#This Row],[عدد أيام الأجازات]]=6,data.f2026[[#This Row],[الحافز]]*40%,IF(data.f2026[[#This Row],[عدد أيام الأجازات]]=7,data.f2026[[#This Row],[الحافز]]*50%,IF(data.f2026[[#This Row],[عدد أيام الأجازات]]>7,data.f2026[[#This Row],[الحافز]]*100%,""))))) -> 0 | BO60: =IF(data.f2026[[#This Row],[أيام أجازات بعد السنوية]]<=2,data.f2026[[#This Row],[الحافز]]*0,IF(data.f2026[[#This Row],[أيام أجازات بعد السنوية]]=3,data.f2026[[#This Row],[الحافز]]*30%,IF(data.f2026[[#This Row],[أيام أجازات بعد السنوية]]=4,data.f2026[[#This Row],[الحافز]]*40%,IF(data.f2026[[#This Row],[أيام أجازات بعد السنوية]]=5,data.f2026[[#This Row],[الحافز]]*50%,IF(data.f2026[[#This Row],[أيام أجازات بعد السنوية]]>5,data.f2026[[#This Row],[الحافز]]*100%,""))))) -> 0 | BP60: 4.12 | BQ60: 0 | BR60: 0 | BS60: 3 | BT60: 0 | BU60: 0 | BV60: 0 | BW60: 0 | BY60: 0 | BZ60: 0 | CA60: 0 | CB60: 0 | CC60: 0 | CD60: 0 | CG60: 5 | CJ60: 0 | CK60: 0 | CM60: 0 | CN60: 0 | CO60: 442.23 | CP60: 0 | CQ60: =ROUND(IF($D60=data.f2026[[#Headers],[إيقاف]],$BD60-SUM(data.f2026[[#This Row],[تامينات 2026]:[خصم 5% تأمين من العمولة]],0),0),2) -> 0 | CR60: =ROUND(IF($D60=data.f2026[[#Headers],[مرضي]],$BD60-SUM(data.f2026[[#This Row],[تامينات 2026]:[خصم 5% تأمين من العمولة]],0),0),2) -> 0 | CS60: 0 | CT60: =ROUND(IF($G60=data.f2026[[#Headers],[إعارة]],$BD60-SUM(data.f2026[[#This Row],[تامينات 2026]:[خصم 5% تأمين من العمولة]],0),0),2) -> 0 | CU60: =ROUND(IF($G60=data.f2026[[#Headers],[معاش]],$BD60-SUM(data.f2026[[#This Row],[تامينات 2026]:[خصم 5% تأمين من العمولة]],0),0),2) -> 0 | CV60: 1417.26 | CW60: 8243.4
B61: 202042 | C61: 21730 | D61: بنك مصر 1 | E61: عصام الدين عفيفي محمود عفيفى | F61: مروة | G61: دوام كامل | H61: ادارى | I61: الثانية | L61: الاميرية | M61: 26610291000772 | N61: 202042عصام الدين عفيفي محمود عفيفىالثانية | P61: 2254.16 | Q61: 2637.37 | R61: 0 | S61: 3560.45 | T61: 395.61 | U61: 0 | V61: 0 | W61: 0 | Y61: 0 | Z61: 300 | AB61: 0 | AC61: 0 | AD61: 0 | AE61: 0 | AF61: 300 | AG61: 79.09 | AH61: 88.3 | AI61: 106 | AJ61: 0 | AK61: 190 | AL61: 45.06 | AM61: 80.36 | AN61: 103.18 | AO61: 147.2 | AP61: 157.51 | AQ61: 168.54 | AS61: 112.708 | AT61: 600 | AU61: 6 | AV61: 1883.95 | AW61: 10 | AX61: =ROUND((data.f2026[[#This Row],[أساسي 7/2025]]*2)/12,2) -> 439.56 | AY61: 0 | BA61: 0 | BB61: 9226.94 | BC61: 0 | BD61: 9226.94 | BE61: 0 | BF61: 0 | BI61: 932.51 | BK61: 0 | BL61: 0 | BM61: =IF(data.f2026[[#This Row],[أيام الغياب]]=1,data.f2026[[#This Row],[الحافز]]*20%,IF(data.f2026[[#This Row],[أيام الغياب]]=2,data.f2026[[#This Row],[الحافز]]*100%,IF(data.f2026[[#This Row],[أيام الغياب]]>2,data.f2026[[#This Row],[الحافز]]*100%,""))) ->  | BN61: =IF(data.f2026[[#This Row],[عدد أيام الأجازات]]<=4,data.f2026[[#This Row],[الحافز]]*0,IF(data.f2026[[#This Row],[عدد أيام الأجازات]]=5,data.f2026[[#This Row],[الحافز]]*20%,IF(data.f2026[[#This Row],[عدد أيام الأجازات]]=6,data.f2026[[#This Row],[الحافز]]*40%,IF(data.f2026[[#This Row],[عدد أيام الأجازات]]=7,data.f2026[[#This Row],[الحافز]]*50%,IF(data.f2026[[#This Row],[عدد أيام الأجازات]]>7,data.f2026[[#This Row],[الحافز]]*100%,""))))) -> 0 | BO61: =IF(data.f2026[[#This Row],[أيام أجازات بعد السنوية]]<=2,data.f2026[[#This Row],[الحافز]]*0,IF(data.f2026[[#This Row],[أيام أجازات بعد السنوية]]=3,data.f2026[[#This Row],[الحافز]]*30%,IF(data.f2026[[#This Row],[أيام أجازات بعد السنوية]]=4,data.f2026[[#This Row],[الحافز]]*40%,IF(data.f2026[[#This Row],[أيام أجازات بعد السنوية]]=5,data.f2026[[#This Row],[الحافز]]*50%,IF(data.f2026[[#This Row],[أيام أجازات بعد السنوية]]>5,data.f2026[[#This Row],[الحافز]]*100%,""))))) -> 0 | BP61: 172.82 | BQ61: 0 | BR61: 0 | BS61: 3 | BT61: 750 | BU61: 0 | BV61: 0 | BW61: 0 | BY61: 0 | BZ61: 0 | CA61: 0 | CB61: 0 | CC61: 0 | CD61: 0 | CG61: 3 | CJ61: 0 | CK61: 0 | CM61: 0 | CN61: 0 | CO61: 439.56 | CP61: 0 | CQ61: =ROUND(IF($D61=data.f2026[[#Headers],[إيقاف]],$BD61-SUM(data.f2026[[#This Row],[تامينات 2026]:[خصم 5% تأمين من العمولة]],0),0),2) -> 0 | CR61: =ROUND(IF($D61=data.f2026[[#Headers],[مرضي]],$BD61-SUM(data.f2026[[#This Row],[تامينات 2026]:[خصم 5% تأمين من العمولة]],0),0),2) -> 0 | CS61: 0 | CT61: =ROUND(IF($G61=data.f2026[[#Headers],[إعارة]],$BD61-SUM(data.f2026[[#This Row],[تامينات 2026]:[خصم 5% تأمين من العمولة]],0),0),2) -> 0 | CU61: =ROUND(IF($G61=data.f2026[[#Headers],[معاش]],$BD61-SUM(data.f2026[[#This Row],[تامينات 2026]:[خصم 5% تأمين من العمولة]],0),0),2) -> 0 | CV61: 2300.89 | CW61: 6926.05
B62: 202043 | C62: 21813 | D62: بنك مصر 1 | E62: محرم فكرى جلال عبد الباقى | F62: مروة | G62: دوام كامل | H62: فنى | I62: الثالثة | J62: الثالثة | K62: حرفى ميكانيكى | L62: الاميرية | M62: 27503162101777 | N62: 202043محرم فكرى جلال عبد الباقىالثالثةالثالثةحرفى ميكانيكى الاميرية | O62: نعم | P62: 1998.07 | Q62: 2337.7419 | R62: 0 | S62: 3155.95 | T62: 350.66 | U62: 0 | V62: 0 | W62: 0 | Y62: 350.661285 | Z62: 300 | AB62: 0 | AC62: 0 | AD62: 0 | AE62: 0 | AF62: 650.66 | AG62: 70.76 | AH62: 78.98 | AI62: 94.28 | AJ62: 0 | AK62: 200 | AL62: 39.94 | AM62: 71.23 | AN62: 91.46 | AO62: 130.48 | AP62: 139.62 | AQ62: 149.39 | AS62: 99.9035 | AT62: 600 | AU62: 10 | AV62: 1776.04 | AW62: 10 | AX62: =ROUND((data.f2026[[#This Row],[أساسي 7/2025]]*2)/12,2) -> 389.62 | AY62: 0 | BA62: 0 | BB62: 8670.67 | BC62: 0 | BD62: 8670.67 | BE62: 0 | BF62: 0 | BI62: 861.88 | BK62: 0 | BL62: 0 | BM62: =IF(data.f2026[[#This Row],[أيام الغياب]]=1,data.f2026[[#This Row],[الحافز]]*20%,IF(data.f2026[[#This Row],[أيام الغياب]]=2,data.f2026[[#This Row],[الحافز]]*100%,IF(data.f2026[[#This Row],[أيام الغياب]]>2,data.f2026[[#This Row],[الحافز]]*100%,""))) ->  | BN62: =IF(data.f2026[[#This Row],[عدد أيام الأجازات]]<=4,data.f2026[[#This Row],[الحافز]]*0,IF(data.f2026[[#This Row],[عدد أيام الأجازات]]=5,data.f2026[[#This Row],[الحافز]]*20%,IF(data.f2026[[#This Row],[عدد أيام الأجازات]]=6,data.f2026[[#This Row],[الحافز]]*40%,IF(data.f2026[[#This Row],[عدد أيام الأجازات]]=7,data.f2026[[#This Row],[الحافز]]*50%,IF(data.f2026[[#This Row],[عدد أيام الأجازات]]>7,data.f2026[[#This Row],[الحافز]]*100%,""))))) -> 0 | BO62: =IF(data.f2026[[#This Row],[أيام أجازات بعد السنوية]]<=2,data.f2026[[#This Row],[الحافز]]*0,IF(data.f2026[[#This Row],[أيام أجازات بعد السنوية]]=3,data.f2026[[#This Row],[الحافز]]*30%,IF(data.f2026[[#This Row],[أيام أجازات بعد السنوية]]=4,data.f2026[[#This Row],[الحافز]]*40%,IF(data.f2026[[#This Row],[أيام أجازات بعد السنوية]]=5,data.f2026[[#This Row],[الحافز]]*50%,IF(data.f2026[[#This Row],[أيام أجازات بعد السنوية]]>5,data.f2026[[#This Row],[الحافز]]*100%,""))))) -> 0 | BP62: 0 | BQ62: 0 | BR62: 0 | BS62: 3 | BT62: 0 | BU62: 0 | BV62: 0 | BW62: 0 | BY62: 0 | BZ62: 0 | CA62: 0 | CB62: 0 | CC62: 0 | CD62: 0 | CG62: 3 | CJ62: 0 | CK62: 0 | CM62: 0 | CN62: 0 | CO62: 389.62 | CP62: 0 | CQ62: =ROUND(IF($D62=data.f2026[[#Headers],[إيقاف]],$BD62-SUM(data.f2026[[#This Row],[تامينات 2026]:[خصم 5% تأمين من العمولة]],0),0),2) -> 0 | CR62: =ROUND(IF($D62=data.f2026[[#Headers],[مرضي]],$BD62-SUM(data.f2026[[#This Row],[تامينات 2026]:[خصم 5% تأمين من العمولة]],0),0),2) -> 0 | CS62: 0 | CT62: =ROUND(IF($G62=data.f2026[[#Headers],[إعارة]],$BD62-SUM(data.f2026[[#This Row],[تامينات 2026]:[خصم 5% تأمين من العمولة]],0),0),2) -> 0 | CU62: =ROUND(IF($G62=data.f2026[[#Headers],[معاش]],$BD62-SUM(data.f2026[[#This Row],[تامينات 2026]:[خصم 5% تأمين من العمولة]],0),0),2) -> 0 | CV62: 1257.5 | CW62: 7413.17
B63: 202044 | C63: 22120 | D63: بنك مصر 1 | E63: علاء الدين عبد الغنى عبد الرحمن | F63: مروة | G63: دوام كامل | H63: فنى | I63: الثالثة | J63: الثالثة | K63: حرفى ميكانيكى | L63: الاميرية | M63: 27809282102272 | N63: 202044علاء الدين عبد الغنى عبد الرحمن الثالثةالثالثةحرفى ميكانيكى الاميرية | O63: نعم | P63: 1660.9 | Q63: 1943.253 | R63: 0 | S63: 2623.39 | T63: 291.49 | U63: 0 | V63: 0 | W63: 0 | Y63: 291.48795 | Z63: 300 | AB63: 0 | AC63: 0 | AD63: 0 | AE63: 0 | AF63: 591.49 | AG63: 59.01 | AH63: 65.8 | AI63: 78.36 | AJ63: 0 | AK63: 200 | AL63: 33.2 | AM63: 59.21 | AN63: 76.03 | AO63: 108.46 | AP63: 116.06 | AQ63: 124.18 | AS63: 83.045 | AT63: 600 | AU63: 10 | AV63: 1613.36 | AW63: 10 | AX63: =ROUND((data.f2026[[#This Row],[أساسي 7/2025]]*2)/12,2) -> 323.88 | AY63: 0 | BA63: 0 | BB63: 7396.86 | BC63: 0 | BD63: 7396.86 | BE63: 0 | BF63: 0 | BI63: 731.47 | BK63: 0 | BL63: 0 | BM63: =IF(data.f2026[[#This Row],[أيام الغياب]]=1,data.f2026[[#This Row],[الحافز]]*20%,IF(data.f2026[[#This Row],[أيام الغياب]]=2,data.f2026[[#This Row],[الحافز]]*100%,IF(data.f2026[[#This Row],[أيام الغياب]]>2,data.f2026[[#This Row],[الحافز]]*100%,""))) ->  | BN63: =IF(data.f2026[[#This Row],[عدد أيام الأجازات]]<=4,data.f2026[[#This Row],[الحافز]]*0,IF(data.f2026[[#This Row],[عدد أيام الأجازات]]=5,data.f2026[[#This Row],[الحافز]]*20%,IF(data.f2026[[#This Row],[عدد أيام الأجازات]]=6,data.f2026[[#This Row],[الحافز]]*40%,IF(data.f2026[[#This Row],[عدد أيام الأجازات]]=7,data.f2026[[#This Row],[الحافز]]*50%,IF(data.f2026[[#This Row],[عدد أيام الأجازات]]>7,data.f2026[[#This Row],[الحافز]]*100%,""))))) -> 0 | BO63: =IF(data.f2026[[#This Row],[أيام أجازات بعد السنوية]]<=2,data.f2026[[#This Row],[الحافز]]*0,IF(data.f2026[[#This Row],[أيام أجازات بعد السنوية]]=3,data.f2026[[#This Row],[الحافز]]*30%,IF(data.f2026[[#This Row],[أيام أجازات بعد السنوية]]=4,data.f2026[[#This Row],[الحافز]]*40%,IF(data.f2026[[#This Row],[أيام أجازات بعد السنوية]]=5,data.f2026[[#This Row],[الحافز]]*50%,IF(data.f2026[[#This Row],[أيام أجازات بعد السنوية]]>5,data.f2026[[#This Row],[الحافز]]*100%,""))))) -> 0 | BP63: 0 | BQ63: 0 | BR63: 0 | BS63: 3 | BT63: 0 | BU63: 0 | BV63: 0 | BW63: 0 | BY63: 0 | BZ63: 0 | CA63: 0 | CB63: 0 | CC63: 0 | CD63: 0 | CG63: 3 | CJ63: 0 | CK63: 0 | CM63: 0 | CN63: 0 | CO63: 323.88 | CP63: 0 | CQ63: =ROUND(IF($D63=data.f2026[[#Headers],[إيقاف]],$BD63-SUM(data.f2026[[#This Row],[تامينات 2026]:[خصم 5% تأمين من العمولة]],0),0),2) -> 0 | CR63: =ROUND(IF($D63=data.f2026[[#Headers],[مرضي]],$BD63-SUM(data.f2026[[#This Row],[تامينات 2026]:[خصم 5% تأمين من العمولة]],0),0),2) -> 0 | CS63: 0 | CT63: =ROUND(IF($G63=data.f2026[[#Headers],[إعارة]],$BD63-SUM(data.f2026[[#This Row],[تامينات 2026]:[خصم 5% تأمين من العمولة]],0),0),2) -> 0 | CU63: =ROUND(IF($G63=data.f2026[[#Headers],[معاش]],$BD63-SUM(data.f2026[[#This Row],[تامينات 2026]:[خصم 5% تأمين من العمولة]],0),0),2) -> 0 | CV63: 1061.35 | CW63: 6335.51
B64: 202045 | C64: 21983 | D64: بنك مصر 1 | E64: محمد عبد المقصود محمد عفيفى | F64: مروة | G64: دوام كامل | H64: فنى | I64: الثالثة | J64: الثالثة | K64: حرفى خراط | L64: الاميرية | M64: 27505230100418 | N64: 202045محمد عبد المقصود محمد عفيفىالثالثةالثالثةحرفى خراطالاميرية | O64: نعم | P64: 1893.84 | Q64: 2215.7928 | R64: 0 | S64: 2991.32 | T64: 332.37 | U64: 0 | V64: 0 | W64: 0 | Y64: 332.36892 | Z64: 300 | AB64: 0 | AC64: 0 | AD64: 0 | AE64: 0 | AF64: 632.37 | AG64: 67.21 | AH64: 74.98 | AI64: 89.38 | AJ64: 0 | AK64: 200 | AL64: 37.86 | AM64: 67.51 | AN64: 86.69 | AO64: 123.67 | AP64: 132.33 | AQ64: 141.6 | AS64: 94.692 | AT64: 600 | AU64: 8 | AV64: 1723.92 | AW64: 10 | AX64: =ROUND((data.f2026[[#This Row],[أساسي 7/2025]]*2)/12,2) -> 369.3 | AY64: 0 | BA64: 0 | BB64: 8275.07 | BC64: 0 | BD64: 8275.07 | BE64: 0 | BF64: 0 | BI64: 821.6 | BK64: 0 | BL64: 0 | BM64: =IF(data.f2026[[#This Row],[أيام الغياب]]=1,data.f2026[[#This Row],[الحافز]]*20%,IF(data.f2026[[#This Row],[أيام الغياب]]=2,data.f2026[[#This Row],[الحافز]]*100%,IF(data.f2026[[#This Row],[أيام الغياب]]>2,data.f2026[[#This Row],[الحافز]]*100%,""))) ->  | BN64: =IF(data.f2026[[#This Row],[عدد أيام الأجازات]]<=4,data.f2026[[#This Row],[الحافز]]*0,IF(data.f2026[[#This Row],[عدد أيام الأجازات]]=5,data.f2026[[#This Row],[الحافز]]*20%,IF(data.f2026[[#This Row],[عدد أيام الأجازات]]=6,data.f2026[[#This Row],[الحافز]]*40%,IF(data.f2026[[#This Row],[عدد أيام الأجازات]]=7,data.f2026[[#This Row],[الحافز]]*50%,IF(data.f2026[[#This Row],[عدد أيام الأجازات]]>7,data.f2026[[#This Row],[الحافز]]*100%,""))))) -> 0 | BO64: =IF(data.f2026[[#This Row],[أيام أجازات بعد السنوية]]<=2,data.f2026[[#This Row],[الحافز]]*0,IF(data.f2026[[#This Row],[أيام أجازات بعد السنوية]]=3,data.f2026[[#This Row],[الحافز]]*30%,IF(data.f2026[[#This Row],[أيام أجازات بعد السنوية]]=4,data.f2026[[#This Row],[الحافز]]*40%,IF(data.f2026[[#This Row],[أيام أجازات بعد السنوية]]=5,data.f2026[[#This Row],[الحافز]]*50%,IF(data.f2026[[#This Row],[أيام أجازات بعد السنوية]]>5,data.f2026[[#This Row],[الحافز]]*100%,""))))) -> 0 | BP64: 0 | BQ64: 0 | BR64: 0 | BS64: 3 | BT64: 0 | BU64: 0 | BV64: 0 | BW64: 0 | BY64: 0 | BZ64: 0 | CA64: 0 | CB64: 0 | CC64: 0 | CD64: 0 | CG64: 3 | CJ64: 0 | CK64: 0 | CM64: 0 | CN64: 0 | CO64: 369.3 | CP64: 0 | CQ64: =ROUND(IF($D64=data.f2026[[#Headers],[إيقاف]],$BD64-SUM(data.f2026[[#This Row],[تامينات 2026]:[خصم 5% تأمين من العمولة]],0),0),2) -> 0 | CR64: =ROUND(IF($D64=data.f2026[[#Headers],[مرضي]],$BD64-SUM(data.f2026[[#This Row],[تامينات 2026]:[خصم 5% تأمين من العمولة]],0),0),2) -> 0 | CS64: 0 | CT64: =ROUND(IF($G64=data.f2026[[#Headers],[إعارة]],$BD64-SUM(data.f2026[[#This Row],[تامينات 2026]:[خصم 5% تأمين من العمولة]],0),0),2) -> 0 | CU64: =ROUND(IF($G64=data.f2026[[#Headers],[معاش]],$BD64-SUM(data.f2026[[#This Row],[تامينات 2026]:[خصم 5% تأمين من العمولة]],0),0),2) -> 0 | CV64: 1196.9 | CW64: 7078.17
B65: 202046 | C65: 21833 | D65: بنك مصر 1 | E65: دياب على محمد ابراهيم | F65: مروة | G65: دوام كامل | H65: فنى | I65: الثالثة | J65: الثالثة | K65: حرفى ميكانيكى | L65: الاميرية | M65: 27506290100758 | N65: 202046دياب على محمد ابراهيم الثالثةالثالثةحرفى ميكانيكى الاميرية | O65: نعم | P65: 1979.69 | Q65: 2316.2373 | R65: 0 | S65: 3126.92 | T65: 347.44 | U65: 0 | V65: 0 | W65: 0 | Y65: 347.435595 | Z65: 300 | AB65: 0 | AC65: 0 | AD65: 0 | AE65: 0 | AF65: 647.44 | AG65: 70.23 | AH65: 78.36 | AI65: 93.44 | AJ65: 0 | AK65: 200 | AL65: 39.57 | AM65: 70.57 | AN65: 90.62 | AO65: 129.28 | AP65: 138.33 | AQ65: 148.01 | AS65: 98.9845 | AT65: 600 | AU65: 10 | AV65: 1767.39 | AW65: 10 | AX65: =ROUND((data.f2026[[#This Row],[أساسي 7/2025]]*2)/12,2) -> 386.04 | AY65: 0 | BA65: 0 | BB65: 8601.47 | BC65: 0 | BD65: 8601.47 | BE65: 0 | BF65: 0 | BI65: 855.02 | BK65: 0 | BL65: 0 | BM65: =IF(data.f2026[[#This Row],[أيام الغياب]]=1,data.f2026[[#This Row],[الحافز]]*20%,IF(data.f2026[[#This Row],[أيام الغياب]]=2,data.f2026[[#This Row],[الحافز]]*100%,IF(data.f2026[[#This Row],[أيام الغياب]]>2,data.f2026[[#This Row],[الحافز]]*100%,""))) ->  | BN65: =IF(data.f2026[[#This Row],[عدد أيام الأجازات]]<=4,data.f2026[[#This Row],[الحافز]]*0,IF(data.f2026[[#This Row],[عدد أيام الأجازات]]=5,data.f2026[[#This Row],[الحافز]]*20%,IF(data.f2026[[#This Row],[عدد أيام الأجازات]]=6,data.f2026[[#This Row],[الحافز]]*40%,IF(data.f2026[[#This Row],[عدد أيام الأجازات]]=7,data.f2026[[#This Row],[الحافز]]*50%,IF(data.f2026[[#This Row],[عدد أيام الأجازات]]>7,data.f2026[[#This Row],[الحافز]]*100%,""))))) -> 0 | BO65: =IF(data.f2026[[#This Row],[أيام أجازات بعد السنوية]]<=2,data.f2026[[#This Row],[الحافز]]*0,IF(data.f2026[[#This Row],[أيام أجازات بعد السنوية]]=3,data.f2026[[#This Row],[الحافز]]*30%,IF(data.f2026[[#This Row],[أيام أجازات بعد السنوية]]=4,data.f2026[[#This Row],[الحافز]]*40%,IF(data.f2026[[#This Row],[أيام أجازات بعد السنوية]]=5,data.f2026[[#This Row],[الحافز]]*50%,IF(data.f2026[[#This Row],[أيام أجازات بعد السنوية]]>5,data.f2026[[#This Row],[الحافز]]*100%,""))))) -> 0 | BP65: 0 | BQ65: 0 | BR65: 0 | BS65: 3 | BT65: 0 | BU65: 0 | BV65: 0 | BW65: 0 | BY65: 0 | BZ65: 0 | CA65: 0 | CB65: 0 | CC65: 0 | CD65: 0 | CG65: 3 | CJ65: 0 | CK65: 0 | CM65: 0 | CN65: 0 | CO65: 386.04 | CP65: 0 | CQ65: =ROUND(IF($D65=data.f2026[[#Headers],[إيقاف]],$BD65-SUM(data.f2026[[#This Row],[تامينات 2026]:[خصم 5% تأمين من العمولة]],0),0),2) -> 0 | CR65: =ROUND(IF($D65=data.f2026[[#Headers],[مرضي]],$BD65-SUM(data.f2026[[#This Row],[تامينات 2026]:[خصم 5% تأمين من العمولة]],0),0),2) -> 0 | CS65: 0 | CT65: =ROUND(IF($G65=data.f2026[[#Headers],[إعارة]],$BD65-SUM(data.f2026[[#This Row],[تامينات 2026]:[خصم 5% تأمين من العمولة]],0),0),2) -> 0 | CU65: =ROUND(IF($G65=data.f2026[[#Headers],[معاش]],$BD65-SUM(data.f2026[[#This Row],[تامينات 2026]:[خصم 5% تأمين من العمولة]],0),0),2) -> 0 | CV65: 1247.06 | CW65: 7354.41
B66: 202047 | C66: 21015 | D66: نقدي | E66: خالد محمد فهمى فهمى | F66: مروة | G66: دوام كامل | H66: فنى | I66: الثانية | J66: الثانية | K66: ميكانيكى | L66: الاميرية | M66: 26908250105452 | N66: 20204721015خالد محمد فهمى فهمىالثانيةالثانيةميكانيكى الاميرية | O66: نعم | P66: 2248.37 | Q66: 2630.5929 | R66: 0 | S66: 3551.3 | T66: 394.59 | U66: 0 | V66: 0 | W66: 0 | Y66: 394.59 | Z66: 300 | AB66: 0 | AC66: 0 | AD66: 0 | AE66: 0 | AF66: 694.59 | AG66: 79.55 | AH66: 88.83 | AI66: 106.11 | AJ66: 0 | AK66: 190 | AL66: 44.95 | AM66: 80.15 | AN66: 102.92 | AO66: 146.83 | AP66: 157.1 | AQ66: 168.1 | AR66: 0 | AS66: 112.4185 | AT66: 600 | AU66: 10 | AV66: 1886.96 | AW66: 10 | AX66: =ROUND((data.f2026[[#This Row],[أساسي 7/2025]]*2)/12,2) -> 438.43 | AY66: 0 | BA66: 0 | BB66: 9606.46 | BC66: 0 | BD66: 9606.46 | BE66: 0 | BF66: 0 | BG66: 0 | BH66: 0 | BI66: 958.17 | BK66: 0 | BL66: 0 | BM66: =IF(data.f2026[[#This Row],[أيام الغياب]]=1,data.f2026[[#This Row],[الحافز]]*20%,IF(data.f2026[[#This Row],[أيام الغياب]]=2,data.f2026[[#This Row],[الحافز]]*100%,IF(data.f2026[[#This Row],[أيام الغياب]]>2,data.f2026[[#This Row],[الحافز]]*100%,""))) ->  | BN66: =IF(data.f2026[[#This Row],[عدد أيام الأجازات]]<=4,data.f2026[[#This Row],[الحافز]]*0,IF(data.f2026[[#This Row],[عدد أيام الأجازات]]=5,data.f2026[[#This Row],[الحافز]]*20%,IF(data.f2026[[#This Row],[عدد أيام الأجازات]]=6,data.f2026[[#This Row],[الحافز]]*40%,IF(data.f2026[[#This Row],[عدد أيام الأجازات]]=7,data.f2026[[#This Row],[الحافز]]*50%,IF(data.f2026[[#This Row],[عدد أيام الأجازات]]>7,data.f2026[[#This Row],[الحافز]]*100%,""))))) -> 0 | BO66: =IF(data.f2026[[#This Row],[أيام أجازات بعد السنوية]]<=2,data.f2026[[#This Row],[الحافز]]*0,IF(data.f2026[[#This Row],[أيام أجازات بعد السنوية]]=3,data.f2026[[#This Row],[الحافز]]*30%,IF(data.f2026[[#This Row],[أيام أجازات بعد السنوية]]=4,data.f2026[[#This Row],[الحافز]]*40%,IF(data.f2026[[#This Row],[أيام أجازات بعد السنوية]]=5,data.f2026[[#This Row],[الحافز]]*50%,IF(data.f2026[[#This Row],[أيام أجازات بعد السنوية]]>5,data.f2026[[#This Row],[الحافز]]*100%,""))))) -> 0 | BP66: 0 | BQ66: 0 | BR66: 0 | BS66: 3 | BT66: 0 | BV66: 0 | BW66: 0 | BY66: 0 | BZ66: 0 | CA66: 0 | CB66: 0 | CC66: 0 | CD66: 0 | CG66: 5 | CJ66: 0 | CK66: 0 | CM66: 0 | CN66: 0 | CO66: 438.43 | CP66: 0 | CQ66: =ROUND(IF($D66=data.f2026[[#Headers],[إيقاف]],$BD66-SUM(data.f2026[[#This Row],[تامينات 2026]:[خصم 5% تأمين من العمولة]],0),0),2) -> 0 | CR66: =ROUND(IF($D66=data.f2026[[#Headers],[مرضي]],$BD66-SUM(data.f2026[[#This Row],[تامينات 2026]:[خصم 5% تأمين من العمولة]],0),0),2) -> 0 | CS66: 0 | CT66: =ROUND(IF($G66=data.f2026[[#Headers],[إعارة]],$BD66-SUM(data.f2026[[#This Row],[تامينات 2026]:[خصم 5% تأمين من العمولة]],0),0),2) -> 0 | CU66: =ROUND(IF($G66=data.f2026[[#Headers],[معاش]],$BD66-SUM(data.f2026[[#This Row],[تامينات 2026]:[خصم 5% تأمين من العمولة]],0),0),2) -> 0 | CV66: 1404.6 | CW66: 8201.86
B67: 202048 | C67: 21306 | D67: مرضي | E67: عماد عبد الرازق سيد على | F67: مروه | G67: مرضي | H67: فنى | I67: الثالثة | J67: الثالثة | K67: حرفى ميكانيكى | L67: الاميرية | M67: 27110310100911 | N67: 202048عماد عبد الرازق سيد على مروهالثالثةالثالثةحرفى ميكانيكى السويس | O67: نعم | P67: 2041.57 | Q67: 2388.6369 | R67: 0 | S67: =ROUND(Q67*135%,2) -> 3224.66 | T67: =ROUND(Q67*15%,2) -> 358.3 | U67: 0 | V67: 0 | W67: 0 | Y67: 358.295535 | Z67: 300 | AB67: 0 | AC67: 0 | AD67: 0 | AE67: 0 | AF67: =ROUND(SUM(X67:AA67,AC67:AE67),2) -> 658.3 | AG67: 72.29 | AH67: 80.69 | AI67: 96.33 | AJ67: 0 | AK67: 200 | AL67: 40.81 | AM67: 72.78 | AN67: 93.45 | AO67: 133.32 | AP67: 142.66 | AQ67: 152.64 | AS67: 102.0785 | AT67: 600 | AU67: 10 | AV67: =ROUND(SUM(AG67:AU67),2) -> 1797.05 | AW67: 10 | AX67: =ROUND((data.f2026[[#This Row],[أساسي 7/2025]]*2)/12,2) -> 398.11 | AY67: 0 | BA67: 0 | BB67: =ROUND(SUM(Q67:W67,AF67,AV67,AW67:AX67),2) -> 8835.06 | BC67: =IF(BB67<7000,7000-BB67,0) -> 0 | BD67: =ROUND(SUM(AB67,AY67:BC67),2) -> 8835.06 | BE67: 0 | BF67: 0 | BI67: 878.65 | BK67: =(BD67-SUM($S67,AX67:BA67))/30*BG67 -> 0 | BL67: =(BD67-SUM($S67,AX67:BA67))/30*BH67 -> 0 | BM67: =IF(data.f2026[[#This Row],[أيام الغياب]]=1,data.f2026[[#This Row],[الحافز]]*20%,IF(data.f2026[[#This Row],[أيام الغياب]]=2,data.f2026[[#This Row],[الحافز]]*100%,IF(data.f2026[[#This Row],[أيام الغياب]]>2,data.f2026[[#This Row],[الحافز]]*100%,""))) ->  | BN67: =IF(data.f2026[[#This Row],[عدد أيام الأجازات]]<=4,data.f2026[[#This Row],[الحافز]]*0,IF(data.f2026[[#This Row],[عدد أيام الأجازات]]=5,data.f2026[[#This Row],[الحافز]]*20%,IF(data.f2026[[#This Row],[عدد أيام الأجازات]]=6,data.f2026[[#This Row],[الحافز]]*40%,IF(data.f2026[[#This Row],[عدد أيام الأجازات]]=7,data.f2026[[#This Row],[الحافز]]*50%,IF(data.f2026[[#This Row],[عدد أيام الأجازات]]>7,data.f2026[[#This Row],[الحافز]]*100%,""))))) -> 0 | BO67: =IF(data.f2026[[#This Row],[أيام أجازات بعد السنوية]]<=2,data.f2026[[#This Row],[الحافز]]*0,IF(data.f2026[[#This Row],[أيام أجازات بعد السنوية]]=3,data.f2026[[#This Row],[الحافز]]*30%,IF(data.f2026[[#This Row],[أيام أجازات بعد السنوية]]=4,data.f2026[[#This Row],[الحافز]]*40%,IF(data.f2026[[#This Row],[أيام أجازات بعد السنوية]]=5,data.f2026[[#This Row],[الحافز]]*50%,IF(data.f2026[[#This Row],[أيام أجازات بعد السنوية]]>5,data.f2026[[#This Row],[الحافز]]*100%,""))))) -> 0 | BP67: 0 | BQ67: 0 | BR67: 0 | BS67: 3 | BT67: 0 | BU67: 0 | BV67: 0 | BW67: 0 | BY67: 0 | BZ67: 0 | CA67: 0 | CB67: 0 | CC67: 0 | CD67: 0 | CG67: 3 | CJ67: 0 | CK67: 0 | CM67: 0 | CN67: 0 | CO67: 398.11 | CP67: 0 | CQ67: =ROUND(IF($D67=data.f2026[[#Headers],[إيقاف]],$BD67-SUM(data.f2026[[#This Row],[تامينات 2026]:[خصم 5% تأمين من العمولة]],0),0),2) -> 0 | CR67: =ROUND(IF($D67=data.f2026[[#Headers],[مرضي]],$BD67-SUM(data.f2026[[#This Row],[تامينات 2026]:[خصم 5% تأمين من العمولة]],0),0),2) -> 7552.3 | CS67: 0 | CT67: =ROUND(IF($G67=data.f2026[[#Headers],[إعارة]],$BD67-SUM(data.f2026[[#This Row],[تامينات 2026]:[خصم 5% تأمين من العمولة]],0),0),2) -> 0 | CU67: =ROUND(IF($G67=data.f2026[[#Headers],[معاش]],$BD67-SUM(data.f2026[[#This Row],[تامينات 2026]:[خصم 5% تأمين من العمولة]],0),0),2) -> 0 | CV67: 8835.06 | CW67: 0
B68: 202049 | C68: 21542 | D68: بنك مصر 1 | E68: رجب فتحى اسماعيل على | F68: مروه | G68: دوام كامل | H68: فنى | I68: الثانية | J68: الثانية | K68: ميكانيكى | L68: الاميرية | M68: 27208261500673 | N68: 202049رجب فتحى اسماعيل علىالثانيةالثانيةميكانيكى الهندسي | O68: نعم | P68: 2148.85 | Q68: 2514.1545 | R68: 0 | S68: 3394.11 | T68: 377.12 | U68: 0 | V68: 0 | W68: 0 | Y68: 377.123175 | Z68: 300 | AB68: 0 | AC68: 0 | AD68: 0 | AE68: 0 | AF68: 677.12 | AG68: 76.06 | AH68: 84.91 | AI68: 101.41 | AJ68: 0 | AK68: 190 | AL68: 42.96 | AM68: 76.6 | AN68: 98.36 | AO68: 140.33 | AP68: 150.15 | AQ68: 160.66 | AS68: 107.4425 | AT68: 600 | AU68: 10 | AV68: 1838.88 | AW68: 10 | AX68: =ROUND((data.f2026[[#This Row],[أساسي 7/2025]]*2)/12,2) -> 419.03 | AY68: 0 | BA68: 0 | BB68: 9230.41 | BC68: 0 | BD68: 9230.41 | BE68: 0 | BF68: 0 | BI68: 919.03 | BK68: 0 | BL68: 0 | BM68: =IF(data.f2026[[#This Row],[أيام الغياب]]=1,data.f2026[[#This Row],[الحافز]]*20%,IF(data.f2026[[#This Row],[أيام الغياب]]=2,data.f2026[[#This Row],[الحافز]]*100%,IF(data.f2026[[#This Row],[أيام الغياب]]>2,data.f2026[[#This Row],[الحافز]]*100%,""))) ->  | BN68: =IF(data.f2026[[#This Row],[عدد أيام الأجازات]]<=4,data.f2026[[#This Row],[الحافز]]*0,IF(data.f2026[[#This Row],[عدد أيام الأجازات]]=5,data.f2026[[#This Row],[الحافز]]*20%,IF(data.f2026[[#This Row],[عدد أيام الأجازات]]=6,data.f2026[[#This Row],[الحافز]]*40%,IF(data.f2026[[#This Row],[عدد أيام الأجازات]]=7,data.f2026[[#This Row],[الحافز]]*50%,IF(data.f2026[[#This Row],[عدد أيام الأجازات]]>7,data.f2026[[#This Row],[الحافز]]*100%,""))))) -> 0 | BO68: =IF(data.f2026[[#This Row],[أيام أجازات بعد السنوية]]<=2,data.f2026[[#This Row],[الحافز]]*0,IF(data.f2026[[#This Row],[أيام أجازات بعد السنوية]]=3,data.f2026[[#This Row],[الحافز]]*30%,IF(data.f2026[[#This Row],[أيام أجازات بعد السنوية]]=4,data.f2026[[#This Row],[الحافز]]*40%,IF(data.f2026[[#This Row],[أيام أجازات بعد السنوية]]=5,data.f2026[[#This Row],[الحافز]]*50%,IF(data.f2026[[#This Row],[أيام أجازات بعد السنوية]]>5,data.f2026[[#This Row],[الحافز]]*100%,""))))) -> 0 | BP68: 0 | BQ68: 0 | BR68: 0 | BS68: 3 | BT68: 0 | BU68: 0 | BV68: 0 | BW68: 0 | BY68: 0 | BZ68: 0 | CA68: 0 | CB68: 0 | CC68: 0 | CD68: 0 | CG68: 3 | CJ68: 0 | CK68: 0 | CM68: 0 | CN68: =ROUND(IF(G68=$CN$3,(BD68-AX68)*40%,0),2) -> 0 | CO68: =AX68 -> 419.03 | CP68: 0 | CQ68: =ROUND(IF($D68=data.f2026[[#Headers],[إيقاف]],$BD68-SUM(data.f2026[[#This Row],[تامينات 2026]:[خصم 5% تأمين من العمولة]],0),0),2) -> 0 | CR68: =ROUND(IF($D68=data.f2026[[#Headers],[مرضي]],$BD68-SUM(data.f2026[[#This Row],[تامينات 2026]:[خصم 5% تأمين من العمولة]],0),0),2) -> 0 | CS68: =ROUND(IF($D68=CS$3,$BD68-SUM(BI68:CP68,0),0),2) -> 0 | CT68: =ROUND(IF($G68=data.f2026[[#Headers],[إعارة]],$BD68-SUM(data.f2026[[#This Row],[تامينات 2026]:[خصم 5% تأمين من العمولة]],0),0),2) -> 0 | CU68: =ROUND(IF($G68=data.f2026[[#Headers],[معاش]],$BD68-SUM(data.f2026[[#This Row],[تامينات 2026]:[خصم 5% تأمين من العمولة]],0),0),2) -> 0 | CV68: =ROUND(SUM(BI68:CU68),2) -> 1344.06 | CW68: =BD68-CV68 -> 7886.35
B69: 202050 | C69: 22036 | D69: بنك مصر 1 | E69: محمد فؤاد فؤاد السيد | F69: مروه | G69: دوام كامل | H69: فنى | I69: الثالثة | J69: الثالثة | K69: حرفى سمكرى | L69: الاميرية | M69: 27740401004517 | N69: 202050محمد فؤاد فؤاد السيد الثالثةالثالثةحرفى سمكرىالاميرية | O69: نعم | P69: 1824.3 | Q69: 2134.431 | R69: 0 | S69: 2881.48 | T69: 320.16 | U69: 0 | V69: 0 | W69: 0 | Y69: 320.16465 | Z69: 300 | AB69: 0 | AC69: 0 | AD69: 0 | AE69: 0 | AF69: 620.16 | AG69: 64.76 | AH69: 72.24 | AI69: 86.09 | AJ69: 0 | AK69: 200 | AL69: 36.47 | AM69: 65.03 | AN69: 83.5 | AO69: 119.13 | AP69: 127.47 | AQ69: 136.4 | AS69: 91.215 | AT69: 600 | AU69: 8 | AV69: 1690.31 | AW69: 10 | AX69: =ROUND((data.f2026[[#This Row],[أساسي 7/2025]]*2)/12,2) -> 355.74 | AY69: 0 | BA69: 0 | BB69: 8012.28 | BC69: 0 | BD69: 8012.28 | BE69: 0 | BF69: 0 | BI69: 794.43 | BK69: 0 | BL69: 0 | BM69: =IF(data.f2026[[#This Row],[أيام الغياب]]=1,data.f2026[[#This Row],[الحافز]]*20%,IF(data.f2026[[#This Row],[أيام الغياب]]=2,data.f2026[[#This Row],[الحافز]]*100%,IF(data.f2026[[#This Row],[أيام الغياب]]>2,data.f2026[[#This Row],[الحافز]]*100%,""))) ->  | BN69: =IF(data.f2026[[#This Row],[عدد أيام الأجازات]]<=4,data.f2026[[#This Row],[الحافز]]*0,IF(data.f2026[[#This Row],[عدد أيام الأجازات]]=5,data.f2026[[#This Row],[الحافز]]*20%,IF(data.f2026[[#This Row],[عدد أيام الأجازات]]=6,data.f2026[[#This Row],[الحافز]]*40%,IF(data.f2026[[#This Row],[عدد أيام الأجازات]]=7,data.f2026[[#This Row],[الحافز]]*50%,IF(data.f2026[[#This Row],[عدد أيام الأجازات]]>7,data.f2026[[#This Row],[الحافز]]*100%,""))))) -> 0 | BO69: =IF(data.f2026[[#This Row],[أيام أجازات بعد السنوية]]<=2,data.f2026[[#This Row],[الحافز]]*0,IF(data.f2026[[#This Row],[أيام أجازات بعد السنوية]]=3,data.f2026[[#This Row],[الحافز]]*30%,IF(data.f2026[[#This Row],[أيام أجازات بعد السنوية]]=4,data.f2026[[#This Row],[الحافز]]*40%,IF(data.f2026[[#This Row],[أيام أجازات بعد السنوية]]=5,data.f2026[[#This Row],[الحافز]]*50%,IF(data.f2026[[#This Row],[أيام أجازات بعد السنوية]]>5,data.f2026[[#This Row],[الحافز]]*100%,""))))) -> 0 | BP69: 0 | BQ69: 0 | BR69: 0 | BS69: 3 | BT69: 0 | BU69: 0 | BV69: 0 | BW69: 0 | BY69: 0 | BZ69: 0 | CA69: 0 | CB69: 0 | CC69: 0 | CD69: 0 | CG69: 3 | CJ69: 0 | CK69: 0 | CM69: 0 | CN69: 0 | CO69: 355.74 | CP69: 0 | CQ69: =ROUND(IF($D69=data.f2026[[#Headers],[إيقاف]],$BD69-SUM(data.f2026[[#This Row],[تامينات 2026]:[خصم 5% تأمين من العمولة]],0),0),2) -> 0 | CR69: =ROUND(IF($D69=data.f2026[[#Headers],[مرضي]],$BD69-SUM(data.f2026[[#This Row],[تامينات 2026]:[خصم 5% تأمين من العمولة]],0),0),2) -> 0 | CS69: 0 | CT69: =ROUND(IF($G69=data.f2026[[#Headers],[إعارة]],$BD69-SUM(data.f2026[[#This Row],[تامينات 2026]:[خصم 5% تأمين من العمولة]],0),0),2) -> 0 | CU69: =ROUND(IF($G69=data.f2026[[#Headers],[معاش]],$BD69-SUM(data.f2026[[#This Row],[تامينات 2026]:[خصم 5% تأمين من العمولة]],0),0),2) -> 0 | CV69: 1156.17 | CW69: 6856.11
B70: 202053 | C70: 21897 | D70: البنك الاهلى | E70: صفوت كمال عبد العظيم رفاعى | F70: مروه | G70: مرضي | H70: فنى | I70: الثالثة | J70: الثالثة | K70: حرفى ميكانيكى | L70: الاميرية | M70: 27401300102391 | N70: 202053صفوت كمال عبد العظيم رفاعىمروهالثالثةالثالثةحرفى ميكانيكى الاميرية | O70: نعم | P70: 1890.74 | Q70: 2212.1658 | R70: 0 | S70: 2986.42 | T70: 331.82 | U70: 0 | V70: 0 | W70: 0 | Y70: 331.82487 | Z70: 300 | AB70: 0 | AC70: 0 | AD70: 0 | AE70: 0 | AF70: 631.82 | AG70: 62.31 | AH70: 69.52 | AI70: 83.32 | AJ70: 0 | AK70: 200 | AL70: 37.8 | AM70: 67.4 | AN70: 86.55 | AO70: 123.47 | AP70: 132.12 | AQ70: 141.36 | AS70: 94.537 | AT70: 600 | AU70: 10 | AV70: 1708.39 | AW70: 10 | AX70: =ROUND((data.f2026[[#This Row],[أساسي 7/2025]]*2)/12,2) -> 368.69 | AY70: 0 | BA70: 0 | BB70: 8249.31 | BC70: 0 | BD70: 8249.31 | BE70: 0 | BF70: 0 | BI70: 818.58 | BK70: 0 | BL70: 0 | BM70: =IF(data.f2026[[#This Row],[أيام الغياب]]=1,data.f2026[[#This Row],[الحافز]]*20%,IF(data.f2026[[#This Row],[أيام الغياب]]=2,data.f2026[[#This Row],[الحافز]]*100%,IF(data.f2026[[#This Row],[أيام الغياب]]>2,data.f2026[[#This Row],[الحافز]]*100%,""))) ->  | BN70: =IF(data.f2026[[#This Row],[عدد أيام الأجازات]]<=4,data.f2026[[#This Row],[الحافز]]*0,IF(data.f2026[[#This Row],[عدد أيام الأجازات]]=5,data.f2026[[#This Row],[الحافز]]*20%,IF(data.f2026[[#This Row],[عدد أيام الأجازات]]=6,data.f2026[[#This Row],[الحافز]]*40%,IF(data.f2026[[#This Row],[عدد أيام الأجازات]]=7,data.f2026[[#This Row],[الحافز]]*50%,IF(data.f2026[[#This Row],[عدد أيام الأجازات]]>7,data.f2026[[#This Row],[الحافز]]*100%,""))))) -> 0 | BO70: =IF(data.f2026[[#This Row],[أيام أجازات بعد السنوية]]<=2,data.f2026[[#This Row],[الحافز]]*0,IF(data.f2026[[#This Row],[أيام أجازات بعد السنوية]]=3,data.f2026[[#This Row],[الحافز]]*30%,IF(data.f2026[[#This Row],[أيام أجازات بعد السنوية]]=4,data.f2026[[#This Row],[الحافز]]*40%,IF(data.f2026[[#This Row],[أيام أجازات بعد السنوية]]=5,data.f2026[[#This Row],[الحافز]]*50%,IF(data.f2026[[#This Row],[أيام أجازات بعد السنوية]]>5,data.f2026[[#This Row],[الحافز]]*100%,""))))) -> 0 | BP70: 58.64 | BQ70: 0 | BR70: 0 | BS70: 3 | BT70: 0 | BU70: 0 | BV70: 0 | BW70: 0 | BY70: 0 | BZ70: 0 | CA70: 0 | CB70: 0 | CC70: 0 | CD70: 0 | CG70: 3 | CJ70: 0 | CK70: 0 | CM70: 0 | CN70: 0 | CO70: 368.69 | CP70: 0 | CQ70: =ROUND(IF($D70=data.f2026[[#Headers],[إيقاف]],$BD70-SUM(data.f2026[[#This Row],[تامينات 2026]:[خصم 5% تأمين من العمولة]],0),0),2) -> 0 | CR70: =ROUND(IF($D70=data.f2026[[#Headers],[مرضي]],$BD70-SUM(data.f2026[[#This Row],[تامينات 2026]:[خصم 5% تأمين من العمولة]],0),0),2) -> 0 | CS70: 0 | CT70: =ROUND(IF($G70=data.f2026[[#Headers],[إعارة]],$BD70-SUM(data.f2026[[#This Row],[تامينات 2026]:[خصم 5% تأمين من العمولة]],0),0),2) -> 0 | CU70: =ROUND(IF($G70=data.f2026[[#Headers],[معاش]],$BD70-SUM(data.f2026[[#This Row],[تامينات 2026]:[خصم 5% تأمين من العمولة]],0),0),2) -> 0 | CV70: 1251.91 | CW70: 6997.4
B71: 202054 | C71: 1130 | D71: بنك مصر 2 | E71: عبد النبي محمد عبد الحميد علي | F71: مروه | G71: دوام كامل | H71: فنى | I71: الثانية | J71: الثانية | K71: سمكرى | L71: الاميرية | M71: 27306251301194 | N71: 202054عبد النبي محمد عبد الحميد عليالثانيةالثانيةسمكرىالامن | O71: نعم | P71: 1879.01 | Q71: 2198.4417 | R71: 0 | S71: 2967.9 | T71: 329.77 | U71: 0 | V71: 0 | W71: 0 | Y71: 329.766255 | Z71: 300 | AB71: 0 | AD71: 0 | AE71: 0 | AF71: 629.77 | AG71: 62.21 | AH71: 69.28 | AI71: 83.14 | AJ71: 0 | AK71: 190 | AL71: 37.56 | AM71: 66.99 | AN71: 86.01 | AO71: 122.71 | AP71: 131.3 | AQ71: 140.49 | AS71: 93.9505 | AT71: 600 | AU71: 10 | AV71: 1693.64 | AW71: 10 | AX71: =ROUND((data.f2026[[#This Row],[أساسي 7/2025]]*2)/12,2) -> 366.41 | AY71: 0 | BA71: 0 | BB71: 8195.93 | BC71: 0 | BD71: 8195.93 | BE71: 0 | BF71: 0 | BI71: 813.05 | BK71: 0 | BL71: 0 | BM71: =IF(data.f2026[[#This Row],[أيام الغياب]]=1,data.f2026[[#This Row],[الحافز]]*20%,IF(data.f2026[[#This Row],[أيام الغياب]]=2,data.f2026[[#This Row],[الحافز]]*100%,IF(data.f2026[[#This Row],[أيام الغياب]]>2,data.f2026[[#This Row],[الحافز]]*100%,""))) ->  | BN71: =IF(data.f2026[[#This Row],[عدد أيام الأجازات]]<=4,data.f2026[[#This Row],[الحافز]]*0,IF(data.f2026[[#This Row],[عدد أيام الأجازات]]=5,data.f2026[[#This Row],[الحافز]]*20%,IF(data.f2026[[#This Row],[عدد أيام الأجازات]]=6,data.f2026[[#This Row],[الحافز]]*40%,IF(data.f2026[[#This Row],[عدد أيام الأجازات]]=7,data.f2026[[#This Row],[الحافز]]*50%,IF(data.f2026[[#This Row],[عدد أيام الأجازات]]>7,data.f2026[[#This Row],[الحافز]]*100%,""))))) -> 0 | BO71: =IF(data.f2026[[#This Row],[أيام أجازات بعد السنوية]]<=2,data.f2026[[#This Row],[الحافز]]*0,IF(data.f2026[[#This Row],[أيام أجازات بعد السنوية]]=3,data.f2026[[#This Row],[الحافز]]*30%,IF(data.f2026[[#This Row],[أيام أجازات بعد السنوية]]=4,data.f2026[[#This Row],[الحافز]]*40%,IF(data.f2026[[#This Row],[أيام أجازات بعد السنوية]]=5,data.f2026[[#This Row],[الحافز]]*50%,IF(data.f2026[[#This Row],[أيام أجازات بعد السنوية]]>5,data.f2026[[#This Row],[الحافز]]*100%,""))))) -> 0 | BP71: 0 | BQ71: 0 | BS71: 3 | BT71: 0 | BV71: 0 | BZ71: 0 | CA71: 0 | CC71: 0 | CG71: 4 | CK71: 0 | CM71: 0 | CN71: 0 | CO71: 366.41 | CP71: 0 | CQ71: =ROUND(IF($D71=data.f2026[[#Headers],[إيقاف]],$BD71-SUM(data.f2026[[#This Row],[تامينات 2026]:[خصم 5% تأمين من العمولة]],0),0),2) -> 0 | CR71: =ROUND(IF($D71=data.f2026[[#Headers],[مرضي]],$BD71-SUM(data.f2026[[#This Row],[تامينات 2026]:[خصم 5% تأمين من العمولة]],0),0),2) -> 0 | CS71: 0 | CT71: =ROUND(IF($G71=data.f2026[[#Headers],[إعارة]],$BD71-SUM(data.f2026[[#This Row],[تامينات 2026]:[خصم 5% تأمين من العمولة]],0),0),2) -> 0 | CU71: =ROUND(IF($G71=data.f2026[[#Headers],[معاش]],$BD71-SUM(data.f2026[[#This Row],[تامينات 2026]:[خصم 5% تأمين من العمولة]],0),0),2) -> 0 | CV71: 1186.46 | CW71: 7009.47
B72: 202055 | C72: 1151 | D72: بنك مصر 2 | E72: أسامة محمد كمال أحمد | F72: مروه | G72: دوام كامل | H72: فنى | I72: الاولى | L72: الاميرية | M72: 16908080101856 | N72: 202055أسامة محمد كمال أحمدالاولى | P72: 2141.78 | Q72: 2355.958 | R72: 0 | S72: 3180.54 | T72: 353.39 | U72: 0 | V72: 0 | W72: 0 | Y72: 353.3937 | Z72: 300 | AB72: 0 | AD72: 0 | AE72: 0 | AF72: 653.39 | AG72: 70.84 | AH72: 78.92 | AI72: 94.79 | AJ72: 0 | AK72: 190 | AL72: 42.81 | AM72: 76.35 | AN72: 98.04 | AO72: 139.87 | AP72: 149.66 | AQ72: 160.13 | AS72: 107.089 | AT72: 600 | AU72: 10 | AV72: 1818.5 | AW72: 10 | AX72: =ROUND((data.f2026[[#This Row],[أساسي 7/2025]]*2)/12,2) -> 392.66 | AY72: 0 | BA72: 30 | BB72: 8764.44 | BC72: 0 | BD72: 8794.44 | BE72: 0 | BF72: 0 | BI72: 895.58 | BK72: 0 | BL72: 0 | BM72: =IF(data.f2026[[#This Row],[أيام الغياب]]=1,data.f2026[[#This Row],[الحافز]]*20%,IF(data.f2026[[#This Row],[أيام الغياب]]=2,data.f2026[[#This Row],[الحافز]]*100%,IF(data.f2026[[#This Row],[أيام الغياب]]>2,data.f2026[[#This Row],[الحافز]]*100%,""))) ->  | BN72: =IF(data.f2026[[#This Row],[عدد أيام الأجازات]]<=4,data.f2026[[#This Row],[الحافز]]*0,IF(data.f2026[[#This Row],[عدد أيام الأجازات]]=5,data.f2026[[#This Row],[الحافز]]*20%,IF(data.f2026[[#This Row],[عدد أيام الأجازات]]=6,data.f2026[[#This Row],[الحافز]]*40%,IF(data.f2026[[#This Row],[عدد أيام الأجازات]]=7,data.f2026[[#This Row],[الحافز]]*50%,IF(data.f2026[[#This Row],[عدد أيام الأجازات]]>7,data.f2026[[#This Row],[الحافز]]*100%,""))))) -> 0 | BO72: =IF(data.f2026[[#This Row],[أيام أجازات بعد السنوية]]<=2,data.f2026[[#This Row],[الحافز]]*0,IF(data.f2026[[#This Row],[أيام أجازات بعد السنوية]]=3,data.f2026[[#This Row],[الحافز]]*30%,IF(data.f2026[[#This Row],[أيام أجازات بعد السنوية]]=4,data.f2026[[#This Row],[الحافز]]*40%,IF(data.f2026[[#This Row],[أيام أجازات بعد السنوية]]=5,data.f2026[[#This Row],[الحافز]]*50%,IF(data.f2026[[#This Row],[أيام أجازات بعد السنوية]]>5,data.f2026[[#This Row],[الحافز]]*100%,""))))) -> 0 | BP72: 0 | BQ72: 0 | BS72: 3 | BT72: 0 | BV72: 0 | BZ72: 0 | CA72: 0 | CC72: 0 | CG72: 5 | CK72: 0 | CM72: 0 | CN72: 0 | CO72: 392.66 | CP72: 0 | CQ72: =ROUND(IF($D72=data.f2026[[#Headers],[إيقاف]],$BD72-SUM(data.f2026[[#This Row],[تامينات 2026]:[خصم 5% تأمين من العمولة]],0),0),2) -> 0 | CR72: =ROUND(IF($D72=data.f2026[[#Headers],[مرضي]],$BD72-SUM(data.f2026[[#This Row],[تامينات 2026]:[خصم 5% تأمين من العمولة]],0),0),2) -> 0 | CS72: 0 | CT72: =ROUND(IF($G72=data.f2026[[#Headers],[إعارة]],$BD72-SUM(data.f2026[[#This Row],[تامينات 2026]:[خصم 5% تأمين من العمولة]],0),0),2) -> 0 | CU72: =ROUND(IF($G72=data.f2026[[#Headers],[معاش]],$BD72-SUM(data.f2026[[#This Row],[تامينات 2026]:[خصم 5% تأمين من العمولة]],0),0),2) -> 0 | CV72: 1296.24 | CW72: 7498.2
B73: 202056 | C73: 1137 | D73: بنك مصر 2 | E73: ياسر عبد اللطيف النور محمد | F73: مروه | G73: دوام كامل | H73: فنى | I73: الثالثة | J73: الثالثة | K73: فنى حداه | L73: كفر الزيات | M73: 28201012800313 | N73: 202056ياسر عبد اللطيف النور محمد الثالثةالثالثةفنى حداه كفر الزيات | O73: نعم | P73: 895.8 | Q73: 1048.086 | R73: 0 | S73: 1414.92 | T73: 157.21 | U73: 0 | V73: 0 | W73: 0 | Y73: 157.2129 | Z73: 300 | AB73: 0 | AD73: 0 | AE73: 0 | AF73: 457.21 | AG73: 30.03 | AH73: 33.71 | AI73: 65 | AJ73: 0 | AK73: 200 | AL73: 33.93 | AM73: 31.93 | AN73: 41 | AO73: 58.5 | AP73: 70.23 | AQ73: 91.4 | AS73: 60.42 | AT73: 600 | AU73: 8 | AV73: 1324.15 | AW73: 10 | AX73: =ROUND((data.f2026[[#This Row],[أساسي 7/2025]]*2)/12,2) -> 174.68 | AY73: 0 | BA73: 0 | BB73: 4586.26 | BC73: 2413.74 | BD73: 7000 | BE73: 0 | BF73: 0 | BI73: 633.83 | BK73: 0 | BL73: 0 | BM73: =IF(data.f2026[[#This Row],[أيام الغياب]]=1,data.f2026[[#This Row],[الحافز]]*20%,IF(data.f2026[[#This Row],[أيام الغياب]]=2,data.f2026[[#This Row],[الحافز]]*100%,IF(data.f2026[[#This Row],[أيام الغياب]]>2,data.f2026[[#This Row],[الحافز]]*100%,""))) ->  | BN73: =IF(data.f2026[[#This Row],[عدد أيام الأجازات]]<=4,data.f2026[[#This Row],[الحافز]]*0,IF(data.f2026[[#This Row],[عدد أيام الأجازات]]=5,data.f2026[[#This Row],[الحافز]]*20%,IF(data.f2026[[#This Row],[عدد أيام الأجازات]]=6,data.f2026[[#This Row],[الحافز]]*40%,IF(data.f2026[[#This Row],[عدد أيام الأجازات]]=7,data.f2026[[#This Row],[الحافز]]*50%,IF(data.f2026[[#This Row],[عدد أيام الأجازات]]>7,data.f2026[[#This Row],[الحافز]]*100%,""))))) -> 0 | BO73: =IF(data.f2026[[#This Row],[أيام أجازات بعد السنوية]]<=2,data.f2026[[#This Row],[الحافز]]*0,IF(data.f2026[[#This Row],[أيام أجازات بعد السنوية]]=3,data.f2026[[#This Row],[الحافز]]*30%,IF(data.f2026[[#This Row],[أيام أجازات بعد السنوية]]=4,data.f2026[[#This Row],[الحافز]]*40%,IF(data.f2026[[#This Row],[أيام أجازات بعد السنوية]]=5,data.f2026[[#This Row],[الحافز]]*50%,IF(data.f2026[[#This Row],[أيام أجازات بعد السنوية]]>5,data.f2026[[#This Row],[الحافز]]*100%,""))))) -> 0 | BP73: 0 | BQ73: 0 | BS73: 3 | BT73: 0 | BV73: 0 | BZ73: 0 | CA73: 0 | CC73: 0 | CG73: 2.84 | CK73: 0 | CM73: 0 | CN73: 0 | CO73: 174.68 | CP73: 0 | CQ73: =ROUND(IF($D73=data.f2026[[#Headers],[إيقاف]],$BD73-SUM(data.f2026[[#This Row],[تامينات 2026]:[خصم 5% تأمين من العمولة]],0),0),2) -> 0 | CR73: =ROUND(IF($D73=data.f2026[[#Headers],[مرضي]],$BD73-SUM(data.f2026[[#This Row],[تامينات 2026]:[خصم 5% تأمين من العمولة]],0),0),2) -> 0 | CS73: 0 | CT73: =ROUND(IF($G73=data.f2026[[#Headers],[إعارة]],$BD73-SUM(data.f2026[[#This Row],[تامينات 2026]:[خصم 5% تأمين من العمولة]],0),0),2) -> 0 | CU73: =ROUND(IF($G73=data.f2026[[#Headers],[معاش]],$BD73-SUM(data.f2026[[#This Row],[تامينات 2026]:[خصم 5% تأمين من العمولة]],0),0),2) -> 0 | CV73: 814.35 | CW73: 6185.65
B74: 202057 | C74: 1166 | D74: بنك مصر 2 | E74: عماد سعيد سيد على | F74: مروه | G74: دوام كامل | H74: فنى | I74: الرابعة | J74: الرابعة | K74: حرفى خراط | L74: الاميرية | M74: 28206120102551 | N74: 202057عماد سعيد سيد علىالرابعةالرابعةحرفى خراطالورش | O74: نعم | P74: 575.41 | Q74: 673.2297 | R74: 0 | S74: 908.86 | T74: 100.98 | U74: 0 | V74: 0 | W74: 0 | Y74: 100.984455 | Z74: 300 | AB74: 0 | AD74: 0 | AE74: 0 | AF74: 400.98 | AG74: 28.89 | AH74: 30.29 | AI74: 65 | AJ74: 0 | AK74: 200 | AL74: 0 | AM74: 46.28 | AN74: 44.27 | AO74: 67.12 | AP74: 89.82 | AQ74: 112.36 | AS74: 92.459 | AT74: 600 | AU74: 10 | AV74: 1386.49 | AW74: 10 | AX74: =ROUND((data.f2026[[#This Row],[أساسي 7/2025]]*2)/12,2) -> 112.2 | AY74: 0 | BA74: 0 | BB74: 3592.74 | BC74: 3407.26 | BD74: 7000 | BE74: 0 | BF74: 0 | BI74: 627.22 | BK74: 0 | BL74: 0 | BM74: =IF(data.f2026[[#This Row],[أيام الغياب]]=1,data.f2026[[#This Row],[الحافز]]*20%,IF(data.f2026[[#This Row],[أيام الغياب]]=2,data.f2026[[#This Row],[الحافز]]*100%,IF(data.f2026[[#This Row],[أيام الغياب]]>2,data.f2026[[#This Row],[الحافز]]*100%,""))) ->  | BN74: =IF(data.f2026[[#This Row],[عدد أيام الأجازات]]<=4,data.f2026[[#This Row],[الحافز]]*0,IF(data.f2026[[#This Row],[عدد أيام الأجازات]]=5,data.f2026[[#This Row],[الحافز]]*20%,IF(data.f2026[[#This Row],[عدد أيام الأجازات]]=6,data.f2026[[#This Row],[الحافز]]*40%,IF(data.f2026[[#This Row],[عدد أيام الأجازات]]=7,data.f2026[[#This Row],[الحافز]]*50%,IF(data.f2026[[#This Row],[عدد أيام الأجازات]]>7,data.f2026[[#This Row],[الحافز]]*100%,""))))) -> 0 | BO74: =IF(data.f2026[[#This Row],[أيام أجازات بعد السنوية]]<=2,data.f2026[[#This Row],[الحافز]]*0,IF(data.f2026[[#This Row],[أيام أجازات بعد السنوية]]=3,data.f2026[[#This Row],[الحافز]]*30%,IF(data.f2026[[#This Row],[أيام أجازات بعد السنوية]]=4,data.f2026[[#This Row],[الحافز]]*40%,IF(data.f2026[[#This Row],[أيام أجازات بعد السنوية]]=5,data.f2026[[#This Row],[الحافز]]*50%,IF(data.f2026[[#This Row],[أيام أجازات بعد السنوية]]>5,data.f2026[[#This Row],[الحافز]]*100%,""))))) -> 0 | BP74: 0 | BQ74: 0 | BS74: 3 | BT74: 0 | BV74: 0 | BZ74: 0 | CA74: 0 | CC74: 0 | CG74: 3 | CK74: 0 | CM74: 0 | CN74: 0 | CO74: 112.2 | CP74: 0 | CQ74: =ROUND(IF($D74=data.f2026[[#Headers],[إيقاف]],$BD74-SUM(data.f2026[[#This Row],[تامينات 2026]:[خصم 5% تأمين من العمولة]],0),0),2) -> 0 | CR74: =ROUND(IF($D74=data.f2026[[#Headers],[مرضي]],$BD74-SUM(data.f2026[[#This Row],[تامينات 2026]:[خصم 5% تأمين من العمولة]],0),0),2) -> 0 | CS74: 0 | CT74: =ROUND(IF($G74=data.f2026[[#Headers],[إعارة]],$BD74-SUM(data.f2026[[#This Row],[تامينات 2026]:[خصم 5% تأمين من العمولة]],0),0),2) -> 0 | CU74: =ROUND(IF($G74=data.f2026[[#Headers],[معاش]],$BD74-SUM(data.f2026[[#This Row],[تامينات 2026]:[خصم 5% تأمين من العمولة]],0),0),2) -> 0 | CV74: 745.42 | CW74: 6254.58
B75: 202058 | C75: 1139 | D75: بنك مصر 2 | E75: محمود علي محمد احمد محمد | F75: مروه | G75: دوام كامل | H75: فنى | I75: الرابعة | J75: الرابعة | K75: حرفى ميكانيكى | L75: الاميرية | M75: 2880101130077 | N75: 202058محمود علي محمد احمد محمدالرابعةالرابعةحرفى ميكانيكىالاميرية | O75: نعم | P75: 825.24 | Q75: 965.5308 | R75: 0 | S75: 1303.47 | T75: 144.83 | U75: 0 | V75: 0 | W75: 0 | Y75: 144.82962 | Z75: 300 | AB75: 0 | AD75: 0 | AE75: 0 | AF75: 444.83 | AG75: 28.79 | AH75: 30.29 | AI75: 65 | AJ75: 0 | AK75: 200 | AL75: 36.51 | AM75: 33.81 | AN75: 37.77 | AO75: 53.89 | AP75: 74.54 | AQ75: 96.01 | AS75: 67.476 | AT75: 600 | AU75: 4 | AV75: 1328.09 | AW75: 10 | AX75: =ROUND((data.f2026[[#This Row],[أساسي 7/2025]]*2)/12,2) -> 160.92 | AY75: 0 | BA75: 0 | BB75: 4357.67 | BC75: 2642.33 | BD75: 7000 | BE75: 0 | BF75: 0 | BI75: 631.39 | BK75: 0 | BL75: 0 | BM75: =IF(data.f2026[[#This Row],[أيام الغياب]]=1,data.f2026[[#This Row],[الحافز]]*20%,IF(data.f2026[[#This Row],[أيام الغياب]]=2,data.f2026[[#This Row],[الحافز]]*100%,IF(data.f2026[[#This Row],[أيام الغياب]]>2,data.f2026[[#This Row],[الحافز]]*100%,""))) ->  | BN75: =IF(data.f2026[[#This Row],[عدد أيام الأجازات]]<=4,data.f2026[[#This Row],[الحافز]]*0,IF(data.f2026[[#This Row],[عدد أيام الأجازات]]=5,data.f2026[[#This Row],[الحافز]]*20%,IF(data.f2026[[#This Row],[عدد أيام الأجازات]]=6,data.f2026[[#This Row],[الحافز]]*40%,IF(data.f2026[[#This Row],[عدد أيام الأجازات]]=7,data.f2026[[#This Row],[الحافز]]*50%,IF(data.f2026[[#This Row],[عدد أيام الأجازات]]>7,data.f2026[[#This Row],[الحافز]]*100%,""))))) -> 0 | BO75: =IF(data.f2026[[#This Row],[أيام أجازات بعد السنوية]]<=2,data.f2026[[#This Row],[الحافز]]*0,IF(data.f2026[[#This Row],[أيام أجازات بعد السنوية]]=3,data.f2026[[#This Row],[الحافز]]*30%,IF(data.f2026[[#This Row],[أيام أجازات بعد السنوية]]=4,data.f2026[[#This Row],[الحافز]]*40%,IF(data.f2026[[#This Row],[أيام أجازات بعد السنوية]]=5,data.f2026[[#This Row],[الحافز]]*50%,IF(data.f2026[[#This Row],[أيام أجازات بعد السنوية]]>5,data.f2026[[#This Row],[الحافز]]*100%,""))))) -> 0 | BP75: 0 | BQ75: 0 | BS75: 3 | BT75: 0 | BV75: 0 | BZ75: 0 | CA75: 0 | CC75: 0 | CG75: 3 | CK75: 0 | CM75: 0 | CN75: 0 | CO75: 160.92 | CP75: 0 | CQ75: =ROUND(IF($D75=data.f2026[[#Headers],[إيقاف]],$BD75-SUM(data.f2026[[#This Row],[تامينات 2026]:[خصم 5% تأمين من العمولة]],0),0),2) -> 0 | CR75: =ROUND(IF($D75=data.f2026[[#Headers],[مرضي]],$BD75-SUM(data.f2026[[#This Row],[تامينات 2026]:[خصم 5% تأمين من العمولة]],0),0),2) -> 0 | CS75: 0 | CT75: =ROUND(IF($G75=data.f2026[[#Headers],[إعارة]],$BD75-SUM(data.f2026[[#This Row],[تامينات 2026]:[خصم 5% تأمين من العمولة]],0),0),2) -> 0 | CU75: =ROUND(IF($G75=data.f2026[[#Headers],[معاش]],$BD75-SUM(data.f2026[[#This Row],[تامينات 2026]:[خصم 5% تأمين من العمولة]],0),0),2) -> 0 | CV75: 798.31 | CW75: 6201.69
B76: 202059 | C76: 1261 | D76: بنك مصر 2 | E76: محمد كامل محمد مصطفى | F76: مروه | G76: دوام كامل | H76: فنى | I76: الرابعة | J76: الرابعة | K76: حرفى عامل بطاريات | L76: الاميرية | M76: 27506031401413 | N76: 202059محمد كامل محمد مصطفىالرابعةالرابعةحرفى عامل بطارياتالورش | O76: نعم | P76: 862.29 | Q76: 1008.8793 | R76: 0 | S76: 1361.99 | T76: 151.33 | U76: 0 | V76: 0 | W76: 0 | Y76: 151.331895 | Z76: 300 | AB76: 0 | AD76: 0 | AE76: 0 | AF76: 451.33 | AG76: 28.74 | AH76: 32.31 | AI76: 65 | AJ76: 0 | AK76: 200 | AL76: 34.78 | AM76: 31.96 | AN76: 39.47 | AO76: 56.31 | AP76: 72.28 | AQ76: 93.59 | AS76: 63.771 | AT76: 600 | AU76: 10 | AV76: 1328.21 | AW76: 10 | AX76: =ROUND((data.f2026[[#This Row],[أساسي 7/2025]]*2)/12,2) -> 168.15 | AY76: 0 | BA76: 0 | BB76: 4479.89 | BC76: 2520.11 | BD76: 7000 | BE76: 0 | BF76: 0 | BI76: 632.84 | BK76: 0 | BL76: 0 | BM76: =IF(data.f2026[[#This Row],[أيام الغياب]]=1,data.f2026[[#This Row],[الحافز]]*20%,IF(data.f2026[[#This Row],[أيام الغياب]]=2,data.f2026[[#This Row],[الحافز]]*100%,IF(data.f2026[[#This Row],[أيام الغياب]]>2,data.f2026[[#This Row],[الحافز]]*100%,""))) ->  | BN76: =IF(data.f2026[[#This Row],[عدد أيام الأجازات]]<=4,data.f2026[[#This Row],[الحافز]]*0,IF(data.f2026[[#This Row],[عدد أيام الأجازات]]=5,data.f2026[[#This Row],[الحافز]]*20%,IF(data.f2026[[#This Row],[عدد أيام الأجازات]]=6,data.f2026[[#This Row],[الحافز]]*40%,IF(data.f2026[[#This Row],[عدد أيام الأجازات]]=7,data.f2026[[#This Row],[الحافز]]*50%,IF(data.f2026[[#This Row],[عدد أيام الأجازات]]>7,data.f2026[[#This Row],[الحافز]]*100%,""))))) -> 0 | BO76: =IF(data.f2026[[#This Row],[أيام أجازات بعد السنوية]]<=2,data.f2026[[#This Row],[الحافز]]*0,IF(data.f2026[[#This Row],[أيام أجازات بعد السنوية]]=3,data.f2026[[#This Row],[الحافز]]*30%,IF(data.f2026[[#This Row],[أيام أجازات بعد السنوية]]=4,data.f2026[[#This Row],[الحافز]]*40%,IF(data.f2026[[#This Row],[أيام أجازات بعد السنوية]]=5,data.f2026[[#This Row],[الحافز]]*50%,IF(data.f2026[[#This Row],[أيام أجازات بعد السنوية]]>5,data.f2026[[#This Row],[الحافز]]*100%,""))))) -> 0 | BP76: 0 | BQ76: 0 | BS76: 3 | BT76: 0 | BV76: 0 | BZ76: 0 | CA76: 0 | CC76: 0 | CG76: 5 | CK76: 0 | CM76: 0 | CN76: 0 | CO76: 168.15 | CP76: 0 | CQ76: =ROUND(IF($D76=data.f2026[[#Headers],[إيقاف]],$BD76-SUM(data.f2026[[#This Row],[تامينات 2026]:[خصم 5% تأمين من العمولة]],0),0),2) -> 0 | CR76: =ROUND(IF($D76=data.f2026[[#Headers],[مرضي]],$BD76-SUM(data.f2026[[#This Row],[تامينات 2026]:[خصم 5% تأمين من العمولة]],0),0),2) -> 0 | CS76: 0 | CT76: =ROUND(IF($G76=data.f2026[[#Headers],[إعارة]],$BD76-SUM(data.f2026[[#This Row],[تامينات 2026]:[خصم 5% تأمين من العمولة]],0),0),2) -> 0 | CU76: =ROUND(IF($G76=data.f2026[[#Headers],[معاش]],$BD76-SUM(data.f2026[[#This Row],[تامينات 2026]:[خصم 5% تأمين من العمولة]],0),0),2) -> 0 | CV76: 808.99 | CW76: 6191.01
B77: 202060 | C77: 1164 | D77: بنك مصر 2 | E77: رمضان راضى محمود محسب | F77: مروه | G77: دوام كامل | H77: فنى | I77: الرابعة | J77: الرابعة | K77: حرفى حداد | L77: الورش | M77: 28007280104019 | N77: 202060رمضان راضى محمود محسبالرابعةالرابعةحرفى حدادالورش | O77: نعم | P77: 713.26 | Q77: 834.5142 | R77: 0 | S77: 1126.59 | T77: 125.18 | U77: 0 | V77: 0 | W77: 0 | Y77: 125.17713 | Z77: 300 | AB77: 0 | AD77: 0 | AE77: 0 | AF77: 425.18 | AG77: 28.79 | AH77: 30.79 | AI77: 65 | AJ77: 0 | AK77: 200 | AL77: 41.73 | AM77: 39.4 | AN77: 36.91 | AO77: 59.24 | AP77: 81.39 | AQ77: 103.34 | AS77: 78.674 | AT77: 600 | AU77: 10 | AV77: 1375.26 | AW77: 10 | AX77: =ROUND((data.f2026[[#This Row],[أساسي 7/2025]]*2)/12,2) -> 139.09 | AY77: 0 | BA77: 0 | BB77: 4035.81 | BC77: 2964.19 | BD77: 7000 | BE77: 0 | BF77: 0 | BI77: 630.46 | BK77: 0 | BL77: 0 | BM77: =IF(data.f2026[[#This Row],[أيام الغياب]]=1,data.f2026[[#This Row],[الحافز]]*20%,IF(data.f2026[[#This Row],[أيام الغياب]]=2,data.f2026[[#This Row],[الحافز]]*100%,IF(data.f2026[[#This Row],[أيام الغياب]]>2,data.f2026[[#This Row],[الحافز]]*100%,""))) ->  | BN77: =IF(data.f2026[[#This Row],[عدد أيام الأجازات]]<=4,data.f2026[[#This Row],[الحافز]]*0,IF(data.f2026[[#This Row],[عدد أيام الأجازات]]=5,data.f2026[[#This Row],[الحافز]]*20%,IF(data.f2026[[#This Row],[عدد أيام الأجازات]]=6,data.f2026[[#This Row],[الحافز]]*40%,IF(data.f2026[[#This Row],[عدد أيام الأجازات]]=7,data.f2026[[#This Row],[الحافز]]*50%,IF(data.f2026[[#This Row],[عدد أيام الأجازات]]>7,data.f2026[[#This Row],[الحافز]]*100%,""))))) -> 0 | BO77: =IF(data.f2026[[#This Row],[أيام أجازات بعد السنوية]]<=2,data.f2026[[#This Row],[الحافز]]*0,IF(data.f2026[[#This Row],[أيام أجازات بعد السنوية]]=3,data.f2026[[#This Row],[الحافز]]*30%,IF(data.f2026[[#This Row],[أيام أجازات بعد السنوية]]=4,data.f2026[[#This Row],[الحافز]]*40%,IF(data.f2026[[#This Row],[أيام أجازات بعد السنوية]]=5,data.f2026[[#This Row],[الحافز]]*50%,IF(data.f2026[[#This Row],[أيام أجازات بعد السنوية]]>5,data.f2026[[#This Row],[الحافز]]*100%,""))))) -> 0 | BP77: 0 | BQ77: 0 | BS77: 3 | BT77: 0 | BV77: 0 | BZ77: 0 | CA77: 0 | CC77: 0 | CG77: 3 | CK77: 0 | CM77: 0 | CN77: 0 | CO77: 139.09 | CP77: 0 | CQ77: =ROUND(IF($D77=data.f2026[[#Headers],[إيقاف]],$BD77-SUM(data.f2026[[#This Row],[تامينات 2026]:[خصم 5% تأمين من العمولة]],0),0),2) -> 0 | CR77: =ROUND(IF($D77=data.f2026[[#Headers],[مرضي]],$BD77-SUM(data.f2026[[#This Row],[تامينات 2026]:[خصم 5% تأمين من العمولة]],0),0),2) -> 0 | CS77: 0 | CT77: =ROUND(IF($G77=data.f2026[[#Headers],[إعارة]],$BD77-SUM(data.f2026[[#This Row],[تامينات 2026]:[خصم 5% تأمين من العمولة]],0),0),2) -> 0 | CU77: =ROUND(IF($G77=data.f2026[[#Headers],[معاش]],$BD77-SUM(data.f2026[[#This Row],[تامينات 2026]:[خصم 5% تأمين من العمولة]],0),0),2) -> 0 | CV77: 775.55 | CW77: 6224.45
B78: 202061 | C78: 1169 | D78: بنك مصر 2 | E78: مصطفى أحمد إبراهيم أحمد | F78: مروه | G78: دوام كامل | H78: فنى | I78: الثانية | J78: الثانية | K78: ميكانيكى | L78: الملاكى | M78: 26707231701651 | N78: 202061مصطفى أحمد إبراهيم أحمدمروهالثانيةالثانيةميكانيكىالملاكى | O78: نعم | P78: 1810.9 | Q78: 2118.753 | R78: 0 | S78: 2860.32 | T78: 317.81 | U78: 0 | V78: 0 | W78: 0 | Y78: 317.81295 | Z78: 300 | AB78: 0 | AD78: 0 | AE78: 0 | AF78: 617.81 | AG78: 63.67 | AH78: 70.91 | AI78: 85.11 | AJ78: 0 | AK78: 190 | AL78: 36.2 | AM78: 64.56 | AN78: 82.86 | AO78: 118.26 | AP78: 126.54 | AQ78: 135.39 | AS78: 90.545 | AT78: 600 | AU78: 10 | AV78: 1674.05 | AW78: 10 | AX78: =ROUND((data.f2026[[#This Row],[أساسي 7/2025]]*2)/12,2) -> 353.13 | AY78: 0 | BA78: 0 | BB78: 7951.87 | BC78: 0 | BD78: 7951.87 | BE78: 0 | BF78: 0 | BI78: 788.17 | BK78: 0 | BL78: 0 | BM78: =IF(data.f2026[[#This Row],[أيام الغياب]]=1,data.f2026[[#This Row],[الحافز]]*20%,IF(data.f2026[[#This Row],[أيام الغياب]]=2,data.f2026[[#This Row],[الحافز]]*100%,IF(data.f2026[[#This Row],[أيام الغياب]]>2,data.f2026[[#This Row],[الحافز]]*100%,""))) ->  | BN78: =IF(data.f2026[[#This Row],[عدد أيام الأجازات]]<=4,data.f2026[[#This Row],[الحافز]]*0,IF(data.f2026[[#This Row],[عدد أيام الأجازات]]=5,data.f2026[[#This Row],[الحافز]]*20%,IF(data.f2026[[#This Row],[عدد أيام الأجازات]]=6,data.f2026[[#This Row],[الحافز]]*40%,IF(data.f2026[[#This Row],[عدد أيام الأجازات]]=7,data.f2026[[#This Row],[الحافز]]*50%,IF(data.f2026[[#This Row],[عدد أيام الأجازات]]>7,data.f2026[[#This Row],[الحافز]]*100%,""))))) -> 0 | BO78: =IF(data.f2026[[#This Row],[أيام أجازات بعد السنوية]]<=2,data.f2026[[#This Row],[الحافز]]*0,IF(data.f2026[[#This Row],[أيام أجازات بعد السنوية]]=3,data.f2026[[#This Row],[الحافز]]*30%,IF(data.f2026[[#This Row],[أيام أجازات بعد السنوية]]=4,data.f2026[[#This Row],[الحافز]]*40%,IF(data.f2026[[#This Row],[أيام أجازات بعد السنوية]]=5,data.f2026[[#This Row],[الحافز]]*50%,IF(data.f2026[[#This Row],[أيام أجازات بعد السنوية]]>5,data.f2026[[#This Row],[الحافز]]*100%,""))))) -> 0 | BP78: 0 | BQ78: 1.25 | BS78: 3 | BT78: 0 | BV78: 0 | BZ78: 0 | CA78: 0 | CC78: 0 | CG78: 3 | CK78: 0 | CM78: 500 | CN78: 0 | CO78: 353.13 | CP78: 0 | CQ78: =ROUND(IF($D78=data.f2026[[#Headers],[إيقاف]],$BD78-SUM(data.f2026[[#This Row],[تامينات 2026]:[خصم 5% تأمين من العمولة]],0),0),2) -> 0 | CR78: =ROUND(IF($D78=data.f2026[[#Headers],[مرضي]],$BD78-SUM(data.f2026[[#This Row],[تامينات 2026]:[خصم 5% تأمين من العمولة]],0),0),2) -> 0 | CS78: 0 | CT78: =ROUND(IF($G78=data.f2026[[#Headers],[إعارة]],$BD78-SUM(data.f2026[[#This Row],[تامينات 2026]:[خصم 5% تأمين من العمولة]],0),0),2) -> 0 | CU78: =ROUND(IF($G78=data.f2026[[#Headers],[معاش]],$BD78-SUM(data.f2026[[#This Row],[تامينات 2026]:[خصم 5% تأمين من العمولة]],0),0),2) -> 0 | CV78: 1648.55 | CW78: 6303.32
B79: 202062 | C79: 1162 | D79: بنك مصر 2 | E79: هاني سمير خلة غبريال | F79: مروه | G79: دوام كامل | H79: فنى | I79: الرابعة | J79: الرابعة | K79: حرفى كهربائى سيارات | L79: الورش | M79: 27711220105593 | N79: 202062هاني سمير خلة غبريالالرابعةالرابعةحرفى كهربائى سياراتالورش | O79: نعم | P79: 1070.48 | Q79: 1252.4616 | R79: 0 | S79: 1690.82 | T79: 187.87 | U79: 0 | V79: 0 | W79: 0 | Y79: 187.86924 | Z79: 300 | AB79: 0 | AD79: 0 | AE79: 0 | AF79: 487.87 | AG79: 38.27 | AH79: 42.47 | AI79: 65 | AJ79: 0 | AK79: 200 | AL79: 25.07 | AM79: 38.16 | AN79: 49 | AO79: 69.91 | AP79: 74.8 | AQ79: 80 | AS79: 53.524 | AT79: 600 | AU79: 10 | AV79: 1346.2 | AW79: 10 | AX79: =ROUND((data.f2026[[#This Row],[أساسي 7/2025]]*2)/12,2) -> 208.74 | AY79: 0 | BA79: 0 | BB79: 5183.96 | BC79: 1816.04 | BD79: 7000 | BE79: 0 | BF79: 0 | BI79: 638.17 | BK79: 0 | BL79: 0 | BM79: =IF(data.f2026[[#This Row],[أيام الغياب]]=1,data.f2026[[#This Row],[الحافز]]*20%,IF(data.f2026[[#This Row],[أيام الغياب]]=2,data.f2026[[#This Row],[الحافز]]*100%,IF(data.f2026[[#This Row],[أيام الغياب]]>2,data.f2026[[#This Row],[الحافز]]*100%,""))) ->  | BN79: =IF(data.f2026[[#This Row],[عدد أيام الأجازات]]<=4,data.f2026[[#This Row],[الحافز]]*0,IF(data.f2026[[#This Row],[عدد أيام الأجازات]]=5,data.f2026[[#This Row],[الحافز]]*20%,IF(data.f2026[[#This Row],[عدد أيام الأجازات]]=6,data.f2026[[#This Row],[الحافز]]*40%,IF(data.f2026[[#This Row],[عدد أيام الأجازات]]=7,data.f2026[[#This Row],[الحافز]]*50%,IF(data.f2026[[#This Row],[عدد أيام الأجازات]]>7,data.f2026[[#This Row],[الحافز]]*100%,""))))) -> 0 | BO79: =IF(data.f2026[[#This Row],[أيام أجازات بعد السنوية]]<=2,data.f2026[[#This Row],[الحافز]]*0,IF(data.f2026[[#This Row],[أيام أجازات بعد السنوية]]=3,data.f2026[[#This Row],[الحافز]]*30%,IF(data.f2026[[#This Row],[أيام أجازات بعد السنوية]]=4,data.f2026[[#This Row],[الحافز]]*40%,IF(data.f2026[[#This Row],[أيام أجازات بعد السنوية]]=5,data.f2026[[#This Row],[الحافز]]*50%,IF(data.f2026[[#This Row],[أيام أجازات بعد السنوية]]>5,data.f2026[[#This Row],[الحافز]]*100%,""))))) -> 0 | BP79: 0 | BQ79: 0 | BS79: 3 | BT79: 0 | BV79: 0 | BZ79: 0 | CA79: 0 | CC79: 0 | CG79: 3 | CK79: 0 | CM79: 0 | CN79: 0 | CO79: 208.74 | CP79: 0 | CQ79: =ROUND(IF($D79=data.f2026[[#Headers],[إيقاف]],$BD79-SUM(data.f2026[[#This Row],[تامينات 2026]:[خصم 5% تأمين من العمولة]],0),0),2) -> 0 | CR79: =ROUND(IF($D79=data.f2026[[#Headers],[مرضي]],$BD79-SUM(data.f2026[[#This Row],[تامينات 2026]:[خصم 5% تأمين من العمولة]],0),0),2) -> 0 | CS79: 0 | CT79: =ROUND(IF($G79=data.f2026[[#Headers],[إعارة]],$BD79-SUM(data.f2026[[#This Row],[تامينات 2026]:[خصم 5% تأمين من العمولة]],0),0),2) -> 0 | CU79: =ROUND(IF($G79=data.f2026[[#Headers],[معاش]],$BD79-SUM(data.f2026[[#This Row],[تامينات 2026]:[خصم 5% تأمين من العمولة]],0),0),2) -> 0 | CV79: 852.91 | CW79: 6147.09
B80: 202063 | C80: 1087 | D80: مرضي | E80: عادل سمير بشاي سليمان | F80: مروه | G80: مرضي | H80: فنى | I80: الثانية | J80: الثانية | K80: فنى كهربائى توصيلات | L80: الادارة العامة | M80: 28011090105458 | N80: 202063عادل سمير بشاي سليمانمروهالثانيةالثانيةفنى كهربائى توصيلات الادارة العامة | O80: نعم | P80: 1137.36 | Q80: 1330.7112 | R80: 0 | S80: 1796.46 | T80: 199.61 | U80: 0 | V80: 0 | W80: 0 | Y80: 199.60668 | Z80: 300 | AB80: 0 | AD80: 0 | AE80: 0 | AF80: 499.61 | AG80: 40.59 | AH80: 45.02 | AI80: 65 | AJ80: 0 | AK80: 190 | AL80: 22.74 | AM80: 40.55 | AN80: 52.06 | AO80: 74.27 | AP80: 79.47 | AQ80: 85.04 | AS80: 56.868 | AT80: 600 | AU80: 8 | AV80: 1359.61 | AW80: 10 | AX80: =ROUND((data.f2026[[#This Row],[أساسي 7/2025]]*2)/12,2) -> 221.79 | AY80: 0 | BA80: 0 | BB80: 5417.79 | BC80: 1582.21 | BD80: 7000 | BE80: 0 | BF80: 0 | BI80: 641.13 | BK80: 0 | BL80: 0 | BM80: =IF(data.f2026[[#This Row],[أيام الغياب]]=1,data.f2026[[#This Row],[الحافز]]*20%,IF(data.f2026[[#This Row],[أيام الغياب]]=2,data.f2026[[#This Row],[الحافز]]*100%,IF(data.f2026[[#This Row],[أيام الغياب]]>2,data.f2026[[#This Row],[الحافز]]*100%,""))) ->  | BN80: =IF(data.f2026[[#This Row],[عدد أيام الأجازات]]<=4,data.f2026[[#This Row],[الحافز]]*0,IF(data.f2026[[#This Row],[عدد أيام الأجازات]]=5,data.f2026[[#This Row],[الحافز]]*20%,IF(data.f2026[[#This Row],[عدد أيام الأجازات]]=6,data.f2026[[#This Row],[الحافز]]*40%,IF(data.f2026[[#This Row],[عدد أيام الأجازات]]=7,data.f2026[[#This Row],[الحافز]]*50%,IF(data.f2026[[#This Row],[عدد أيام الأجازات]]>7,data.f2026[[#This Row],[الحافز]]*100%,""))))) -> 0 | BO80: =IF(data.f2026[[#This Row],[أيام أجازات بعد السنوية]]<=2,data.f2026[[#This Row],[الحافز]]*0,IF(data.f2026[[#This Row],[أيام أجازات بعد السنوية]]=3,data.f2026[[#This Row],[الحافز]]*30%,IF(data.f2026[[#This Row],[أيام أجازات بعد السنوية]]=4,data.f2026[[#This Row],[الحافز]]*40%,IF(data.f2026[[#This Row],[أيام أجازات بعد السنوية]]=5,data.f2026[[#This Row],[الحافز]]*50%,IF(data.f2026[[#This Row],[أيام أجازات بعد السنوية]]>5,data.f2026[[#This Row],[الحافز]]*100%,""))))) -> 0 | BP80: 0 | BQ80: 0 | BS80: 3 | BT80: 0 | BV80: 0 | BZ80: 0 | CA80: 0 | CC80: 0 | CG80: 3 | CK80: 0 | CM80: 0 | CN80: 0 | CO80: 221.79 | CP80: 0 | CQ80: =ROUND(IF($D80=data.f2026[[#Headers],[إيقاف]],$BD80-SUM(data.f2026[[#This Row],[تامينات 2026]:[خصم 5% تأمين من العمولة]],0),0),2) -> 0 | CR80: =ROUND(IF($D80=data.f2026[[#Headers],[مرضي]],$BD80-SUM(data.f2026[[#This Row],[تامينات 2026]:[خصم 5% تأمين من العمولة]],0),0),2) -> 6131.08 | CS80: 0 | CT80: =ROUND(IF($G80=data.f2026[[#Headers],[إعارة]],$BD80-SUM(data.f2026[[#This Row],[تامينات 2026]:[خصم 5% تأمين من العمولة]],0),0),2) -> 0 | CU80: =ROUND(IF($G80=data.f2026[[#Headers],[معاش]],$BD80-SUM(data.f2026[[#This Row],[تامينات 2026]:[خصم 5% تأمين من العمولة]],0),0),2) -> 0 | CV80: 7000 | CW80: 0
B81: 202064 | C81: 1133 | D81: بنك مصر 2 | E81: محمد ذكر الله السيد ذكر الله | F81: مروه | G81: دوام كامل | H81: فنى | I81: الثانية | J81: الثانية | K81: فني ميكانيكي | L81: الاميرية | M81: 28701170102715 | N81: 202064محمد ذكر الله السيد ذكر الله الثانيةالثانيةفني ميكانيكيالاميرية | O81: نعم | P81: 1095.96 | Q81: 1282.2732 | R81: 0 | S81: 1731.07 | T81: 192.34 | U81: 0 | V81: 0 | W81: 0 | Y81: 192.34098 | Z81: 300 | AB81: 0 | AD81: 0 | AE81: 0 | AF81: 492.34 | AG81: 39.04 | AH81: 43.35 | AI81: 65 | AJ81: 0 | AK81: 190 | AL81: 23.88 | AM81: 39.07 | AN81: 50.17 | AO81: 71.57 | AP81: 76.58 | AQ81: 81.94 | AS81: 54.798 | AT81: 600 | AU81: 6 | AV81: 1341.4 | AW81: 10 | AX81: =ROUND((data.f2026[[#This Row],[أساسي 7/2025]]*2)/12,2) -> 213.71 | AY81: 0 | BA81: 60 | BB81: 5263.13 | BC81: 1736.87 | BD81: 7060 | BE81: 0 | BF81: 0 | BI81: 639.42 | BK81: 0 | BL81: 0 | BM81: =IF(data.f2026[[#This Row],[أيام الغياب]]=1,data.f2026[[#This Row],[الحافز]]*20%,IF(data.f2026[[#This Row],[أيام الغياب]]=2,data.f2026[[#This Row],[الحافز]]*100%,IF(data.f2026[[#This Row],[أيام الغياب]]>2,data.f2026[[#This Row],[الحافز]]*100%,""))) ->  | BN81: =IF(data.f2026[[#This Row],[عدد أيام الأجازات]]<=4,data.f2026[[#This Row],[الحافز]]*0,IF(data.f2026[[#This Row],[عدد أيام الأجازات]]=5,data.f2026[[#This Row],[الحافز]]*20%,IF(data.f2026[[#This Row],[عدد أيام الأجازات]]=6,data.f2026[[#This Row],[الحافز]]*40%,IF(data.f2026[[#This Row],[عدد أيام الأجازات]]=7,data.f2026[[#This Row],[الحافز]]*50%,IF(data.f2026[[#This Row],[عدد أيام الأجازات]]>7,data.f2026[[#This Row],[الحافز]]*100%,""))))) -> 0 | BO81: =IF(data.f2026[[#This Row],[أيام أجازات بعد السنوية]]<=2,data.f2026[[#This Row],[الحافز]]*0,IF(data.f2026[[#This Row],[أيام أجازات بعد السنوية]]=3,data.f2026[[#This Row],[الحافز]]*30%,IF(data.f2026[[#This Row],[أيام أجازات بعد السنوية]]=4,data.f2026[[#This Row],[الحافز]]*40%,IF(data.f2026[[#This Row],[أيام أجازات بعد السنوية]]=5,data.f2026[[#This Row],[الحافز]]*50%,IF(data.f2026[[#This Row],[أيام أجازات بعد السنوية]]>5,data.f2026[[#This Row],[الحافز]]*100%,""))))) -> 0 | BP81: 0 | BQ81: 0 | BS81: 3 | BT81: 0 | BV81: 0 | BZ81: 0 | CA81: 0 | CC81: 0 | CG81: 3 | CK81: 0 | CM81: 0 | CN81: 0 | CO81: 213.71 | CP81: 0 | CQ81: =ROUND(IF($D81=data.f2026[[#Headers],[إيقاف]],$BD81-SUM(data.f2026[[#This Row],[تامينات 2026]:[خصم 5% تأمين من العمولة]],0),0),2) -> 0 | CR81: =ROUND(IF($D81=data.f2026[[#Headers],[مرضي]],$BD81-SUM(data.f2026[[#This Row],[تامينات 2026]:[خصم 5% تأمين من العمولة]],0),0),2) -> 0 | CS81: 0 | CT81: =ROUND(IF($G81=data.f2026[[#Headers],[إعارة]],$BD81-SUM(data.f2026[[#This Row],[تامينات 2026]:[خصم 5% تأمين من العمولة]],0),0),2) -> 0 | CU81: =ROUND(IF($G81=data.f2026[[#Headers],[معاش]],$BD81-SUM(data.f2026[[#This Row],[تامينات 2026]:[خصم 5% تأمين من العمولة]],0),0),2) -> 0 | CV81: 859.13 | CW81: 6200.87
B82: 202065 | C82: 1159 | D82: بنك مصر 2 | E82: حاتم إبراهيم مدبولي سعدون | F82: مروه | G82: دوام كامل | H82: فنى | I82: الثالثة | J82: الثالثة | K82: حرفى لحام | L82: فرع الاسكندرية | M82: 27001030102515 | N82: 202065حاتم إبراهيم مدبولي سعدونالثالثةالثالثةحرفى لحامفرع الاسكندرية | O82: نعم | P82: 1092.43 | Q82: 1278.1431 | R82: 0 | S82: 1725.49 | T82: 191.72 | U82: 0 | V82: 0 | W82: 0 | Y82: 191.721465 | Z82: 300 | AB82: 0 | AD82: 0 | AE82: 0 | AF82: 491.72 | AG82: 38.89 | AH82: 43.11 | AI82: 65 | AJ82: 0 | AK82: 200 | AL82: 24.04 | AM82: 38.94 | AN82: 50 | AO82: 71.34 | AP82: 76.33 | AQ82: 81.68 | AS82: 54.6215 | AT82: 600 | AU82: 10 | AV82: 1353.95 | AW82: 10 | AX82: =ROUND((data.f2026[[#This Row],[أساسي 7/2025]]*2)/12,2) -> 213.02 | AY82: 0 | BA82: 0 | BB82: 5264.04 | BC82: 1735.96 | BD82: 7000 | BE82: 0 | BF82: 0 | BI82: 638.83 | BK82: 0 | BL82: 0 | BM82: =IF(data.f2026[[#This Row],[أيام الغياب]]=1,data.f2026[[#This Row],[الحافز]]*20%,IF(data.f2026[[#This Row],[أيام الغياب]]=2,data.f2026[[#This Row],[الحافز]]*100%,IF(data.f2026[[#This Row],[أيام الغياب]]>2,data.f2026[[#This Row],[الحافز]]*100%,""))) ->  | BN82: =IF(data.f2026[[#This Row],[عدد أيام الأجازات]]<=4,data.f2026[[#This Row],[الحافز]]*0,IF(data.f2026[[#This Row],[عدد أيام الأجازات]]=5,data.f2026[[#This Row],[الحافز]]*20%,IF(data.f2026[[#This Row],[عدد أيام الأجازات]]=6,data.f2026[[#This Row],[الحافز]]*40%,IF(data.f2026[[#This Row],[عدد أيام الأجازات]]=7,data.f2026[[#This Row],[الحافز]]*50%,IF(data.f2026[[#This Row],[عدد أيام الأجازات]]>7,data.f2026[[#This Row],[الحافز]]*100%,""))))) -> 0 | BO82: =IF(data.f2026[[#This Row],[أيام أجازات بعد السنوية]]<=2,data.f2026[[#This Row],[الحافز]]*0,IF(data.f2026[[#This Row],[أيام أجازات بعد السنوية]]=3,data.f2026[[#This Row],[الحافز]]*30%,IF(data.f2026[[#This Row],[أيام أجازات بعد السنوية]]=4,data.f2026[[#This Row],[الحافز]]*40%,IF(data.f2026[[#This Row],[أيام أجازات بعد السنوية]]=5,data.f2026[[#This Row],[الحافز]]*50%,IF(data.f2026[[#This Row],[أيام أجازات بعد السنوية]]>5,data.f2026[[#This Row],[الحافز]]*100%,""))))) -> 0 | BP82: 0 | BQ82: 0 | BS82: 3 | BT82: 0 | BV82: 0 | BZ82: 0 | CA82: 0 | CC82: 0 | CG82: 3 | CK82: 0 | CM82: 0 | CN82: 0 | CO82: 213.02 | CP82: 0 | CQ82: =ROUND(IF($D82=data.f2026[[#Headers],[إيقاف]],$BD82-SUM(data.f2026[[#This Row],[تامينات 2026]:[خصم 5% تأمين من العمولة]],0),0),2) -> 0 | CR82: =ROUND(IF($D82=data.f2026[[#Headers],[مرضي]],$BD82-SUM(data.f2026[[#This Row],[تامينات 2026]:[خصم 5% تأمين من العمولة]],0),0),2) -> 0 | CS82: 0 | CT82: =ROUND(IF($G82=data.f2026[[#Headers],[إعارة]],$BD82-SUM(data.f2026[[#This Row],[تامينات 2026]:[خصم 5% تأمين من العمولة]],0),0),2) -> 0 | CU82: =ROUND(IF($G82=data.f2026[[#Headers],[معاش]],$BD82-SUM(data.f2026[[#This Row],[تامينات 2026]:[خصم 5% تأمين من العمولة]],0),0),2) -> 0 | CV82: 857.85 | CW82: 6142.15
B83: 202066 | C83: 31333 | D83: بنك مصر 1 | E83: عاطف خليل محمود جاد | F83: مروه | G83: دوام كامل | H83: فنى | I83: الثالثة | J83: الثالثة | K83: حرفى كهربائى | L83: الاميرية | M83: 27311230102535 | N83: 202066عاطف خليل محمود جادالثالثةالثالثةحرفى كهربائىالاميرية | O83: نعم | P83: 1092.43 | Q83: 1278.1431 | R83: 0 | S83: 1725.49 | T83: 191.72 | U83: 0 | V83: 0 | W83: 0 | Y83: 191.721465 | Z83: 300 | AB83: 0 | AD83: 0 | AE83: 0 | AF83: 491.72 | AG83: 38.89 | AH83: 43.11 | AI83: 65 | AJ83: 0 | AK83: 200 | AL83: 24.04 | AM83: 38.94 | AN83: 50 | AO83: 71.34 | AP83: 76.33 | AQ83: 81.68 | AS83: 54.6215 | AT83: 600 | AU83: 10 | AV83: 1353.95 | AW83: 10 | AX83: =ROUND((data.f2026[[#This Row],[أساسي 7/2025]]*2)/12,2) -> 213.02 | AY83: 0 | BA83: 0 | BB83: 5264.04 | BC83: 1735.96 | BD83: 7000 | BE83: 0 | BF83: 0 | BI83: 638.74 | BK83: 0 | BL83: 0 | BM83: =IF(data.f2026[[#This Row],[أيام الغياب]]=1,data.f2026[[#This Row],[الحافز]]*20%,IF(data.f2026[[#This Row],[أيام الغياب]]=2,data.f2026[[#This Row],[الحافز]]*100%,IF(data.f2026[[#This Row],[أيام الغياب]]>2,data.f2026[[#This Row],[الحافز]]*100%,""))) ->  | BN83: =IF(data.f2026[[#This Row],[عدد أيام الأجازات]]<=4,data.f2026[[#This Row],[الحافز]]*0,IF(data.f2026[[#This Row],[عدد أيام الأجازات]]=5,data.f2026[[#This Row],[الحافز]]*20%,IF(data.f2026[[#This Row],[عدد أيام الأجازات]]=6,data.f2026[[#This Row],[الحافز]]*40%,IF(data.f2026[[#This Row],[عدد أيام الأجازات]]=7,data.f2026[[#This Row],[الحافز]]*50%,IF(data.f2026[[#This Row],[عدد أيام الأجازات]]>7,data.f2026[[#This Row],[الحافز]]*100%,""))))) -> 0 | BO83: =IF(data.f2026[[#This Row],[أيام أجازات بعد السنوية]]<=2,data.f2026[[#This Row],[الحافز]]*0,IF(data.f2026[[#This Row],[أيام أجازات بعد السنوية]]=3,data.f2026[[#This Row],[الحافز]]*30%,IF(data.f2026[[#This Row],[أيام أجازات بعد السنوية]]=4,data.f2026[[#This Row],[الحافز]]*40%,IF(data.f2026[[#This Row],[أيام أجازات بعد السنوية]]=5,data.f2026[[#This Row],[الحافز]]*50%,IF(data.f2026[[#This Row],[أيام أجازات بعد السنوية]]>5,data.f2026[[#This Row],[الحافز]]*100%,""))))) -> 0 | BP83: 0 | BQ83: 0 | BS83: 3 | BT83: 0 | BV83: 0 | BZ83: 0 | CA83: 0 | CC83: 0 | CG83: 4 | CK83: 0 | CM83: 0 | CN83: 0 | CO83: 213.02 | CP83: 0 | CQ83: =ROUND(IF($D83=data.f2026[[#Headers],[إيقاف]],$BD83-SUM(data.f2026[[#This Row],[تامينات 2026]:[خصم 5% تأمين من العمولة]],0),0),2) -> 0 | CR83: =ROUND(IF($D83=data.f2026[[#Headers],[مرضي]],$BD83-SUM(data.f2026[[#This Row],[تامينات 2026]:[خصم 5% تأمين من العمولة]],0),0),2) -> 0 | CS83: 0 | CT83: =ROUND(IF($G83=data.f2026[[#Headers],[إعارة]],$BD83-SUM(data.f2026[[#This Row],[تامينات 2026]:[خصم 5% تأمين من العمولة]],0),0),2) -> 0 | CU83: =ROUND(IF($G83=data.f2026[[#Headers],[معاش]],$BD83-SUM(data.f2026[[#This Row],[تامينات 2026]:[خصم 5% تأمين من العمولة]],0),0),2) -> 0 | CV83: 858.76 | CW83: 6141.24
B84: 202067 | C84: 1141 | D84: بنك مصر 2 | E84: عبد الرحمن عبد الله عبده أبو العينين | F84: مروه | G84: دوام كامل | H84: فنى | I84: الرابعة | J84: الرابعة | K84: حرفى ميكانيكى | L84: الاميرية | M84: 27804011305591 | N84: 202067عبد الرحمن عبد الله عبده أبو العينينالرابعةالرابعةحرفى ميكانيكىالإدارة العامة | O84: نعم | P84: 1070.48 | Q84: 1252.4616 | R84: 0 | S84: 1690.82 | T84: 187.87 | U84: 0 | V84: 0 | W84: 0 | Y84: 187.86924 | Z84: 300 | AB84: 0 | AD84: 0 | AE84: 0 | AF84: 487.87 | AG84: 38.08 | AH84: 42.17 | AI84: 65 | AJ84: 0 | AK84: 200 | AL84: 25.07 | AM84: 38.16 | AN84: 49 | AO84: 69.91 | AP84: 74.8 | AQ84: 80.04 | AS84: 53.524 | AT84: 600 | AU84: 10 | AV84: 1345.75 | AW84: 10 | AX84: =ROUND((data.f2026[[#This Row],[أساسي 7/2025]]*2)/12,2) -> 208.74 | AY84: 0 | BA84: 0 | BB84: 5183.51 | BC84: 1816.49 | BD84: 7000 | BE84: 0 | BF84: 0 | BI84: 637.84 | BK84: 0 | BL84: 0 | BM84: =IF(data.f2026[[#This Row],[أيام الغياب]]=1,data.f2026[[#This Row],[الحافز]]*20%,IF(data.f2026[[#This Row],[أيام الغياب]]=2,data.f2026[[#This Row],[الحافز]]*100%,IF(data.f2026[[#This Row],[أيام الغياب]]>2,data.f2026[[#This Row],[الحافز]]*100%,""))) ->  | BN84: =IF(data.f2026[[#This Row],[عدد أيام الأجازات]]<=4,data.f2026[[#This Row],[الحافز]]*0,IF(data.f2026[[#This Row],[عدد أيام الأجازات]]=5,data.f2026[[#This Row],[الحافز]]*20%,IF(data.f2026[[#This Row],[عدد أيام الأجازات]]=6,data.f2026[[#This Row],[الحافز]]*40%,IF(data.f2026[[#This Row],[عدد أيام الأجازات]]=7,data.f2026[[#This Row],[الحافز]]*50%,IF(data.f2026[[#This Row],[عدد أيام الأجازات]]>7,data.f2026[[#This Row],[الحافز]]*100%,""))))) -> 0 | BO84: =IF(data.f2026[[#This Row],[أيام أجازات بعد السنوية]]<=2,data.f2026[[#This Row],[الحافز]]*0,IF(data.f2026[[#This Row],[أيام أجازات بعد السنوية]]=3,data.f2026[[#This Row],[الحافز]]*30%,IF(data.f2026[[#This Row],[أيام أجازات بعد السنوية]]=4,data.f2026[[#This Row],[الحافز]]*40%,IF(data.f2026[[#This Row],[أيام أجازات بعد السنوية]]=5,data.f2026[[#This Row],[الحافز]]*50%,IF(data.f2026[[#This Row],[أيام أجازات بعد السنوية]]>5,data.f2026[[#This Row],[الحافز]]*100%,""))))) -> 0 | BP84: 0 | BQ84: 0 | BS84: 3 | BT84: 0 | BV84: 0 | BZ84: 0 | CA84: 0 | CC84: 0 | CG84: 3 | CK84: 0 | CM84: 0 | CN84: 0 | CO84: 208.74 | CP84: 0 | CQ84: =ROUND(IF($D84=data.f2026[[#Headers],[إيقاف]],$BD84-SUM(data.f2026[[#This Row],[تامينات 2026]:[خصم 5% تأمين من العمولة]],0),0),2) -> 0 | CR84: =ROUND(IF($D84=data.f2026[[#Headers],[مرضي]],$BD84-SUM(data.f2026[[#This Row],[تامينات 2026]:[خصم 5% تأمين من العمولة]],0),0),2) -> 0 | CS84: 0 | CT84: =ROUND(IF($G84=data.f2026[[#Headers],[إعارة]],$BD84-SUM(data.f2026[[#This Row],[تامينات 2026]:[خصم 5% تأمين من العمولة]],0),0),2) -> 0 | CU84: =ROUND(IF($G84=data.f2026[[#Headers],[معاش]],$BD84-SUM(data.f2026[[#This Row],[تامينات 2026]:[خصم 5% تأمين من العمولة]],0),0),2) -> 0 | CV84: 852.58 | CW84: 6147.42
B85: 202069 | C85: 1147 | D85: بنك مصر 2 | E85: خالد محمد محمد بكير | F85: مروه | G85: دوام كامل | H85: فنى | I85: الاولى | L85: الاميرية | M85: 26602120100457 | N85: 202069خالد محمد محمد بكيرالاولى | P85: 2332.45 | Q85: 2565.695 | R85: 0 | S85: 3463.69 | T85: 384.85 | U85: 0 | V85: 0 | W85: 0 | Y85: 384.85425 | Z85: 300 | AB85: 100 | AD85: 0 | AE85: 0 | AF85: 684.85 | AG85: 77.1 | AH85: 85.91 | AI85: 103.24 | AJ85: 0 | AK85: 190 | AL85: 46.63 | AM85: 83.15 | AN85: 106.76 | AO85: 152.32 | AP85: 162.98 | AQ85: 174.39 | AS85: 116.6225 | AT85: 600 | AU85: 10 | AV85: 1909.1 | AW85: 10 | AX85: =ROUND((data.f2026[[#This Row],[أساسي 7/2025]]*2)/12,2) -> 427.62 | AY85: 0 | BA85: 0 | BB85: 9445.81 | BC85: 0 | BD85: 9545.81 | BE85: 0 | BF85: 0 | BI85: 961.45 | BK85: 0 | BL85: 0 | BM85: =IF(data.f2026[[#This Row],[أيام الغياب]]=1,data.f2026[[#This Row],[الحافز]]*20%,IF(data.f2026[[#This Row],[أيام الغياب]]=2,data.f2026[[#This Row],[الحافز]]*100%,IF(data.f2026[[#This Row],[أيام الغياب]]>2,data.f2026[[#This Row],[الحافز]]*100%,""))) ->  | BN85: =IF(data.f2026[[#This Row],[عدد أيام الأجازات]]<=4,data.f2026[[#This Row],[الحافز]]*0,IF(data.f2026[[#This Row],[عدد أيام الأجازات]]=5,data.f2026[[#This Row],[الحافز]]*20%,IF(data.f2026[[#This Row],[عدد أيام الأجازات]]=6,data.f2026[[#This Row],[الحافز]]*40%,IF(data.f2026[[#This Row],[عدد أيام الأجازات]]=7,data.f2026[[#This Row],[الحافز]]*50%,IF(data.f2026[[#This Row],[عدد أيام الأجازات]]>7,data.f2026[[#This Row],[الحافز]]*100%,""))))) -> 0 | BO85: =IF(data.f2026[[#This Row],[أيام أجازات بعد السنوية]]<=2,data.f2026[[#This Row],[الحافز]]*0,IF(data.f2026[[#This Row],[أيام أجازات بعد السنوية]]=3,data.f2026[[#This Row],[الحافز]]*30%,IF(data.f2026[[#This Row],[أيام أجازات بعد السنوية]]=4,data.f2026[[#This Row],[الحافز]]*40%,IF(data.f2026[[#This Row],[أيام أجازات بعد السنوية]]=5,data.f2026[[#This Row],[الحافز]]*50%,IF(data.f2026[[#This Row],[أيام أجازات بعد السنوية]]>5,data.f2026[[#This Row],[الحافز]]*100%,""))))) -> 0 | BP85: 0 | BQ85: 0 | BS85: 3 | BT85: 0 | BV85: 0 | BZ85: 0 | CA85: 0 | CC85: 0 | CG85: 5 | CK85: 0 | CM85: 0 | CN85: 0 | CO85: 427.62 | CP85: 0 | CQ85: =ROUND(IF($D85=data.f2026[[#Headers],[إيقاف]],$BD85-SUM(data.f2026[[#This Row],[تامينات 2026]:[خصم 5% تأمين من العمولة]],0),0),2) -> 0 | CR85: =ROUND(IF($D85=data.f2026[[#Headers],[مرضي]],$BD85-SUM(data.f2026[[#This Row],[تامينات 2026]:[خصم 5% تأمين من العمولة]],0),0),2) -> 0 | CS85: 0 | CT85: =ROUND(IF($G85=data.f2026[[#Headers],[إعارة]],$BD85-SUM(data.f2026[[#This Row],[تامينات 2026]:[خصم 5% تأمين من العمولة]],0),0),2) -> 0 | CU85: =ROUND(IF($G85=data.f2026[[#Headers],[معاش]],$BD85-SUM(data.f2026[[#This Row],[تامينات 2026]:[خصم 5% تأمين من العمولة]],0),0),2) -> 0 | CV85: 1397.07 | CW85: 8148.74
B86: 202070 | C86: 1168 | D86: بنك مصر 2 | E86: محمود زكريا محمود يونس | F86: مروه | G86: دوام كامل | H86: فنى | I86: الثانية | J86: الثانية | K86: ميكانيكى | L86: الاميرية | M86: 27312100103277 | N86: 202070محمود زكريا محمود يونسالثانيةالثانيةميكانيكىمحطة الخدمة | O86: نعم | P86: 1879.01 | Q86: 2198.4417 | R86: 0 | S86: 2967.9 | T86: 329.77 | U86: 0 | V86: 0 | W86: 0 | Y86: 329.766255 | Z86: 300 | AB86: 0 | AD86: 0 | AE86: 0 | AF86: 629.77 | AG86: 62.21 | AH86: 69.28 | AI86: 83.14 | AJ86: 0 | AK86: 190 | AL86: 37.56 | AM86: 66.99 | AN86: 86.01 | AO86: 122.71 | AP86: 131.3 | AQ86: 140.49 | AS86: 93.9505 | AT86: 600 | AU86: 10 | AV86: 1693.64 | AW86: 10 | AX86: =ROUND((data.f2026[[#This Row],[أساسي 7/2025]]*2)/12,2) -> 366.41 | AY86: 0 | BA86: 0 | BB86: 8195.93 | BC86: 0 | BD86: 8195.93 | BE86: 0 | BF86: 0 | BI86: 814 | BK86: 0 | BL86: 0 | BM86: =IF(data.f2026[[#This Row],[أيام الغياب]]=1,data.f2026[[#This Row],[الحافز]]*20%,IF(data.f2026[[#This Row],[أيام الغياب]]=2,data.f2026[[#This Row],[الحافز]]*100%,IF(data.f2026[[#This Row],[أيام الغياب]]>2,data.f2026[[#This Row],[الحافز]]*100%,""))) ->  | BN86: =IF(data.f2026[[#This Row],[عدد أيام الأجازات]]<=4,data.f2026[[#This Row],[الحافز]]*0,IF(data.f2026[[#This Row],[عدد أيام الأجازات]]=5,data.f2026[[#This Row],[الحافز]]*20%,IF(data.f2026[[#This Row],[عدد أيام الأجازات]]=6,data.f2026[[#This Row],[الحافز]]*40%,IF(data.f2026[[#This Row],[عدد أيام الأجازات]]=7,data.f2026[[#This Row],[الحافز]]*50%,IF(data.f2026[[#This Row],[عدد أيام الأجازات]]>7,data.f2026[[#This Row],[الحافز]]*100%,""))))) -> 0 | BO86: =IF(data.f2026[[#This Row],[أيام أجازات بعد السنوية]]<=2,data.f2026[[#This Row],[الحافز]]*0,IF(data.f2026[[#This Row],[أيام أجازات بعد السنوية]]=3,data.f2026[[#This Row],[الحافز]]*30%,IF(data.f2026[[#This Row],[أيام أجازات بعد السنوية]]=4,data.f2026[[#This Row],[الحافز]]*40%,IF(data.f2026[[#This Row],[أيام أجازات بعد السنوية]]=5,data.f2026[[#This Row],[الحافز]]*50%,IF(data.f2026[[#This Row],[أيام أجازات بعد السنوية]]>5,data.f2026[[#This Row],[الحافز]]*100%,""))))) -> 0 | BP86: 0 | BQ86: 0 | BS86: 3 | BT86: 0 | BV86: 0 | BZ86: 0 | CA86: 0 | CC86: 0 | CG86: 3 | CK86: 0 | CM86: 0 | CN86: 0 | CO86: 366.41 | CP86: 0 | CQ86: =ROUND(IF($D86=data.f2026[[#Headers],[إيقاف]],$BD86-SUM(data.f2026[[#This Row],[تامينات 2026]:[خصم 5% تأمين من العمولة]],0),0),2) -> 0 | CR86: =ROUND(IF($D86=data.f2026[[#Headers],[مرضي]],$BD86-SUM(data.f2026[[#This Row],[تامينات 2026]:[خصم 5% تأمين من العمولة]],0),0),2) -> 0 | CS86: 0 | CT86: =ROUND(IF($G86=data.f2026[[#Headers],[إعارة]],$BD86-SUM(data.f2026[[#This Row],[تامينات 2026]:[خصم 5% تأمين من العمولة]],0),0),2) -> 0 | CU86: =ROUND(IF($G86=data.f2026[[#Headers],[معاش]],$BD86-SUM(data.f2026[[#This Row],[تامينات 2026]:[خصم 5% تأمين من العمولة]],0),0),2) -> 0 | CV86: 1186.41 | CW86: 7009.52
B87: 202071 | C87: 1155 | D87: بنك مصر 2 | E87: أشرف هاشم عثمان عبد المغيث | F87: مروه | G87: دوام كامل | H87: فنى | I87: الثالثة | J87: الثالثة | K87: حرفى نقاش دوكو | L87: الاميرية | M87: 27003190101755 | N87: 202071أشرف هاشم عثمان عبد المغيثالثالثةالثالثةحرفى نقاش دوكوالادارة العامة | O87: نعم | P87: 1092.43 | Q87: 1278.1431 | R87: 0 | S87: 1725.49 | T87: 191.72 | U87: 0 | V87: 0 | W87: 0 | Y87: 191.721465 | Z87: 300 | AB87: 0 | AD87: 0 | AE87: 0 | AF87: 491.72 | AG87: 38.89 | AH87: 43.11 | AI87: 65 | AJ87: 0 | AK87: 200 | AL87: 24.04 | AM87: 38.94 | AN87: 50 | AO87: 71.34 | AP87: 76.33 | AQ87: 81.67 | AS87: 54.6215 | AT87: 600 | AU87: 10 | AV87: 1353.94 | AW87: 10 | AX87: =ROUND((data.f2026[[#This Row],[أساسي 7/2025]]*2)/12,2) -> 213.02 | AY87: 0 | BA87: 0 | BB87: 5264.03 | BC87: 1735.97 | BD87: 7000 | BE87: 0 | BF87: 0 | BI87: 638.85 | BK87: 0 | BL87: 0 | BM87: =IF(data.f2026[[#This Row],[أيام الغياب]]=1,data.f2026[[#This Row],[الحافز]]*20%,IF(data.f2026[[#This Row],[أيام الغياب]]=2,data.f2026[[#This Row],[الحافز]]*100%,IF(data.f2026[[#This Row],[أيام الغياب]]>2,data.f2026[[#This Row],[الحافز]]*100%,""))) ->  | BN87: =IF(data.f2026[[#This Row],[عدد أيام الأجازات]]<=4,data.f2026[[#This Row],[الحافز]]*0,IF(data.f2026[[#This Row],[عدد أيام الأجازات]]=5,data.f2026[[#This Row],[الحافز]]*20%,IF(data.f2026[[#This Row],[عدد أيام الأجازات]]=6,data.f2026[[#This Row],[الحافز]]*40%,IF(data.f2026[[#This Row],[عدد أيام الأجازات]]=7,data.f2026[[#This Row],[الحافز]]*50%,IF(data.f2026[[#This Row],[عدد أيام الأجازات]]>7,data.f2026[[#This Row],[الحافز]]*100%,""))))) -> 0 | BO87: =IF(data.f2026[[#This Row],[أيام أجازات بعد السنوية]]<=2,data.f2026[[#This Row],[الحافز]]*0,IF(data.f2026[[#This Row],[أيام أجازات بعد السنوية]]=3,data.f2026[[#This Row],[الحافز]]*30%,IF(data.f2026[[#This Row],[أيام أجازات بعد السنوية]]=4,data.f2026[[#This Row],[الحافز]]*40%,IF(data.f2026[[#This Row],[أيام أجازات بعد السنوية]]=5,data.f2026[[#This Row],[الحافز]]*50%,IF(data.f2026[[#This Row],[أيام أجازات بعد السنوية]]>5,data.f2026[[#This Row],[الحافز]]*100%,""))))) -> 0 | BP87: 0 | BQ87: 0 | BS87: 3 | BT87: 0 | BV87: 0 | BZ87: 0 | CA87: 0 | CC87: 0 | CG87: 3 | CK87: 0 | CM87: 0 | CN87: 0 | CO87: 213.02 | CP87: 0 | CQ87: =ROUND(IF($D87=data.f2026[[#Headers],[إيقاف]],$BD87-SUM(data.f2026[[#This Row],[تامينات 2026]:[خصم 5% تأمين من العمولة]],0),0),2) -> 0 | CR87: =ROUND(IF($D87=data.f2026[[#Headers],[مرضي]],$BD87-SUM(data.f2026[[#This Row],[تامينات 2026]:[خصم 5% تأمين من العمولة]],0),0),2) -> 0 | CS87: 0 | CT87: =ROUND(IF($G87=data.f2026[[#Headers],[إعارة]],$BD87-SUM(data.f2026[[#This Row],[تامينات 2026]:[خصم 5% تأمين من العمولة]],0),0),2) -> 0 | CU87: =ROUND(IF($G87=data.f2026[[#Headers],[معاش]],$BD87-SUM(data.f2026[[#This Row],[تامينات 2026]:[خصم 5% تأمين من العمولة]],0),0),2) -> 0 | CV87: 857.87 | CW87: 6142.13
B88: 202072 | C88: 1313 | D88: بنك مصر 2 | E88: محمود رزق إبراهيم هيكل | F88: مروه | G88: دوام كامل | H88: فنى | I88: الثالثة | J88: الثالثة | K88: حرفى سروجى | L88: الاميرية | M88: 27608010101695 | N88: 202072محمود رزق إبراهيم هيكلالثالثةالثالثةحرفى سروجىالادارة العامة بالورش المركزية | O88: نعم | P88: 1092.43 | Q88: 1278.1431 | R88: 0 | S88: 1725.49 | T88: 191.72 | U88: 0 | V88: 0 | W88: 0 | Y88: 191.721465 | Z88: 300 | AB88: 0 | AD88: 0 | AE88: 0 | AF88: 491.72 | AG88: 38.89 | AH88: 43.11 | AI88: 65 | AJ88: 0 | AK88: 200 | AL88: 24.04 | AM88: 38.94 | AN88: 50 | AO88: 71.34 | AP88: 76.33 | AQ88: 81.68 | AS88: 54.6215 | AT88: 600 | AU88: 10 | AV88: 1353.95 | AW88: 10 | AX88: =ROUND((data.f2026[[#This Row],[أساسي 7/2025]]*2)/12,2) -> 213.02 | AY88: 0 | BA88: 0 | BB88: 5264.04 | BC88: 1735.96 | BD88: 7000 | BE88: 0 | BF88: 0 | BI88: 638.98 | BK88: 0 | BL88: 0 | BM88: =IF(data.f2026[[#This Row],[أيام الغياب]]=1,data.f2026[[#This Row],[الحافز]]*20%,IF(data.f2026[[#This Row],[أيام الغياب]]=2,data.f2026[[#This Row],[الحافز]]*100%,IF(data.f2026[[#This Row],[أيام الغياب]]>2,data.f2026[[#This Row],[الحافز]]*100%,""))) ->  | BN88: =IF(data.f2026[[#This Row],[عدد أيام الأجازات]]<=4,data.f2026[[#This Row],[الحافز]]*0,IF(data.f2026[[#This Row],[عدد أيام الأجازات]]=5,data.f2026[[#This Row],[الحافز]]*20%,IF(data.f2026[[#This Row],[عدد أيام الأجازات]]=6,data.f2026[[#This Row],[الحافز]]*40%,IF(data.f2026[[#This Row],[عدد أيام الأجازات]]=7,data.f2026[[#This Row],[الحافز]]*50%,IF(data.f2026[[#This Row],[عدد أيام الأجازات]]>7,data.f2026[[#This Row],[الحافز]]*100%,""))))) -> 0 | BO88: =IF(data.f2026[[#This Row],[أيام أجازات بعد السنوية]]<=2,data.f2026[[#This Row],[الحافز]]*0,IF(data.f2026[[#This Row],[أيام أجازات بعد السنوية]]=3,data.f2026[[#This Row],[الحافز]]*30%,IF(data.f2026[[#This Row],[أيام أجازات بعد السنوية]]=4,data.f2026[[#This Row],[الحافز]]*40%,IF(data.f2026[[#This Row],[أيام أجازات بعد السنوية]]=5,data.f2026[[#This Row],[الحافز]]*50%,IF(data.f2026[[#This Row],[أيام أجازات بعد السنوية]]>5,data.f2026[[#This Row],[الحافز]]*100%,""))))) -> 0 | BP88: 0 | BQ88: 0 | BS88: 3 | BT88: 0 | BV88: 0 | BZ88: 0 | CA88: 0 | CC88: 0 | CG88: 3 | CK88: 0 | CM88: 0 | CN88: 0 | CO88: 213.02 | CP88: 0 | CQ88: =ROUND(IF($D88=data.f2026[[#Headers],[إيقاف]],$BD88-SUM(data.f2026[[#This Row],[تامينات 2026]:[خصم 5% تأمين من العمولة]],0),0),2) -> 0 | CR88: =ROUND(IF($D88=data.f2026[[#Headers],[مرضي]],$BD88-SUM(data.f2026[[#This Row],[تامينات 2026]:[خصم 5% تأمين من العمولة]],0),0),2) -> 0 | CS88: 0 | CT88: =ROUND(IF($G88=data.f2026[[#Headers],[إعارة]],$BD88-SUM(data.f2026[[#This Row],[تامينات 2026]:[خصم 5% تأمين من العمولة]],0),0),2) -> 0 | CU88: =ROUND(IF($G88=data.f2026[[#Headers],[معاش]],$BD88-SUM(data.f2026[[#This Row],[تامينات 2026]:[خصم 5% تأمين من العمولة]],0),0),2) -> 0 | CV88: 858 | CW88: 6142
B89: 202073 | C89: 1163 | D89: بنك مصر 2 | E89: عبد اللاه محمد خميس صالح | F89: مروه | G89: دوام كامل | H89: فنى | I89: الثالثة | L89: الاميرية | M89: 27204090101435 | N89: 202073عبد اللاه محمد خميس صالحالثالثة | P89: 989.69 | Q89: 1157.94 | R89: 0 | S89: 1563.22 | T89: 173.69 | U89: 0 | V89: 0 | W89: 0 | Y89: 173.691 | Z89: 300 | AB89: 0 | AD89: 0 | AE89: 0 | AF89: 473.69 | AG89: 32.5 | AH89: 36.38 | AI89: 65 | AJ89: 0 | AK89: 200 | AL89: 28.84 | AM89: 35.28 | AN89: 45.3 | AO89: 64.63 | AP89: 69.15 | AQ89: 85.25 | AS89: 51.031 | AT89: 600 | AU89: 8 | AV89: 1321.36 | AW89: 10 | AX89: =ROUND((data.f2026[[#This Row],[أساسي 7/2025]]*2)/12,2) -> 192.99 | AY89: 0 | BA89: 30 | BB89: 4892.89 | BC89: 2107.11 | BD89: 7030 | BE89: 0 | BF89: 0 | BI89: 635.3 | BK89: 0 | BL89: 0 | BM89: =IF(data.f2026[[#This Row],[أيام الغياب]]=1,data.f2026[[#This Row],[الحافز]]*20%,IF(data.f2026[[#This Row],[أيام الغياب]]=2,data.f2026[[#This Row],[الحافز]]*100%,IF(data.f2026[[#This Row],[أيام الغياب]]>2,data.f2026[[#This Row],[الحافز]]*100%,""))) ->  | BN89: =IF(data.f2026[[#This Row],[عدد أيام الأجازات]]<=4,data.f2026[[#This Row],[الحافز]]*0,IF(data.f2026[[#This Row],[عدد أيام الأجازات]]=5,data.f2026[[#This Row],[الحافز]]*20%,IF(data.f2026[[#This Row],[عدد أيام الأجازات]]=6,data.f2026[[#This Row],[الحافز]]*40%,IF(data.f2026[[#This Row],[عدد أيام الأجازات]]=7,data.f2026[[#This Row],[الحافز]]*50%,IF(data.f2026[[#This Row],[عدد أيام الأجازات]]>7,data.f2026[[#This Row],[الحافز]]*100%,""))))) -> 0 | BO89: =IF(data.f2026[[#This Row],[أيام أجازات بعد السنوية]]<=2,data.f2026[[#This Row],[الحافز]]*0,IF(data.f2026[[#This Row],[أيام أجازات بعد السنوية]]=3,data.f2026[[#This Row],[الحافز]]*30%,IF(data.f2026[[#This Row],[أيام أجازات بعد السنوية]]=4,data.f2026[[#This Row],[الحافز]]*40%,IF(data.f2026[[#This Row],[أيام أجازات بعد السنوية]]=5,data.f2026[[#This Row],[الحافز]]*50%,IF(data.f2026[[#This Row],[أيام أجازات بعد السنوية]]>5,data.f2026[[#This Row],[الحافز]]*100%,""))))) -> 0 | BP89: 0 | BQ89: 0 | BS89: 3 | BT89: 0 | BV89: 0 | BZ89: 0 | CA89: 0 | CC89: 0 | CG89: 3 | CK89: 0 | CM89: 0 | CN89: 0 | CO89: 192.99 | CP89: 0 | CQ89: =ROUND(IF($D89=data.f2026[[#Headers],[إيقاف]],$BD89-SUM(data.f2026[[#This Row],[تامينات 2026]:[خصم 5% تأمين من العمولة]],0),0),2) -> 0 | CR89: =ROUND(IF($D89=data.f2026[[#Headers],[مرضي]],$BD89-SUM(data.f2026[[#This Row],[تامينات 2026]:[خصم 5% تأمين من العمولة]],0),0),2) -> 0 | CS89: 0 | CT89: =ROUND(IF($G89=data.f2026[[#Headers],[إعارة]],$BD89-SUM(data.f2026[[#This Row],[تامينات 2026]:[خصم 5% تأمين من العمولة]],0),0),2) -> 0 | CU89: =ROUND(IF($G89=data.f2026[[#Headers],[معاش]],$BD89-SUM(data.f2026[[#This Row],[تامينات 2026]:[خصم 5% تأمين من العمولة]],0),0),2) -> 0 | CV89: 834.29 | CW89: 6195.71
B90: 202074 | C90: 1150 | D90: بنك مصر 2 | E90: سيد نجيب محمد سيد | F90: مروه | G90: دوام كامل | H90: فنى | I90: الاولى | J90: الأولى | K90: حرفى لحام كهربائى | L90: الاميرية | M90: 26709180102733 | N90: 202074سيد نجيب محمد سيدالاولىالأولىحرفى لحام كهربائىقطاع شئون الفنية | O90: نعم | P90: 2029.15 | Q90: 2374.1055 | R90: 0 | S90: 3205.04 | T90: 356.12 | U90: 0 | V90: 0 | W90: 0 | Y90: 356.115825 | Z90: 300 | AB90: 0 | AD90: 0 | AE90: 0 | AF90: 656.12 | AG90: 71.79 | AH90: 79.95 | AI90: 95.3 | AJ90: 0 | AK90: 190 | AL90: 40.56 | AM90: 72.34 | AN90: 92.88 | AO90: 132.51 | AP90: 141.79 | AQ90: 151.71 | AS90: 101.4575 | AT90: 600 | AU90: 10 | AV90: 1780.29 | AW90: 10 | AX90: =ROUND((data.f2026[[#This Row],[أساسي 7/2025]]*2)/12,2) -> 395.68 | AY90: 0 | BA90: 0 | BB90: 8777.36 | BC90: 0 | BD90: 8777.36 | BE90: 0 | BF90: 0 | BI90: 872.93 | BK90: 0 | BL90: 0 | BM90: =IF(data.f2026[[#This Row],[أيام الغياب]]=1,data.f2026[[#This Row],[الحافز]]*20%,IF(data.f2026[[#This Row],[أيام الغياب]]=2,data.f2026[[#This Row],[الحافز]]*100%,IF(data.f2026[[#This Row],[أيام الغياب]]>2,data.f2026[[#This Row],[الحافز]]*100%,""))) ->  | BN90: =IF(data.f2026[[#This Row],[عدد أيام الأجازات]]<=4,data.f2026[[#This Row],[الحافز]]*0,IF(data.f2026[[#This Row],[عدد أيام الأجازات]]=5,data.f2026[[#This Row],[الحافز]]*20%,IF(data.f2026[[#This Row],[عدد أيام الأجازات]]=6,data.f2026[[#This Row],[الحافز]]*40%,IF(data.f2026[[#This Row],[عدد أيام الأجازات]]=7,data.f2026[[#This Row],[الحافز]]*50%,IF(data.f2026[[#This Row],[عدد أيام الأجازات]]>7,data.f2026[[#This Row],[الحافز]]*100%,""))))) -> 0 | BO90: =IF(data.f2026[[#This Row],[أيام أجازات بعد السنوية]]<=2,data.f2026[[#This Row],[الحافز]]*0,IF(data.f2026[[#This Row],[أيام أجازات بعد السنوية]]=3,data.f2026[[#This Row],[الحافز]]*30%,IF(data.f2026[[#This Row],[أيام أجازات بعد السنوية]]=4,data.f2026[[#This Row],[الحافز]]*40%,IF(data.f2026[[#This Row],[أيام أجازات بعد السنوية]]=5,data.f2026[[#This Row],[الحافز]]*50%,IF(data.f2026[[#This Row],[أيام أجازات بعد السنوية]]>5,data.f2026[[#This Row],[الحافز]]*100%,""))))) -> 0 | BP90: 0 | BQ90: 0 | BS90: 3 | BT90: 0 | BV90: 0 | BZ90: 0 | CA90: 0 | CC90: 0 | CG90: 5 | CK90: 0 | CM90: 0 | CN90: 0 | CO90: 395.68 | CP90: 0 | CQ90: =ROUND(IF($D90=data.f2026[[#Headers],[إيقاف]],$BD90-SUM(data.f2026[[#This Row],[تامينات 2026]:[خصم 5% تأمين من العمولة]],0),0),2) -> 0 | CR90: =ROUND(IF($D90=data.f2026[[#Headers],[مرضي]],$BD90-SUM(data.f2026[[#This Row],[تامينات 2026]:[خصم 5% تأمين من العمولة]],0),0),2) -> 0 | CS90: 0 | CT90: =ROUND(IF($G90=data.f2026[[#Headers],[إعارة]],$BD90-SUM(data.f2026[[#This Row],[تامينات 2026]:[خصم 5% تأمين من العمولة]],0),0),2) -> 0 | CU90: =ROUND(IF($G90=data.f2026[[#Headers],[معاش]],$BD90-SUM(data.f2026[[#This Row],[تامينات 2026]:[خصم 5% تأمين من العمولة]],0),0),2) -> 0 | CV90: 1276.61 | CW90: 7500.75
B91: 202075 | C91: 1131 | D91: بنك مصر 2 | E91: ميلاد سمير خله غبريال | F91: مروه | G91: دوام كامل | H91: فنى | I91: الثانية | J91: الثانية | K91: فنى كهربائى توصيلات | L91: الاميرية | M91: 28301060104498 | N91: 202075ميلاد سمير خله غبريالالثانيةالثانيةفنى كهربائى توصيلات الاميرية | O91: نعم | P91: 1137.36 | Q91: 1330.7112 | R91: 0 | S91: 1796.46 | T91: 199.61 | U91: 0 | V91: 0 | W91: 0 | Y91: 199.60668 | Z91: 300 | AB91: 0 | AD91: 0 | AE91: 0 | AF91: 499.61 | AG91: 40.59 | AH91: 45.2 | AI91: 65 | AJ91: 0 | AK91: 190 | AL91: 22.74 | AM91: 40.55 | AN91: 52.06 | AO91: 74.27 | AP91: 79.47 | AQ91: 85.04 | AS91: 56.868 | AT91: 600 | AU91: 8 | AV91: 1359.79 | AW91: 10 | AX91: =ROUND((data.f2026[[#This Row],[أساسي 7/2025]]*2)/12,2) -> 221.79 | AY91: 0 | BA91: 0 | BB91: 5417.97 | BC91: 1582.03 | BD91: 7000 | BE91: 0 | BF91: 0 | BG91: 1 | BI91: 641.3 | BK91: 166.0583333 | BL91: 0 | BM91: =IF(data.f2026[[#This Row],[أيام الغياب]]=1,data.f2026[[#This Row],[الحافز]]*20%,IF(data.f2026[[#This Row],[أيام الغياب]]=2,data.f2026[[#This Row],[الحافز]]*100%,IF(data.f2026[[#This Row],[أيام الغياب]]>2,data.f2026[[#This Row],[الحافز]]*100%,""))) -> 359.292 | BN91: =IF(data.f2026[[#This Row],[عدد أيام الأجازات]]<=4,data.f2026[[#This Row],[الحافز]]*0,IF(data.f2026[[#This Row],[عدد أيام الأجازات]]=5,data.f2026[[#This Row],[الحافز]]*20%,IF(data.f2026[[#This Row],[عدد أيام الأجازات]]=6,data.f2026[[#This Row],[الحافز]]*40%,IF(data.f2026[[#This Row],[عدد أيام الأجازات]]=7,data.f2026[[#This Row],[الحافز]]*50%,IF(data.f2026[[#This Row],[عدد أيام الأجازات]]>7,data.f2026[[#This Row],[الحافز]]*100%,""))))) -> 0 | BO91: =IF(data.f2026[[#This Row],[أيام أجازات بعد السنوية]]<=2,data.f2026[[#This Row],[الحافز]]*0,IF(data.f2026[[#This Row],[أيام أجازات بعد السنوية]]=3,data.f2026[[#This Row],[الحافز]]*30%,IF(data.f2026[[#This Row],[أيام أجازات بعد السنوية]]=4,data.f2026[[#This Row],[الحافز]]*40%,IF(data.f2026[[#This Row],[أيام أجازات بعد السنوية]]=5,data.f2026[[#This Row],[الحافز]]*50%,IF(data.f2026[[#This Row],[أيام أجازات بعد السنوية]]>5,data.f2026[[#This Row],[الحافز]]*100%,""))))) -> 0 | BP91: 0 | BQ91: 0 | BS91: 3 | BT91: 0 | BV91: 0 | BZ91: 0 | CA91: 0 | CC91: 0 | CG91: 3 | CK91: 0 | CM91: 0 | CN91: 0 | CO91: 221.79 | CP91: 0 | CQ91: =ROUND(IF($D91=data.f2026[[#Headers],[إيقاف]],$BD91-SUM(data.f2026[[#This Row],[تامينات 2026]:[خصم 5% تأمين من العمولة]],0),0),2) -> 0 | CR91: =ROUND(IF($D91=data.f2026[[#Headers],[مرضي]],$BD91-SUM(data.f2026[[#This Row],[تامينات 2026]:[خصم 5% تأمين من العمولة]],0),0),2) -> 0 | CS91: 0 | CT91: =ROUND(IF($G91=data.f2026[[#Headers],[إعارة]],$BD91-SUM(data.f2026[[#This Row],[تامينات 2026]:[خصم 5% تأمين من العمولة]],0),0),2) -> 0 | CU91: =ROUND(IF($G91=data.f2026[[#Headers],[معاش]],$BD91-SUM(data.f2026[[#This Row],[تامينات 2026]:[خصم 5% تأمين من العمولة]],0),0),2) -> 0 | CV91: 1394.44 | CW91: 5605.56
B92: 202076 | C92: 1170 | D92: بنك مصر 2 | E92: هيثم أحمد عبد العظيم محمد | F92: مروه | G92: دوام كامل | H92: فنى | I92: الثانية | J92: الثانية | K92: فنى كهربائى | L92: الاميرية | M92: 8008142100599 | N92: 202076هيثم أحمد عبد العظيم محمد الثانيةالثانيةفنى كهربائىالاميرية | O92: نعم | P92: 1137.36 | Q92: 1330.7112 | R92: 0 | S92: 1796.46 | T92: 199.61 | U92: 0 | V92: 0 | W92: 0 | Y92: 199.60668 | Z92: 300 | AB92: 0 | AD92: 0 | AE92: 0 | AF92: 499.61 | AG92: 40.59 | AH92: 45.2 | AI92: 65 | AJ92: 0 | AK92: 190 | AL92: 22.74 | AM92: 40.55 | AN92: 52.06 | AO92: 74.27 | AP92: 79.47 | AQ92: 85.04 | AS92: 56.868 | AT92: 600 | AU92: 10 | AV92: 1361.79 | AW92: 10 | AX92: =ROUND((data.f2026[[#This Row],[أساسي 7/2025]]*2)/12,2) -> 221.79 | AY92: 0 | BA92: 0 | BB92: 5419.97 | BC92: 1580.03 | BD92: 7000 | BE92: 0 | BF92: 0 | BI92: 641.32 | BK92: 0 | BL92: 0 | BM92: =IF(data.f2026[[#This Row],[أيام الغياب]]=1,data.f2026[[#This Row],[الحافز]]*20%,IF(data.f2026[[#This Row],[أيام الغياب]]=2,data.f2026[[#This Row],[الحافز]]*100%,IF(data.f2026[[#This Row],[أيام الغياب]]>2,data.f2026[[#This Row],[الحافز]]*100%,""))) ->  | BN92: =IF(data.f2026[[#This Row],[عدد أيام الأجازات]]<=4,data.f2026[[#This Row],[الحافز]]*0,IF(data.f2026[[#This Row],[عدد أيام الأجازات]]=5,data.f2026[[#This Row],[الحافز]]*20%,IF(data.f2026[[#This Row],[عدد أيام الأجازات]]=6,data.f2026[[#This Row],[الحافز]]*40%,IF(data.f2026[[#This Row],[عدد أيام الأجازات]]=7,data.f2026[[#This Row],[الحافز]]*50%,IF(data.f2026[[#This Row],[عدد أيام الأجازات]]>7,data.f2026[[#This Row],[الحافز]]*100%,""))))) -> 0 | BO92: =IF(data.f2026[[#This Row],[أيام أجازات بعد السنوية]]<=2,data.f2026[[#This Row],[الحافز]]*0,IF(data.f2026[[#This Row],[أيام أجازات بعد السنوية]]=3,data.f2026[[#This Row],[الحافز]]*30%,IF(data.f2026[[#This Row],[أيام أجازات بعد السنوية]]=4,data.f2026[[#This Row],[الحافز]]*40%,IF(data.f2026[[#This Row],[أيام أجازات بعد السنوية]]=5,data.f2026[[#This Row],[الحافز]]*50%,IF(data.f2026[[#This Row],[أيام أجازات بعد السنوية]]>5,data.f2026[[#This Row],[الحافز]]*100%,""))))) -> 0 | BP92: 0 | BQ92: 0 | BS92: 3 | BT92: 0 | BV92: 0 | BZ92: 0 | CA92: 0 | CC92: 0 | CG92: 3 | CK92: 0 | CM92: 0 | CN92: 0 | CO92: 221.79 | CP92: 0 | CQ92: =ROUND(IF($D92=data.f2026[[#Headers],[إيقاف]],$BD92-SUM(data.f2026[[#This Row],[تامينات 2026]:[خصم 5% تأمين من العمولة]],0),0),2) -> 0 | CR92: =ROUND(IF($D92=data.f2026[[#Headers],[مرضي]],$BD92-SUM(data.f2026[[#This Row],[تامينات 2026]:[خصم 5% تأمين من العمولة]],0),0),2) -> 0 | CS92: 0 | CT92: =ROUND(IF($G92=data.f2026[[#Headers],[إعارة]],$BD92-SUM(data.f2026[[#This Row],[تامينات 2026]:[خصم 5% تأمين من العمولة]],0),0),2) -> 0 | CU92: =ROUND(IF($G92=data.f2026[[#Headers],[معاش]],$BD92-SUM(data.f2026[[#This Row],[تامينات 2026]:[خصم 5% تأمين من العمولة]],0),0),2) -> 0 | CV92: 869.11 | CW92: 6130.89
B93: 202077 | C93: 1284 | D93: بنك مصر 2 | E93: عبد النبي عطا محمود محمد | F93: مروه | G93: دوام كامل | H93: فنى | I93: الثانية | J93: الثانية | K93: فني كهربائي | L93: الاميرية | M93: 28302051405279 | N93: 202077عبد النبي عطا محمود محمد الثانيةالثانيةفني كهربائي الاميرية | O93: نعم | P93: 1137.36 | Q93: 1330.7112 | R93: 0 | S93: 1796.46 | T93: 199.61 | U93: 0 | V93: 0 | W93: 0 | Y93: 199.60668 | Z93: 300 | AB93: 0 | AD93: 0 | AE93: 0 | AF93: 499.61 | AG93: 40.59 | AH93: 45.02 | AI93: 65 | AJ93: 0 | AK93: 190 | AL93: 22.74 | AM93: 40.55 | AN93: 52.06 | AO93: 74.27 | AP93: 79.47 | AQ93: 85.04 | AS93: 56.868 | AT93: 600 | AU93: 8 | AV93: 1359.61 | AW93: 10 | AX93: =ROUND((data.f2026[[#This Row],[أساسي 7/2025]]*2)/12,2) -> 221.79 | AY93: 0 | BA93: 0 | BB93: 5417.79 | BC93: 1582.21 | BD93: 7000 | BE93: 0 | BF93: 0 | BI93: 641.85 | BK93: 0 | BL93: 0 | BM93: =IF(data.f2026[[#This Row],[أيام الغياب]]=1,data.f2026[[#This Row],[الحافز]]*20%,IF(data.f2026[[#This Row],[أيام الغياب]]=2,data.f2026[[#This Row],[الحافز]]*100%,IF(data.f2026[[#This Row],[أيام الغياب]]>2,data.f2026[[#This Row],[الحافز]]*100%,""))) ->  | BN93: =IF(data.f2026[[#This Row],[عدد أيام الأجازات]]<=4,data.f2026[[#This Row],[الحافز]]*0,IF(data.f2026[[#This Row],[عدد أيام الأجازات]]=5,data.f2026[[#This Row],[الحافز]]*20%,IF(data.f2026[[#This Row],[عدد أيام الأجازات]]=6,data.f2026[[#This Row],[الحافز]]*40%,IF(data.f2026[[#This Row],[عدد أيام الأجازات]]=7,data.f2026[[#This Row],[الحافز]]*50%,IF(data.f2026[[#This Row],[عدد أيام الأجازات]]>7,data.f2026[[#This Row],[الحافز]]*100%,""))))) -> 0 | BO93: =IF(data.f2026[[#This Row],[أيام أجازات بعد السنوية]]<=2,data.f2026[[#This Row],[الحافز]]*0,IF(data.f2026[[#This Row],[أيام أجازات بعد السنوية]]=3,data.f2026[[#This Row],[الحافز]]*30%,IF(data.f2026[[#This Row],[أيام أجازات بعد السنوية]]=4,data.f2026[[#This Row],[الحافز]]*40%,IF(data.f2026[[#This Row],[أيام أجازات بعد السنوية]]=5,data.f2026[[#This Row],[الحافز]]*50%,IF(data.f2026[[#This Row],[أيام أجازات بعد السنوية]]>5,data.f2026[[#This Row],[الحافز]]*100%,""))))) -> 0 | BP93: 0 | BQ93: 0 | BS93: 3 | BT93: 0 | BV93: 0 | BZ93: 0 | CA93: 0 | CC93: 0 | CG93: 3 | CK93: 0 | CM93: 0 | CN93: 0 | CO93: 221.79 | CP93: 0 | CQ93: =ROUND(IF($D93=data.f2026[[#Headers],[إيقاف]],$BD93-SUM(data.f2026[[#This Row],[تامينات 2026]:[خصم 5% تأمين من العمولة]],0),0),2) -> 0 | CR93: =ROUND(IF($D93=data.f2026[[#Headers],[مرضي]],$BD93-SUM(data.f2026[[#This Row],[تامينات 2026]:[خصم 5% تأمين من العمولة]],0),0),2) -> 0 | CS93: 0 | CT93: =ROUND(IF($G93=data.f2026[[#Headers],[إعارة]],$BD93-SUM(data.f2026[[#This Row],[تامينات 2026]:[خصم 5% تأمين من العمولة]],0),0),2) -> 0 | CU93: =ROUND(IF($G93=data.f2026[[#Headers],[معاش]],$BD93-SUM(data.f2026[[#This Row],[تامينات 2026]:[خصم 5% تأمين من العمولة]],0),0),2) -> 0 | CV93: 869.64 | CW93: 6130.36
B94: 202078 | C94: 31142 | D94: بنك مصر 1 | E94: علي إبراهيـم علـي أحمد | F94: مروه | G94: دوام كامل | H94: فنى | I94: الاولى | J94: الأولى | K94: حرفى ميكانيكى سيارات | L94: الاميرية | M94: 26907180102691 | N94: 202078علي إبراهيـم علـي أحمدالاولىالأولىحرفى ميكانيكى سياراتفرع القاهرة | O94: نعم | P94: 2029.15 | Q94: 2374.1055 | R94: 0 | S94: 3205.04 | T94: 356.12 | U94: 0 | V94: 0 | W94: 0 | Y94: 356.115825 | Z94: 300 | AB94: 0 | AD94: 0 | AE94: 0 | AF94: 656.12 | AG94: 71.79 | AH94: 79.95 | AI94: 95.3 | AJ94: 0 | AK94: 190 | AL94: 40.56 | AM94: 72.34 | AN94: 92.88 | AO94: 132.51 | AP94: 141.79 | AQ94: 151.71 | AS94: 101.4575 | AT94: 600 | AU94: 10 | AV94: 1780.29 | AW94: 10 | AX94: =ROUND((data.f2026[[#This Row],[أساسي 7/2025]]*2)/12,2) -> 395.68 | AY94: 0 | BA94: 0 | BB94: 8777.36 | BC94: 0 | BD94: 8777.36 | BE94: 0 | BF94: 0 | BI94: 873.51 | BK94: 0 | BL94: 0 | BM94: =IF(data.f2026[[#This Row],[أيام الغياب]]=1,data.f2026[[#This Row],[الحافز]]*20%,IF(data.f2026[[#This Row],[أيام الغياب]]=2,data.f2026[[#This Row],[الحافز]]*100%,IF(data.f2026[[#This Row],[أيام الغياب]]>2,data.f2026[[#This Row],[الحافز]]*100%,""))) ->  | BN94: =IF(data.f2026[[#This Row],[عدد أيام الأجازات]]<=4,data.f2026[[#This Row],[الحافز]]*0,IF(data.f2026[[#This Row],[عدد أيام الأجازات]]=5,data.f2026[[#This Row],[الحافز]]*20%,IF(data.f2026[[#This Row],[عدد أيام الأجازات]]=6,data.f2026[[#This Row],[الحافز]]*40%,IF(data.f2026[[#This Row],[عدد أيام الأجازات]]=7,data.f2026[[#This Row],[الحافز]]*50%,IF(data.f2026[[#This Row],[عدد أيام الأجازات]]>7,data.f2026[[#This Row],[الحافز]]*100%,""))))) -> 0 | BO94: =IF(data.f2026[[#This Row],[أيام أجازات بعد السنوية]]<=2,data.f2026[[#This Row],[الحافز]]*0,IF(data.f2026[[#This Row],[أيام أجازات بعد السنوية]]=3,data.f2026[[#This Row],[الحافز]]*30%,IF(data.f2026[[#This Row],[أيام أجازات بعد السنوية]]=4,data.f2026[[#This Row],[الحافز]]*40%,IF(data.f2026[[#This Row],[أيام أجازات بعد السنوية]]=5,data.f2026[[#This Row],[الحافز]]*50%,IF(data.f2026[[#This Row],[أيام أجازات بعد السنوية]]>5,data.f2026[[#This Row],[الحافز]]*100%,""))))) -> 0 | BP94: 0 | BQ94: 0 | BS94: 3 | BT94: 0 | BV94: 0 | BZ94: 0 | CA94: 0 | CC94: 0 | CG94: 5 | CK94: 0 | CM94: 0 | CN94: 0 | CO94: 395.68 | CP94: 0 | CQ94: =ROUND(IF($D94=data.f2026[[#Headers],[إيقاف]],$BD94-SUM(data.f2026[[#This Row],[تامينات 2026]:[خصم 5% تأمين من العمولة]],0),0),2) -> 0 | CR94: =ROUND(IF($D94=data.f2026[[#Headers],[مرضي]],$BD94-SUM(data.f2026[[#This Row],[تامينات 2026]:[خصم 5% تأمين من العمولة]],0),0),2) -> 0 | CS94: 0 | CT94: =ROUND(IF($G94=data.f2026[[#Headers],[إعارة]],$BD94-SUM(data.f2026[[#This Row],[تامينات 2026]:[خصم 5% تأمين من العمولة]],0),0),2) -> 0 | CU94: =ROUND(IF($G94=data.f2026[[#Headers],[معاش]],$BD94-SUM(data.f2026[[#This Row],[تامينات 2026]:[خصم 5% تأمين من العمولة]],0),0),2) -> 0 | CV94: 1277.19 | CW94: 7500.17
B95: 202079 | C95: 1119 | D95: بنك مصر 2 | E95: مسعـد محمود شعبان علـي | F95: مروه | G95: دوام كامل | H95: فنى | I95: الاولى | J95: الأولى | K95: حرفى ميكانيكى سيارات | L95: الاميرية | M95: 26804191701534 | N95: 202079مسعـد محمود شعبان علـيالاولىالأولىحرفى ميكانيكى سياراتقطاع شئون الفنية | O95: نعم | P95: 2029.15 | Q95: 2374.1055 | R95: 0 | S95: 3205.04 | T95: 356.12 | U95: 0 | V95: 0 | W95: 0 | Y95: 356.115825 | Z95: 300 | AB95: 0 | AD95: 0 | AE95: 0 | AF95: 656.12 | AG95: 71.79 | AH95: 79.95 | AI95: 95.3 | AJ95: 0 | AK95: 190 | AL95: 40.56 | AM95: 72.34 | AN95: 92.88 | AO95: 132.51 | AP95: 141.79 | AQ95: 151.71 | AS95: 101.4575 | AT95: 600 | AU95: 10 | AV95: 1780.29 | AW95: 10 | AX95: =ROUND((data.f2026[[#This Row],[أساسي 7/2025]]*2)/12,2) -> 395.68 | AY95: 0 | BA95: 60 | BB95: 8777.36 | BC95: 0 | BD95: 8837.36 | BE95: 0 | BF95: 0 | BI95: 874.26 | BK95: 0 | BL95: 0 | BM95: =IF(data.f2026[[#This Row],[أيام الغياب]]=1,data.f2026[[#This Row],[الحافز]]*20%,IF(data.f2026[[#This Row],[أيام الغياب]]=2,data.f2026[[#This Row],[الحافز]]*100%,IF(data.f2026[[#This Row],[أيام الغياب]]>2,data.f2026[[#This Row],[الحافز]]*100%,""))) ->  | BN95: =IF(data.f2026[[#This Row],[عدد أيام الأجازات]]<=4,data.f2026[[#This Row],[الحافز]]*0,IF(data.f2026[[#This Row],[عدد أيام الأجازات]]=5,data.f2026[[#This Row],[الحافز]]*20%,IF(data.f2026[[#This Row],[عدد أيام الأجازات]]=6,data.f2026[[#This Row],[الحافز]]*40%,IF(data.f2026[[#This Row],[عدد أيام الأجازات]]=7,data.f2026[[#This Row],[الحافز]]*50%,IF(data.f2026[[#This Row],[عدد أيام الأجازات]]>7,data.f2026[[#This Row],[الحافز]]*100%,""))))) -> 0 | BO95: =IF(data.f2026[[#This Row],[أيام أجازات بعد السنوية]]<=2,data.f2026[[#This Row],[الحافز]]*0,IF(data.f2026[[#This Row],[أيام أجازات بعد السنوية]]=3,data.f2026[[#This Row],[الحافز]]*30%,IF(data.f2026[[#This Row],[أيام أجازات بعد السنوية]]=4,data.f2026[[#This Row],[الحافز]]*40%,IF(data.f2026[[#This Row],[أيام أجازات بعد السنوية]]=5,data.f2026[[#This Row],[الحافز]]*50%,IF(data.f2026[[#This Row],[أيام أجازات بعد السنوية]]>5,data.f2026[[#This Row],[الحافز]]*100%,""))))) -> 0 | BP95: 0 | BQ95: 0 | BS95: 3 | BT95: 0 | BV95: 0 | BZ95: 0 | CA95: 0 | CC95: 0 | CG95: 5 | CK95: 0 | CM95: 0 | CN95: 0 | CO95: 395.68 | CP95: 0 | CQ95: =ROUND(IF($D95=data.f2026[[#Headers],[إيقاف]],$BD95-SUM(data.f2026[[#This Row],[تامينات 2026]:[خصم 5% تأمين من العمولة]],0),0),2) -> 0 | CR95: =ROUND(IF($D95=data.f2026[[#Headers],[مرضي]],$BD95-SUM(data.f2026[[#This Row],[تامينات 2026]:[خصم 5% تأمين من العمولة]],0),0),2) -> 0 | CS95: 0 | CT95: =ROUND(IF($G95=data.f2026[[#Headers],[إعارة]],$BD95-SUM(data.f2026[[#This Row],[تامينات 2026]:[خصم 5% تأمين من العمولة]],0),0),2) -> 0 | CU95: =ROUND(IF($G95=data.f2026[[#Headers],[معاش]],$BD95-SUM(data.f2026[[#This Row],[تامينات 2026]:[خصم 5% تأمين من العمولة]],0),0),2) -> 0 | CV95: 1277.94 | CW95: 7559.42
B96: 202080 | C96: 1127 | D96: بنك مصر 2 | E96: رمضـان سعـد طه صالح | F96: مروه | G96: دوام كامل | H96: فنى | I96: الاولى | J96: الأولى | K96: حرفى ميكانيكى سيارات | L96: الاميرية | M96: 27011010103791 | N96: 202080رمضـان سعـد طه صالحالاولىالأولىحرفى ميكانيكى سياراتفرع الاميرية | O96: نعم | P96: 2029.15 | Q96: 2374.1055 | R96: 0 | S96: 3205.04 | T96: 356.12 | U96: 0 | V96: 0 | W96: 0 | Y96: 356.115825 | Z96: 300 | AB96: 0 | AD96: 0 | AE96: 0 | AF96: 656.12 | AG96: 71.79 | AH96: 79.95 | AI96: 95.3 | AJ96: 0 | AK96: 190 | AL96: 40.56 | AM96: 72.34 | AN96: 92.88 | AO96: 132.51 | AP96: 141.79 | AQ96: 151.71 | AS96: 101.4575 | AT96: 600 | AU96: 10 | AV96: 1780.29 | AW96: 10 | AX96: =ROUND((data.f2026[[#This Row],[أساسي 7/2025]]*2)/12,2) -> 395.68 | AY96: 0 | BA96: 0 | BB96: 8777.36 | BC96: 0 | BD96: 8777.36 | BE96: 0 | BF96: 0 | BI96: 873.12 | BK96: 0 | BL96: 0 | BM96: =IF(data.f2026[[#This Row],[أيام الغياب]]=1,data.f2026[[#This Row],[الحافز]]*20%,IF(data.f2026[[#This Row],[أيام الغياب]]=2,data.f2026[[#This Row],[الحافز]]*100%,IF(data.f2026[[#This Row],[أيام الغياب]]>2,data.f2026[[#This Row],[الحافز]]*100%,""))) ->  | BN96: =IF(data.f2026[[#This Row],[عدد أيام الأجازات]]<=4,data.f2026[[#This Row],[الحافز]]*0,IF(data.f2026[[#This Row],[عدد أيام الأجازات]]=5,data.f2026[[#This Row],[الحافز]]*20%,IF(data.f2026[[#This Row],[عدد أيام الأجازات]]=6,data.f2026[[#This Row],[الحافز]]*40%,IF(data.f2026[[#This Row],[عدد أيام الأجازات]]=7,data.f2026[[#This Row],[الحافز]]*50%,IF(data.f2026[[#This Row],[عدد أيام الأجازات]]>7,data.f2026[[#This Row],[الحافز]]*100%,""))))) -> 0 | BO96: =IF(data.f2026[[#This Row],[أيام أجازات بعد السنوية]]<=2,data.f2026[[#This Row],[الحافز]]*0,IF(data.f2026[[#This Row],[أيام أجازات بعد السنوية]]=3,data.f2026[[#This Row],[الحافز]]*30%,IF(data.f2026[[#This Row],[أيام أجازات بعد السنوية]]=4,data.f2026[[#This Row],[الحافز]]*40%,IF(data.f2026[[#This Row],[أيام أجازات بعد السنوية]]=5,data.f2026[[#This Row],[الحافز]]*50%,IF(data.f2026[[#This Row],[أيام أجازات بعد السنوية]]>5,data.f2026[[#This Row],[الحافز]]*100%,""))))) -> 0 | BP96: 0 | BQ96: 0 | BS96: 3 | BT96: 0 | BV96: 0 | BZ96: 0 | CA96: 0 | CC96: 0 | CG96: 5 | CK96: 0 | CM96: 0 | CN96: 0 | CO96: 395.68 | CP96: 0 | CQ96: =ROUND(IF($D96=data.f2026[[#Headers],[إيقاف]],$BD96-SUM(data.f2026[[#This Row],[تامينات 2026]:[خصم 5% تأمين من العمولة]],0),0),2) -> 0 | CR96: =ROUND(IF($D96=data.f2026[[#Headers],[مرضي]],$BD96-SUM(data.f2026[[#This Row],[تامينات 2026]:[خصم 5% تأمين من العمولة]],0),0),2) -> 0 | CS96: 0 | CT96: =ROUND(IF($G96=data.f2026[[#Headers],[إعارة]],$BD96-SUM(data.f2026[[#This Row],[تامينات 2026]:[خصم 5% تأمين من العمولة]],0),0),2) -> 0 | CU96: =ROUND(IF($G96=data.f2026[[#Headers],[معاش]],$BD96-SUM(data.f2026[[#This Row],[تامينات 2026]:[خصم 5% تأمين من العمولة]],0),0),2) -> 0 | CV96: 1276.8 | CW96: 7500.56
B97: 202081 | C97: 1120 | D97: بنك مصر 2 | E97: عبد الجواد عبد الفتاح عبد الجواد منصور | F97: مروه | G97: دوام كامل | H97: فنى | I97: الثانية | J97: الثانية | K97: ميكانيكى | L97: الاميرية | M97: 27312150102816 | N97: 202081عبد الجواد عبد الفتاح عبد الجواد منصورالثانيةالثانيةميكانيكىالاميرية | O97: نعم | P97: 1140.04 | Q97: 1333.8468 | R97: 0 | S97: 1800.69 | T97: 200.08 | U97: 0 | V97: 0 | W97: 0 | Y97: 200.07702 | Z97: 300 | AB97: 0 | AD97: 0 | AE97: 0 | AF97: 500.08 | AG97: 41.08 | AH97: 45.54 | AI97: 65 | AJ97: 0 | AK97: 190 | AL97: 22.79 | AM97: 40.64 | AN97: 52.18 | AO97: 74.45 | AP97: 79.16 | AQ97: 85.24 | AS97: 57.002 | AT97: 600 | AU97: 10 | AV97: 1363.08 | AW97: 10 | AX97: =ROUND((data.f2026[[#This Row],[أساسي 7/2025]]*2)/12,2) -> 222.31 | AY97: 0 | BA97: 0 | BB97: 5430.09 | BC97: 1569.91 | BD97: 7000 | BE97: 0 | BF97: 0 | BI97: 642.51 | BK97: 0 | BL97: 0 | BM97: =IF(data.f2026[[#This Row],[أيام الغياب]]=1,data.f2026[[#This Row],[الحافز]]*20%,IF(data.f2026[[#This Row],[أيام الغياب]]=2,data.f2026[[#This Row],[الحافز]]*100%,IF(data.f2026[[#This Row],[أيام الغياب]]>2,data.f2026[[#This Row],[الحافز]]*100%,""))) ->  | BN97: =IF(data.f2026[[#This Row],[عدد أيام الأجازات]]<=4,data.f2026[[#This Row],[الحافز]]*0,IF(data.f2026[[#This Row],[عدد أيام الأجازات]]=5,data.f2026[[#This Row],[الحافز]]*20%,IF(data.f2026[[#This Row],[عدد أيام الأجازات]]=6,data.f2026[[#This Row],[الحافز]]*40%,IF(data.f2026[[#This Row],[عدد أيام الأجازات]]=7,data.f2026[[#This Row],[الحافز]]*50%,IF(data.f2026[[#This Row],[عدد أيام الأجازات]]>7,data.f2026[[#This Row],[الحافز]]*100%,""))))) -> 0 | BO97: =IF(data.f2026[[#This Row],[أيام أجازات بعد السنوية]]<=2,data.f2026[[#This Row],[الحافز]]*0,IF(data.f2026[[#This Row],[أيام أجازات بعد السنوية]]=3,data.f2026[[#This Row],[الحافز]]*30%,IF(data.f2026[[#This Row],[أيام أجازات بعد السنوية]]=4,data.f2026[[#This Row],[الحافز]]*40%,IF(data.f2026[[#This Row],[أيام أجازات بعد السنوية]]=5,data.f2026[[#This Row],[الحافز]]*50%,IF(data.f2026[[#This Row],[أيام أجازات بعد السنوية]]>5,data.f2026[[#This Row],[الحافز]]*100%,""))))) -> 0 | BP97: 0 | BQ97: 0 | BS97: 3 | BT97: 0 | BV97: 0 | BZ97: 0 | CA97: 0 | CC97: 0 | CG97: 3 | CK97: 0 | CM97: 0 | CN97: 0 | CO97: 222.31 | CP97: 0 | CQ97: =ROUND(IF($D97=data.f2026[[#Headers],[إيقاف]],$BD97-SUM(data.f2026[[#This Row],[تامينات 2026]:[خصم 5% تأمين من العمولة]],0),0),2) -> 0 | CR97: =ROUND(IF($D97=data.f2026[[#Headers],[مرضي]],$BD97-SUM(data.f2026[[#This Row],[تامينات 2026]:[خصم 5% تأمين من العمولة]],0),0),2) -> 0 | CS97: 0 | CT97: =ROUND(IF($G97=data.f2026[[#Headers],[إعارة]],$BD97-SUM(data.f2026[[#This Row],[تامينات 2026]:[خصم 5% تأمين من العمولة]],0),0),2) -> 0 | CU97: =ROUND(IF($G97=data.f2026[[#Headers],[معاش]],$BD97-SUM(data.f2026[[#This Row],[تامينات 2026]:[خصم 5% تأمين من العمولة]],0),0),2) -> 0 | CV97: 870.82 | CW97: 6129.18
B98: 202082 | C98: 1128 | D98: بنك مصر 2 | E98: ابراهيم محمد عبد الحميد علي | F98: مروه | G98: دوام كامل | H98: فنى | I98: الثانية | J98: الثانية | K98: ميكانيكى | L98: الاميرية | M98: 27512250103355 | N98: 202082ابراهيم محمد عبد الحميد عليالثانيةالثانيةميكانيكىالقاهرة | O98: نعم | P98: 1879.01 | Q98: 2198.4417 | R98: 0 | S98: 2967.9 | T98: 329.77 | U98: 0 | V98: 0 | W98: 0 | Y98: 329.766255 | Z98: 300 | AB98: 0 | AD98: 0 | AE98: 0 | AF98: 629.77 | AG98: 62.21 | AH98: 69.28 | AI98: 83.14 | AJ98: 0 | AK98: 190 | AL98: 37.56 | AM98: 66.99 | AN98: 86.01 | AO98: 122.71 | AP98: 131.3 | AQ98: 140.49 | AS98: 93.9505 | AT98: 600 | AU98: 8 | AV98: 1691.64 | AW98: 10 | AX98: =ROUND((data.f2026[[#This Row],[أساسي 7/2025]]*2)/12,2) -> 366.41 | AY98: 0 | BA98: 30 | BB98: 8193.93 | BC98: 0 | BD98: 8223.93 | BE98: 0 | BF98: 0 | BG98: 0 | BI98: 813.65 | BK98: 0 | BL98: 0 | BM98: =IF(data.f2026[[#This Row],[أيام الغياب]]=1,data.f2026[[#This Row],[الحافز]]*20%,IF(data.f2026[[#This Row],[أيام الغياب]]=2,data.f2026[[#This Row],[الحافز]]*100%,IF(data.f2026[[#This Row],[أيام الغياب]]>2,data.f2026[[#This Row],[الحافز]]*100%,""))) ->  | BN98: 2967.9 | BO98: =IF(data.f2026[[#This Row],[أيام أجازات بعد السنوية]]<=2,data.f2026[[#This Row],[الحافز]]*0,IF(data.f2026[[#This Row],[أيام أجازات بعد السنوية]]=3,data.f2026[[#This Row],[الحافز]]*30%,IF(data.f2026[[#This Row],[أيام أجازات بعد السنوية]]=4,data.f2026[[#This Row],[الحافز]]*40%,IF(data.f2026[[#This Row],[أيام أجازات بعد السنوية]]=5,data.f2026[[#This Row],[الحافز]]*50%,IF(data.f2026[[#This Row],[أيام أجازات بعد السنوية]]>5,data.f2026[[#This Row],[الحافز]]*100%,""))))) -> 0 | BP98: 0 | BQ98: 0 | BS98: 3 | BT98: 0 | BV98: 0 | BZ98: 0 | CA98: 0 | CC98: 0 | CG98: 3 | CK98: 0 | CM98: 0 | CN98: 0 | CO98: 366.41 | CP98: 0 | CQ98: =ROUND(IF($D98=data.f2026[[#Headers],[إيقاف]],$BD98-SUM(data.f2026[[#This Row],[تامينات 2026]:[خصم 5% تأمين من العمولة]],0),0),2) -> 0 | CR98: =ROUND(IF($D98=data.f2026[[#Headers],[مرضي]],$BD98-SUM(data.f2026[[#This Row],[تامينات 2026]:[خصم 5% تأمين من العمولة]],0),0),2) -> 0 | CS98: 0 | CT98: =ROUND(IF($G98=data.f2026[[#Headers],[إعارة]],$BD98-SUM(data.f2026[[#This Row],[تامينات 2026]:[خصم 5% تأمين من العمولة]],0),0),2) -> 0 | CU98: =ROUND(IF($G98=data.f2026[[#Headers],[معاش]],$BD98-SUM(data.f2026[[#This Row],[تامينات 2026]:[خصم 5% تأمين من العمولة]],0),0),2) -> 0 | CV98: 4153.96 | CW98: 4069.97
B99: 202083 | C99: 1160 | D99: بنك مصر 2 | E99: حلمي محمد عبد المجيد عبد الرحيم | F99: مروه | G99: دوام كامل | H99: فنى | I99: الثانية | J99: الثانية | K99: ميكانيكى | L99: الاميرية | M99: 27503210102632 | N99: 202083حلمي محمد عبد المجيد عبد الرحيمالثانيةالثانيةميكانيكىالورش | O99: نعم | P99: 1879.01 | Q99: 2198.4417 | R99: 0 | S99: 2967.9 | T99: 329.77 | U99: 0 | V99: 0 | W99: 0 | Y99: 329.766255 | Z99: 300 | AB99: 0 | AD99: 0 | AE99: 0 | AF99: 629.77 | AG99: 62.21 | AH99: 69.25 | AI99: 83.14 | AJ99: 0 | AK99: 190 | AL99: 37.56 | AM99: 66.99 | AN99: 86.01 | AO99: 122.71 | AP99: 131.3 | AQ99: 140.49 | AS99: 93.9505 | AT99: 600 | AU99: 10 | AV99: 1693.61 | AW99: 10 | AX99: =ROUND((data.f2026[[#This Row],[أساسي 7/2025]]*2)/12,2) -> 366.41 | AY99: 0 | BA99: 90 | BB99: 8195.9 | BC99: 0 | BD99: 8285.9 | BE99: 0 | BF99: 0 | BI99: 815.52 | BK99: 0 | BL99: 0 | BM99: =IF(data.f2026[[#This Row],[أيام الغياب]]=1,data.f2026[[#This Row],[الحافز]]*20%,IF(data.f2026[[#This Row],[أيام الغياب]]=2,data.f2026[[#This Row],[الحافز]]*100%,IF(data.f2026[[#This Row],[أيام الغياب]]>2,data.f2026[[#This Row],[الحافز]]*100%,""))) ->  | BN99: =IF(data.f2026[[#This Row],[عدد أيام الأجازات]]<=4,data.f2026[[#This Row],[الحافز]]*0,IF(data.f2026[[#This Row],[عدد أيام الأجازات]]=5,data.f2026[[#This Row],[الحافز]]*20%,IF(data.f2026[[#This Row],[عدد أيام الأجازات]]=6,data.f2026[[#This Row],[الحافز]]*40%,IF(data.f2026[[#This Row],[عدد أيام الأجازات]]=7,data.f2026[[#This Row],[الحافز]]*50%,IF(data.f2026[[#This Row],[عدد أيام الأجازات]]>7,data.f2026[[#This Row],[الحافز]]*100%,""))))) -> 0 | BO99: =IF(data.f2026[[#This Row],[أيام أجازات بعد السنوية]]<=2,data.f2026[[#This Row],[الحافز]]*0,IF(data.f2026[[#This Row],[أيام أجازات بعد السنوية]]=3,data.f2026[[#This Row],[الحافز]]*30%,IF(data.f2026[[#This Row],[أيام أجازات بعد السنوية]]=4,data.f2026[[#This Row],[الحافز]]*40%,IF(data.f2026[[#This Row],[أيام أجازات بعد السنوية]]=5,data.f2026[[#This Row],[الحافز]]*50%,IF(data.f2026[[#This Row],[أيام أجازات بعد السنوية]]>5,data.f2026[[#This Row],[الحافز]]*100%,""))))) -> 0 | BP99: 0 | BQ99: 0 | BS99: 3 | BT99: 0 | BV99: 0 | BZ99: 0 | CA99: 0 | CC99: 0 | CG99: 3 | CK99: 0 | CM99: 0 | CN99: 0 | CO99: 366.41 | CP99: 0 | CQ99: =ROUND(IF($D99=data.f2026[[#Headers],[إيقاف]],$BD99-SUM(data.f2026[[#This Row],[تامينات 2026]:[خصم 5% تأمين من العمولة]],0),0),2) -> 0 | CR99: =ROUND(IF($D99=data.f2026[[#Headers],[مرضي]],$BD99-SUM(data.f2026[[#This Row],[تامينات 2026]:[خصم 5% تأمين من العمولة]],0),0),2) -> 0 | CS99: 0 | CT99: =ROUND(IF($G99=data.f2026[[#Headers],[إعارة]],$BD99-SUM(data.f2026[[#This Row],[تامينات 2026]:[خصم 5% تأمين من العمولة]],0),0),2) -> 0 | CU99: =ROUND(IF($G99=data.f2026[[#Headers],[معاش]],$BD99-SUM(data.f2026[[#This Row],[تامينات 2026]:[خصم 5% تأمين من العمولة]],0),0),2) -> 0 | CV99: 1187.93 | CW99: 7097.97
B100: 202084 | C100: 1157 | D100: بنك مصر 2 | E100: طه حسين حسن محمد | F100: مروه | G100: دوام كامل | H100: فنى | I100: الثالثة | J100: الثالثة | K100: حرفى ميكانيكى | L100: الاميرية | M100: 27203161401099 | N100: 202084طه حسين حسن محمدالثالثةالثالثةحرفى ميكانيكىالادارة العامة بالورش المركزية | O100: نعم | P100: 1092.43 | Q100: 1278.1431 | R100: 0 | S100: 1725.49 | T100: 191.72 | U100: 0 | V100: 0 | W100: 0 | Y100: 191.721465 | Z100: 300 | AB100: 0 | AD100: 0 | AE100: 0 | AF100: 491.72 | AG100: 38.89 | AH100: 43.11 | AI100: 65 | AJ100: 0 | AK100: 200 | AL100: 24.04 | AM100: 38.94 | AN100: 50 | AO100: 71.34 | AP100: 76.34 | AQ100: 81.68 | AS100: 54.6215 | AT100: 600 | AU100: 10 | AV100: 1353.96 | AW100: 10 | AX100: =ROUND((data.f2026[[#This Row],[أساسي 7/2025]]*2)/12,2) -> 213.02 | AY100: 0 | BA100: 30 | BB100: 5264.05 | BC100: 1735.95 | BD100: 7030 | BE100: 0 | BF100: 0 | BI100: 641.32 | BK100: 0 | BL100: 0 | BM100: =IF(data.f2026[[#This Row],[أيام الغياب]]=1,data.f2026[[#This Row],[الحافز]]*20%,IF(data.f2026[[#This Row],[أيام الغياب]]=2,data.f2026[[#This Row],[الحافز]]*100%,IF(data.f2026[[#This Row],[أيام الغياب]]>2,data.f2026[[#This Row],[الحافز]]*100%,""))) ->  | BN100: =IF(data.f2026[[#This Row],[عدد أيام الأجازات]]<=4,data.f2026[[#This Row],[الحافز]]*0,IF(data.f2026[[#This Row],[عدد أيام الأجازات]]=5,data.f2026[[#This Row],[الحافز]]*20%,IF(data.f2026[[#This Row],[عدد أيام الأجازات]]=6,data.f2026[[#This Row],[الحافز]]*40%,IF(data.f2026[[#This Row],[عدد أيام الأجازات]]=7,data.f2026[[#This Row],[الحافز]]*50%,IF(data.f2026[[#This Row],[عدد أيام الأجازات]]>7,data.f2026[[#This Row],[الحافز]]*100%,""))))) -> 0 | BO100: =IF(data.f2026[[#This Row],[أيام أجازات بعد السنوية]]<=2,data.f2026[[#This Row],[الحافز]]*0,IF(data.f2026[[#This Row],[أيام أجازات بعد السنوية]]=3,data.f2026[[#This Row],[الحافز]]*30%,IF(data.f2026[[#This Row],[أيام أجازات بعد السنوية]]=4,data.f2026[[#This Row],[الحافز]]*40%,IF(data.f2026[[#This Row],[أيام أجازات بعد السنوية]]=5,data.f2026[[#This Row],[الحافز]]*50%,IF(data.f2026[[#This Row],[أيام أجازات بعد السنوية]]>5,data.f2026[[#This Row],[الحافز]]*100%,""))))) -> 0 | BP100: 0 | BQ100: 0 | BS100: 3 | BT100: 0 | BV100: 0 | BZ100: 0 | CA100: 0 | CC100: 0 | CG100: 3 | CK100: 0 | CM100: 0 | CN100: 0 | CO100: 213.02 | CP100: 0 | CQ100: =ROUND(IF($D100=data.f2026[[#Headers],[إيقاف]],$BD100-SUM(data.f2026[[#This Row],[تامينات 2026]:[خصم 5% تأمين من العمولة]],0),0),2) -> 0 | CR100: =ROUND(IF($D100=data.f2026[[#Headers],[مرضي]],$BD100-SUM(data.f2026[[#This Row],[تامينات 2026]:[خصم 5% تأمين من العمولة]],0),0),2) -> 0 | CS100: 0 | CT100: =ROUND(IF($G100=data.f2026[[#Headers],[إعارة]],$BD100-SUM(data.f2026[[#This Row],[تامينات 2026]:[خصم 5% تأمين من العمولة]],0),0),2) -> 0 | CU100: =ROUND(IF($G100=data.f2026[[#Headers],[معاش]],$BD100-SUM(data.f2026[[#This Row],[تامينات 2026]:[خصم 5% تأمين من العمولة]],0),0),2) -> 0 | CV100: 860.34 | CW100: 6169.66
B101: 202085 | C101: 1135 | D101: بنك مصر 2 | E101: شعبان عطية عبده ابو النور | F101: مروه | G101: دوام كامل | H101: فنى | I101: الثالثة | J101: الثالثة | K101: حرفى عامل كاوتش | L101: الاميرية | M101: 26811041700536 | N101: 202085شعبان عطية عبده ابو النورالثالثةالثالثةحرفى عامل كاوتشالادارة العامة بالورش المركزية | O101: نعم | P101: 1092.43 | Q101: 1278.1431 | R101: 0 | S101: 1725.49 | T101: 191.72 | U101: 0 | V101: 0 | W101: 0 | Y101: 191.721465 | Z101: 300 | AB101: 0 | AD101: 0 | AE101: 0 | AF101: 491.72 | AG101: 38.89 | AH101: 43.11 | AI101: 65 | AJ101: 0 | AK101: 200 | AL101: 24.04 | AM101: 38.94 | AN101: 50 | AO101: 71.34 | AP101: 76.33 | AQ101: 81.68 | AS101: 54.6215 | AT101: 600 | AU101: 10 | AV101: 1353.95 | AW101: 10 | AX101: =ROUND((data.f2026[[#This Row],[أساسي 7/2025]]*2)/12,2) -> 213.02 | AY101: 0 | BA101: 180 | BB101: 5264.04 | BC101: 1735.96 | BD101: 7180 | BE101: 0 | BF101: 0 | BI101: 654.64 | BK101: 0 | BL101: 0 | BM101: =IF(data.f2026[[#This Row],[أيام الغياب]]=1,data.f2026[[#This Row],[الحافز]]*20%,IF(data.f2026[[#This Row],[أيام الغياب]]=2,data.f2026[[#This Row],[الحافز]]*100%,IF(data.f2026[[#This Row],[أيام الغياب]]>2,data.f2026[[#This Row],[الحافز]]*100%,""))) ->  | BN101: =IF(data.f2026[[#This Row],[عدد أيام الأجازات]]<=4,data.f2026[[#This Row],[الحافز]]*0,IF(data.f2026[[#This Row],[عدد أيام الأجازات]]=5,data.f2026[[#This Row],[الحافز]]*20%,IF(data.f2026[[#This Row],[عدد أيام الأجازات]]=6,data.f2026[[#This Row],[الحافز]]*40%,IF(data.f2026[[#This Row],[عدد أيام الأجازات]]=7,data.f2026[[#This Row],[الحافز]]*50%,IF(data.f2026[[#This Row],[عدد أيام الأجازات]]>7,data.f2026[[#This Row],[الحافز]]*100%,""))))) -> 0 | BO101: =IF(data.f2026[[#This Row],[أيام أجازات بعد السنوية]]<=2,data.f2026[[#This Row],[الحافز]]*0,IF(data.f2026[[#This Row],[أيام أجازات بعد السنوية]]=3,data.f2026[[#This Row],[الحافز]]*30%,IF(data.f2026[[#This Row],[أيام أجازات بعد السنوية]]=4,data.f2026[[#This Row],[الحافز]]*40%,IF(data.f2026[[#This Row],[أيام أجازات بعد السنوية]]=5,data.f2026[[#This Row],[الحافز]]*50%,IF(data.f2026[[#This Row],[أيام أجازات بعد السنوية]]>5,data.f2026[[#This Row],[الحافز]]*100%,""))))) -> 0 | BP101: 0 | BQ101: 0 | BS101: 3 | BT101: 0 | BV101: 0 | BZ101: 0 | CA101: 0 | CC101: 0 | CG101: 3 | CK101: 0 | CM101: 0 | CN101: 0 | CO101: 213.02 | CP101: 0 | CQ101: =ROUND(IF($D101=data.f2026[[#Headers],[إيقاف]],$BD101-SUM(data.f2026[[#This Row],[تامينات 2026]:[خصم 5% تأمين من العمولة]],0),0),2) -> 0 | CR101: =ROUND(IF($D101=data.f2026[[#Headers],[مرضي]],$BD101-SUM(data.f2026[[#This Row],[تامينات 2026]:[خصم 5% تأمين من العمولة]],0),0),2) -> 0 | CS101: 0 | CT101: =ROUND(IF($G101=data.f2026[[#Headers],[إعارة]],$BD101-SUM(data.f2026[[#This Row],[تامينات 2026]:[خصم 5% تأمين من العمولة]],0),0),2) -> 0 | CU101: =ROUND(IF($G101=data.f2026[[#Headers],[معاش]],$BD101-SUM(data.f2026[[#This Row],[تامينات 2026]:[خصم 5% تأمين من العمولة]],0),0),2) -> 0 | CV101: 873.66 | CW101: 6306.34
B102: 202086 | C102: 1122 | D102: بنك مصر 2 | E102: مصطفى حميدة محمد مازن | F102: مروه | G102: دوام كامل | H102: فنى | I102: الثانية | J102: الثانية | K102: فني لحام | L102: الاميرية | M102: 28101011711932 | N102: 202086مصطفى حميدة محمد مازن الثانيةالثانيةفني لحام الاميرية | O102: نعم | P102: 1137.36 | Q102: 1330.7112 | R102: 0 | S102: 1796.46 | T102: 199.61 | U102: 0 | V102: 0 | W102: 0 | Y102: 199.60668 | Z102: 300 | AB102: 0 | AD102: 0 | AE102: 0 | AF102: 499.61 | AG102: 40.02 | AH102: 45.02 | AI102: 65 | AJ102: 0 | AK102: 190 | AL102: 22.74 | AM102: 40.55 | AN102: 52.06 | AO102: 74.27 | AP102: 79.47 | AQ102: 85.04 | AS102: 56.868 | AT102: 600 | AU102: 10 | AV102: 1361.04 | AW102: 10 | AX102: =ROUND((data.f2026[[#This Row],[أساسي 7/2025]]*2)/12,2) -> 221.79 | AY102: 0 | BA102: 30 | BB102: 5419.22 | BC102: 1580.78 | BD102: 7030 | BE102: 0 | BF102: 0 | BI102: 646.14 | BK102: 0 | BL102: 0 | BM102: =IF(data.f2026[[#This Row],[أيام الغياب]]=1,data.f2026[[#This Row],[الحافز]]*20%,IF(data.f2026[[#This Row],[أيام الغياب]]=2,data.f2026[[#This Row],[الحافز]]*100%,IF(data.f2026[[#This Row],[أيام الغياب]]>2,data.f2026[[#This Row],[الحافز]]*100%,""))) ->  | BN102: =IF(data.f2026[[#This Row],[عدد أيام الأجازات]]<=4,data.f2026[[#This Row],[الحافز]]*0,IF(data.f2026[[#This Row],[عدد أيام الأجازات]]=5,data.f2026[[#This Row],[الحافز]]*20%,IF(data.f2026[[#This Row],[عدد أيام الأجازات]]=6,data.f2026[[#This Row],[الحافز]]*40%,IF(data.f2026[[#This Row],[عدد أيام الأجازات]]=7,data.f2026[[#This Row],[الحافز]]*50%,IF(data.f2026[[#This Row],[عدد أيام الأجازات]]>7,data.f2026[[#This Row],[الحافز]]*100%,""))))) -> 0 | BO102: =IF(data.f2026[[#This Row],[أيام أجازات بعد السنوية]]<=2,data.f2026[[#This Row],[الحافز]]*0,IF(data.f2026[[#This Row],[أيام أجازات بعد السنوية]]=3,data.f2026[[#This Row],[الحافز]]*30%,IF(data.f2026[[#This Row],[أيام أجازات بعد السنوية]]=4,data.f2026[[#This Row],[الحافز]]*40%,IF(data.f2026[[#This Row],[أيام أجازات بعد السنوية]]=5,data.f2026[[#This Row],[الحافز]]*50%,IF(data.f2026[[#This Row],[أيام أجازات بعد السنوية]]>5,data.f2026[[#This Row],[الحافز]]*100%,""))))) -> 0 | BP102: 0 | BQ102: 0 | BS102: 3 | BT102: 0 | BV102: 0 | BZ102: 0 | CA102: 0 | CC102: 0 | CG102: 3 | CK102: 0 | CM102: 0 | CN102: 0 | CO102: 221.79 | CP102: 0 | CQ102: =ROUND(IF($D102=data.f2026[[#Headers],[إيقاف]],$BD102-SUM(data.f2026[[#This Row],[تامينات 2026]:[خصم 5% تأمين من العمولة]],0),0),2) -> 0 | CR102: =ROUND(IF($D102=data.f2026[[#Headers],[مرضي]],$BD102-SUM(data.f2026[[#This Row],[تامينات 2026]:[خصم 5% تأمين من العمولة]],0),0),2) -> 0 | CS102: 0 | CT102: =ROUND(IF($G102=data.f2026[[#Headers],[إعارة]],$BD102-SUM(data.f2026[[#This Row],[تامينات 2026]:[خصم 5% تأمين من العمولة]],0),0),2) -> 0 | CU102: =ROUND(IF($G102=data.f2026[[#Headers],[معاش]],$BD102-SUM(data.f2026[[#This Row],[تامينات 2026]:[خصم 5% تأمين من العمولة]],0),0),2) -> 0 | CV102: 873.93 | CW102: 6156.07
B103: 202088 | C103: 1129 | D103: بنك مصر 2 | E103: احمد حنفي محمود عبد الرازق | F103: مروه | G103: دوام كامل | H103: فنى | I103: الثانية | J103: الثانية | K103: ميكانيكى | L103: الاميرية | M103: 27502161401975 | N103: 202088احمد حنفي محمود عبد الرازقالثانيةالثانيةميكانيكىالاميرية | O103: نعم | P103: 1879.01 | Q103: 2198.4417 | R103: 0 | S103: 2967.9 | T103: 329.77 | U103: 0 | V103: 0 | W103: 0 | Y103: 329.766255 | Z103: 300 | AB103: 0 | AD103: 0 | AE103: 0 | AF103: 629.77 | AG103: 62.21 | AH103: 69.28 | AI103: 83.14 | AJ103: 0 | AK103: 190 | AL103: 37.56 | AM103: 66.99 | AN103: 86.01 | AO103: 122.71 | AP103: 131.3 | AQ103: 140.49 | AS103: 93.9505 | AT103: 600 | AU103: 8 | AV103: 1691.64 | AW103: 10 | AX103: =ROUND((data.f2026[[#This Row],[أساسي 7/2025]]*2)/12,2) -> 366.41 | AY103: 0 | BA103: 0 | BB103: 8193.93 | BC103: 0 | BD103: 8193.93 | BE103: 0 | BF103: 0 | BI103: 813.1 | BK103: 0 | BL103: 0 | BM103: =IF(data.f2026[[#This Row],[أيام الغياب]]=1,data.f2026[[#This Row],[الحافز]]*20%,IF(data.f2026[[#This Row],[أيام الغياب]]=2,data.f2026[[#This Row],[الحافز]]*100%,IF(data.f2026[[#This Row],[أيام الغياب]]>2,data.f2026[[#This Row],[الحافز]]*100%,""))) ->  | BN103: =IF(data.f2026[[#This Row],[عدد أيام الأجازات]]<=4,data.f2026[[#This Row],[الحافز]]*0,IF(data.f2026[[#This Row],[عدد أيام الأجازات]]=5,data.f2026[[#This Row],[الحافز]]*20%,IF(data.f2026[[#This Row],[عدد أيام الأجازات]]=6,data.f2026[[#This Row],[الحافز]]*40%,IF(data.f2026[[#This Row],[عدد أيام الأجازات]]=7,data.f2026[[#This Row],[الحافز]]*50%,IF(data.f2026[[#This Row],[عدد أيام الأجازات]]>7,data.f2026[[#This Row],[الحافز]]*100%,""))))) -> 0 | BO103: =IF(data.f2026[[#This Row],[أيام أجازات بعد السنوية]]<=2,data.f2026[[#This Row],[الحافز]]*0,IF(data.f2026[[#This Row],[أيام أجازات بعد السنوية]]=3,data.f2026[[#This Row],[الحافز]]*30%,IF(data.f2026[[#This Row],[أيام أجازات بعد السنوية]]=4,data.f2026[[#This Row],[الحافز]]*40%,IF(data.f2026[[#This Row],[أيام أجازات بعد السنوية]]=5,data.f2026[[#This Row],[الحافز]]*50%,IF(data.f2026[[#This Row],[أيام أجازات بعد السنوية]]>5,data.f2026[[#This Row],[الحافز]]*100%,""))))) -> 0 | BP103: 0 | BQ103: 0 | BS103: 3 | BT103: 0 | BV103: 0 | BZ103: 0 | CA103: 0 | CC103: 0 | CG103: 3 | CK103: 0 | CM103: 0 | CN103: 0 | CO103: 366.41 | CP103: 0 | CQ103: =ROUND(IF($D103=data.f2026[[#Headers],[إيقاف]],$BD103-SUM(data.f2026[[#This Row],[تامينات 2026]:[خصم 5% تأمين من العمولة]],0),0),2) -> 0 | CR103: =ROUND(IF($D103=data.f2026[[#Headers],[مرضي]],$BD103-SUM(data.f2026[[#This Row],[تامينات 2026]:[خصم 5% تأمين من العمولة]],0),0),2) -> 0 | CS103: 0 | CT103: =ROUND(IF($G103=data.f2026[[#Headers],[إعارة]],$BD103-SUM(data.f2026[[#This Row],[تامينات 2026]:[خصم 5% تأمين من العمولة]],0),0),2) -> 0 | CU103: =ROUND(IF($G103=data.f2026[[#Headers],[معاش]],$BD103-SUM(data.f2026[[#This Row],[تامينات 2026]:[خصم 5% تأمين من العمولة]],0),0),2) -> 0 | CV103: 1185.51 | CW103: 7008.42
B104: 202089 | C104: 31365 | D104: بنك مصر 1 | E104: احمد محمد عبد الفتاح ماجد | F104: مروه | G104: دوام كامل | H104: فنى | I104: عقد مؤقت | L104: الاميرية | M104: 28312131700234 | N104: 202089احمد محمد عبد الفتاح ماجدعقد مؤقت | P104: 410.26 | Q104: 451.29 | R104: 0 | S104: 609.24 | T104: 67.69 | U104: 0 | V104: 0 | W104: 0 | Y104: 67.6935 | Z104: 300 | AB104: 0 | AD104: 0 | AE104: 0 | AF104: 367.69 | AG104: 28.79 | AH104: 30.29 | AI104: 65 | AJ104: 0 | AK104: 200 | AL104: 0 | AM104: 0 | AN104: 0 | AO104: 0 | AP104: 0 | AQ104: 0 | AS104: 0 | AT104: 600 | AU104: 10 | AV104: 934.08 | AW104: 10 | AX104: =ROUND((data.f2026[[#This Row],[أساسي 7/2025]]*2)/12,2) -> 75.22 | AY104: 0 | BA104: 390 | BB104: 2515.21 | BC104: 4484.79 | BD104: 7390 | BE104: 0 | BF104: 0 | BI104: 649.15 | BK104: 0 | BL104: 0 | BM104: =IF(data.f2026[[#This Row],[أيام الغياب]]=1,data.f2026[[#This Row],[الحافز]]*20%,IF(data.f2026[[#This Row],[أيام الغياب]]=2,data.f2026[[#This Row],[الحافز]]*100%,IF(data.f2026[[#This Row],[أيام الغياب]]>2,data.f2026[[#This Row],[الحافز]]*100%,""))) ->  | BN104: =IF(data.f2026[[#This Row],[عدد أيام الأجازات]]<=4,data.f2026[[#This Row],[الحافز]]*0,IF(data.f2026[[#This Row],[عدد أيام الأجازات]]=5,data.f2026[[#This Row],[الحافز]]*20%,IF(data.f2026[[#This Row],[عدد أيام الأجازات]]=6,data.f2026[[#This Row],[الحافز]]*40%,IF(data.f2026[[#This Row],[عدد أيام الأجازات]]=7,data.f2026[[#This Row],[الحافز]]*50%,IF(data.f2026[[#This Row],[عدد أيام الأجازات]]>7,data.f2026[[#This Row],[الحافز]]*100%,""))))) -> 0 | BO104: =IF(data.f2026[[#This Row],[أيام أجازات بعد السنوية]]<=2,data.f2026[[#This Row],[الحافز]]*0,IF(data.f2026[[#This Row],[أيام أجازات بعد السنوية]]=3,data.f2026[[#This Row],[الحافز]]*30%,IF(data.f2026[[#This Row],[أيام أجازات بعد السنوية]]=4,data.f2026[[#This Row],[الحافز]]*40%,IF(data.f2026[[#This Row],[أيام أجازات بعد السنوية]]=5,data.f2026[[#This Row],[الحافز]]*50%,IF(data.f2026[[#This Row],[أيام أجازات بعد السنوية]]>5,data.f2026[[#This Row],[الحافز]]*100%,""))))) -> 0 | BP104: 0 | BQ104: 0 | BS104: 3 | BT104: 0 | BV104: 0 | BZ104: 0 | CA104: 0 | CC104: 0 | CG104: 3 | CK104: 0 | CM104: 0 | CN104: 0 | CO104: 75.22 | CP104: 0 | CQ104: =ROUND(IF($D104=data.f2026[[#Headers],[إيقاف]],$BD104-SUM(data.f2026[[#This Row],[تامينات 2026]:[خصم 5% تأمين من العمولة]],0),0),2) -> 0 | CR104: =ROUND(IF($D104=data.f2026[[#Headers],[مرضي]],$BD104-SUM(data.f2026[[#This Row],[تامينات 2026]:[خصم 5% تأمين من العمولة]],0),0),2) -> 0 | CS104: 0 | CT104: =ROUND(IF($G104=data.f2026[[#Headers],[إعارة]],$BD104-SUM(data.f2026[[#This Row],[تامينات 2026]:[خصم 5% تأمين من العمولة]],0),0),2) -> 0 | CU104: =ROUND(IF($G104=data.f2026[[#Headers],[معاش]],$BD104-SUM(data.f2026[[#This Row],[تامينات 2026]:[خصم 5% تأمين من العمولة]],0),0),2) -> 0 | CV104: 730.37 | CW104: 6659.63
B105: 202091 | C105: 22150 | D105: بنك مصر 1 | E105: اشرف لطفى يونس محمد | F105: مروه | G105: دوام كامل | H105: فنى | I105: الرابعة | J105: الرابعة | K105: حرفى سمكرى | L105: الاميرية | M105: 27703111401554 | N105: 202091اشرف لطفى يونس محمدالرابعةالرابعةحرفى سمكرىالاميرية | O105: نعم | P105: 1059.88 | Q105: 1240.0596 | R105: 0 | S105: 1674.08 | T105: 186.01 | U105: 0 | V105: 0 | W105: 0 | Y105: 186.00894 | Z105: 300 | AB105: 0 | AC105: 0 | AD105: 0 | AE105: 0 | AF105: 486.01 | AG105: 35.33 | AH105: 39.36 | AI105: 65 | AJ105: 0 | AK105: 200 | AL105: 25.57 | AM105: 37.78 | AN105: 48.51 | AO105: 69.21 | AP105: 74.06 | AQ105: 80.66 | AS105: 52.994 | AT105: 600 | AU105: 10 | AV105: 1338.47 | AW105: 10 | AX105: =ROUND((data.f2026[[#This Row],[أساسي 7/2025]]*2)/12,2) -> 206.68 | AY105: 0 | BA105: 0 | BB105: 5141.31 | BC105: 1858.69 | BD105: 7000 | BE105: 0 | BF105: 0 | BI105: 638.34 | BK105: 0 | BL105: 0 | BM105: =IF(data.f2026[[#This Row],[أيام الغياب]]=1,data.f2026[[#This Row],[الحافز]]*20%,IF(data.f2026[[#This Row],[أيام الغياب]]=2,data.f2026[[#This Row],[الحافز]]*100%,IF(data.f2026[[#This Row],[أيام الغياب]]>2,data.f2026[[#This Row],[الحافز]]*100%,""))) ->  | BN105: =IF(data.f2026[[#This Row],[عدد أيام الأجازات]]<=4,data.f2026[[#This Row],[الحافز]]*0,IF(data.f2026[[#This Row],[عدد أيام الأجازات]]=5,data.f2026[[#This Row],[الحافز]]*20%,IF(data.f2026[[#This Row],[عدد أيام الأجازات]]=6,data.f2026[[#This Row],[الحافز]]*40%,IF(data.f2026[[#This Row],[عدد أيام الأجازات]]=7,data.f2026[[#This Row],[الحافز]]*50%,IF(data.f2026[[#This Row],[عدد أيام الأجازات]]>7,data.f2026[[#This Row],[الحافز]]*100%,""))))) -> 0 | BO105: =IF(data.f2026[[#This Row],[أيام أجازات بعد السنوية]]<=2,data.f2026[[#This Row],[الحافز]]*0,IF(data.f2026[[#This Row],[أيام أجازات بعد السنوية]]=3,data.f2026[[#This Row],[الحافز]]*30%,IF(data.f2026[[#This Row],[أيام أجازات بعد السنوية]]=4,data.f2026[[#This Row],[الحافز]]*40%,IF(data.f2026[[#This Row],[أيام أجازات بعد السنوية]]=5,data.f2026[[#This Row],[الحافز]]*50%,IF(data.f2026[[#This Row],[أيام أجازات بعد السنوية]]>5,data.f2026[[#This Row],[الحافز]]*100%,""))))) -> 0 | BP105: 0 | BQ105: 0 | BR105: 0 | BS105: 3 | BT105: 0 | BU105: 0 | BV105: 0 | BW105: 0 | BY105: 0 | BZ105: 0 | CA105: 0 | CB105: 0 | CC105: 0 | CD105: 0 | CG105: 3 | CJ105: 0 | CK105: 0 | CM105: 0 | CN105: 0 | CO105: 206.68 | CP105: 0 | CQ105: =ROUND(IF($D105=data.f2026[[#Headers],[إيقاف]],$BD105-SUM(data.f2026[[#This Row],[تامينات 2026]:[خصم 5% تأمين من العمولة]],0),0),2) -> 0 | CR105: =ROUND(IF($D105=data.f2026[[#Headers],[مرضي]],$BD105-SUM(data.f2026[[#This Row],[تامينات 2026]:[خصم 5% تأمين من العمولة]],0),0),2) -> 0 | CS105: 0 | CT105: =ROUND(IF($G105=data.f2026[[#Headers],[إعارة]],$BD105-SUM(data.f2026[[#This Row],[تامينات 2026]:[خصم 5% تأمين من العمولة]],0),0),2) -> 0 | CU105: =ROUND(IF($G105=data.f2026[[#Headers],[معاش]],$BD105-SUM(data.f2026[[#This Row],[تامينات 2026]:[خصم 5% تأمين من العمولة]],0),0),2) -> 0 | CV105: 851.02 | CW105: 6148.98
B106: 202092 | C106: 21734 | D106: بنك مصر 1 | E106: عبد الباقى عبد الموجود عبد الباقي | F106: مروه | G106: دوام كامل | H106: فنى | I106: الثالثة | J106: الثالثة | K106: حرفى سمكرى | L106: الاميرية | M106: 27408120100531 | N106: 202092عبد الباقى عبد الموجود عبد الباقيالثالثةالثالثةحرفى سمكرىالاميرية | O106: نعم | P106: 1900.5 | Q106: 2223.585 | R106: 0 | S106: 3001.84 | T106: 333.54 | U106: 0 | V106: 0 | W106: 0 | Y106: 333.53775 | Z106: 300 | AB106: 0 | AC106: 0 | AD106: 0 | AE106: 0 | AF106: 633.54 | AG106: 67.32 | AH106: 75.14 | AI106: 89.66 | AJ106: 0 | AK106: 200 | AL106: 37.99 | AM106: 67.75 | AN106: 86.99 | AO106: 124.11 | AP106: 132.8 | AQ106: 142.09 | AS106: 95.025 | AT106: 600 | AU106: 10 | AV106: 1728.88 | AW106: 10 | AX106: =ROUND((data.f2026[[#This Row],[أساسي 7/2025]]*2)/12,2) -> 370.6 | AY106: 0 | BA106: 30 | BB106: 8301.99 | BC106: 0 | BD106: 8331.99 | BE106: 0 | BF106: 0 | BI106: 824.64 | BK106: 0 | BL106: 0 | BM106: =IF(data.f2026[[#This Row],[أيام الغياب]]=1,data.f2026[[#This Row],[الحافز]]*20%,IF(data.f2026[[#This Row],[أيام الغياب]]=2,data.f2026[[#This Row],[الحافز]]*100%,IF(data.f2026[[#This Row],[أيام الغياب]]>2,data.f2026[[#This Row],[الحافز]]*100%,""))) ->  | BN106: =IF(data.f2026[[#This Row],[عدد أيام الأجازات]]<=4,data.f2026[[#This Row],[الحافز]]*0,IF(data.f2026[[#This Row],[عدد أيام الأجازات]]=5,data.f2026[[#This Row],[الحافز]]*20%,IF(data.f2026[[#This Row],[عدد أيام الأجازات]]=6,data.f2026[[#This Row],[الحافز]]*40%,IF(data.f2026[[#This Row],[عدد أيام الأجازات]]=7,data.f2026[[#This Row],[الحافز]]*50%,IF(data.f2026[[#This Row],[عدد أيام الأجازات]]>7,data.f2026[[#This Row],[الحافز]]*100%,""))))) -> 0 | BO106: =IF(data.f2026[[#This Row],[أيام أجازات بعد السنوية]]<=2,data.f2026[[#This Row],[الحافز]]*0,IF(data.f2026[[#This Row],[أيام أجازات بعد السنوية]]=3,data.f2026[[#This Row],[الحافز]]*30%,IF(data.f2026[[#This Row],[أيام أجازات بعد السنوية]]=4,data.f2026[[#This Row],[الحافز]]*40%,IF(data.f2026[[#This Row],[أيام أجازات بعد السنوية]]=5,data.f2026[[#This Row],[الحافز]]*50%,IF(data.f2026[[#This Row],[أيام أجازات بعد السنوية]]>5,data.f2026[[#This Row],[الحافز]]*100%,""))))) -> 0 | BP106: 0 | BQ106: 0 | BR106: 0 | BS106: 3 | BT106: 0 | BU106: 0 | BV106: 0 | BW106: 0 | BY106: 0 | BZ106: 0 | CA106: 0 | CB106: 0 | CC106: 0 | CD106: 0 | CG106: 3 | CJ106: 0 | CK106: 0 | CM106: 0 | CN106: 0 | CO106: 370.6 | CP106: 0 | CQ106: =ROUND(IF($D106=data.f2026[[#Headers],[إيقاف]],$BD106-SUM(data.f2026[[#This Row],[تامينات 2026]:[خصم 5% تأمين من العمولة]],0),0),2) -> 0 | CR106: =ROUND(IF($D106=data.f2026[[#Headers],[مرضي]],$BD106-SUM(data.f2026[[#This Row],[تامينات 2026]:[خصم 5% تأمين من العمولة]],0),0),2) -> 0 | CS106: 0 | CT106: =ROUND(IF($G106=data.f2026[[#Headers],[إعارة]],$BD106-SUM(data.f2026[[#This Row],[تامينات 2026]:[خصم 5% تأمين من العمولة]],0),0),2) -> 0 | CU106: =ROUND(IF($G106=data.f2026[[#Headers],[معاش]],$BD106-SUM(data.f2026[[#This Row],[تامينات 2026]:[خصم 5% تأمين من العمولة]],0),0),2) -> 0 | CV106: 1201.24 | CW106: 7130.75
B107: 202094 | C107: 21266 | D107: بنك مصر 1 | E107: ممدوح عبد العزيز عبد الوهاب | F107: مروه | G107: دوام كامل | H107: فنى | I107: الثانية | J107: الثانية | K107: حداد | L107: الاميرية | M107: 26604020104512 | N107: 202094ممدوح عبد العزيز عبد الوهابالثانيةالثانيةحدادالاميرية | O107: نعم | P107: 2264.1 | Q107: 2648.997 | R107: 0 | S107: 3576.15 | T107: 397.35 | U107: 0 | V107: 0 | W107: 0 | Y107: 397.34955 | Z107: 300 | AB107: 0 | AC107: 0 | AD107: 0 | AE107: 0 | AF107: 697.35 | AG107: 74.91 | AH107: 83.64 | AI107: 107.23 | AJ107: 0 | AK107: 190 | AL107: 45.26 | AM107: 80.71 | AN107: 103.64 | AO107: 147.85 | AP107: 158.2 | AQ107: 169.28 | AS107: 113.205 | AT107: 600 | AU107: 4 | AV107: 1877.93 | AW107: 10 | AX107: =ROUND((data.f2026[[#This Row],[أساسي 7/2025]]*2)/12,2) -> 441.5 | AY107: 0 | BA107: 0 | BB107: 9649.28 | BC107: 0 | BD107: 9649.28 | BE107: 0 | BF107: 0 | BI107: 962.87 | BK107: 0 | BL107: 0 | BM107: =IF(data.f2026[[#This Row],[أيام الغياب]]=1,data.f2026[[#This Row],[الحافز]]*20%,IF(data.f2026[[#This Row],[أيام الغياب]]=2,data.f2026[[#This Row],[الحافز]]*100%,IF(data.f2026[[#This Row],[أيام الغياب]]>2,data.f2026[[#This Row],[الحافز]]*100%,""))) ->  | BN107: =IF(data.f2026[[#This Row],[عدد أيام الأجازات]]<=4,data.f2026[[#This Row],[الحافز]]*0,IF(data.f2026[[#This Row],[عدد أيام الأجازات]]=5,data.f2026[[#This Row],[الحافز]]*20%,IF(data.f2026[[#This Row],[عدد أيام الأجازات]]=6,data.f2026[[#This Row],[الحافز]]*40%,IF(data.f2026[[#This Row],[عدد أيام الأجازات]]=7,data.f2026[[#This Row],[الحافز]]*50%,IF(data.f2026[[#This Row],[عدد أيام الأجازات]]>7,data.f2026[[#This Row],[الحافز]]*100%,""))))) -> 0 | BO107: =IF(data.f2026[[#This Row],[أيام أجازات بعد السنوية]]<=2,data.f2026[[#This Row],[الحافز]]*0,IF(data.f2026[[#This Row],[أيام أجازات بعد السنوية]]=3,data.f2026[[#This Row],[الحافز]]*30%,IF(data.f2026[[#This Row],[أيام أجازات بعد السنوية]]=4,data.f2026[[#This Row],[الحافز]]*40%,IF(data.f2026[[#This Row],[أيام أجازات بعد السنوية]]=5,data.f2026[[#This Row],[الحافز]]*50%,IF(data.f2026[[#This Row],[أيام أجازات بعد السنوية]]>5,data.f2026[[#This Row],[الحافز]]*100%,""))))) -> 0 | BP107: 0 | BQ107: 0 | BR107: 0 | BS107: 3 | BT107: 0 | BU107: 0 | BV107: 0 | BW107: 0 | BY107: 0 | BZ107: 0 | CA107: 0 | CB107: 0 | CC107: 0 | CD107: 0 | CG107: 3 | CJ107: 0 | CK107: 0 | CM107: 0 | CN107: 0 | CO107: 441.5 | CP107: 0 | CQ107: =ROUND(IF($D107=data.f2026[[#Headers],[إيقاف]],$BD107-SUM(data.f2026[[#This Row],[تامينات 2026]:[خصم 5% تأمين من العمولة]],0),0),2) -> 0 | CR107: =ROUND(IF($D107=data.f2026[[#Headers],[مرضي]],$BD107-SUM(data.f2026[[#This Row],[تامينات 2026]:[خصم 5% تأمين من العمولة]],0),0),2) -> 0 | CS107: 0 | CT107: =ROUND(IF($G107=data.f2026[[#Headers],[إعارة]],$BD107-SUM(data.f2026[[#This Row],[تامينات 2026]:[خصم 5% تأمين من العمولة]],0),0),2) -> 0 | CU107: =ROUND(IF($G107=data.f2026[[#Headers],[معاش]],$BD107-SUM(data.f2026[[#This Row],[تامينات 2026]:[خصم 5% تأمين من العمولة]],0),0),2) -> 0 | CV107: 1410.37 | CW107: 8238.91
B108: 202095 | C108: 21572 | D108: بنك مصر 1 | E108: مصطفي ابراهيم طلبة | F108: مروه | G108: دوام كامل | H108: فنى | I108: الثالثة | M108: 27304160102951 | N108: 202095مصطفي ابراهيم طلبةالثالثة | P108: 2063.44 | Q108: 2414.32 | R108: 0 | S108: 3259.33 | T108: 362.15 | U108: 0 | V108: 0 | W108: 0 | Y108: 362.148 | Z108: 300 | AB108: 0 | AC108: 0 | AD108: 0 | AE108: 0 | AF108: 662.15 | AG108: 67.78 | AH108: 75.65 | AI108: 90.99 | AJ108: 0 | AK108: 190 | AL108: 41.24 | AM108: 73.56 | AN108: 94.45 | AO108: 134.75 | AP108: 144.18 | AQ108: 154.28 | AS108: 103.172 | AT108: 600 | AU108: 10 | AV108: 1780.05 | AW108: 10 | AX108: =ROUND((data.f2026[[#This Row],[أساسي 7/2025]]*2)/12,2) -> 402.39 | AY108: 382.77 | BA108: 0 | BB108: 8890.39 | BC108: 0 | BD108: 9273.16 | BE108: 0 | BF108: 0 | BI108: 869.26 | BK108: 0 | BL108: 0 | BM108: =IF(data.f2026[[#This Row],[أيام الغياب]]=1,data.f2026[[#This Row],[الحافز]]*20%,IF(data.f2026[[#This Row],[أيام الغياب]]=2,data.f2026[[#This Row],[الحافز]]*100%,IF(data.f2026[[#This Row],[أيام الغياب]]>2,data.f2026[[#This Row],[الحافز]]*100%,""))) ->  | BN108: =IF(data.f2026[[#This Row],[عدد أيام الأجازات]]<=4,data.f2026[[#This Row],[الحافز]]*0,IF(data.f2026[[#This Row],[عدد أيام الأجازات]]=5,data.f2026[[#This Row],[الحافز]]*20%,IF(data.f2026[[#This Row],[عدد أيام الأجازات]]=6,data.f2026[[#This Row],[الحافز]]*40%,IF(data.f2026[[#This Row],[عدد أيام الأجازات]]=7,data.f2026[[#This Row],[الحافز]]*50%,IF(data.f2026[[#This Row],[عدد أيام الأجازات]]>7,data.f2026[[#This Row],[الحافز]]*100%,""))))) -> 0 | BO108: =IF(data.f2026[[#This Row],[أيام أجازات بعد السنوية]]<=2,data.f2026[[#This Row],[الحافز]]*0,IF(data.f2026[[#This Row],[أيام أجازات بعد السنوية]]=3,data.f2026[[#This Row],[الحافز]]*30%,IF(data.f2026[[#This Row],[أيام أجازات بعد السنوية]]=4,data.f2026[[#This Row],[الحافز]]*40%,IF(data.f2026[[#This Row],[أيام أجازات بعد السنوية]]=5,data.f2026[[#This Row],[الحافز]]*50%,IF(data.f2026[[#This Row],[أيام أجازات بعد السنوية]]>5,data.f2026[[#This Row],[الحافز]]*100%,""))))) -> 0 | BP108: 42.28 | BQ108: 0 | BR108: 0 | BS108: 3 | BT108: 0 | BU108: 0 | BV108: 0 | BW108: 0 | BY108: 0 | BZ108: 0 | CA108: 0 | CB108: 0 | CC108: 0 | CD108: 0 | CG108: 3 | CJ108: 0 | CK108: 0 | CM108: 0 | CN108: 0 | CO108: 402.39 | CP108: 0 | CQ108: =ROUND(IF($D108=data.f2026[[#Headers],[إيقاف]],$BD108-SUM(data.f2026[[#This Row],[تامينات 2026]:[خصم 5% تأمين من العمولة]],0),0),2) -> 0 | CR108: =ROUND(IF($D108=data.f2026[[#Headers],[مرضي]],$BD108-SUM(data.f2026[[#This Row],[تامينات 2026]:[خصم 5% تأمين من العمولة]],0),0),2) -> 0 | CS108: 0 | CT108: =ROUND(IF($G108=data.f2026[[#Headers],[إعارة]],$BD108-SUM(data.f2026[[#This Row],[تامينات 2026]:[خصم 5% تأمين من العمولة]],0),0),2) -> 0 | CU108: =ROUND(IF($G108=data.f2026[[#Headers],[معاش]],$BD108-SUM(data.f2026[[#This Row],[تامينات 2026]:[خصم 5% تأمين من العمولة]],0),0),2) -> 0 | CV108: 1319.93 | CW108: 7953.23
